Workbook

Sheet Cover
B1: Player | C1: =Data!H2 -> Allen Gibson | E1: Location | F1: =Data!AC2 -> Lake Lynn
B2: Date | C2: =MAX(Data!G:G) -> 2013-01-04 | E2: Surface | F2: =Data!AD2 -> Hard
B3: Time | E3: Lighted | F3: =Data!AE2 -> No
B4: Coach | C4: =Data!AA2 -> Robert Allen Gibson | E4: Session | F4: =IF(MIN(Data!X:X)=MAX(Data!$X:$X),MAX(Data!$X:$X),"All") -> All
A6: Boomer Level | B6: Percentage in | C6: Total Shots | D6: Average Speed | E6: Your Fastest Speed Response | F6: Average Depth in feet | G6: Average Width from center
A7: 2 | B7: =IF(ISERROR(COUNTIF(Data!F:F,Cover!A7)/COUNTIF(Data!Q:Q,Cover!A7)),"",COUNTIF(Data!F:F,Cover!A7)/COUNTIF(Data!Q:Q,Cover!A7)) -> 0.8474576271 | C7: =COUNTIF(Data!Q:Q,Cover!A7) -> 59 | D7: =IF(ISERROR(VLOOKUP(A7,pvtAvgSpeed,MATCH("Grand Total",Pivots!$4:$4,0),0)),"",TEXT(VLOOKUP(A7,pvtAvgSpeed,MATCH("Grand Total",Pivots!$4:$4,0),0),"#0") & " MPH") -> 59 MPH | E7: =IF(ISERROR(VLOOKUP(A7,pvtMaxSpeed,Pivots!$A$32,0)),"",TEXT(VLOOKUP(A7,pvtMaxSpeed,Pivots!$A$32,0),"#0") & " MPH") -> 112 MPH | F7: =IF(ISERROR(VLOOKUP(A7,pvtAvgDepth,MATCH("Grand Total",Pivots!$102:$102,0),0)),"",VLOOKUP(A7,pvtAvgDepth,MATCH("Grand Total",Pivots!$102:$102,0),0)) -> 24.18 | G7: =IF(ISERROR(VLOOKUP(A7,pvtAvgWidth,MATCH("Grand Total",Pivots!$102:$102,0),0)),"",VLOOKUP(A7,pvtAvgWidth,MATCH("Grand Total",Pivots!$102:$102,0),0)) -> 8.22
A8: 2.5 | B8: =IF(ISERROR(COUNTIF(Data!F:F,Cover!A8)/COUNTIF(Data!Q:Q,Cover!A8)),"",COUNTIF(Data!F:F,Cover!A8)/COUNTIF(Data!Q:Q,Cover!A8)) -> 0.90625 | C8: =COUNTIF(Data!Q:Q,Cover!A8) -> 64 | D8: =IF(ISERROR(VLOOKUP(A8,pvtAvgSpeed,MATCH("Grand Total",Pivots!$4:$4,0),0)),"",TEXT(VLOOKUP(A8,pvtAvgSpeed,MATCH("Grand Total",Pivots!$4:$4,0),0),"#0") & " MPH") -> 61 MPH | E8: =IF(ISERROR(VLOOKUP(A8,pvtMaxSpeed,Pivots!$A$32,0)),"",TEXT(VLOOKUP(A8,pvtMaxSpeed,Pivots!$A$32,0),"#0") & " MPH") -> 132 MPH | F8: =IF(ISERROR(VLOOKUP(A8,pvtAvgDepth,MATCH("Grand Total",Pivots!$102:$102,0),0)),"",VLOOKUP(A8,pvtAvgDepth,MATCH("Grand Total",Pivots!$102:$102,0),0)) -> 23.82758621 | G8: =IF(ISERROR(VLOOKUP(A8,pvtAvgWidth,MATCH("Grand Total",Pivots!$102:$102,0),0)),"",VLOOKUP(A8,pvtAvgWidth,MATCH("Grand Total",Pivots!$102:$102,0),0)) -> 6.862068966
A9: 3 | B9: =IF(ISERROR(COUNTIF(Data!F:F,Cover!A9)/COUNTIF(Data!Q:Q,Cover!A9)),"",COUNTIF(Data!F:F,Cover!A9)/COUNTIF(Data!Q:Q,Cover!A9)) -> 0.8513513514 | C9: =COUNTIF(Data!Q:Q,Cover!A9) -> 74 | D9: =IF(ISERROR(VLOOKUP(A9,pvtAvgSpeed,MATCH("Grand Total",Pivots!$4:$4,0),0)),"",TEXT(VLOOKUP(A9,pvtAvgSpeed,MATCH("Grand Total",Pivots!$4:$4,0),0),"#0") & " MPH") -> 53 MPH | E9: =IF(ISERROR(VLOOKUP(A9,pvtMaxSpeed,Pivots!$A$32,0)),"",TEXT(VLOOKUP(A9,pvtMaxSpeed,Pivots!$A$32,0),"#0") & " MPH") -> 117 MPH | F9: =IF(ISERROR(VLOOKUP(A9,pvtAvgDepth,MATCH("Grand Total",Pivots!$102:$102,0),0)),"",VLOOKUP(A9,pvtAvgDepth,MATCH("Grand Total",Pivots!$102:$102,0),0)) -> 24.98412698 | G9: =IF(ISERROR(VLOOKUP(A9,pvtAvgWidth,MATCH("Grand Total",Pivots!$102:$102,0),0)),"",VLOOKUP(A9,pvtAvgWidth,MATCH("Grand Total",Pivots!$102:$102,0),0)) -> 5.912698413
A10: 3.5 | B10: =IF(ISERROR(COUNTIF(Data!F:F,Cover!A10)/COUNTIF(Data!Q:Q,Cover!A10)),"",COUNTIF(Data!F:F,Cover!A10)/COUNTIF(Data!Q:Q,Cover!A10)) -> 0.5221238938 | C10: =COUNTIF(Data!Q:Q,Cover!A10) -> 226 | D10: =IF(ISERROR(VLOOKUP(A10,pvtAvgSpeed,MATCH("Grand Total",Pivots!$4:$4,0),0)),"",TEXT(VLOOKUP(A10,pvtAvgSpeed,MATCH("Grand Total",Pivots!$4:$4,0),0),"#0") & " MPH") -> 49 MPH | E10: =IF(ISERROR(VLOOKUP(A10,pvtMaxSpeed,Pivots!$A$32,0)),"",TEXT(VLOOKUP(A10,pvtMaxSpeed,Pivots!$A$32,0),"#0") & " MPH") -> 118 MPH | F10: =IF(ISERROR(VLOOKUP(A10,pvtAvgDepth,MATCH("Grand Total",Pivots!$102:$102,0),0)),"",VLOOKUP(A10,pvtAvgDepth,MATCH("Grand Total",Pivots!$102:$102,0),0)) -> 20.88983051 | G10: =IF(ISERROR(VLOOKUP(A10,pvtAvgWidth,MATCH("Grand Total",Pivots!$102:$102,0),0)),"",VLOOKUP(A10,pvtAvgWidth,MATCH("Grand Total",Pivots!$102:$102,0),0)) -> 6.855932203
A11: 4 | B11: =IF(ISERROR(COUNTIF(Data!F:F,Cover!A11)/COUNTIF(Data!Q:Q,Cover!A11)),"",COUNTIF(Data!F:F,Cover!A11)/COUNTIF(Data!Q:Q,Cover!A11)) ->  | C11: =COUNTIF(Data!Q:Q,Cover!A11) -> 0 | D11: =IF(ISERROR(VLOOKUP(A11,pvtAvgSpeed,MATCH("Grand Total",Pivots!$4:$4,0),0)),"",TEXT(VLOOKUP(A11,pvtAvgSpeed,MATCH("Grand Total",Pivots!$4:$4,0),0),"#0") & " MPH") ->  | E11: =IF(ISERROR(VLOOKUP(A11,pvtMaxSpeed,Pivots!$A$32,0)),"",TEXT(VLOOKUP(A11,pvtMaxSpeed,Pivots!$A$32,0),"#0") & " MPH") ->  | F11: =IF(ISERROR(VLOOKUP(A11,pvtAvgDepth,MATCH("Grand Total",Pivots!$102:$102,0),0)),"",VLOOKUP(A11,pvtAvgDepth,MATCH("Grand Total",Pivots!$102:$102,0),0)) ->  | G11: =IF(ISERROR(VLOOKUP(A11,pvtAvgWidth,MATCH("Grand Total",Pivots!$102:$102,0),0)),"",VLOOKUP(A11,pvtAvgWidth,MATCH("Grand Total",Pivots!$102:$102,0),0)) -> 
A12: 4.5 | B12: =IF(ISERROR(COUNTIF(Data!F:F,Cover!A12)/COUNTIF(Data!Q:Q,Cover!A12)),"",COUNTIF(Data!F:F,Cover!A12)/COUNTIF(Data!Q:Q,Cover!A12)) ->  | C12: =COUNTIF(Data!Q:Q,Cover!A12) -> 0 | D12: =IF(ISERROR(VLOOKUP(A12,pvtAvgSpeed,MATCH("Grand Total",Pivots!$4:$4,0),0)),"",TEXT(VLOOKUP(A12,pvtAvgSpeed,MATCH("Grand Total",Pivots!$4:$4,0),0),"#0") & " MPH") ->  | E12: =IF(ISERROR(VLOOKUP(A12,pvtMaxSpeed,Pivots!$A$32,0)),"",TEXT(VLOOKUP(A12,pvtMaxSpeed,Pivots!$A$32,0),"#0") & " MPH") ->  | F12: =IF(ISERROR(VLOOKUP(A12,pvtAvgDepth,MATCH("Grand Total",Pivots!$102:$102,0),0)),"",VLOOKUP(A12,pvtAvgDepth,MATCH("Grand Total",Pivots!$102:$102,0),0)) ->  | G12: =IF(ISERROR(VLOOKUP(A12,pvtAvgWidth,MATCH("Grand Total",Pivots!$102:$102,0),0)),"",VLOOKUP(A12,pvtAvgWidth,MATCH("Grand Total",Pivots!$102:$102,0),0)) -> 
A13: 5 | B13: =IF(ISERROR(COUNTIF(Data!F:F,Cover!A13)/COUNTIF(Data!Q:Q,Cover!A13)),"",COUNTIF(Data!F:F,Cover!A13)/COUNTIF(Data!Q:Q,Cover!A13)) ->  | C13: =COUNTIF(Data!Q:Q,Cover!A13) -> 0 | D13: =IF(ISERROR(VLOOKUP(A13,pvtAvgSpeed,MATCH("Grand Total",Pivots!$4:$4,0),0)),"",TEXT(VLOOKUP(A13,pvtAvgSpeed,MATCH("Grand Total",Pivots!$4:$4,0),0),"#0") & " MPH") ->  | E13: =IF(ISERROR(VLOOKUP(A13,pvtMaxSpeed,Pivots!$A$32,0)),"",TEXT(VLOOKUP(A13,pvtMaxSpeed,Pivots!$A$32,0),"#0") & " MPH") ->  | F13: =IF(ISERROR(VLOOKUP(A13,pvtAvgDepth,MATCH("Grand Total",Pivots!$102:$102,0),0)),"",VLOOKUP(A13,pvtAvgDepth,MATCH("Grand Total",Pivots!$102:$102,0),0)) ->  | G13: =IF(ISERROR(VLOOKUP(A13,pvtAvgWidth,MATCH("Grand Total",Pivots!$102:$102,0),0)),"",VLOOKUP(A13,pvtAvgWidth,MATCH("Grand Total",Pivots!$102:$102,0),0)) -> 
A14: 5.5 | B14: =IF(ISERROR(COUNTIF(Data!F:F,Cover!A14)/COUNTIF(Data!Q:Q,Cover!A14)),"",COUNTIF(Data!F:F,Cover!A14)/COUNTIF(Data!Q:Q,Cover!A14)) ->  | C14: =COUNTIF(Data!Q:Q,Cover!A14) -> 0 | D14: =IF(ISERROR(VLOOKUP(A14,pvtAvgSpeed,MATCH("Grand Total",Pivots!$4:$4,0),0)),"",TEXT(VLOOKUP(A14,pvtAvgSpeed,MATCH("Grand Total",Pivots!$4:$4,0),0),"#0") & " MPH") ->  | E14: =IF(ISERROR(VLOOKUP(A14,pvtMaxSpeed,Pivots!$A$32,0)),"",TEXT(VLOOKUP(A14,pvtMaxSpeed,Pivots!$A$32,0),"#0") & " MPH") ->  | F14: =IF(ISERROR(VLOOKUP(A14,pvtAvgDepth,MATCH("Grand Total",Pivots!$102:$102,0),0)),"",VLOOKUP(A14,pvtAvgDepth,MATCH("Grand Total",Pivots!$102:$102,0),0)) ->  | G14: =IF(ISERROR(VLOOKUP(A14,pvtAvgWidth,MATCH("Grand Total",Pivots!$102:$102,0),0)),"",VLOOKUP(A14,pvtAvgWidth,MATCH("Grand Total",Pivots!$102:$102,0),0)) -> 
A15: 6 | B15: =IF(ISERROR(COUNTIF(Data!F:F,Cover!A15)/COUNTIF(Data!Q:Q,Cover!A15)),"",COUNTIF(Data!F:F,Cover!A15)/COUNTIF(Data!Q:Q,Cover!A15)) ->  | C15: =COUNTIF(Data!Q:Q,Cover!A15) -> 0 | D15: =IF(ISERROR(VLOOKUP(A15,pvtAvgSpeed,MATCH("Grand Total",Pivots!$4:$4,0),0)),"",TEXT(VLOOKUP(A15,pvtAvgSpeed,MATCH("Grand Total",Pivots!$4:$4,0),0),"#0") & " MPH") ->  | E15: =IF(ISERROR(VLOOKUP(A15,pvtMaxSpeed,Pivots!$A$32,0)),"",TEXT(VLOOKUP(A15,pvtMaxSpeed,Pivots!$A$32,0),"#0") & " MPH") ->  | F15: =IF(ISERROR(VLOOKUP(A15,pvtAvgDepth,MATCH("Grand Total",Pivots!$102:$102,0),0)),"",VLOOKUP(A15,pvtAvgDepth,MATCH("Grand Total",Pivots!$102:$102,0),0)) ->  | G15: =IF(ISERROR(VLOOKUP(A15,pvtAvgWidth,MATCH("Grand Total",Pivots!$102:$102,0),0)),"",VLOOKUP(A15,pvtAvgWidth,MATCH("Grand Total",Pivots!$102:$102,0),0)) -> 
A16: 6.5 | B16: =IF(ISERROR(COUNTIF(Data!F:F,Cover!A16)/COUNTIF(Data!Q:Q,Cover!A16)),"",COUNTIF(Data!F:F,Cover!A16)/COUNTIF(Data!Q:Q,Cover!A16)) ->  | C16: =COUNTIF(Data!Q:Q,Cover!A16) -> 0 | D16: =IF(ISERROR(VLOOKUP(A16,pvtAvgSpeed,MATCH("Grand Total",Pivots!$4:$4,0),0)),"",TEXT(VLOOKUP(A16,pvtAvgSpeed,MATCH("Grand Total",Pivots!$4:$4,0),0),"#0") & " MPH") ->  | E16: =IF(ISERROR(VLOOKUP(A16,pvtMaxSpeed,Pivots!$A$32,0)),"",TEXT(VLOOKUP(A16,pvtMaxSpeed,Pivots!$A$32,0),"#0") & " MPH") ->  | F16: =IF(ISERROR(VLOOKUP(A16,pvtAvgDepth,MATCH("Grand Total",Pivots!$102:$102,0),0)),"",VLOOKUP(A16,pvtAvgDepth,MATCH("Grand Total",Pivots!$102:$102,0),0)) ->  | G16: =IF(ISERROR(VLOOKUP(A16,pvtAvgWidth,MATCH("Grand Total",Pivots!$102:$102,0),0)),"",VLOOKUP(A16,pvtAvgWidth,MATCH("Grand Total",Pivots!$102:$102,0),0)) -> 
A17: 7 | B17: =IF(ISERROR(COUNTIF(Data!F:F,Cover!A17)/COUNTIF(Data!Q:Q,Cover!A17)),"",COUNTIF(Data!F:F,Cover!A17)/COUNTIF(Data!Q:Q,Cover!A17)) ->  | C17: =COUNTIF(Data!Q:Q,Cover!A17) -> 0 | D17: =IF(ISERROR(VLOOKUP(A17,pvtAvgSpeed,MATCH("Grand Total",Pivots!$4:$4,0),0)),"",TEXT(VLOOKUP(A17,pvtAvgSpeed,MATCH("Grand Total",Pivots!$4:$4,0),0),"#0") & " MPH") ->  | E17: =IF(ISERROR(VLOOKUP(A17,pvtMaxSpeed,Pivots!$A$32,0)),"",TEXT(VLOOKUP(A17,pvtMaxSpeed,Pivots!$A$32,0),"#0") & " MPH") ->  | F17: =IF(ISERROR(VLOOKUP(A17,pvtAvgDepth,MATCH("Grand Total",Pivots!$102:$102,0),0)),"",VLOOKUP(A17,pvtAvgDepth,MATCH("Grand Total",Pivots!$102:$102,0),0)) ->  | G17: =IF(ISERROR(VLOOKUP(A17,pvtAvgWidth,MATCH("Grand Total",Pivots!$102:$102,0),0)),"",VLOOKUP(A17,pvtAvgWidth,MATCH("Grand Total",Pivots!$102:$102,0),0)) -> 
A18: Grand Total | B18: =SUM(B32:B34)/C18 -> 0.68321513 | C18: =SUM(C7:C17) -> 423 | D18: =TEXT(SUM(Data!U:U)/SUM(B32:B34),0) & " MPH" -> 54 MPH | E18: <4 | G18: >6
B19: Percentage in | C19: Total Shots | D19: Boomer's Stroke to you | E19: To Fore Hand | F19: To CTR | G19: To Back Hand
B20: =IF(ISERROR(COUNTIF(Data!D:D,Cover!D20)/C20),"",COUNTIF(Data!D:D,Cover!D20)/C20) -> 0.8571428571 | C20: =COUNTIF(Data!P:P,Cover!D20) -> 21 | D20: Drop Shot | E20: =COUNTIFS(Data!P:P,Cover!D20,Data!O:O,$E$18)+OR(10) -> 7 | F20: =C20-E20-G20 -> 14 | G20: =COUNTIFS(Data!P:P,Cover!D20,Data!O:O,$G$18)+NOT(10) -> 0
B21: =IF(ISERROR(COUNTIF(Data!D:D,Cover!D21)/C21),"",COUNTIF(Data!D:D,Cover!D21)/C21) -> 0.9411764706 | C21: =COUNTIF(Data!P:P,Cover!D21) -> 17 | D21: Flat Drive | E21: =COUNTIFS(Data!P:P,Cover!D21,Data!O:O,$E$18)+OR(10) -> 9 | F21: =C21-E21-G21 -> 8 | G21: =COUNTIFS(Data!P:P,Cover!D21,Data!O:O,$G$18)+NOT(10) -> 0
B22: =IF(ISERROR(COUNTIF(Data!D:D,Cover!D22)/C22),"",COUNTIF(Data!D:D,Cover!D22)/C22) -> 1 | C22: =COUNTIF(Data!P:P,Cover!D22) -> 20 | D22: Heavy Topspin | E22: =COUNTIFS(Data!P:P,Cover!D22,Data!O:O,$E$18)+OR(10) -> 8 | F22: 12 | G22: =COUNTIFS(Data!P:P,Cover!D22,Data!O:O,$G$18)+NOT(10) -> 0
B23: =IF(ISERROR(COUNTIF(Data!D:D,Cover!D23)/C23),"",COUNTIF(Data!D:D,Cover!D23)/C23) -> 0.875 | C23: =COUNTIF(Data!P:P,Cover!D23) -> 16 | D23: Lob | E23: =COUNTIFS(Data!P:P,Cover!D23,Data!O:O,$E$18)+OR(10) -> 7 | F23: 9 | G23: =COUNTIFS(Data!P:P,Cover!D23,Data!O:O,$G$18)+NOT(10) -> 0
B24: =IF(ISERROR(COUNTIF(Data!D:D,Cover!D24)/C24),"",COUNTIF(Data!D:D,Cover!D24)/C24) -> 0.8648648649 | C24: =COUNTIF(Data!P:P,Cover!D24) -> 37 | D24: Pass | E24: =COUNTIFS(Data!P:P,Cover!D24,Data!O:O,$E$18)+OR(10) -> 11 | F24: 26 | G24: =COUNTIFS(Data!P:P,Cover!D24,Data!O:O,$G$18)+NOT(10) -> 0
B25: =IF(ISERROR(COUNTIF(Data!D:D,Cover!D25)/C25),"",COUNTIF(Data!D:D,Cover!D25)/C25) -> 0.9454545455 | C25: =COUNTIF(Data!P:P,Cover!D25) -> 55 | D25: Serve | E25: =COUNTIFS(Data!P:P,Cover!D25,Data!O:O,$E$18)+OR(10) -> 31 | F25: 10 | G25: =COUNTIFS(Data!P:P,Cover!D25,Data!O:O,$G$18)+NOT(10) -> 14
B26: =IF(ISERROR(COUNTIF(Data!D:D,Cover!D26)/C26),"",COUNTIF(Data!D:D,Cover!D26)/C26) -> 0.9230769231 | C26: =COUNTIF(Data!P:P,Cover!D26) -> 13 | D26: Slice | E26: =COUNTIFS(Data!P:P,Cover!D26,Data!O:O,$E$18)+OR(10) -> 5 | F26: 8 | G26: =COUNTIFS(Data!P:P,Cover!D26,Data!O:O,$G$18)+NOT(10) -> 0
B27: =IF(ISERROR(COUNTIF(Data!D:D,Cover!D27)/C27),"",COUNTIF(Data!D:D,Cover!D27)/C27) -> 0.9230769231 | C27: =COUNTIF(Data!P:P,Cover!D27) -> 52 | D27: Topspin | E27: =COUNTIFS(Data!P:P,Cover!D27,Data!O:O,$E$18)+OR(10) -> 16 | F27: =C27-E27-G27 -> 36 | G27: =COUNTIFS(Data!P:P,Cover!D27,Data!O:O,$G$18)+NOT(10) -> 0
C28: =SUM(C20:C27) -> 231 | E28: =SUM(E20:E27)/$C$28 -> 0.4069264069 | F28: =SUM(F20:F27)/$C$28 -> 0.5324675325 | G28: =SUM(G20:G27)/$C$28 -> 0.06060606061
B30: Based on a level 3.0 -3.5 player or placement in 3rds of the court
A31: =COUNTIF(Data!R:R,">0") -> 289
A32: >19 | B32: =COUNTIFS(Data!R:R,">0",Data!S:S,Cover!A32) -> 57 | C32: =B32/$A$31 -> 0.1972318339 | D32: of your shots were hit to your opponents backhand
B33: =COUNTIF(Data!R:R,">0")-B32-B34 -> 99 | C33: =B33/$A$31 -> 0.3425605536 | D33: of your shots were hit to your opponents Center Court
A34: <9 | B34: =COUNTIFS(Data!R:R,">0",Data!S:S,Cover!A34) -> 133 | C34: 0.4602076125 | D34: of your shots were hit to your opponents Forehand
A36: >25 | B36: =COUNTIFS(Data!R:R,">0",Data!R:R,Cover!A36) -> 112 | C36: =B36/$A$31 -> 0.3875432526 | D36: of your shots were hit to your opponents Deep Court
B37: =COUNTIFS(Data!R:R,">0")-B36-B38 -> 140 | C37: =B37/$A$31 -> 0.4844290657 | D37: of your shots were hit to your opponents Mid Court
A38: <14 | B38: =COUNTIFS(Data!R:R,">0",Data!R:R,Cover!A38) -> 37 | C38: 0.1280276817 | D38: of your shots were hit to your opponents Fore Court

Sheet Serves
B1: Player | C1: =Data!H2 -> Allen Gibson | E1: Location | F1: =Data!AC2 -> Lake Lynn
B2: Date | C2: =Data!G2 -> 2012-05-09 | E2: Surface | F2: =Data!AD2 -> Hard
B3: Time | E3: Lighted | F3: =Data!AE2 -> No
B4: Coach | C4: =Data!AA2 -> Robert Allen Gibson
E6: % based on 1st/2nd | G6: % based on all serves
B7: Total | C7: 1st | D7: 2nd | E7: 1st | F7: 2nd | G7: 1st | H7: 2nd
A8: Serves | B8: =SUM(C8:D8) -> 60 | C8: =COUNTIFS(ServeData!$P:$P,ServesSetUp!$P$1,ServeData!$N:$N,1) -> 49 | D8: =COUNTIFS(ServeData!$P:$P,ServesSetUp!$P$1,ServeData!$N:$N,">1") -> 11 | G8: =IF(ISERROR($C$8/$B$8),"",$C$8/$B$8) -> 0.8166666667 | H8: =IF(ISERROR($D$8/$B$8),"",$D$8/$B$8) -> 0.1833333333
A9: Aces | B9: =SUM(C9:D9) -> 29 | C9: =COUNTIFS(ServeData!$P:$P,"Player Serve",ServeData!N:N,1,ServeData!AL:AL,">2") -> 25 | D9: =COUNTIFS(ServeData!$P:$P,"Player Serve",ServeData!N:N,2,ServeData!AL:AL,">2") -> 4 | E9: =IF($C$8>0,SUM(C9/$C$8),0) -> 0.5102040816 | F9: =IF($D$8>0,SUM(D9/$D$8),0) -> 0.3636363636 | G9: =IF($B$8>0,SUM(C9/$B$8),0) -> 0.4166666667 | H9: =IF($B$8>0,SUM(D9/$B$8),0) -> 0.06666666667
A10: Faults | B10: 15 | C10: =D8 -> 11 | D10: =COUNTIFS(ServeData!$P:$P,ServesSetUp!$P$1,ServeData!$N:$N,2,ServeData!$R:$R,0) -> 4 | E10: =IF(ISERROR(C10/$B$8),"",C10/$B$8) -> 0.1833333333 | F10: =IF(ISERROR(D10/$D$8),"",D10/$D$8) -> 0.3636363636 | G10: =IF($B$8>0,SUM(C10/$B$8),0) -> 0.1833333333 | H10: =IF($B$8>0,SUM(D10/$B$8),0) -> 0.06666666667
A11: Double Faults | B11: 4 | D11: =COUNTIFS(ServeData!$P:$P,ServesSetUp!$P$1,ServeData!$N:$N,2,ServeData!$R:$R,0) -> 4 | F11: =IF(ISERROR(D11/$D$8),"",D11/$D$8) -> 0.3636363636 | H11: =IF($B$8>0,SUM(D11/$B$8),0) -> 0.06666666667
A12: Serves In | B12: =SUM(C12:D12) -> 45 | C12: =COUNTIFS(ServeData!$P:$P,ServesSetUp!$P$1,ServeData!$N:$N,1,ServeData!$R:$R,">0") -> 38 | D12: =COUNTIFS(ServeData!$P:$P,ServesSetUp!$P$1,ServeData!$N:$N,">1",ServeData!$S:$S,">0") -> 7 | E12: =IF(ISERROR(C12/$C$8),"",C12/$C$8) -> 0.7755102041 | F12: =IF(ISERROR(D12/$D$8),"",D12/$D$8) -> 0.6363636364 | G12: =IF($B$8>0,SUM(C12/$B$8),0) -> 0.6333333333 | H12: =IF($B$8>0,SUM(D12/$B$8),0) -> 0.1166666667
A13: Points Won | B13: =SUM(C13:D13) -> 41 | C13: =COUNTIFS(ServeData!$P:$P,ServesSetUp!$P$1,ServeData!$N:$N,1,ServeData!$K:$K,"Player's point",ServeData!$R:$R,">0") -> 34 | D13: =COUNTIFS(ServeData!$P:$P,ServesSetUp!$P$1,ServeData!$N:$N,2,ServeData!$K:$K,"Player's point") -> 7 | E13: =IF(ISERROR(C13/$C$8),"",C13/$C$8) -> 0.693877551 | F13: =IF(ISERROR(D13/$D$8),"",D13/$D$8) -> 0.6363636364 | G13: =IF($B$8>0,SUM(C13/$B$8),0) -> 0.5666666667 | H13: =IF($B$8>0,SUM(D13/$B$8),0) -> 0.1166666667
A14: Fastest Serve | C14: =VLOOKUP(1,MaxServe,Pivots!$C$217,0) -> 132 | D14: =VLOOKUP(2,MaxServe,Pivots!$C$217,0) -> 123
A15: Average Speed | B15: =AVERAGEIFS(ServeData!U:U,ServeData!U:U,">0",ServeData!P:P,"Player Serve") -> 106.2222222 | C15: =AVERAGEIFS(ServeData!U:U,ServeData!U:U,">0",ServeData!P:P,"Player Serve",ServeData!N:N,1) -> 109.9736842 | D15: =AVERAGEIFS(ServeData!U:U,ServeData!U:U,">0",ServeData!P:P,"Player Serve",ServeData!N:N,2) -> 85.85714286
A18: SERVES PLACEMENT | F18: AVERAGE SPEED MPH

Sheet Stroke Driection
C1: Player | D1: =Data!H2 -> Allen Gibson | F1: Location | G1: =Data!AC2 -> Lake Lynn
C2: Date | D2: =MAX(Data!G:G) -> 2013-01-04 | F2: Surface | G2: =Data!AD2 -> Hard
C3: Time | F3: Lighted | G3: =Data!AE2 -> No
C4: Coach | D4: =Data!AA2 -> Robert Allen Gibson | F4: Session | G4: =IF(MIN(Data!X:X)=MAX(Data!$X:$X),MAX(Data!$X:$X),"All") -> All
D8: % based on in Strokes | E8: % based on all strokes
B9: Percentage of shots Cross Court | D9: =SUM(F14+F26)/SUM(Cover!B32:B34) -> 0.4290657439 | E9: =SUM(F14+F26)/Cover!C18 -> 0.293144208
B10: Percentage of shots Down the Line | D10: =SUM(F20+F32)/SUM(Cover!B32:B34) -> 0.5640138408 | E10: =SUM(F32+F20)/Cover!C18 -> 0.3853427896
F13: Storkes in at each level
B14: % of Strokes from Duce Court Cross 2.0 - 2.5 | D14: =SUM(F14/SUM(Cover!$B$32:$B$34)) -> 0.3529411765 | E14: =SUM($F$14/Cover!$C$18) -> 0.2411347518 | F14: =COUNTIFS(Data!$R:$R,">0",Data!$O:$O,"<6",Data!$S:$S,">13") -> 102
B15: High school level # 5 and below 3.0 - 3.5 | D15: =SUM(F15/SUM(Cover!$B$32:$B$34)) -> 0.2283737024 | E15: =SUM(F15/Cover!$C$18) -> 0.1560283688 | F15: =COUNTIFS(Data!$R:$R,">0",Data!$O:$O,"<6",Data!$S:$S,">18") -> 66
B16: High school level top 4 players 4.0 - 4.5 | D16: =SUM(F16/SUM(Cover!$B$32:$B$34)) -> 0.1314878893 | E16: =SUM(F16/Cover!$C$18) -> 0.08983451537 | F16: =COUNTIFS(Data!$R:$R,">0",Data!$O:$O,"<6",Data!$S:$S,">20") -> 38
B17: College Level Players 5.0 - 5.5 | D17: =SUM(F17/SUM(Cover!$B$32:$B$34)) -> 0.07958477509 | E17: =SUM(F17/Cover!$C$18) -> 0.05437352246 | F17: =COUNTIFS(Data!$R:$R,">0",Data!$O:$O,"<6",Data!$S:$S,">22") -> 23
B18: National level Pros Low International 6.0 - 6.5 | D18: =SUM(F18/SUM(Cover!$B$32:$B$34)) -> 0.04844290657 | E18: =SUM(F18/Cover!$C$18) -> 0.03309692671 | F18: =COUNTIFS(Data!$R:$R,">0",Data!$O:$O,"<6",Data!$S:$S,">23") -> 14
B19: International Level Pros 7.0 | D19: =SUM(F19/SUM(Cover!$B$32:$B$34)) -> 0.03114186851 | E19: =SUM(F19/Cover!$C$18) -> 0.02127659574 | F19: =COUNTIFS(Data!$R:$R,">0",Data!$O:$O,"<6",Data!$S:$S,">24") -> 9
B20: % of Strokes from Duce Court Line 2.0 - 2.5 | D20: =SUM(F20/SUM(Cover!$B$32:$B$34)) -> 0.5155709343 | E20: =SUM(F20/Cover!$C$18) -> 0.3522458629 | F20: =COUNTIFS(Data!$R:$R,">0",Data!$O:$O,"<6",Data!$S:$S,"<13") -> 149
B21: 3.0 - 3.5 | D21: =SUM(F21/SUM(Cover!$B$32:$B$34)) -> 0.4532871972 | E21: =SUM(F21/Cover!$C$18) -> 0.3096926714 | F21: =COUNTIFS(Data!$R:$R,">0",Data!$O:$O,"<6",Data!$S:$S,"<10") -> 131
B22: 4.0 - 4.5 | D22: =SUM(F22/SUM(Cover!$B$32:$B$34)) -> 0.2906574394 | E22: =SUM(F22/Cover!$C$18) -> 0.1985815603 | F22: =COUNTIFS(Data!$R:$R,">0",Data!$O:$O,"<6",Data!$S:$S,"<7") -> 84
B23: 5.0 - 5.5 | D23: =SUM(F23/SUM(Cover!$B$32:$B$34)) -> 0.1626297578 | E23: =SUM(F23/Cover!$C$18) -> 0.1111111111 | F23: =COUNTIFS(Data!$R:$R,">0",Data!$O:$O,"<6",Data!$S:$S,"<5") -> 47
B24: 6.0 - 6.5 | D24: =SUM(F24/SUM(Cover!$B$32:$B$34)) -> 0.08996539792 | E24: =SUM(F24/Cover!$C$18) -> 0.06146572104 | F24: =COUNTIFS(Data!$R:$R,">0",Data!$O:$O,"<6",Data!$S:$S,"<4") -> 26
B25: 7 | D25: =SUM(F25/SUM(Cover!$B$32:$B$34)) -> 0.0553633218 | E25: =SUM(F25/Cover!$C$18) -> 0.0378250591 | F25: =COUNTIFS(Data!$R:$R,">0",Data!$O:$O,"<6",Data!$S:$S,"<3") -> 16
B26: % of Strokes from Add Court Cross 2.0 - 2.5 | D26: =SUM(F26/SUM(Cover!$B$32:$B$34)) -> 0.07612456747 | E26: =SUM(F26/Cover!$C$18) -> 0.05200945626 | F26: =COUNTIFS(Data!$R:$R,">0",Data!$O:$O,">5",Data!$S:$S,"<13") -> 22
B27: 3.0 - 3.5 | D27: =SUM(F27/SUM(Cover!$B$32:$B$34)) -> 0.05882352941 | E27: =SUM(F27/Cover!$C$18) -> 0.0401891253 | F27: =COUNTIFS(Data!$R:$R,">0",Data!$O:$O,">5",Data!$S:$S,"<10") -> 17
B28: 4.0 - 4.5 | D28: =SUM(F28/SUM(Cover!$B$32:$B$34)) -> 0.03806228374 | E28: =SUM(F28/Cover!$C$18) -> 0.02600472813 | F28: =COUNTIFS(Data!$R:$R,">0",Data!$O:$O,">5",Data!$S:$S,"<7") -> 11
B29: 5.0 - 5.5 | D29: =SUM(F29/SUM(Cover!$B$32:$B$34)) -> 0.0276816609 | E29: =SUM(F29/Cover!$C$18) -> 0.01891252955 | F29: =COUNTIFS(Data!$R:$R,">0",Data!$O:$O,">5",Data!$S:$S,"<5") -> 8
B30: 6.0 - 6.5 | D30: =SUM(F30/SUM(Cover!$B$32:$B$34)) -> 0.01730103806 | E30: =SUM(F30/Cover!$C$18) -> 0.01182033097 | F30: =COUNTIFS(Data!$R:$R,">0",Data!$O:$O,">5",Data!$S:$S,"<4") -> 5
B31: 7 | D31: =SUM(F31/SUM(Cover!$B$32:$B$34)) -> 0.01384083045 | E31: =SUM(F31/Cover!$C$18) -> 0.009456264775 | F31: =COUNTIFS(Data!$R:$R,">0",Data!$O:$O,">5",Data!$S:$S,"<3") -> 4
B32: % of Strokes from Add Court Line 2.0 - 2.5 | D32: =SUM(F32/SUM(Cover!$B$32:$B$34)) -> 0.04844290657 | E32: =SUM(F32/Cover!$C$18) -> 0.03309692671 | F32: =COUNTIFS(Data!$R:$R,">0",Data!$O:$O,">5",Data!$S:$S,">13") -> 14
B33: 3.0 - 3.5 | D33: =SUM(F33/SUM(Cover!$B$32:$B$34)) -> 0.02422145329 | E33: =SUM(F33/Cover!$C$18) -> 0.01654846336 | F33: =COUNTIFS(Data!$R:$R,">0",Data!$O:$O,">5",Data!$S:$S,">18") -> 7
B34: 4.0 - 4.5 | D34: =SUM(F34/SUM(Cover!$B$32:$B$34)) -> 0.01730103806 | E34: =SUM(F34/Cover!$C$18) -> 0.01182033097 | F34: =COUNTIFS(Data!$R:$R,">0",Data!$O:$O,">5",Data!$S:$S,">20") -> 5
B35: 5.0 - 5.5 | D35: =SUM(F35/SUM(Cover!$B$32:$B$34)) -> 0.01038062284 | E35: =SUM(F35/Cover!$C$18) -> 0.007092198582 | F35: =COUNTIFS(Data!$R:$R,">0",Data!$O:$O,">5",Data!$S:$S,">22") -> 3
B36: 6.0 - 6.5 | D36: =SUM(F36/SUM(Cover!$B$32:$B$34)) -> 0.006920415225 | E36: =SUM(F36/Cover!$C$18) -> 0.004728132388 | F36: =COUNTIFS(Data!$R:$R,">0",Data!$O:$O,">5",Data!$S:$S,">23") -> 2
B37: 7 | D37: =SUM(F37/SUM(Cover!$B$32:$B$34)) -> 0.006920415225 | E37: =SUM(F37/Cover!$C$18) -> 0.004728132388 | F37: =COUNTIFS(Data!$R:$R,">0",Data!$O:$O,">5",Data!$S:$S,">24") -> 2

Sheet Speed Report
C1: Player | D1: =Data!H2 -> Allen Gibson | F1: Location | G1: =Data!AC2 -> Lake Lynn
C2: Date | D2: =MAX(Data!G:G) -> 2013-01-04 | F2: Surface | G2: =Data!AD2 -> Hard
C3: Time | F3: Lighted | G3: =Data!AE2 -> No
C4: Coach | D4: =Data!AA2 -> Robert Allen Gibson | F4: Session | G4: =IF(MIN(Data!X:X)=MAX(Data!$X:$X),MAX(Data!$X:$X),"All") -> All
D7: Out of | E7: =TEXT(SUM(Cover!B32:B34),0) & " Strokes the following were at each level" -> 289 Strokes the following were at each level
B8: Speed Averages for Ground Strokes 2.0 - 2.5 | D8: 35 - 45 MPH | E8: =IF(NOT(Data!P:P="Player Serve"),COUNTIFS(Data!U:U,">0",Data!U:U,"<46"),0) -> 130 | F8: =SUM(E8/SUM(Cover!$B$32:$B$34)) -> 0.4498269896
B9: High school level # 5 and below 3.0 - 3.5 | D9: 45 - 55 MPH | E9: =IF(NOT(Data!P:P="Player Serve"),COUNTIFS(Data!U:U,">44",Data!U:U,"<56"),0) -> 106 | F9: =SUM(E9/SUM(Cover!$B$32:$B$34)) -> 0.3667820069
B10: High school level top 4 players 4.0 - 4.5 | D10: 55 - 69 MPH | E10: =IF(NOT(Data!P:P="Player Serve"),COUNTIFS(Data!U:U,">54",Data!U:U,"<70"),0) -> 20 | F10: =SUM(E10/SUM(Cover!$B$32:$B$34)) -> 0.06920415225
B11: College Level Players 5.0 - 5.5 | D11: 60 - 75 MPH | E11: =IF(NOT(Data!P:P="Player Serve"),COUNTIFS(Data!U:U,">59",Data!U:U,"<76"),0) -> 4 | F11: =SUM(E11/SUM(Cover!$B$32:$B$34)) -> 0.01384083045
B12: National level Pros Low International 6.0 - 6.5 | D12: 65 - 80 MPH | E12: =IF(NOT(Data!P:P="Player Serve"),COUNTIFS(Data!U:U,">64",Data!U:U,"<81"),0) -> 0 | F12: =SUM(E12/SUM(Cover!$B$32:$B$34)) -> 0
B13: International Level Pros 7.0 | D13: 65 - 89 MPH | E13: =COUNTIFS(Data!P:P,NOT(ServesSetUp!$P$1),Data!U:U,">64",Data!U:U,"<101") -> 0 | F13: =SUM(E13/SUM(Cover!$B$32:$B$34)) -> 0
D15: Out of | E15: =TEXT(SUM(Serves!B8),0) & " Serves the following were at each level" -> 60 Serves the following were at each level
B16: Speed Averages for Serves Strokes 2.0 - 2.5 | D16: 45 - 50 MPH | E16: =COUNTIFS(ServeData!$P:$P,ServesSetUp!$P$1,ServeData!U:U,">0",ServeData!U:U,"<51") -> 1 | F16: =SUM(E16/SUM(Cover!$B$32:$B$34)) -> 0.003460207612
B17: High school level # 5 and below 3.0 - 3.5 | D17: 50 - 65 MPH | E17: =COUNTIFS(ServeData!$P:$P,ServesSetUp!$P$1,ServeData!U:U,">49",ServeData!U:U,"<66") -> 2 | F17: =SUM(E17/SUM(Cover!$B$32:$B$34)) -> 0.006920415225
B18: High school level top 4 players 4.0 - 4.5 | D18: 65 - 90 MPH | E18: =COUNTIFS(ServeData!$P:$P,ServesSetUp!$P$1,ServeData!U:U,">64",ServeData!U:U,"<91") -> 2 | F18: =SUM(E18/SUM(Cover!$B$32:$B$34)) -> 0.006920415225
B19: College Level Players 5.0 - 5.5 | D19: 75 - 112 MPH | E19: =COUNTIFS(ServeData!$P:$P,ServesSetUp!$P$1,ServeData!U:U,">74",ServeData!U:U,"<113") -> 28 | F19: =SUM(E19/SUM(Cover!$B$32:$B$34)) -> 0.09688581315
B20: National level Pros Low International 6.0 - 6.5 | D20: 80 - 130 MPH | E20: =COUNTIFS(ServeData!$P:$P,ServesSetUp!$P$1,ServeData!U:U,">79",ServeData!U:U,"<131") -> 40 | F20: =SUM(E20/SUM(Cover!$B$32:$B$34)) -> 0.1384083045
B21: International Level Pros 7.0 | D21: 80 - 164 MPH | E21: =COUNTIFS(ServeData!$P:$P,ServesSetUp!$P$1,ServeData!U:U,">79",ServeData!U:U,"<165") -> 42 | F21: =SUM(E21/SUM(Cover!$B$32:$B$34)) -> 0.1453287197

Sheet Report
H1: Player
H2: =IF(ISERROR(INDEX(Data!H:H,Report!$B5)),"",INDEX(Data!H:H,Report!$B5)) -> Allen Gibson
E4: Point | F4: Serve | H4: ball# | I4: Shot Type | J4: Direction | K4: Level | L4: Depth | M4: Width | N4: Score | O4: Speed | P4: Total | R4: Width | S4: Depth
A5: 1 | B5: =IF(ISERROR(MATCH(A5,Data!A:A,0)),"",MATCH(A5,Data!A:A,0)) -> 2 | E5: =IF(ISERROR(INDEX(Data!K:K,Report!$B5)),"",INDEX(Data!K:K,Report!$B5)) -> Boomer's point | F5: =IF(ISERROR(INDEX(Data!L:L,Report!$B5)),"",INDEX(Data!L:L,Report!$B5)) -> New Point | H5: =IF(ISERROR(INDEX(Data!N:N,Report!$B5)),"",INDEX(Data!N:N,Report!$B5)) -> 1 | I5: =IF(ISERROR(INDEX(Data!P:P,Report!$B5)),"",INDEX(Data!P:P,Report!$B5)) -> Player Serve | J5: =IF(ISERROR(INDEX(Data!O:O,Report!$B5)),"",INDEX(Data!O:O,Report!$B5)) -> 4 | K5: =IF(ISERROR(INDEX(Data!Q:Q,Report!$B5)),"",INDEX(Data!Q:Q,Report!$B5)) -> 2 | L5: =IF(ISERROR(INDEX(Data!R:R,Report!$B5)),"",INDEX(Data!R:R,Report!$B5)) -> 0 | M5: =IF(ISERROR(INDEX(Data!S:S,Report!$B5)),"",INDEX(Data!S:S,Report!$B5)) -> 0 | N5: =IF(ISERROR(INDEX(Data!T:T,Report!$B5)),"",INDEX(Data!T:T,Report!$B5)) -> 0 | O5: =IF(ISERROR(INDEX(Data!U:U,Report!$B5)),"",INDEX(Data!U:U,Report!$B5)) -> 0 | P5: =IF(ISERROR(INDEX(Data!V:V,Report!$B5)),"",INDEX(Data!V:V,Report!$B5)) -> 0 | R5: =IF(H5=0,"",IF(ISERROR(REPT(" ",L5) & "|"),"",REPT(" ",L5) & "|")) -> | | S5: =IF(ISERROR(REPT("|",M5/2)),"",REPT("|",M5/2)) -> 
A6: =A5+1 -> 2 | B6: =IF(ISERROR(MATCH(A6,Data!A:A,0)),"",MATCH(A6,Data!A:A,0)) ->  | C6: =IF(ISERROR(INDEX(Data!I:I,Report!$B6)),"",INDEX(Data!I:I,Report!$B6)) ->  | D6: =IF(ISERROR(INDEX(Data!J:J,Report!$B6)),"",INDEX(Data!J:J,Report!$B6)) ->  | E6: =IF(ISERROR(INDEX(Data!K:K,Report!$B6)),"",INDEX(Data!K:K,Report!$B6)) ->  | F6: =IF(ISERROR(INDEX(Data!L:L,Report!$B6)),"",INDEX(Data!L:L,Report!$B6)) ->  | H6: =IF(ISERROR(INDEX(Data!N:N,Report!$B6)),"",INDEX(Data!N:N,Report!$B6)) ->  | I6: =IF(ISERROR(INDEX(Data!P:P,Report!$B6)),"",INDEX(Data!P:P,Report!$B6)) ->  | J6: =IF(ISERROR(INDEX(Data!O:O,Report!$B6)),"",INDEX(Data!O:O,Report!$B6)) ->  | K6: =IF(ISERROR(INDEX(Data!Q:Q,Report!$B6)),"",INDEX(Data!Q:Q,Report!$B6)) ->  | L6: =IF(ISERROR(INDEX(Data!R:R,Report!$B6)),"",INDEX(Data!R:R,Report!$B6)) ->  | M6: =IF(ISERROR(INDEX(Data!S:S,Report!$B6)),"",INDEX(Data!S:S,Report!$B6)) ->  | N6: =IF(ISERROR(INDEX(Data!T:T,Report!$B6)),"",INDEX(Data!T:T,Report!$B6)) ->  | O6: =IF(ISERROR(INDEX(Data!U:U,Report!$B6)),"",INDEX(Data!U:U,Report!$B6)) ->  | P6: =IF(ISERROR(INDEX(Data!V:V,Report!$B6)),"",INDEX(Data!V:V,Report!$B6)) ->  | S6: =IF(ISERROR(REPT("|",M6/2)),"",REPT("|",M6/2)) -> 
A7: =A6+1 -> 3 | B7: =IF(ISERROR(MATCH(A7,Data!A:A,0)),"",MATCH(A7,Data!A:A,0)) ->  | C7: =IF(ISERROR(INDEX(Data!I:I,Report!$B7)),"",INDEX(Data!I:I,Report!$B7)) ->  | D7: =IF(ISERROR(INDEX(Data!J:J,Report!$B7)),"",INDEX(Data!J:J,Report!$B7)) ->  | E7: =IF(ISERROR(INDEX(Data!K:K,Report!$B7)),"",INDEX(Data!K:K,Report!$B7)) ->  | F7: =IF(ISERROR(INDEX(Data!L:L,Report!$B7)),"",INDEX(Data!L:L,Report!$B7)) ->  | H7: =IF(ISERROR(INDEX(Data!N:N,Report!$B7)),"",INDEX(Data!N:N,Report!$B7)) ->  | I7: =IF(ISERROR(INDEX(Data!P:P,Report!$B7)),"",INDEX(Data!P:P,Report!$B7)) ->  | J7: =IF(ISERROR(INDEX(Data!O:O,Report!$B7)),"",INDEX(Data!O:O,Report!$B7)) ->  | K7: =IF(ISERROR(INDEX(Data!Q:Q,Report!$B7)),"",INDEX(Data!Q:Q,Report!$B7)) ->  | L7: =IF(ISERROR(INDEX(Data!R:R,Report!$B7)),"",INDEX(Data!R:R,Report!$B7)) ->  | M7: =IF(ISERROR(INDEX(Data!S:S,Report!$B7)),"",INDEX(Data!S:S,Report!$B7)) ->  | N7: =IF(ISERROR(INDEX(Data!T:T,Report!$B7)),"",INDEX(Data!T:T,Report!$B7)) ->  | O7: =IF(ISERROR(INDEX(Data!U:U,Report!$B7)),"",INDEX(Data!U:U,Report!$B7)) ->  | P7: =IF(ISERROR(INDEX(Data!V:V,Report!$B7)),"",INDEX(Data!V:V,Report!$B7)) -> 
A8: 4 | B8: =IF(ISERROR(MATCH(A8,Data!A:A,0)),"",MATCH(A8,Data!A:A,0)) ->  | C8: =IF(ISERROR(INDEX(Data!I:I,Report!$B8)),"",INDEX(Data!I:I,Report!$B8)) ->  | D8: =IF(ISERROR(INDEX(Data!J:J,Report!$B8)),"",INDEX(Data!J:J,Report!$B8)) ->  | E8: =IF(ISERROR(INDEX(Data!K:K,Report!$B8)),"",INDEX(Data!K:K,Report!$B8)) ->  | F8: =IF(ISERROR(INDEX(Data!L:L,Report!$B8)),"",INDEX(Data!L:L,Report!$B8)) ->  | H8: =IF(ISERROR(INDEX(Data!N:N,Report!$B8)),"",INDEX(Data!N:N,Report!$B8)) ->  | I8: =IF(ISERROR(INDEX(Data!P:P,Report!$B8)),"",INDEX(Data!P:P,Report!$B8)) ->  | J8: =IF(ISERROR(INDEX(Data!O:O,Report!$B8)),"",INDEX(Data!O:O,Report!$B8)) ->  | K8: =IF(ISERROR(INDEX(Data!Q:Q,Report!$B8)),"",INDEX(Data!Q:Q,Report!$B8)) ->  | L8: =IF(ISERROR(INDEX(Data!R:R,Report!$B8)),"",INDEX(Data!R:R,Report!$B8)) ->  | M8: =IF(ISERROR(INDEX(Data!S:S,Report!$B8)),"",INDEX(Data!S:S,Report!$B8)) ->  | N8: =IF(ISERROR(INDEX(Data!T:T,Report!$B8)),"",INDEX(Data!T:T,Report!$B8)) ->  | O8: =IF(ISERROR(INDEX(Data!U:U,Report!$B8)),"",INDEX(Data!U:U,Report!$B8)) ->  | P8: =IF(ISERROR(INDEX(Data!V:V,Report!$B8)),"",INDEX(Data!V:V,Report!$B8)) -> 
A9: 5 | B9: =IF(ISERROR(MATCH(A9,Data!A:A,0)),"",MATCH(A9,Data!A:A,0)) -> 3 | C9: =IF(ISERROR(INDEX(Data!I:I,Report!$B9)),"",INDEX(Data!I:I,Report!$B9)) ->  | D9: =IF(ISERROR(INDEX(Data!J:J,Report!$B9)),"",INDEX(Data!J:J,Report!$B9)) -> User Drill #85 3 line rated mini Tennis | E9: =IF(ISERROR(INDEX(Data!K:K,Report!$B9)),"",INDEX(Data!K:K,Report!$B9)) -> 0 | F9: =IF(ISERROR(INDEX(Data!L:L,Report!$B9)),"",INDEX(Data!L:L,Report!$B9)) -> New Point | H9: =IF(ISERROR(INDEX(Data!N:N,Report!$B9)),"",INDEX(Data!N:N,Report!$B9)) -> 1 | I9: =IF(ISERROR(INDEX(Data!P:P,Report!$B9)),"",INDEX(Data!P:P,Report!$B9)) -> 0 | J9: =IF(ISERROR(INDEX(Data!O:O,Report!$B9)),"",INDEX(Data!O:O,Report!$B9)) -> 11 | K9: =IF(ISERROR(INDEX(Data!Q:Q,Report!$B9)),"",INDEX(Data!Q:Q,Report!$B9)) -> 3.5 | L9: =IF(ISERROR(INDEX(Data!R:R,Report!$B9)),"",INDEX(Data!R:R,Report!$B9)) -> 0 | M9: =IF(ISERROR(INDEX(Data!S:S,Report!$B9)),"",INDEX(Data!S:S,Report!$B9)) -> 0 | N9: =IF(ISERROR(INDEX(Data!T:T,Report!$B9)),"",INDEX(Data!T:T,Report!$B9)) -> 0 | O9: =IF(ISERROR(INDEX(Data!U:U,Report!$B9)),"",INDEX(Data!U:U,Report!$B9)) -> 0 | P9: =IF(ISERROR(INDEX(Data!V:V,Report!$B9)),"",INDEX(Data!V:V,Report!$B9)) -> 0 | R9: |
A10: 6 | B10: =IF(ISERROR(MATCH(A10,Data!A:A,0)),"",MATCH(A10,Data!A:A,0)) ->  | C10: =IF(ISERROR(INDEX(Data!I:I,Report!$B10)),"",INDEX(Data!I:I,Report!$B10)) ->  | D10: =IF(ISERROR(INDEX(Data!J:J,Report!$B10)),"",INDEX(Data!J:J,Report!$B10)) ->  | E10: =IF(ISERROR(INDEX(Data!K:K,Report!$B10)),"",INDEX(Data!K:K,Report!$B10)) ->  | F10: =IF(ISERROR(INDEX(Data!L:L,Report!$B10)),"",INDEX(Data!L:L,Report!$B10)) ->  | H10: =IF(ISERROR(INDEX(Data!N:N,Report!$B10)),"",INDEX(Data!N:N,Report!$B10)) ->  | I10: =IF(ISERROR(INDEX(Data!P:P,Report!$B10)),"",INDEX(Data!P:P,Report!$B10)) ->  | J10: =IF(ISERROR(INDEX(Data!O:O,Report!$B10)),"",INDEX(Data!O:O,Report!$B10)) ->  | K10: =IF(ISERROR(INDEX(Data!Q:Q,Report!$B10)),"",INDEX(Data!Q:Q,Report!$B10)) ->  | L10: =IF(ISERROR(INDEX(Data!R:R,Report!$B10)),"",INDEX(Data!R:R,Report!$B10)) ->  | M10: =IF(ISERROR(INDEX(Data!S:S,Report!$B10)),"",INDEX(Data!S:S,Report!$B10)) ->  | N10: =IF(ISERROR(INDEX(Data!T:T,Report!$B10)),"",INDEX(Data!T:T,Report!$B10)) ->  | O10: =IF(ISERROR(INDEX(Data!U:U,Report!$B10)),"",INDEX(Data!U:U,Report!$B10)) ->  | P10: =IF(ISERROR(INDEX(Data!V:V,Report!$B10)),"",INDEX(Data!V:V,Report!$B10)) -> 
A11: 7 | B11: =IF(ISERROR(MATCH(A11,Data!A:A,0)),"",MATCH(A11,Data!A:A,0)) ->  | C11: =IF(ISERROR(INDEX(Data!I:I,Report!$B11)),"",INDEX(Data!I:I,Report!$B11)) ->  | D11: =IF(ISERROR(INDEX(Data!J:J,Report!$B11)),"",INDEX(Data!J:J,Report!$B11)) ->  | E11: =IF(ISERROR(INDEX(Data!K:K,Report!$B11)),"",INDEX(Data!K:K,Report!$B11)) ->  | F11: =IF(ISERROR(INDEX(Data!L:L,Report!$B11)),"",INDEX(Data!L:L,Report!$B11)) ->  | H11: =IF(ISERROR(INDEX(Data!N:N,Report!$B11)),"",INDEX(Data!N:N,Report!$B11)) ->  | I11: =IF(ISERROR(INDEX(Data!P:P,Report!$B11)),"",INDEX(Data!P:P,Report!$B11)) ->  | J11: =IF(ISERROR(INDEX(Data!O:O,Report!$B11)),"",INDEX(Data!O:O,Report!$B11)) ->  | K11: =IF(ISERROR(INDEX(Data!Q:Q,Report!$B11)),"",INDEX(Data!Q:Q,Report!$B11)) ->  | L11: =IF(ISERROR(INDEX(Data!R:R,Report!$B11)),"",INDEX(Data!R:R,Report!$B11)) ->  | M11: =IF(ISERROR(INDEX(Data!S:S,Report!$B11)),"",INDEX(Data!S:S,Report!$B11)) ->  | N11: =IF(ISERROR(INDEX(Data!T:T,Report!$B11)),"",INDEX(Data!T:T,Report!$B11)) ->  | O11: =IF(ISERROR(INDEX(Data!U:U,Report!$B11)),"",INDEX(Data!U:U,Report!$B11)) ->  | P11: =IF(ISERROR(INDEX(Data!V:V,Report!$B11)),"",INDEX(Data!V:V,Report!$B11)) -> 
A12: 8 | B12: =IF(ISERROR(MATCH(A12,Data!A:A,0)),"",MATCH(A12,Data!A:A,0)) ->  | C12: =IF(ISERROR(INDEX(Data!I:I,Report!$B12)),"",INDEX(Data!I:I,Report!$B12)) ->  | D12: =IF(ISERROR(INDEX(Data!J:J,Report!$B12)),"",INDEX(Data!J:J,Report!$B12)) ->  | E12: =IF(ISERROR(INDEX(Data!K:K,Report!$B12)),"",INDEX(Data!K:K,Report!$B12)) ->  | F12: =IF(ISERROR(INDEX(Data!L:L,Report!$B12)),"",INDEX(Data!L:L,Report!$B12)) ->  | H12: =IF(ISERROR(INDEX(Data!N:N,Report!$B12)),"",INDEX(Data!N:N,Report!$B12)) ->  | I12: =IF(ISERROR(INDEX(Data!P:P,Report!$B12)),"",INDEX(Data!P:P,Report!$B12)) ->  | J12: =IF(ISERROR(INDEX(Data!O:O,Report!$B12)),"",INDEX(Data!O:O,Report!$B12)) ->  | K12: =IF(ISERROR(INDEX(Data!Q:Q,Report!$B12)),"",INDEX(Data!Q:Q,Report!$B12)) ->  | L12: =IF(ISERROR(INDEX(Data!R:R,Report!$B12)),"",INDEX(Data!R:R,Report!$B12)) ->  | M12: =IF(ISERROR(INDEX(Data!S:S,Report!$B12)),"",INDEX(Data!S:S,Report!$B12)) ->  | N12: =IF(ISERROR(INDEX(Data!T:T,Report!$B12)),"",INDEX(Data!T:T,Report!$B12)) ->  | O12: =IF(ISERROR(INDEX(Data!U:U,Report!$B12)),"",INDEX(Data!U:U,Report!$B12)) ->  | P12: =IF(ISERROR(INDEX(Data!V:V,Report!$B12)),"",INDEX(Data!V:V,Report!$B12)) -> 
A13: 9 | B13: =IF(ISERROR(MATCH(A13,Data!A:A,0)),"",MATCH(A13,Data!A:A,0)) -> 4 | C13: =IF(ISERROR(INDEX(Data!I:I,Report!$B13)),"",INDEX(Data!I:I,Report!$B13)) -> 04:33:05 | D13: =IF(ISERROR(INDEX(Data!J:J,Report!$B13)),"",INDEX(Data!J:J,Report!$B13)) -> Game against Boomer at level 3.5 Single point data: | E13: =IF(ISERROR(INDEX(Data!K:K,Report!$B13)),"",INDEX(Data!K:K,Report!$B13)) -> Player's point | F13: =IF(ISERROR(INDEX(Data!L:L,Report!$B13)),"",INDEX(Data!L:L,Report!$B13)) -> New Point | H13: =IF(ISERROR(INDEX(Data!N:N,Report!$B13)),"",INDEX(Data!N:N,Report!$B13)) -> 1 | I13: =IF(ISERROR(INDEX(Data!P:P,Report!$B13)),"",INDEX(Data!P:P,Report!$B13)) -> Player Serve | J13: =IF(ISERROR(INDEX(Data!O:O,Report!$B13)),"",INDEX(Data!O:O,Report!$B13)) -> 4 | K13: =IF(ISERROR(INDEX(Data!Q:Q,Report!$B13)),"",INDEX(Data!Q:Q,Report!$B13)) -> 3.5 | L13: =IF(ISERROR(INDEX(Data!R:R,Report!$B13)),"",INDEX(Data!R:R,Report!$B13)) -> 0 | M13: =IF(ISERROR(INDEX(Data!S:S,Report!$B13)),"",INDEX(Data!S:S,Report!$B13)) -> 0 | N13: =IF(ISERROR(INDEX(Data!T:T,Report!$B13)),"",INDEX(Data!T:T,Report!$B13)) -> 0 | O13: =IF(ISERROR(INDEX(Data!U:U,Report!$B13)),"",INDEX(Data!U:U,Report!$B13)) -> 0 | P13: =IF(ISERROR(INDEX(Data!V:V,Report!$B13)),"",INDEX(Data!V:V,Report!$B13)) -> 0 | R13: |
A14: 10 | B14: =IF(ISERROR(MATCH(A14,Data!A:A,0)),"",MATCH(A14,Data!A:A,0)) -> 5 | C14: =IF(ISERROR(INDEX(Data!I:I,Report!$B14)),"",INDEX(Data!I:I,Report!$B14)) -> 04:33:05 | D14: =IF(ISERROR(INDEX(Data!J:J,Report!$B14)),"",INDEX(Data!J:J,Report!$B14)) -> Game against Boomer at level 3.5 Single point data: | E14: =IF(ISERROR(INDEX(Data!K:K,Report!$B14)),"",INDEX(Data!K:K,Report!$B14)) -> Player's point | F14: =IF(ISERROR(INDEX(Data!L:L,Report!$B14)),"",INDEX(Data!L:L,Report!$B14)) -> 0 | H14: =IF(ISERROR(INDEX(Data!N:N,Report!$B14)),"",INDEX(Data!N:N,Report!$B14)) -> 2 | I14: =IF(ISERROR(INDEX(Data!P:P,Report!$B14)),"",INDEX(Data!P:P,Report!$B14)) -> Player Serve | J14: =IF(ISERROR(INDEX(Data!O:O,Report!$B14)),"",INDEX(Data!O:O,Report!$B14)) -> 4 | K14: =IF(ISERROR(INDEX(Data!Q:Q,Report!$B14)),"",INDEX(Data!Q:Q,Report!$B14)) -> 3.5 | L14: =IF(ISERROR(INDEX(Data!R:R,Report!$B14)),"",INDEX(Data!R:R,Report!$B14)) -> 16 | M14: =IF(ISERROR(INDEX(Data!S:S,Report!$B14)),"",INDEX(Data!S:S,Report!$B14)) -> 21 | N14: =IF(ISERROR(INDEX(Data!T:T,Report!$B14)),"",INDEX(Data!T:T,Report!$B14)) -> 3.6 | O14: =IF(ISERROR(INDEX(Data!U:U,Report!$B14)),"",INDEX(Data!U:U,Report!$B14)) -> 54 | P14: =IF(ISERROR(INDEX(Data!V:V,Report!$B14)),"",INDEX(Data!V:V,Report!$B14)) -> 3.5 | R14: | | S14: ||||||||||
A15: 11 | B15: =IF(ISERROR(MATCH(A15,Data!A:A,0)),"",MATCH(A15,Data!A:A,0)) -> 6 | C15: =IF(ISERROR(INDEX(Data!I:I,Report!$B15)),"",INDEX(Data!I:I,Report!$B15)) ->  | D15: =IF(ISERROR(INDEX(Data!J:J,Report!$B15)),"",INDEX(Data!J:J,Report!$B15)) -> User Drill #85 3 line rated mini Tennis | E15: =IF(ISERROR(INDEX(Data!K:K,Report!$B15)),"",INDEX(Data!K:K,Report!$B15)) -> 0 | F15: =IF(ISERROR(INDEX(Data!L:L,Report!$B15)),"",INDEX(Data!L:L,Report!$B15)) -> 0 | H15: =IF(ISERROR(INDEX(Data!N:N,Report!$B15)),"",INDEX(Data!N:N,Report!$B15)) -> 2 | I15: =IF(ISERROR(INDEX(Data!P:P,Report!$B15)),"",INDEX(Data!P:P,Report!$B15)) -> 0 | J15: =IF(ISERROR(INDEX(Data!O:O,Report!$B15)),"",INDEX(Data!O:O,Report!$B15)) -> 4 | K15: =IF(ISERROR(INDEX(Data!Q:Q,Report!$B15)),"",INDEX(Data!Q:Q,Report!$B15)) -> 3.5 | L15: =IF(ISERROR(INDEX(Data!R:R,Report!$B15)),"",INDEX(Data!R:R,Report!$B15)) -> 2 | M15: =IF(ISERROR(INDEX(Data!S:S,Report!$B15)),"",INDEX(Data!S:S,Report!$B15)) -> 0 | N15: =IF(ISERROR(INDEX(Data!T:T,Report!$B15)),"",INDEX(Data!T:T,Report!$B15)) -> 7 | O15: =IF(ISERROR(INDEX(Data!U:U,Report!$B15)),"",INDEX(Data!U:U,Report!$B15)) -> 0 | P15: =IF(ISERROR(INDEX(Data!V:V,Report!$B15)),"",INDEX(Data!V:V,Report!$B15)) -> 4 | R15: |
A16: 12 | B16: =IF(ISERROR(MATCH(A16,Data!A:A,0)),"",MATCH(A16,Data!A:A,0)) -> 7 | C16: =IF(ISERROR(INDEX(Data!I:I,Report!$B16)),"",INDEX(Data!I:I,Report!$B16)) -> 00:31:35 | D16: =IF(ISERROR(INDEX(Data!J:J,Report!$B16)),"",INDEX(Data!J:J,Report!$B16)) -> Game against Boomer at level 2.0 Single point data: | E16: =IF(ISERROR(INDEX(Data!K:K,Report!$B16)),"",INDEX(Data!K:K,Report!$B16)) -> Boomer's point | F16: =IF(ISERROR(INDEX(Data!L:L,Report!$B16)),"",INDEX(Data!L:L,Report!$B16)) -> 0 | H16: =IF(ISERROR(INDEX(Data!N:N,Report!$B16)),"",INDEX(Data!N:N,Report!$B16)) -> 2 | I16: =IF(ISERROR(INDEX(Data!P:P,Report!$B16)),"",INDEX(Data!P:P,Report!$B16)) -> Player Serve | J16: =IF(ISERROR(INDEX(Data!O:O,Report!$B16)),"",INDEX(Data!O:O,Report!$B16)) -> 4 | K16: =IF(ISERROR(INDEX(Data!Q:Q,Report!$B16)),"",INDEX(Data!Q:Q,Report!$B16)) -> 2 | L16: =IF(ISERROR(INDEX(Data!R:R,Report!$B16)),"",INDEX(Data!R:R,Report!$B16)) -> 0 | M16: =IF(ISERROR(INDEX(Data!S:S,Report!$B16)),"",INDEX(Data!S:S,Report!$B16)) -> 0 | N16: =IF(ISERROR(INDEX(Data!T:T,Report!$B16)),"",INDEX(Data!T:T,Report!$B16)) -> 0 | O16: =IF(ISERROR(INDEX(Data!U:U,Report!$B16)),"",INDEX(Data!U:U,Report!$B16)) -> 0 | P16: =IF(ISERROR(INDEX(Data!V:V,Report!$B16)),"",INDEX(Data!V:V,Report!$B16)) -> 0 | R16: |
A17: 13 | B17: =IF(ISERROR(MATCH(A17,Data!A:A,0)),"",MATCH(A17,Data!A:A,0)) -> 8 | C17: =IF(ISERROR(INDEX(Data!I:I,Report!$B17)),"",INDEX(Data!I:I,Report!$B17)) -> 04:33:05 | D17: =IF(ISERROR(INDEX(Data!J:J,Report!$B17)),"",INDEX(Data!J:J,Report!$B17)) -> Game against Boomer at level 3.5 Single point data: | E17: =IF(ISERROR(INDEX(Data!K:K,Report!$B17)),"",INDEX(Data!K:K,Report!$B17)) -> Player's point | F17: =IF(ISERROR(INDEX(Data!L:L,Report!$B17)),"",INDEX(Data!L:L,Report!$B17)) -> 0 | H17: =IF(ISERROR(INDEX(Data!N:N,Report!$B17)),"",INDEX(Data!N:N,Report!$B17)) -> 3 | I17: =IF(ISERROR(INDEX(Data!P:P,Report!$B17)),"",INDEX(Data!P:P,Report!$B17)) -> Slice | J17: =IF(ISERROR(INDEX(Data!O:O,Report!$B17)),"",INDEX(Data!O:O,Report!$B17)) -> 3 | K17: =IF(ISERROR(INDEX(Data!Q:Q,Report!$B17)),"",INDEX(Data!Q:Q,Report!$B17)) -> 3.5 | L17: =IF(ISERROR(INDEX(Data!R:R,Report!$B17)),"",INDEX(Data!R:R,Report!$B17)) -> 27 | M17: =IF(ISERROR(INDEX(Data!S:S,Report!$B17)),"",INDEX(Data!S:S,Report!$B17)) -> 9 | N17: =IF(ISERROR(INDEX(Data!T:T,Report!$B17)),"",INDEX(Data!T:T,Report!$B17)) -> 4.7 | O17: =IF(ISERROR(INDEX(Data!U:U,Report!$B17)),"",INDEX(Data!U:U,Report!$B17)) -> 38 | P17: =IF(ISERROR(INDEX(Data!V:V,Report!$B17)),"",INDEX(Data!V:V,Report!$B17)) -> 3.8 | R17: | | S17: ||||
A18: 14 | B18: =IF(ISERROR(MATCH(A18,Data!A:A,0)),"",MATCH(A18,Data!A:A,0)) -> 9 | C18: =IF(ISERROR(INDEX(Data!I:I,Report!$B18)),"",INDEX(Data!I:I,Report!$B18)) ->  | D18: =IF(ISERROR(INDEX(Data!J:J,Report!$B18)),"",INDEX(Data!J:J,Report!$B18)) -> User Drill #85 3 line rated mini Tennis | E18: =IF(ISERROR(INDEX(Data!K:K,Report!$B18)),"",INDEX(Data!K:K,Report!$B18)) -> 0 | F18: =IF(ISERROR(INDEX(Data!L:L,Report!$B18)),"",INDEX(Data!L:L,Report!$B18)) -> 0 | H18: =IF(ISERROR(INDEX(Data!N:N,Report!$B18)),"",INDEX(Data!N:N,Report!$B18)) -> 3 | I18: =IF(ISERROR(INDEX(Data!P:P,Report!$B18)),"",INDEX(Data!P:P,Report!$B18)) -> 0 | J18: =IF(ISERROR(INDEX(Data!O:O,Report!$B18)),"",INDEX(Data!O:O,Report!$B18)) -> 10 | K18: =IF(ISERROR(INDEX(Data!Q:Q,Report!$B18)),"",INDEX(Data!Q:Q,Report!$B18)) -> 3.5 | L18: =IF(ISERROR(INDEX(Data!R:R,Report!$B18)),"",INDEX(Data!R:R,Report!$B18)) -> 0 | M18: =IF(ISERROR(INDEX(Data!S:S,Report!$B18)),"",INDEX(Data!S:S,Report!$B18)) -> 0 | N18: =IF(ISERROR(INDEX(Data!T:T,Report!$B18)),"",INDEX(Data!T:T,Report!$B18)) -> 0 | O18: =IF(ISERROR(INDEX(Data!U:U,Report!$B18)),"",INDEX(Data!U:U,Report!$B18)) -> 0 | P18: =IF(ISERROR(INDEX(Data!V:V,Report!$B18)),"",INDEX(Data!V:V,Report!$B18)) -> 0 | R18: |
A19: 15 | B19: =IF(ISERROR(MATCH(A19,Data!A:A,0)),"",MATCH(A19,Data!A:A,0)) -> 10 | C19: =IF(ISERROR(INDEX(Data!I:I,Report!$B19)),"",INDEX(Data!I:I,Report!$B19)) -> 04:33:05 | D19: =IF(ISERROR(INDEX(Data!J:J,Report!$B19)),"",INDEX(Data!J:J,Report!$B19)) -> Game against Boomer at level 3.5 Single point data: | E19: =IF(ISERROR(INDEX(Data!K:K,Report!$B19)),"",INDEX(Data!K:K,Report!$B19)) -> Player's point | F19: =IF(ISERROR(INDEX(Data!L:L,Report!$B19)),"",INDEX(Data!L:L,Report!$B19)) -> 0 | H19: =IF(ISERROR(INDEX(Data!N:N,Report!$B19)),"",INDEX(Data!N:N,Report!$B19)) -> 4 | I19: =IF(ISERROR(INDEX(Data!P:P,Report!$B19)),"",INDEX(Data!P:P,Report!$B19)) -> Topspin | J19: =IF(ISERROR(INDEX(Data!O:O,Report!$B19)),"",INDEX(Data!O:O,Report!$B19)) -> 4 | K19: =IF(ISERROR(INDEX(Data!Q:Q,Report!$B19)),"",INDEX(Data!Q:Q,Report!$B19)) -> 3.5 | L19: =IF(ISERROR(INDEX(Data!R:R,Report!$B19)),"",INDEX(Data!R:R,Report!$B19)) -> 27 | M19: =IF(ISERROR(INDEX(Data!S:S,Report!$B19)),"",INDEX(Data!S:S,Report!$B19)) -> 5 | N19: =IF(ISERROR(INDEX(Data!T:T,Report!$B19)),"",INDEX(Data!T:T,Report!$B19)) -> 5.2 | O19: =IF(ISERROR(INDEX(Data!U:U,Report!$B19)),"",INDEX(Data!U:U,Report!$B19)) -> 45 | P19: =IF(ISERROR(INDEX(Data!V:V,Report!$B19)),"",INDEX(Data!V:V,Report!$B19)) -> 5.2 | R19: | | S19: ||
A20: 16 | B20: =IF(ISERROR(MATCH(A20,Data!A:A,0)),"",MATCH(A20,Data!A:A,0)) -> 11 | C20: =IF(ISERROR(INDEX(Data!I:I,Report!$B20)),"",INDEX(Data!I:I,Report!$B20)) -> 04:33:05 | D20: =IF(ISERROR(INDEX(Data!J:J,Report!$B20)),"",INDEX(Data!J:J,Report!$B20)) -> Game against Boomer at level 3.5 Single point data: | E20: =IF(ISERROR(INDEX(Data!K:K,Report!$B20)),"",INDEX(Data!K:K,Report!$B20)) -> Player's point | F20: =IF(ISERROR(INDEX(Data!L:L,Report!$B20)),"",INDEX(Data!L:L,Report!$B20)) -> 0 | H20: =IF(ISERROR(INDEX(Data!N:N,Report!$B20)),"",INDEX(Data!N:N,Report!$B20)) -> 5 | I20: =IF(ISERROR(INDEX(Data!P:P,Report!$B20)),"",INDEX(Data!P:P,Report!$B20)) -> Flat Drive | J20: =IF(ISERROR(INDEX(Data!O:O,Report!$B20)),"",INDEX(Data!O:O,Report!$B20)) -> 3 | K20: =IF(ISERROR(INDEX(Data!Q:Q,Report!$B20)),"",INDEX(Data!Q:Q,Report!$B20)) -> 3.5 | L20: =IF(ISERROR(INDEX(Data!R:R,Report!$B20)),"",INDEX(Data!R:R,Report!$B20)) -> 21 | M20: =IF(ISERROR(INDEX(Data!S:S,Report!$B20)),"",INDEX(Data!S:S,Report!$B20)) -> 20 | N20: =IF(ISERROR(INDEX(Data!T:T,Report!$B20)),"",INDEX(Data!T:T,Report!$B20)) -> 4.2 | O20: =IF(ISERROR(INDEX(Data!U:U,Report!$B20)),"",INDEX(Data!U:U,Report!$B20)) -> 42 | P20: =IF(ISERROR(INDEX(Data!V:V,Report!$B20)),"",INDEX(Data!V:V,Report!$B20)) -> 3.7 | R20: | | S20: ||||||||||
A21: 17 | B21: =IF(ISERROR(MATCH(A21,Data!A:A,0)),"",MATCH(A21,Data!A:A,0)) -> 12 | C21: =IF(ISERROR(INDEX(Data!I:I,Report!$B21)),"",INDEX(Data!I:I,Report!$B21)) -> 04:33:05 | D21: =IF(ISERROR(INDEX(Data!J:J,Report!$B21)),"",INDEX(Data!J:J,Report!$B21)) -> Game against Boomer at level 3.5 Single point data: | E21: =IF(ISERROR(INDEX(Data!K:K,Report!$B21)),"",INDEX(Data!K:K,Report!$B21)) -> Player's point | F21: =IF(ISERROR(INDEX(Data!L:L,Report!$B21)),"",INDEX(Data!L:L,Report!$B21)) -> 0 | H21: =IF(ISERROR(INDEX(Data!N:N,Report!$B21)),"",INDEX(Data!N:N,Report!$B21)) -> 6 | I21: =IF(ISERROR(INDEX(Data!P:P,Report!$B21)),"",INDEX(Data!P:P,Report!$B21)) -> Lob | J21: =IF(ISERROR(INDEX(Data!O:O,Report!$B21)),"",INDEX(Data!O:O,Report!$B21)) -> 4 | K21: =IF(ISERROR(INDEX(Data!Q:Q,Report!$B21)),"",INDEX(Data!Q:Q,Report!$B21)) -> 3.5 | L21: =IF(ISERROR(INDEX(Data!R:R,Report!$B21)),"",INDEX(Data!R:R,Report!$B21)) -> 30 | M21: =IF(ISERROR(INDEX(Data!S:S,Report!$B21)),"",INDEX(Data!S:S,Report!$B21)) -> 10 | N21: =IF(ISERROR(INDEX(Data!T:T,Report!$B21)),"",INDEX(Data!T:T,Report!$B21)) -> 4.6 | O21: =IF(ISERROR(INDEX(Data!U:U,Report!$B21)),"",INDEX(Data!U:U,Report!$B21)) -> 48 | P21: =IF(ISERROR(INDEX(Data!V:V,Report!$B21)),"",INDEX(Data!V:V,Report!$B21)) -> 5.1 | R21: | | S21: |||||
A22: 18 | B22: =IF(ISERROR(MATCH(A22,Data!A:A,0)),"",MATCH(A22,Data!A:A,0)) -> 13 | C22: =IF(ISERROR(INDEX(Data!I:I,Report!$B22)),"",INDEX(Data!I:I,Report!$B22)) -> 04:33:05 | D22: =IF(ISERROR(INDEX(Data!J:J,Report!$B22)),"",INDEX(Data!J:J,Report!$B22)) -> Game against Boomer at level 3.5 Single point data: | E22: =IF(ISERROR(INDEX(Data!K:K,Report!$B22)),"",INDEX(Data!K:K,Report!$B22)) -> Player's point | F22: =IF(ISERROR(INDEX(Data!L:L,Report!$B22)),"",INDEX(Data!L:L,Report!$B22)) -> 0 | H22: =IF(ISERROR(INDEX(Data!N:N,Report!$B22)),"",INDEX(Data!N:N,Report!$B22)) -> 7 | I22: =IF(ISERROR(INDEX(Data!P:P,Report!$B22)),"",INDEX(Data!P:P,Report!$B22)) -> Pass | J22: =IF(ISERROR(INDEX(Data!O:O,Report!$B22)),"",INDEX(Data!O:O,Report!$B22)) -> 3 | K22: =IF(ISERROR(INDEX(Data!Q:Q,Report!$B22)),"",INDEX(Data!Q:Q,Report!$B22)) -> 3.5 | L22: =IF(ISERROR(INDEX(Data!R:R,Report!$B22)),"",INDEX(Data!R:R,Report!$B22)) -> 23 | M22: =IF(ISERROR(INDEX(Data!S:S,Report!$B22)),"",INDEX(Data!S:S,Report!$B22)) -> 22 | N22: =IF(ISERROR(INDEX(Data!T:T,Report!$B22)),"",INDEX(Data!T:T,Report!$B22)) -> 4.5 | O22: =IF(ISERROR(INDEX(Data!U:U,Report!$B22)),"",INDEX(Data!U:U,Report!$B22)) -> 32 | P22: =IF(ISERROR(INDEX(Data!V:V,Report!$B22)),"",INDEX(Data!V:V,Report!$B22)) -> 3.5 | R22: | | S22: |||||||||||
A23: 19 | B23: =IF(ISERROR(MATCH(A23,Data!A:A,0)),"",MATCH(A23,Data!A:A,0)) -> 14 | C23: =IF(ISERROR(INDEX(Data!I:I,Report!$B23)),"",INDEX(Data!I:I,Report!$B23)) -> 04:33:05 | D23: =IF(ISERROR(INDEX(Data!J:J,Report!$B23)),"",INDEX(Data!J:J,Report!$B23)) -> Game against Boomer at level 3.5 Single point data: | E23: =IF(ISERROR(INDEX(Data!K:K,Report!$B23)),"",INDEX(Data!K:K,Report!$B23)) -> Player's point | F23: =IF(ISERROR(INDEX(Data!L:L,Report!$B23)),"",INDEX(Data!L:L,Report!$B23)) -> 0 | H23: =IF(ISERROR(INDEX(Data!N:N,Report!$B23)),"",INDEX(Data!N:N,Report!$B23)) -> 8 | I23: =IF(ISERROR(INDEX(Data!P:P,Report!$B23)),"",INDEX(Data!P:P,Report!$B23)) -> Flat Drive | J23: =IF(ISERROR(INDEX(Data!O:O,Report!$B23)),"",INDEX(Data!O:O,Report!$B23)) -> 4 | K23: =IF(ISERROR(INDEX(Data!Q:Q,Report!$B23)),"",INDEX(Data!Q:Q,Report!$B23)) -> 3.5 | L23: =IF(ISERROR(INDEX(Data!R:R,Report!$B23)),"",INDEX(Data!R:R,Report!$B23)) -> 26 | M23: =IF(ISERROR(INDEX(Data!S:S,Report!$B23)),"",INDEX(Data!S:S,Report!$B23)) -> 4 | N23: =IF(ISERROR(INDEX(Data!T:T,Report!$B23)),"",INDEX(Data!T:T,Report!$B23)) -> 6.2 | O23: =IF(ISERROR(INDEX(Data!U:U,Report!$B23)),"",INDEX(Data!U:U,Report!$B23)) -> 44 | P23: =IF(ISERROR(INDEX(Data!V:V,Report!$B23)),"",INDEX(Data!V:V,Report!$B23)) -> 5.6 | R23: | | S23: ||
A24: 20 | B24: =IF(ISERROR(MATCH(A24,Data!A:A,0)),"",MATCH(A24,Data!A:A,0)) ->  | C24: =IF(ISERROR(INDEX(Data!I:I,Report!$B24)),"",INDEX(Data!I:I,Report!$B24)) ->  | D24: =IF(ISERROR(INDEX(Data!J:J,Report!$B24)),"",INDEX(Data!J:J,Report!$B24)) ->  | E24: =IF(ISERROR(INDEX(Data!K:K,Report!$B24)),"",INDEX(Data!K:K,Report!$B24)) ->  | F24: =IF(ISERROR(INDEX(Data!L:L,Report!$B24)),"",INDEX(Data!L:L,Report!$B24)) ->  | H24: =IF(ISERROR(INDEX(Data!N:N,Report!$B24)),"",INDEX(Data!N:N,Report!$B24)) ->  | I24: =IF(ISERROR(INDEX(Data!P:P,Report!$B24)),"",INDEX(Data!P:P,Report!$B24)) ->  | J24: =IF(ISERROR(INDEX(Data!O:O,Report!$B24)),"",INDEX(Data!O:O,Report!$B24)) ->  | K24: =IF(ISERROR(INDEX(Data!Q:Q,Report!$B24)),"",INDEX(Data!Q:Q,Report!$B24)) ->  | L24: =IF(ISERROR(INDEX(Data!R:R,Report!$B24)),"",INDEX(Data!R:R,Report!$B24)) ->  | M24: =IF(ISERROR(INDEX(Data!S:S,Report!$B24)),"",INDEX(Data!S:S,Report!$B24)) ->  | N24: =IF(ISERROR(INDEX(Data!T:T,Report!$B24)),"",INDEX(Data!T:T,Report!$B24)) ->  | O24: =IF(ISERROR(INDEX(Data!U:U,Report!$B24)),"",INDEX(Data!U:U,Report!$B24)) ->  | P24: =IF(ISERROR(INDEX(Data!V:V,Report!$B24)),"",INDEX(Data!V:V,Report!$B24)) -> 
A25: 21 | B25: =IF(ISERROR(MATCH(A25,Data!A:A,0)),"",MATCH(A25,Data!A:A,0)) ->  | C25: =IF(ISERROR(INDEX(Data!I:I,Report!$B25)),"",INDEX(Data!I:I,Report!$B25)) ->  | D25: =IF(ISERROR(INDEX(Data!J:J,Report!$B25)),"",INDEX(Data!J:J,Report!$B25)) ->  | E25: =IF(ISERROR(INDEX(Data!K:K,Report!$B25)),"",INDEX(Data!K:K,Report!$B25)) ->  | F25: =IF(ISERROR(INDEX(Data!L:L,Report!$B25)),"",INDEX(Data!L:L,Report!$B25)) ->  | H25: =IF(ISERROR(INDEX(Data!N:N,Report!$B25)),"",INDEX(Data!N:N,Report!$B25)) ->  | I25: =IF(ISERROR(INDEX(Data!P:P,Report!$B25)),"",INDEX(Data!P:P,Report!$B25)) ->  | J25: =IF(ISERROR(INDEX(Data!O:O,Report!$B25)),"",INDEX(Data!O:O,Report!$B25)) ->  | K25: =IF(ISERROR(INDEX(Data!Q:Q,Report!$B25)),"",INDEX(Data!Q:Q,Report!$B25)) ->  | L25: =IF(ISERROR(INDEX(Data!R:R,Report!$B25)),"",INDEX(Data!R:R,Report!$B25)) ->  | M25: =IF(ISERROR(INDEX(Data!S:S,Report!$B25)),"",INDEX(Data!S:S,Report!$B25)) ->  | N25: =IF(ISERROR(INDEX(Data!T:T,Report!$B25)),"",INDEX(Data!T:T,Report!$B25)) ->  | O25: =IF(ISERROR(INDEX(Data!U:U,Report!$B25)),"",INDEX(Data!U:U,Report!$B25)) ->  | P25: =IF(ISERROR(INDEX(Data!V:V,Report!$B25)),"",INDEX(Data!V:V,Report!$B25)) -> 
A26: 22 | B26: =IF(ISERROR(MATCH(A26,Data!A:A,0)),"",MATCH(A26,Data!A:A,0)) ->  | C26: =IF(ISERROR(INDEX(Data!I:I,Report!$B26)),"",INDEX(Data!I:I,Report!$B26)) ->  | D26: =IF(ISERROR(INDEX(Data!J:J,Report!$B26)),"",INDEX(Data!J:J,Report!$B26)) ->  | E26: =IF(ISERROR(INDEX(Data!K:K,Report!$B26)),"",INDEX(Data!K:K,Report!$B26)) ->  | F26: =IF(ISERROR(INDEX(Data!L:L,Report!$B26)),"",INDEX(Data!L:L,Report!$B26)) ->  | H26: =IF(ISERROR(INDEX(Data!N:N,Report!$B26)),"",INDEX(Data!N:N,Report!$B26)) ->  | I26: =IF(ISERROR(INDEX(Data!P:P,Report!$B26)),"",INDEX(Data!P:P,Report!$B26)) ->  | J26: =IF(ISERROR(INDEX(Data!O:O,Report!$B26)),"",INDEX(Data!O:O,Report!$B26)) ->  | K26: =IF(ISERROR(INDEX(Data!Q:Q,Report!$B26)),"",INDEX(Data!Q:Q,Report!$B26)) ->  | L26: =IF(ISERROR(INDEX(Data!R:R,Report!$B26)),"",INDEX(Data!R:R,Report!$B26)) ->  | M26: =IF(ISERROR(INDEX(Data!S:S,Report!$B26)),"",INDEX(Data!S:S,Report!$B26)) ->  | N26: =IF(ISERROR(INDEX(Data!T:T,Report!$B26)),"",INDEX(Data!T:T,Report!$B26)) ->  | O26: =IF(ISERROR(INDEX(Data!U:U,Report!$B26)),"",INDEX(Data!U:U,Report!$B26)) ->  | P26: =IF(ISERROR(INDEX(Data!V:V,Report!$B26)),"",INDEX(Data!V:V,Report!$B26)) -> 
A27: 23 | B27: =IF(ISERROR(MATCH(A27,Data!A:A,0)),"",MATCH(A27,Data!A:A,0)) -> 15 | C27: =IF(ISERROR(INDEX(Data!I:I,Report!$B27)),"",INDEX(Data!I:I,Report!$B27)) ->  | D27: =IF(ISERROR(INDEX(Data!J:J,Report!$B27)),"",INDEX(Data!J:J,Report!$B27)) -> User Drill #85 3 line rated mini Tennis | E27: =IF(ISERROR(INDEX(Data!K:K,Report!$B27)),"",INDEX(Data!K:K,Report!$B27)) -> 0 | F27: =IF(ISERROR(INDEX(Data!L:L,Report!$B27)),"",INDEX(Data!L:L,Report!$B27)) -> New Point | H27: =IF(ISERROR(INDEX(Data!N:N,Report!$B27)),"",INDEX(Data!N:N,Report!$B27)) -> 1 | I27: =IF(ISERROR(INDEX(Data!P:P,Report!$B27)),"",INDEX(Data!P:P,Report!$B27)) -> 0 | J27: =IF(ISERROR(INDEX(Data!O:O,Report!$B27)),"",INDEX(Data!O:O,Report!$B27)) -> 11 | K27: =IF(ISERROR(INDEX(Data!Q:Q,Report!$B27)),"",INDEX(Data!Q:Q,Report!$B27)) -> 3.5 | L27: =IF(ISERROR(INDEX(Data!R:R,Report!$B27)),"",INDEX(Data!R:R,Report!$B27)) -> 0 | M27: =IF(ISERROR(INDEX(Data!S:S,Report!$B27)),"",INDEX(Data!S:S,Report!$B27)) -> 0 | N27: =IF(ISERROR(INDEX(Data!T:T,Report!$B27)),"",INDEX(Data!T:T,Report!$B27)) -> 0 | O27: =IF(ISERROR(INDEX(Data!U:U,Report!$B27)),"",INDEX(Data!U:U,Report!$B27)) -> 0 | P27: =IF(ISERROR(INDEX(Data!V:V,Report!$B27)),"",INDEX(Data!V:V,Report!$B27)) -> 0 | R27: |
A28: 24 | B28: =IF(ISERROR(MATCH(A28,Data!A:A,0)),"",MATCH(A28,Data!A:A,0)) ->  | C28: =IF(ISERROR(INDEX(Data!I:I,Report!$B28)),"",INDEX(Data!I:I,Report!$B28)) ->  | D28: =IF(ISERROR(INDEX(Data!J:J,Report!$B28)),"",INDEX(Data!J:J,Report!$B28)) ->  | E28: =IF(ISERROR(INDEX(Data!K:K,Report!$B28)),"",INDEX(Data!K:K,Report!$B28)) ->  | F28: =IF(ISERROR(INDEX(Data!L:L,Report!$B28)),"",INDEX(Data!L:L,Report!$B28)) ->  | H28: =IF(ISERROR(INDEX(Data!N:N,Report!$B28)),"",INDEX(Data!N:N,Report!$B28)) ->  | I28: =IF(ISERROR(INDEX(Data!P:P,Report!$B28)),"",INDEX(Data!P:P,Report!$B28)) ->  | J28: =IF(ISERROR(INDEX(Data!O:O,Report!$B28)),"",INDEX(Data!O:O,Report!$B28)) ->  | K28: =IF(ISERROR(INDEX(Data!Q:Q,Report!$B28)),"",INDEX(Data!Q:Q,Report!$B28)) ->  | L28: =IF(ISERROR(INDEX(Data!R:R,Report!$B28)),"",INDEX(Data!R:R,Report!$B28)) ->  | M28: =IF(ISERROR(INDEX(Data!S:S,Report!$B28)),"",INDEX(Data!S:S,Report!$B28)) ->  | N28: =IF(ISERROR(INDEX(Data!T:T,Report!$B28)),"",INDEX(Data!T:T,Report!$B28)) ->  | O28: =IF(ISERROR(INDEX(Data!U:U,Report!$B28)),"",INDEX(Data!U:U,Report!$B28)) ->  | P28: =IF(ISERROR(INDEX(Data!V:V,Report!$B28)),"",INDEX(Data!V:V,Report!$B28)) -> 
A29: 25 | B29: =IF(ISERROR(MATCH(A29,Data!A:A,0)),"",MATCH(A29,Data!A:A,0)) ->  | C29: =IF(ISERROR(INDEX(Data!I:I,Report!$B29)),"",INDEX(Data!I:I,Report!$B29)) ->  | D29: =IF(ISERROR(INDEX(Data!J:J,Report!$B29)),"",INDEX(Data!J:J,Report!$B29)) ->  | E29: =IF(ISERROR(INDEX(Data!K:K,Report!$B29)),"",INDEX(Data!K:K,Report!$B29)) ->  | F29: =IF(ISERROR(INDEX(Data!L:L,Report!$B29)),"",INDEX(Data!L:L,Report!$B29)) ->  | H29: =IF(ISERROR(INDEX(Data!N:N,Report!$B29)),"",INDEX(Data!N:N,Report!$B29)) ->  | I29: =IF(ISERROR(INDEX(Data!P:P,Report!$B29)),"",INDEX(Data!P:P,Report!$B29)) ->  | J29: =IF(ISERROR(INDEX(Data!O:O,Report!$B29)),"",INDEX(Data!O:O,Report!$B29)) ->  | K29: =IF(ISERROR(INDEX(Data!Q:Q,Report!$B29)),"",INDEX(Data!Q:Q,Report!$B29)) ->  | L29: =IF(ISERROR(INDEX(Data!R:R,Report!$B29)),"",INDEX(Data!R:R,Report!$B29)) ->  | M29: =IF(ISERROR(INDEX(Data!S:S,Report!$B29)),"",INDEX(Data!S:S,Report!$B29)) ->  | N29: =IF(ISERROR(INDEX(Data!T:T,Report!$B29)),"",INDEX(Data!T:T,Report!$B29)) ->  | O29: =IF(ISERROR(INDEX(Data!U:U,Report!$B29)),"",INDEX(Data!U:U,Report!$B29)) ->  | P29: =IF(ISERROR(INDEX(Data!V:V,Report!$B29)),"",INDEX(Data!V:V,Report!$B29)) -> 
A30: 26 | B30: =IF(ISERROR(MATCH(A30,Data!A:A,0)),"",MATCH(A30,Data!A:A,0)) ->  | C30: =IF(ISERROR(INDEX(Data!I:I,Report!$B30)),"",INDEX(Data!I:I,Report!$B30)) ->  | D30: =IF(ISERROR(INDEX(Data!J:J,Report!$B30)),"",INDEX(Data!J:J,Report!$B30)) ->  | E30: =IF(ISERROR(INDEX(Data!K:K,Report!$B30)),"",INDEX(Data!K:K,Report!$B30)) ->  | F30: =IF(ISERROR(INDEX(Data!L:L,Report!$B30)),"",INDEX(Data!L:L,Report!$B30)) ->  | H30: =IF(ISERROR(INDEX(Data!N:N,Report!$B30)),"",INDEX(Data!N:N,Report!$B30)) ->  | I30: =IF(ISERROR(INDEX(Data!P:P,Report!$B30)),"",INDEX(Data!P:P,Report!$B30)) ->  | J30: =IF(ISERROR(INDEX(Data!O:O,Report!$B30)),"",INDEX(Data!O:O,Report!$B30)) ->  | K30: =IF(ISERROR(INDEX(Data!Q:Q,Report!$B30)),"",INDEX(Data!Q:Q,Report!$B30)) ->  | L30: =IF(ISERROR(INDEX(Data!R:R,Report!$B30)),"",INDEX(Data!R:R,Report!$B30)) ->  | M30: =IF(ISERROR(INDEX(Data!S:S,Report!$B30)),"",INDEX(Data!S:S,Report!$B30)) ->  | N30: =IF(ISERROR(INDEX(Data!T:T,Report!$B30)),"",INDEX(Data!T:T,Report!$B30)) ->  | O30: =IF(ISERROR(INDEX(Data!U:U,Report!$B30)),"",INDEX(Data!U:U,Report!$B30)) ->  | P30: =IF(ISERROR(INDEX(Data!V:V,Report!$B30)),"",INDEX(Data!V:V,Report!$B30)) -> 
A31: 27 | B31: =IF(ISERROR(MATCH(A31,Data!A:A,0)),"",MATCH(A31,Data!A:A,0)) -> 16 | C31: =IF(ISERROR(INDEX(Data!I:I,Report!$B31)),"",INDEX(Data!I:I,Report!$B31)) -> 04:33:32 | D31: =IF(ISERROR(INDEX(Data!J:J,Report!$B31)),"",INDEX(Data!J:J,Report!$B31)) -> Game against Boomer at level 3.5 Single point data: | E31: =IF(ISERROR(INDEX(Data!K:K,Report!$B31)),"",INDEX(Data!K:K,Report!$B31)) -> Boomer's point | F31: =IF(ISERROR(INDEX(Data!L:L,Report!$B31)),"",INDEX(Data!L:L,Report!$B31)) -> New Point | H31: =IF(ISERROR(INDEX(Data!N:N,Report!$B31)),"",INDEX(Data!N:N,Report!$B31)) -> 1 | I31: =IF(ISERROR(INDEX(Data!P:P,Report!$B31)),"",INDEX(Data!P:P,Report!$B31)) -> Serve | J31: =IF(ISERROR(INDEX(Data!O:O,Report!$B31)),"",INDEX(Data!O:O,Report!$B31)) -> 5 | K31: =IF(ISERROR(INDEX(Data!Q:Q,Report!$B31)),"",INDEX(Data!Q:Q,Report!$B31)) -> 3.5 | L31: =IF(ISERROR(INDEX(Data!R:R,Report!$B31)),"",INDEX(Data!R:R,Report!$B31)) -> 24 | M31: =IF(ISERROR(INDEX(Data!S:S,Report!$B31)),"",INDEX(Data!S:S,Report!$B31)) -> 5 | N31: =IF(ISERROR(INDEX(Data!T:T,Report!$B31)),"",INDEX(Data!T:T,Report!$B31)) -> 4.7 | O31: =IF(ISERROR(INDEX(Data!U:U,Report!$B31)),"",INDEX(Data!U:U,Report!$B31)) -> 55 | P31: =IF(ISERROR(INDEX(Data!V:V,Report!$B31)),"",INDEX(Data!V:V,Report!$B31)) -> 4.5 | R31: | | S31: ||
A32: 28 | B32: =IF(ISERROR(MATCH(A32,Data!A:A,0)),"",MATCH(A32,Data!A:A,0)) ->  | C32: =IF(ISERROR(INDEX(Data!I:I,Report!$B32)),"",INDEX(Data!I:I,Report!$B32)) ->  | D32: =IF(ISERROR(INDEX(Data!J:J,Report!$B32)),"",INDEX(Data!J:J,Report!$B32)) ->  | E32: =IF(ISERROR(INDEX(Data!K:K,Report!$B32)),"",INDEX(Data!K:K,Report!$B32)) ->  | F32: =IF(ISERROR(INDEX(Data!L:L,Report!$B32)),"",INDEX(Data!L:L,Report!$B32)) ->  | H32: =IF(ISERROR(INDEX(Data!N:N,Report!$B32)),"",INDEX(Data!N:N,Report!$B32)) ->  | I32: =IF(ISERROR(INDEX(Data!P:P,Report!$B32)),"",INDEX(Data!P:P,Report!$B32)) ->  | J32: =IF(ISERROR(INDEX(Data!O:O,Report!$B32)),"",INDEX(Data!O:O,Report!$B32)) ->  | K32: =IF(ISERROR(INDEX(Data!Q:Q,Report!$B32)),"",INDEX(Data!Q:Q,Report!$B32)) ->  | L32: =IF(ISERROR(INDEX(Data!R:R,Report!$B32)),"",INDEX(Data!R:R,Report!$B32)) ->  | M32: =IF(ISERROR(INDEX(Data!S:S,Report!$B32)),"",INDEX(Data!S:S,Report!$B32)) ->  | N32: =IF(ISERROR(INDEX(Data!T:T,Report!$B32)),"",INDEX(Data!T:T,Report!$B32)) ->  | O32: =IF(ISERROR(INDEX(Data!U:U,Report!$B32)),"",INDEX(Data!U:U,Report!$B32)) ->  | P32: =IF(ISERROR(INDEX(Data!V:V,Report!$B32)),"",INDEX(Data!V:V,Report!$B32)) -> 
A33: 29 | B33: =IF(ISERROR(MATCH(A33,Data!A:A,0)),"",MATCH(A33,Data!A:A,0)) ->  | C33: =IF(ISERROR(INDEX(Data!I:I,Report!$B33)),"",INDEX(Data!I:I,Report!$B33)) ->  | D33: =IF(ISERROR(INDEX(Data!J:J,Report!$B33)),"",INDEX(Data!J:J,Report!$B33)) ->  | E33: =IF(ISERROR(INDEX(Data!K:K,Report!$B33)),"",INDEX(Data!K:K,Report!$B33)) ->  | F33: =IF(ISERROR(INDEX(Data!L:L,Report!$B33)),"",INDEX(Data!L:L,Report!$B33)) ->  | H33: =IF(ISERROR(INDEX(Data!N:N,Report!$B33)),"",INDEX(Data!N:N,Report!$B33)) ->  | I33: =IF(ISERROR(INDEX(Data!P:P,Report!$B33)),"",INDEX(Data!P:P,Report!$B33)) ->  | J33: =IF(ISERROR(INDEX(Data!O:O,Report!$B33)),"",INDEX(Data!O:O,Report!$B33)) ->  | K33: =IF(ISERROR(INDEX(Data!Q:Q,Report!$B33)),"",INDEX(Data!Q:Q,Report!$B33)) ->  | L33: =IF(ISERROR(INDEX(Data!R:R,Report!$B33)),"",INDEX(Data!R:R,Report!$B33)) ->  | M33: =IF(ISERROR(INDEX(Data!S:S,Report!$B33)),"",INDEX(Data!S:S,Report!$B33)) ->  | N33: =IF(ISERROR(INDEX(Data!T:T,Report!$B33)),"",INDEX(Data!T:T,Report!$B33)) ->  | O33: =IF(ISERROR(INDEX(Data!U:U,Report!$B33)),"",INDEX(Data!U:U,Report!$B33)) ->  | P33: =IF(ISERROR(INDEX(Data!V:V,Report!$B33)),"",INDEX(Data!V:V,Report!$B33)) -> 
A34: 30 | B34: =IF(ISERROR(MATCH(A34,Data!A:A,0)),"",MATCH(A34,Data!A:A,0)) ->  | C34: =IF(ISERROR(INDEX(Data!I:I,Report!$B34)),"",INDEX(Data!I:I,Report!$B34)) ->  | D34: =IF(ISERROR(INDEX(Data!J:J,Report!$B34)),"",INDEX(Data!J:J,Report!$B34)) ->  | E34: =IF(ISERROR(INDEX(Data!K:K,Report!$B34)),"",INDEX(Data!K:K,Report!$B34)) ->  | F34: =IF(ISERROR(INDEX(Data!L:L,Report!$B34)),"",INDEX(Data!L:L,Report!$B34)) ->  | H34: =IF(ISERROR(INDEX(Data!N:N,Report!$B34)),"",INDEX(Data!N:N,Report!$B34)) ->  | I34: =IF(ISERROR(INDEX(Data!P:P,Report!$B34)),"",INDEX(Data!P:P,Report!$B34)) ->  | J34: =IF(ISERROR(INDEX(Data!O:O,Report!$B34)),"",INDEX(Data!O:O,Report!$B34)) ->  | K34: =IF(ISERROR(INDEX(Data!Q:Q,Report!$B34)),"",INDEX(Data!Q:Q,Report!$B34)) ->  | L34: =IF(ISERROR(INDEX(Data!R:R,Report!$B34)),"",INDEX(Data!R:R,Report!$B34)) ->  | M34: =IF(ISERROR(INDEX(Data!S:S,Report!$B34)),"",INDEX(Data!S:S,Report!$B34)) ->  | N34: =IF(ISERROR(INDEX(Data!T:T,Report!$B34)),"",INDEX(Data!T:T,Report!$B34)) ->  | O34: =IF(ISERROR(INDEX(Data!U:U,Report!$B34)),"",INDEX(Data!U:U,Report!$B34)) ->  | P34: =IF(ISERROR(INDEX(Data!V:V,Report!$B34)),"",INDEX(Data!V:V,Report!$B34)) -> 
A35: 31 | B35: =IF(ISERROR(MATCH(A35,Data!A:A,0)),"",MATCH(A35,Data!A:A,0)) -> 17 | C35: =IF(ISERROR(INDEX(Data!I:I,Report!$B35)),"",INDEX(Data!I:I,Report!$B35)) -> 00:32:24 | D35: =IF(ISERROR(INDEX(Data!J:J,Report!$B35)),"",INDEX(Data!J:J,Report!$B35)) -> Game against Boomer at level 2.0 Single point data: | E35: =IF(ISERROR(INDEX(Data!K:K,Report!$B35)),"",INDEX(Data!K:K,Report!$B35)) -> Player's point | F35: =IF(ISERROR(INDEX(Data!L:L,Report!$B35)),"",INDEX(Data!L:L,Report!$B35)) -> New Point | H35: =IF(ISERROR(INDEX(Data!N:N,Report!$B35)),"",INDEX(Data!N:N,Report!$B35)) -> 1 | I35: =IF(ISERROR(INDEX(Data!P:P,Report!$B35)),"",INDEX(Data!P:P,Report!$B35)) -> Player Serve | J35: =IF(ISERROR(INDEX(Data!O:O,Report!$B35)),"",INDEX(Data!O:O,Report!$B35)) -> 4 | K35: =IF(ISERROR(INDEX(Data!Q:Q,Report!$B35)),"",INDEX(Data!Q:Q,Report!$B35)) -> 2 | L35: =IF(ISERROR(INDEX(Data!R:R,Report!$B35)),"",INDEX(Data!R:R,Report!$B35)) -> 16 | M35: =IF(ISERROR(INDEX(Data!S:S,Report!$B35)),"",INDEX(Data!S:S,Report!$B35)) -> 16 | N35: =IF(ISERROR(INDEX(Data!T:T,Report!$B35)),"",INDEX(Data!T:T,Report!$B35)) -> 4.9 | O35: =IF(ISERROR(INDEX(Data!U:U,Report!$B35)),"",INDEX(Data!U:U,Report!$B35)) -> 111 | P35: =IF(ISERROR(INDEX(Data!V:V,Report!$B35)),"",INDEX(Data!V:V,Report!$B35)) -> 5.9 | R35: | | S35: ||||||||
A36: 32 | B36: =IF(ISERROR(MATCH(A36,Data!A:A,0)),"",MATCH(A36,Data!A:A,0)) -> 18 | C36: =IF(ISERROR(INDEX(Data!I:I,Report!$B36)),"",INDEX(Data!I:I,Report!$B36)) ->  | D36: =IF(ISERROR(INDEX(Data!J:J,Report!$B36)),"",INDEX(Data!J:J,Report!$B36)) -> User Drill #85 3 line rated mini Tennis | E36: =IF(ISERROR(INDEX(Data!K:K,Report!$B36)),"",INDEX(Data!K:K,Report!$B36)) -> 0 | F36: =IF(ISERROR(INDEX(Data!L:L,Report!$B36)),"",INDEX(Data!L:L,Report!$B36)) -> 0 | H36: =IF(ISERROR(INDEX(Data!N:N,Report!$B36)),"",INDEX(Data!N:N,Report!$B36)) -> 2 | I36: =IF(ISERROR(INDEX(Data!P:P,Report!$B36)),"",INDEX(Data!P:P,Report!$B36)) -> 0 | J36: =IF(ISERROR(INDEX(Data!O:O,Report!$B36)),"",INDEX(Data!O:O,Report!$B36)) -> 4 | K36: =IF(ISERROR(INDEX(Data!Q:Q,Report!$B36)),"",INDEX(Data!Q:Q,Report!$B36)) -> 3.5 | L36: =IF(ISERROR(INDEX(Data!R:R,Report!$B36)),"",INDEX(Data!R:R,Report!$B36)) -> 32 | M36: =IF(ISERROR(INDEX(Data!S:S,Report!$B36)),"",INDEX(Data!S:S,Report!$B36)) -> 22 | N36: =IF(ISERROR(INDEX(Data!T:T,Report!$B36)),"",INDEX(Data!T:T,Report!$B36)) -> 5.8 | O36: =IF(ISERROR(INDEX(Data!U:U,Report!$B36)),"",INDEX(Data!U:U,Report!$B36)) -> 49 | P36: =IF(ISERROR(INDEX(Data!V:V,Report!$B36)),"",INDEX(Data!V:V,Report!$B36)) -> 6.3 | R36: | | S36: |||||||||||
A37: 33 | B37: =IF(ISERROR(MATCH(A37,Data!A:A,0)),"",MATCH(A37,Data!A:A,0)) -> 19 | C37: =IF(ISERROR(INDEX(Data!I:I,Report!$B37)),"",INDEX(Data!I:I,Report!$B37)) -> 04:33:32 | D37: =IF(ISERROR(INDEX(Data!J:J,Report!$B37)),"",INDEX(Data!J:J,Report!$B37)) -> Game against Boomer at level 3.5 Single point data: | E37: =IF(ISERROR(INDEX(Data!K:K,Report!$B37)),"",INDEX(Data!K:K,Report!$B37)) -> Boomer's point | F37: =IF(ISERROR(INDEX(Data!L:L,Report!$B37)),"",INDEX(Data!L:L,Report!$B37)) -> 0 | H37: =IF(ISERROR(INDEX(Data!N:N,Report!$B37)),"",INDEX(Data!N:N,Report!$B37)) -> 2 | I37: =IF(ISERROR(INDEX(Data!P:P,Report!$B37)),"",INDEX(Data!P:P,Report!$B37)) -> Drop Shot | J37: =IF(ISERROR(INDEX(Data!O:O,Report!$B37)),"",INDEX(Data!O:O,Report!$B37)) -> 3 | K37: =IF(ISERROR(INDEX(Data!Q:Q,Report!$B37)),"",INDEX(Data!Q:Q,Report!$B37)) -> 3.5 | L37: =IF(ISERROR(INDEX(Data!R:R,Report!$B37)),"",INDEX(Data!R:R,Report!$B37)) -> 17 | M37: =IF(ISERROR(INDEX(Data!S:S,Report!$B37)),"",INDEX(Data!S:S,Report!$B37)) -> 24 | N37: =IF(ISERROR(INDEX(Data!T:T,Report!$B37)),"",INDEX(Data!T:T,Report!$B37)) -> 4.2 | O37: =IF(ISERROR(INDEX(Data!U:U,Report!$B37)),"",INDEX(Data!U:U,Report!$B37)) -> 48 | P37: =IF(ISERROR(INDEX(Data!V:V,Report!$B37)),"",INDEX(Data!V:V,Report!$B37)) -> 4 | R37: | | S37: ||||||||||||
A38: 34 | B38: =IF(ISERROR(MATCH(A38,Data!A:A,0)),"",MATCH(A38,Data!A:A,0)) -> 20 | C38: =IF(ISERROR(INDEX(Data!I:I,Report!$B38)),"",INDEX(Data!I:I,Report!$B38)) -> 04:33:32 | D38: =IF(ISERROR(INDEX(Data!J:J,Report!$B38)),"",INDEX(Data!J:J,Report!$B38)) -> Game against Boomer at level 3.5 Single point data: | E38: =IF(ISERROR(INDEX(Data!K:K,Report!$B38)),"",INDEX(Data!K:K,Report!$B38)) -> Boomer's point | F38: =IF(ISERROR(INDEX(Data!L:L,Report!$B38)),"",INDEX(Data!L:L,Report!$B38)) -> 0 | H38: =IF(ISERROR(INDEX(Data!N:N,Report!$B38)),"",INDEX(Data!N:N,Report!$B38)) -> 3 | I38: =IF(ISERROR(INDEX(Data!P:P,Report!$B38)),"",INDEX(Data!P:P,Report!$B38)) -> Pass | J38: =IF(ISERROR(INDEX(Data!O:O,Report!$B38)),"",INDEX(Data!O:O,Report!$B38)) -> 5 | K38: =IF(ISERROR(INDEX(Data!Q:Q,Report!$B38)),"",INDEX(Data!Q:Q,Report!$B38)) -> 3.5 | L38: =IF(ISERROR(INDEX(Data!R:R,Report!$B38)),"",INDEX(Data!R:R,Report!$B38)) -> 29 | M38: =IF(ISERROR(INDEX(Data!S:S,Report!$B38)),"",INDEX(Data!S:S,Report!$B38)) -> 11 | N38: =IF(ISERROR(INDEX(Data!T:T,Report!$B38)),"",INDEX(Data!T:T,Report!$B38)) -> 4.7 | O38: =IF(ISERROR(INDEX(Data!U:U,Report!$B38)),"",INDEX(Data!U:U,Report!$B38)) -> 40 | P38: =IF(ISERROR(INDEX(Data!V:V,Report!$B38)),"",INDEX(Data!V:V,Report!$B38)) -> 3.9 | R38: | | S38: |||||
A39: 35 | B39: =IF(ISERROR(MATCH(A39,Data!A:A,0)),"",MATCH(A39,Data!A:A,0)) -> 21 | C39: =IF(ISERROR(INDEX(Data!I:I,Report!$B39)),"",INDEX(Data!I:I,Report!$B39)) ->  | D39: =IF(ISERROR(INDEX(Data!J:J,Report!$B39)),"",INDEX(Data!J:J,Report!$B39)) -> User Drill #85 3 line rated mini Tennis | E39: =IF(ISERROR(INDEX(Data!K:K,Report!$B39)),"",INDEX(Data!K:K,Report!$B39)) -> 0 | F39: =IF(ISERROR(INDEX(Data!L:L,Report!$B39)),"",INDEX(Data!L:L,Report!$B39)) -> 0 | H39: =IF(ISERROR(INDEX(Data!N:N,Report!$B39)),"",INDEX(Data!N:N,Report!$B39)) -> 3 | I39: =IF(ISERROR(INDEX(Data!P:P,Report!$B39)),"",INDEX(Data!P:P,Report!$B39)) -> 0 | J39: =IF(ISERROR(INDEX(Data!O:O,Report!$B39)),"",INDEX(Data!O:O,Report!$B39)) -> 10 | K39: =IF(ISERROR(INDEX(Data!Q:Q,Report!$B39)),"",INDEX(Data!Q:Q,Report!$B39)) -> 3.5 | L39: =IF(ISERROR(INDEX(Data!R:R,Report!$B39)),"",INDEX(Data!R:R,Report!$B39)) -> 0 | M39: =IF(ISERROR(INDEX(Data!S:S,Report!$B39)),"",INDEX(Data!S:S,Report!$B39)) -> 0 | N39: =IF(ISERROR(INDEX(Data!T:T,Report!$B39)),"",INDEX(Data!T:T,Report!$B39)) -> 0 | O39: =IF(ISERROR(INDEX(Data!U:U,Report!$B39)),"",INDEX(Data!U:U,Report!$B39)) -> 0 | P39: =IF(ISERROR(INDEX(Data!V:V,Report!$B39)),"",INDEX(Data!V:V,Report!$B39)) -> 0 | R39: |
A40: 36 | B40: =IF(ISERROR(MATCH(A40,Data!A:A,0)),"",MATCH(A40,Data!A:A,0)) -> 22 | C40: =IF(ISERROR(INDEX(Data!I:I,Report!$B40)),"",INDEX(Data!I:I,Report!$B40)) -> 04:33:32 | D40: =IF(ISERROR(INDEX(Data!J:J,Report!$B40)),"",INDEX(Data!J:J,Report!$B40)) -> Game against Boomer at level 3.5 Single point data: | E40: =IF(ISERROR(INDEX(Data!K:K,Report!$B40)),"",INDEX(Data!K:K,Report!$B40)) -> Boomer's point | F40: =IF(ISERROR(INDEX(Data!L:L,Report!$B40)),"",INDEX(Data!L:L,Report!$B40)) -> 0 | H40: =IF(ISERROR(INDEX(Data!N:N,Report!$B40)),"",INDEX(Data!N:N,Report!$B40)) -> 4 | I40: =IF(ISERROR(INDEX(Data!P:P,Report!$B40)),"",INDEX(Data!P:P,Report!$B40)) -> Pass | J40: =IF(ISERROR(INDEX(Data!O:O,Report!$B40)),"",INDEX(Data!O:O,Report!$B40)) -> 4 | K40: =IF(ISERROR(INDEX(Data!Q:Q,Report!$B40)),"",INDEX(Data!Q:Q,Report!$B40)) -> 3.5 | L40: =IF(ISERROR(INDEX(Data!R:R,Report!$B40)),"",INDEX(Data!R:R,Report!$B40)) -> 0 | M40: =IF(ISERROR(INDEX(Data!S:S,Report!$B40)),"",INDEX(Data!S:S,Report!$B40)) -> 0 | N40: =IF(ISERROR(INDEX(Data!T:T,Report!$B40)),"",INDEX(Data!T:T,Report!$B40)) -> 0 | O40: =IF(ISERROR(INDEX(Data!U:U,Report!$B40)),"",INDEX(Data!U:U,Report!$B40)) -> 0 | P40: =IF(ISERROR(INDEX(Data!V:V,Report!$B40)),"",INDEX(Data!V:V,Report!$B40)) -> 0 | R40: |
A41: 37 | B41: =IF(ISERROR(MATCH(A41,Data!A:A,0)),"",MATCH(A41,Data!A:A,0)) ->  | C41: =IF(ISERROR(INDEX(Data!I:I,Report!$B41)),"",INDEX(Data!I:I,Report!$B41)) ->  | D41: =IF(ISERROR(INDEX(Data!J:J,Report!$B41)),"",INDEX(Data!J:J,Report!$B41)) ->  | E41: =IF(ISERROR(INDEX(Data!K:K,Report!$B41)),"",INDEX(Data!K:K,Report!$B41)) ->  | F41: =IF(ISERROR(INDEX(Data!L:L,Report!$B41)),"",INDEX(Data!L:L,Report!$B41)) ->  | H41: =IF(ISERROR(INDEX(Data!N:N,Report!$B41)),"",INDEX(Data!N:N,Report!$B41)) ->  | I41: =IF(ISERROR(INDEX(Data!P:P,Report!$B41)),"",INDEX(Data!P:P,Report!$B41)) ->  | J41: =IF(ISERROR(INDEX(Data!O:O,Report!$B41)),"",INDEX(Data!O:O,Report!$B41)) ->  | K41: =IF(ISERROR(INDEX(Data!Q:Q,Report!$B41)),"",INDEX(Data!Q:Q,Report!$B41)) ->  | L41: =IF(ISERROR(INDEX(Data!R:R,Report!$B41)),"",INDEX(Data!R:R,Report!$B41)) ->  | M41: =IF(ISERROR(INDEX(Data!S:S,Report!$B41)),"",INDEX(Data!S:S,Report!$B41)) ->  | N41: =IF(ISERROR(INDEX(Data!T:T,Report!$B41)),"",INDEX(Data!T:T,Report!$B41)) ->  | O41: =IF(ISERROR(INDEX(Data!U:U,Report!$B41)),"",INDEX(Data!U:U,Report!$B41)) ->  | P41: =IF(ISERROR(INDEX(Data!V:V,Report!$B41)),"",INDEX(Data!V:V,Report!$B41)) -> 
A42: 38 | B42: =IF(ISERROR(MATCH(A42,Data!A:A,0)),"",MATCH(A42,Data!A:A,0)) ->  | C42: =IF(ISERROR(INDEX(Data!I:I,Report!$B42)),"",INDEX(Data!I:I,Report!$B42)) ->  | D42: =IF(ISERROR(INDEX(Data!J:J,Report!$B42)),"",INDEX(Data!J:J,Report!$B42)) ->  | E42: =IF(ISERROR(INDEX(Data!K:K,Report!$B42)),"",INDEX(Data!K:K,Report!$B42)) ->  | F42: =IF(ISERROR(INDEX(Data!L:L,Report!$B42)),"",INDEX(Data!L:L,Report!$B42)) ->  | H42: =IF(ISERROR(INDEX(Data!N:N,Report!$B42)),"",INDEX(Data!N:N,Report!$B42)) ->  | I42: =IF(ISERROR(INDEX(Data!P:P,Report!$B42)),"",INDEX(Data!P:P,Report!$B42)) ->  | J42: =IF(ISERROR(INDEX(Data!O:O,Report!$B42)),"",INDEX(Data!O:O,Report!$B42)) ->  | K42: =IF(ISERROR(INDEX(Data!Q:Q,Report!$B42)),"",INDEX(Data!Q:Q,Report!$B42)) ->  | L42: =IF(ISERROR(INDEX(Data!R:R,Report!$B42)),"",INDEX(Data!R:R,Report!$B42)) ->  | M42: =IF(ISERROR(INDEX(Data!S:S,Report!$B42)),"",INDEX(Data!S:S,Report!$B42)) ->  | N42: =IF(ISERROR(INDEX(Data!T:T,Report!$B42)),"",INDEX(Data!T:T,Report!$B42)) ->  | O42: =IF(ISERROR(INDEX(Data!U:U,Report!$B42)),"",INDEX(Data!U:U,Report!$B42)) ->  | P42: =IF(ISERROR(INDEX(Data!V:V,Report!$B42)),"",INDEX(Data!V:V,Report!$B42)) -> 
A43: 39 | B43: =IF(ISERROR(MATCH(A43,Data!A:A,0)),"",MATCH(A43,Data!A:A,0)) ->  | C43: =IF(ISERROR(INDEX(Data!I:I,Report!$B43)),"",INDEX(Data!I:I,Report!$B43)) ->  | D43: =IF(ISERROR(INDEX(Data!J:J,Report!$B43)),"",INDEX(Data!J:J,Report!$B43)) ->  | E43: =IF(ISERROR(INDEX(Data!K:K,Report!$B43)),"",INDEX(Data!K:K,Report!$B43)) ->  | F43: =IF(ISERROR(INDEX(Data!L:L,Report!$B43)),"",INDEX(Data!L:L,Report!$B43)) ->  | H43: =IF(ISERROR(INDEX(Data!N:N,Report!$B43)),"",INDEX(Data!N:N,Report!$B43)) ->  | I43: =IF(ISERROR(INDEX(Data!P:P,Report!$B43)),"",INDEX(Data!P:P,Report!$B43)) ->  | J43: =IF(ISERROR(INDEX(Data!O:O,Report!$B43)),"",INDEX(Data!O:O,Report!$B43)) ->  | K43: =IF(ISERROR(INDEX(Data!Q:Q,Report!$B43)),"",INDEX(Data!Q:Q,Report!$B43)) ->  | L43: =IF(ISERROR(INDEX(Data!R:R,Report!$B43)),"",INDEX(Data!R:R,Report!$B43)) ->  | M43: =IF(ISERROR(INDEX(Data!S:S,Report!$B43)),"",INDEX(Data!S:S,Report!$B43)) ->  | N43: =IF(ISERROR(INDEX(Data!T:T,Report!$B43)),"",INDEX(Data!T:T,Report!$B43)) ->  | O43: =IF(ISERROR(INDEX(Data!U:U,Report!$B43)),"",INDEX(Data!U:U,Report!$B43)) ->  | P43: =IF(ISERROR(INDEX(Data!V:V,Report!$B43)),"",INDEX(Data!V:V,Report!$B43)) -> 
A44: 40 | B44: =IF(ISERROR(MATCH(A44,Data!A:A,0)),"",MATCH(A44,Data!A:A,0)) -> 23 | C44: =IF(ISERROR(INDEX(Data!I:I,Report!$B44)),"",INDEX(Data!I:I,Report!$B44)) ->  | D44: =IF(ISERROR(INDEX(Data!J:J,Report!$B44)),"",INDEX(Data!J:J,Report!$B44)) -> User Drill #85 3 line rated mini Tennis | E44: =IF(ISERROR(INDEX(Data!K:K,Report!$B44)),"",INDEX(Data!K:K,Report!$B44)) -> 0 | F44: =IF(ISERROR(INDEX(Data!L:L,Report!$B44)),"",INDEX(Data!L:L,Report!$B44)) -> New Point | H44: =IF(ISERROR(INDEX(Data!N:N,Report!$B44)),"",INDEX(Data!N:N,Report!$B44)) -> 1 | I44: =IF(ISERROR(INDEX(Data!P:P,Report!$B44)),"",INDEX(Data!P:P,Report!$B44)) -> 0 | J44: =IF(ISERROR(INDEX(Data!O:O,Report!$B44)),"",INDEX(Data!O:O,Report!$B44)) -> 11 | K44: =IF(ISERROR(INDEX(Data!Q:Q,Report!$B44)),"",INDEX(Data!Q:Q,Report!$B44)) -> 3.5 | L44: =IF(ISERROR(INDEX(Data!R:R,Report!$B44)),"",INDEX(Data!R:R,Report!$B44)) -> 0 | M44: =IF(ISERROR(INDEX(Data!S:S,Report!$B44)),"",INDEX(Data!S:S,Report!$B44)) -> 0 | N44: =IF(ISERROR(INDEX(Data!T:T,Report!$B44)),"",INDEX(Data!T:T,Report!$B44)) -> 0 | O44: =IF(ISERROR(INDEX(Data!U:U,Report!$B44)),"",INDEX(Data!U:U,Report!$B44)) -> 0 | P44: =IF(ISERROR(INDEX(Data!V:V,Report!$B44)),"",INDEX(Data!V:V,Report!$B44)) -> 0 | R44: |
A45: 41 | B45: =IF(ISERROR(MATCH(A45,Data!A:A,0)),"",MATCH(A45,Data!A:A,0)) ->  | C45: =IF(ISERROR(INDEX(Data!I:I,Report!$B45)),"",INDEX(Data!I:I,Report!$B45)) ->  | D45: =IF(ISERROR(INDEX(Data!J:J,Report!$B45)),"",INDEX(Data!J:J,Report!$B45)) ->  | E45: =IF(ISERROR(INDEX(Data!K:K,Report!$B45)),"",INDEX(Data!K:K,Report!$B45)) ->  | F45: =IF(ISERROR(INDEX(Data!L:L,Report!$B45)),"",INDEX(Data!L:L,Report!$B45)) ->  | H45: =IF(ISERROR(INDEX(Data!N:N,Report!$B45)),"",INDEX(Data!N:N,Report!$B45)) ->  | I45: =IF(ISERROR(INDEX(Data!P:P,Report!$B45)),"",INDEX(Data!P:P,Report!$B45)) ->  | J45: =IF(ISERROR(INDEX(Data!O:O,Report!$B45)),"",INDEX(Data!O:O,Report!$B45)) ->  | K45: =IF(ISERROR(INDEX(Data!Q:Q,Report!$B45)),"",INDEX(Data!Q:Q,Report!$B45)) ->  | L45: =IF(ISERROR(INDEX(Data!R:R,Report!$B45)),"",INDEX(Data!R:R,Report!$B45)) ->  | M45: =IF(ISERROR(INDEX(Data!S:S,Report!$B45)),"",INDEX(Data!S:S,Report!$B45)) ->  | N45: =IF(ISERROR(INDEX(Data!T:T,Report!$B45)),"",INDEX(Data!T:T,Report!$B45)) ->  | O45: =IF(ISERROR(INDEX(Data!U:U,Report!$B45)),"",INDEX(Data!U:U,Report!$B45)) ->  | P45: =IF(ISERROR(INDEX(Data!V:V,Report!$B45)),"",INDEX(Data!V:V,Report!$B45)) -> 
A46: 42 | B46: =IF(ISERROR(MATCH(A46,Data!A:A,0)),"",MATCH(A46,Data!A:A,0)) ->  | C46: =IF(ISERROR(INDEX(Data!I:I,Report!$B46)),"",INDEX(Data!I:I,Report!$B46)) ->  | D46: =IF(ISERROR(INDEX(Data!J:J,Report!$B46)),"",INDEX(Data!J:J,Report!$B46)) ->  | E46: =IF(ISERROR(INDEX(Data!K:K,Report!$B46)),"",INDEX(Data!K:K,Report!$B46)) ->  | F46: =IF(ISERROR(INDEX(Data!L:L,Report!$B46)),"",INDEX(Data!L:L,Report!$B46)) ->  | H46: =IF(ISERROR(INDEX(Data!N:N,Report!$B46)),"",INDEX(Data!N:N,Report!$B46)) ->  | I46: =IF(ISERROR(INDEX(Data!P:P,Report!$B46)),"",INDEX(Data!P:P,Report!$B46)) ->  | J46: =IF(ISERROR(INDEX(Data!O:O,Report!$B46)),"",INDEX(Data!O:O,Report!$B46)) ->  | K46: =IF(ISERROR(INDEX(Data!Q:Q,Report!$B46)),"",INDEX(Data!Q:Q,Report!$B46)) ->  | L46: =IF(ISERROR(INDEX(Data!R:R,Report!$B46)),"",INDEX(Data!R:R,Report!$B46)) ->  | M46: =IF(ISERROR(INDEX(Data!S:S,Report!$B46)),"",INDEX(Data!S:S,Report!$B46)) ->  | N46: =IF(ISERROR(INDEX(Data!T:T,Report!$B46)),"",INDEX(Data!T:T,Report!$B46)) ->  | O46: =IF(ISERROR(INDEX(Data!U:U,Report!$B46)),"",INDEX(Data!U:U,Report!$B46)) ->  | P46: =IF(ISERROR(INDEX(Data!V:V,Report!$B46)),"",INDEX(Data!V:V,Report!$B46)) -> 
A47: 43 | B47: =IF(ISERROR(MATCH(A47,Data!A:A,0)),"",MATCH(A47,Data!A:A,0)) ->  | C47: =IF(ISERROR(INDEX(Data!I:I,Report!$B47)),"",INDEX(Data!I:I,Report!$B47)) ->  | D47: =IF(ISERROR(INDEX(Data!J:J,Report!$B47)),"",INDEX(Data!J:J,Report!$B47)) ->  | E47: =IF(ISERROR(INDEX(Data!K:K,Report!$B47)),"",INDEX(Data!K:K,Report!$B47)) ->  | F47: =IF(ISERROR(INDEX(Data!L:L,Report!$B47)),"",INDEX(Data!L:L,Report!$B47)) ->  | H47: =IF(ISERROR(INDEX(Data!N:N,Report!$B47)),"",INDEX(Data!N:N,Report!$B47)) ->  | I47: =IF(ISERROR(INDEX(Data!P:P,Report!$B47)),"",INDEX(Data!P:P,Report!$B47)) ->  | J47: =IF(ISERROR(INDEX(Data!O:O,Report!$B47)),"",INDEX(Data!O:O,Report!$B47)) ->  | K47: =IF(ISERROR(INDEX(Data!Q:Q,Report!$B47)),"",INDEX(Data!Q:Q,Report!$B47)) ->  | L47: =IF(ISERROR(INDEX(Data!R:R,Report!$B47)),"",INDEX(Data!R:R,Report!$B47)) ->  | M47: =IF(ISERROR(INDEX(Data!S:S,Report!$B47)),"",INDEX(Data!S:S,Report!$B47)) ->  | N47: =IF(ISERROR(INDEX(Data!T:T,Report!$B47)),"",INDEX(Data!T:T,Report!$B47)) ->  | O47: =IF(ISERROR(INDEX(Data!U:U,Report!$B47)),"",INDEX(Data!U:U,Report!$B47)) ->  | P47: =IF(ISERROR(INDEX(Data!V:V,Report!$B47)),"",INDEX(Data!V:V,Report!$B47)) -> 
A48: 44 | B48: =IF(ISERROR(MATCH(A48,Data!A:A,0)),"",MATCH(A48,Data!A:A,0)) -> 24 | C48: =IF(ISERROR(INDEX(Data!I:I,Report!$B48)),"",INDEX(Data!I:I,Report!$B48)) -> 04:33:58 | D48: =IF(ISERROR(INDEX(Data!J:J,Report!$B48)),"",INDEX(Data!J:J,Report!$B48)) -> Game against Boomer at level 3.5 Single point data: | E48: =IF(ISERROR(INDEX(Data!K:K,Report!$B48)),"",INDEX(Data!K:K,Report!$B48)) -> Boomer's point | F48: =IF(ISERROR(INDEX(Data!L:L,Report!$B48)),"",INDEX(Data!L:L,Report!$B48)) -> New Point | H48: =IF(ISERROR(INDEX(Data!N:N,Report!$B48)),"",INDEX(Data!N:N,Report!$B48)) -> 1 | I48: =IF(ISERROR(INDEX(Data!P:P,Report!$B48)),"",INDEX(Data!P:P,Report!$B48)) -> Serve | J48: =IF(ISERROR(INDEX(Data!O:O,Report!$B48)),"",INDEX(Data!O:O,Report!$B48)) -> 3 | K48: =IF(ISERROR(INDEX(Data!Q:Q,Report!$B48)),"",INDEX(Data!Q:Q,Report!$B48)) -> 3.5 | L48: =IF(ISERROR(INDEX(Data!R:R,Report!$B48)),"",INDEX(Data!R:R,Report!$B48)) -> 17 | M48: =IF(ISERROR(INDEX(Data!S:S,Report!$B48)),"",INDEX(Data!S:S,Report!$B48)) -> 7 | N48: =IF(ISERROR(INDEX(Data!T:T,Report!$B48)),"",INDEX(Data!T:T,Report!$B48)) -> 3.7 | O48: =IF(ISERROR(INDEX(Data!U:U,Report!$B48)),"",INDEX(Data!U:U,Report!$B48)) -> 38 | P48: =IF(ISERROR(INDEX(Data!V:V,Report!$B48)),"",INDEX(Data!V:V,Report!$B48)) -> 3.3 | R48: | | S48: |||
A49: 45 | B49: =IF(ISERROR(MATCH(A49,Data!A:A,0)),"",MATCH(A49,Data!A:A,0)) ->  | C49: =IF(ISERROR(INDEX(Data!I:I,Report!$B49)),"",INDEX(Data!I:I,Report!$B49)) ->  | D49: =IF(ISERROR(INDEX(Data!J:J,Report!$B49)),"",INDEX(Data!J:J,Report!$B49)) ->  | E49: =IF(ISERROR(INDEX(Data!K:K,Report!$B49)),"",INDEX(Data!K:K,Report!$B49)) ->  | F49: =IF(ISERROR(INDEX(Data!L:L,Report!$B49)),"",INDEX(Data!L:L,Report!$B49)) ->  | H49: =IF(ISERROR(INDEX(Data!N:N,Report!$B49)),"",INDEX(Data!N:N,Report!$B49)) ->  | I49: =IF(ISERROR(INDEX(Data!P:P,Report!$B49)),"",INDEX(Data!P:P,Report!$B49)) ->  | J49: =IF(ISERROR(INDEX(Data!O:O,Report!$B49)),"",INDEX(Data!O:O,Report!$B49)) ->  | K49: =IF(ISERROR(INDEX(Data!Q:Q,Report!$B49)),"",INDEX(Data!Q:Q,Report!$B49)) ->  | L49: =IF(ISERROR(INDEX(Data!R:R,Report!$B49)),"",INDEX(Data!R:R,Report!$B49)) ->  | M49: =IF(ISERROR(INDEX(Data!S:S,Report!$B49)),"",INDEX(Data!S:S,Report!$B49)) ->  | N49: =IF(ISERROR(INDEX(Data!T:T,Report!$B49)),"",INDEX(Data!T:T,Report!$B49)) ->  | O49: =IF(ISERROR(INDEX(Data!U:U,Report!$B49)),"",INDEX(Data!U:U,Report!$B49)) ->  | P49: =IF(ISERROR(INDEX(Data!V:V,Report!$B49)),"",INDEX(Data!V:V,Report!$B49)) -> 
A50: 46 | B50: =IF(ISERROR(MATCH(A50,Data!A:A,0)),"",MATCH(A50,Data!A:A,0)) ->  | C50: =IF(ISERROR(INDEX(Data!I:I,Report!$B50)),"",INDEX(Data!I:I,Report!$B50)) ->  | D50: =IF(ISERROR(INDEX(Data!J:J,Report!$B50)),"",INDEX(Data!J:J,Report!$B50)) ->  | E50: =IF(ISERROR(INDEX(Data!K:K,Report!$B50)),"",INDEX(Data!K:K,Report!$B50)) ->  | F50: =IF(ISERROR(INDEX(Data!L:L,Report!$B50)),"",INDEX(Data!L:L,Report!$B50)) ->  | H50: =IF(ISERROR(INDEX(Data!N:N,Report!$B50)),"",INDEX(Data!N:N,Report!$B50)) ->  | I50: =IF(ISERROR(INDEX(Data!P:P,Report!$B50)),"",INDEX(Data!P:P,Report!$B50)) ->  | J50: =IF(ISERROR(INDEX(Data!O:O,Report!$B50)),"",INDEX(Data!O:O,Report!$B50)) ->  | K50: =IF(ISERROR(INDEX(Data!Q:Q,Report!$B50)),"",INDEX(Data!Q:Q,Report!$B50)) ->  | L50: =IF(ISERROR(INDEX(Data!R:R,Report!$B50)),"",INDEX(Data!R:R,Report!$B50)) ->  | M50: =IF(ISERROR(INDEX(Data!S:S,Report!$B50)),"",INDEX(Data!S:S,Report!$B50)) ->  | N50: =IF(ISERROR(INDEX(Data!T:T,Report!$B50)),"",INDEX(Data!T:T,Report!$B50)) ->  | O50: =IF(ISERROR(INDEX(Data!U:U,Report!$B50)),"",INDEX(Data!U:U,Report!$B50)) ->  | P50: =IF(ISERROR(INDEX(Data!V:V,Report!$B50)),"",INDEX(Data!V:V,Report!$B50)) -> 
A51: 47 | B51: =IF(ISERROR(MATCH(A51,Data!A:A,0)),"",MATCH(A51,Data!A:A,0)) ->  | C51: =IF(ISERROR(INDEX(Data!I:I,Report!$B51)),"",INDEX(Data!I:I,Report!$B51)) ->  | D51: =IF(ISERROR(INDEX(Data!J:J,Report!$B51)),"",INDEX(Data!J:J,Report!$B51)) ->  | E51: =IF(ISERROR(INDEX(Data!K:K,Report!$B51)),"",INDEX(Data!K:K,Report!$B51)) ->  | F51: =IF(ISERROR(INDEX(Data!L:L,Report!$B51)),"",INDEX(Data!L:L,Report!$B51)) ->  | H51: =IF(ISERROR(INDEX(Data!N:N,Report!$B51)),"",INDEX(Data!N:N,Report!$B51)) ->  | I51: =IF(ISERROR(INDEX(Data!P:P,Report!$B51)),"",INDEX(Data!P:P,Report!$B51)) ->  | J51: =IF(ISERROR(INDEX(Data!O:O,Report!$B51)),"",INDEX(Data!O:O,Report!$B51)) ->  | K51: =IF(ISERROR(INDEX(Data!Q:Q,Report!$B51)),"",INDEX(Data!Q:Q,Report!$B51)) ->  | L51: =IF(ISERROR(INDEX(Data!R:R,Report!$B51)),"",INDEX(Data!R:R,Report!$B51)) ->  | M51: =IF(ISERROR(INDEX(Data!S:S,Report!$B51)),"",INDEX(Data!S:S,Report!$B51)) ->  | N51: =IF(ISERROR(INDEX(Data!T:T,Report!$B51)),"",INDEX(Data!T:T,Report!$B51)) ->  | O51: =IF(ISERROR(INDEX(Data!U:U,Report!$B51)),"",INDEX(Data!U:U,Report!$B51)) ->  | P51: =IF(ISERROR(INDEX(Data!V:V,Report!$B51)),"",INDEX(Data!V:V,Report!$B51)) -> 
A52: 48 | B52: =IF(ISERROR(MATCH(A52,Data!A:A,0)),"",MATCH(A52,Data!A:A,0)) -> 25 | C52: =IF(ISERROR(INDEX(Data!I:I,Report!$B52)),"",INDEX(Data!I:I,Report!$B52)) -> 00:32:42 | D52: =IF(ISERROR(INDEX(Data!J:J,Report!$B52)),"",INDEX(Data!J:J,Report!$B52)) -> Game against Boomer at level 2.0 Single point data: | E52: =IF(ISERROR(INDEX(Data!K:K,Report!$B52)),"",INDEX(Data!K:K,Report!$B52)) -> Player's point | F52: =IF(ISERROR(INDEX(Data!L:L,Report!$B52)),"",INDEX(Data!L:L,Report!$B52)) -> New Point | H52: =IF(ISERROR(INDEX(Data!N:N,Report!$B52)),"",INDEX(Data!N:N,Report!$B52)) -> 1 | I52: =IF(ISERROR(INDEX(Data!P:P,Report!$B52)),"",INDEX(Data!P:P,Report!$B52)) -> Player Serve | J52: =IF(ISERROR(INDEX(Data!O:O,Report!$B52)),"",INDEX(Data!O:O,Report!$B52)) -> 4 | K52: =IF(ISERROR(INDEX(Data!Q:Q,Report!$B52)),"",INDEX(Data!Q:Q,Report!$B52)) -> 2 | L52: =IF(ISERROR(INDEX(Data!R:R,Report!$B52)),"",INDEX(Data!R:R,Report!$B52)) -> 16 | M52: =IF(ISERROR(INDEX(Data!S:S,Report!$B52)),"",INDEX(Data!S:S,Report!$B52)) -> 5 | N52: =IF(ISERROR(INDEX(Data!T:T,Report!$B52)),"",INDEX(Data!T:T,Report!$B52)) -> 4.1 | O52: =IF(ISERROR(INDEX(Data!U:U,Report!$B52)),"",INDEX(Data!U:U,Report!$B52)) -> 109 | P52: =IF(ISERROR(INDEX(Data!V:V,Report!$B52)),"",INDEX(Data!V:V,Report!$B52)) -> 5.5 | R52: | | S52: ||
A53: 49 | B53: =IF(ISERROR(MATCH(A53,Data!A:A,0)),"",MATCH(A53,Data!A:A,0)) -> 26 | C53: =IF(ISERROR(INDEX(Data!I:I,Report!$B53)),"",INDEX(Data!I:I,Report!$B53)) -> 04:33:58 | D53: =IF(ISERROR(INDEX(Data!J:J,Report!$B53)),"",INDEX(Data!J:J,Report!$B53)) -> Game against Boomer at level 3.5 Single point data: | E53: =IF(ISERROR(INDEX(Data!K:K,Report!$B53)),"",INDEX(Data!K:K,Report!$B53)) -> Boomer's point | F53: =IF(ISERROR(INDEX(Data!L:L,Report!$B53)),"",INDEX(Data!L:L,Report!$B53)) -> 0 | H53: =IF(ISERROR(INDEX(Data!N:N,Report!$B53)),"",INDEX(Data!N:N,Report!$B53)) -> 2 | I53: =IF(ISERROR(INDEX(Data!P:P,Report!$B53)),"",INDEX(Data!P:P,Report!$B53)) -> Topspin | J53: =IF(ISERROR(INDEX(Data!O:O,Report!$B53)),"",INDEX(Data!O:O,Report!$B53)) -> 5 | K53: =IF(ISERROR(INDEX(Data!Q:Q,Report!$B53)),"",INDEX(Data!Q:Q,Report!$B53)) -> 3.5 | L53: =IF(ISERROR(INDEX(Data!R:R,Report!$B53)),"",INDEX(Data!R:R,Report!$B53)) -> 35 | M53: =IF(ISERROR(INDEX(Data!S:S,Report!$B53)),"",INDEX(Data!S:S,Report!$B53)) -> 6 | N53: =IF(ISERROR(INDEX(Data!T:T,Report!$B53)),"",INDEX(Data!T:T,Report!$B53)) -> 6.1 | O53: =IF(ISERROR(INDEX(Data!U:U,Report!$B53)),"",INDEX(Data!U:U,Report!$B53)) -> 44 | P53: =IF(ISERROR(INDEX(Data!V:V,Report!$B53)),"",INDEX(Data!V:V,Report!$B53)) -> 4.8 | R53: | | S53: |||
A54: 50 | B54: =IF(ISERROR(MATCH(A54,Data!A:A,0)),"",MATCH(A54,Data!A:A,0)) -> 27 | C54: =IF(ISERROR(INDEX(Data!I:I,Report!$B54)),"",INDEX(Data!I:I,Report!$B54)) ->  | D54: =IF(ISERROR(INDEX(Data!J:J,Report!$B54)),"",INDEX(Data!J:J,Report!$B54)) -> User Drill #85 3 line rated mini Tennis | E54: =IF(ISERROR(INDEX(Data!K:K,Report!$B54)),"",INDEX(Data!K:K,Report!$B54)) -> 0 | F54: =IF(ISERROR(INDEX(Data!L:L,Report!$B54)),"",INDEX(Data!L:L,Report!$B54)) -> 0 | H54: =IF(ISERROR(INDEX(Data!N:N,Report!$B54)),"",INDEX(Data!N:N,Report!$B54)) -> 2 | I54: =IF(ISERROR(INDEX(Data!P:P,Report!$B54)),"",INDEX(Data!P:P,Report!$B54)) -> 0 | J54: =IF(ISERROR(INDEX(Data!O:O,Report!$B54)),"",INDEX(Data!O:O,Report!$B54)) -> 4 | K54: =IF(ISERROR(INDEX(Data!Q:Q,Report!$B54)),"",INDEX(Data!Q:Q,Report!$B54)) -> 3.5 | L54: =IF(ISERROR(INDEX(Data!R:R,Report!$B54)),"",INDEX(Data!R:R,Report!$B54)) -> 0 | M54: =IF(ISERROR(INDEX(Data!S:S,Report!$B54)),"",INDEX(Data!S:S,Report!$B54)) -> 0 | N54: =IF(ISERROR(INDEX(Data!T:T,Report!$B54)),"",INDEX(Data!T:T,Report!$B54)) -> 0 | O54: =IF(ISERROR(INDEX(Data!U:U,Report!$B54)),"",INDEX(Data!U:U,Report!$B54)) -> 0 | P54: =IF(ISERROR(INDEX(Data!V:V,Report!$B54)),"",INDEX(Data!V:V,Report!$B54)) -> 0 | R54: |
A55: 51 | B55: =IF(ISERROR(MATCH(A55,Data!A:A,0)),"",MATCH(A55,Data!A:A,0)) -> 28 | C55: =IF(ISERROR(INDEX(Data!I:I,Report!$B55)),"",INDEX(Data!I:I,Report!$B55)) -> 04:33:58 | D55: =IF(ISERROR(INDEX(Data!J:J,Report!$B55)),"",INDEX(Data!J:J,Report!$B55)) -> Game against Boomer at level 3.5 Single point data: | E55: =IF(ISERROR(INDEX(Data!K:K,Report!$B55)),"",INDEX(Data!K:K,Report!$B55)) -> Boomer's point | F55: =IF(ISERROR(INDEX(Data!L:L,Report!$B55)),"",INDEX(Data!L:L,Report!$B55)) -> 0 | H55: =IF(ISERROR(INDEX(Data!N:N,Report!$B55)),"",INDEX(Data!N:N,Report!$B55)) -> 3 | I55: =IF(ISERROR(INDEX(Data!P:P,Report!$B55)),"",INDEX(Data!P:P,Report!$B55)) -> Topspin | J55: =IF(ISERROR(INDEX(Data!O:O,Report!$B55)),"",INDEX(Data!O:O,Report!$B55)) -> 6 | K55: =IF(ISERROR(INDEX(Data!Q:Q,Report!$B55)),"",INDEX(Data!Q:Q,Report!$B55)) -> 3.5 | L55: =IF(ISERROR(INDEX(Data!R:R,Report!$B55)),"",INDEX(Data!R:R,Report!$B55)) -> 29 | M55: =IF(ISERROR(INDEX(Data!S:S,Report!$B55)),"",INDEX(Data!S:S,Report!$B55)) -> 4 | N55: =IF(ISERROR(INDEX(Data!T:T,Report!$B55)),"",INDEX(Data!T:T,Report!$B55)) -> 5.7 | O55: =IF(ISERROR(INDEX(Data!U:U,Report!$B55)),"",INDEX(Data!U:U,Report!$B55)) -> 42 | P55: =IF(ISERROR(INDEX(Data!V:V,Report!$B55)),"",INDEX(Data!V:V,Report!$B55)) -> 4.5 | R55: | | S55: ||
A56: 52 | B56: =IF(ISERROR(MATCH(A56,Data!A:A,0)),"",MATCH(A56,Data!A:A,0)) -> 29 | C56: =IF(ISERROR(INDEX(Data!I:I,Report!$B56)),"",INDEX(Data!I:I,Report!$B56)) ->  | D56: =IF(ISERROR(INDEX(Data!J:J,Report!$B56)),"",INDEX(Data!J:J,Report!$B56)) -> User Drill #85 3 line rated mini Tennis | E56: =IF(ISERROR(INDEX(Data!K:K,Report!$B56)),"",INDEX(Data!K:K,Report!$B56)) -> 0 | F56: =IF(ISERROR(INDEX(Data!L:L,Report!$B56)),"",INDEX(Data!L:L,Report!$B56)) -> 0 | H56: =IF(ISERROR(INDEX(Data!N:N,Report!$B56)),"",INDEX(Data!N:N,Report!$B56)) -> 3 | I56: =IF(ISERROR(INDEX(Data!P:P,Report!$B56)),"",INDEX(Data!P:P,Report!$B56)) -> 0 | J56: =IF(ISERROR(INDEX(Data!O:O,Report!$B56)),"",INDEX(Data!O:O,Report!$B56)) -> 10 | K56: =IF(ISERROR(INDEX(Data!Q:Q,Report!$B56)),"",INDEX(Data!Q:Q,Report!$B56)) -> 3.5 | L56: =IF(ISERROR(INDEX(Data!R:R,Report!$B56)),"",INDEX(Data!R:R,Report!$B56)) -> 0 | M56: =IF(ISERROR(INDEX(Data!S:S,Report!$B56)),"",INDEX(Data!S:S,Report!$B56)) -> 0 | N56: =IF(ISERROR(INDEX(Data!T:T,Report!$B56)),"",INDEX(Data!T:T,Report!$B56)) -> 0 | O56: =IF(ISERROR(INDEX(Data!U:U,Report!$B56)),"",INDEX(Data!U:U,Report!$B56)) -> 0 | P56: =IF(ISERROR(INDEX(Data!V:V,Report!$B56)),"",INDEX(Data!V:V,Report!$B56)) -> 0 | R56: |
A57: 53 | B57: =IF(ISERROR(MATCH(A57,Data!A:A,0)),"",MATCH(A57,Data!A:A,0)) -> 30 | C57: =IF(ISERROR(INDEX(Data!I:I,Report!$B57)),"",INDEX(Data!I:I,Report!$B57)) -> 04:33:58 | D57: =IF(ISERROR(INDEX(Data!J:J,Report!$B57)),"",INDEX(Data!J:J,Report!$B57)) -> Game against Boomer at level 3.5 Single point data: | E57: =IF(ISERROR(INDEX(Data!K:K,Report!$B57)),"",INDEX(Data!K:K,Report!$B57)) -> Boomer's point | F57: =IF(ISERROR(INDEX(Data!L:L,Report!$B57)),"",INDEX(Data!L:L,Report!$B57)) -> 0 | H57: =IF(ISERROR(INDEX(Data!N:N,Report!$B57)),"",INDEX(Data!N:N,Report!$B57)) -> 4 | I57: =IF(ISERROR(INDEX(Data!P:P,Report!$B57)),"",INDEX(Data!P:P,Report!$B57)) -> Topspin | J57: =IF(ISERROR(INDEX(Data!O:O,Report!$B57)),"",INDEX(Data!O:O,Report!$B57)) -> 4 | K57: =IF(ISERROR(INDEX(Data!Q:Q,Report!$B57)),"",INDEX(Data!Q:Q,Report!$B57)) -> 3.5 | L57: =IF(ISERROR(INDEX(Data!R:R,Report!$B57)),"",INDEX(Data!R:R,Report!$B57)) -> 0 | M57: =IF(ISERROR(INDEX(Data!S:S,Report!$B57)),"",INDEX(Data!S:S,Report!$B57)) -> 0 | N57: =IF(ISERROR(INDEX(Data!T:T,Report!$B57)),"",INDEX(Data!T:T,Report!$B57)) -> 0 | O57: =IF(ISERROR(INDEX(Data!U:U,Report!$B57)),"",INDEX(Data!U:U,Report!$B57)) -> 0 | P57: =IF(ISERROR(INDEX(Data!V:V,Report!$B57)),"",INDEX(Data!V:V,Report!$B57)) -> 0 | R57: |
A58: 54 | B58: =IF(ISERROR(MATCH(A58,Data!A:A,0)),"",MATCH(A58,Data!A:A,0)) ->  | C58: =IF(ISERROR(INDEX(Data!I:I,Report!$B58)),"",INDEX(Data!I:I,Report!$B58)) ->  | D58: =IF(ISERROR(INDEX(Data!J:J,Report!$B58)),"",INDEX(Data!J:J,Report!$B58)) ->  | E58: =IF(ISERROR(INDEX(Data!K:K,Report!$B58)),"",INDEX(Data!K:K,Report!$B58)) ->  | F58: =IF(ISERROR(INDEX(Data!L:L,Report!$B58)),"",INDEX(Data!L:L,Report!$B58)) ->  | H58: =IF(ISERROR(INDEX(Data!N:N,Report!$B58)),"",INDEX(Data!N:N,Report!$B58)) ->  | I58: =IF(ISERROR(INDEX(Data!P:P,Report!$B58)),"",INDEX(Data!P:P,Report!$B58)) ->  | J58: =IF(ISERROR(INDEX(Data!O:O,Report!$B58)),"",INDEX(Data!O:O,Report!$B58)) ->  | K58: =IF(ISERROR(INDEX(Data!Q:Q,Report!$B58)),"",INDEX(Data!Q:Q,Report!$B58)) ->  | L58: =IF(ISERROR(INDEX(Data!R:R,Report!$B58)),"",INDEX(Data!R:R,Report!$B58)) ->  | M58: =IF(ISERROR(INDEX(Data!S:S,Report!$B58)),"",INDEX(Data!S:S,Report!$B58)) ->  | N58: =IF(ISERROR(INDEX(Data!T:T,Report!$B58)),"",INDEX(Data!T:T,Report!$B58)) ->  | O58: =IF(ISERROR(INDEX(Data!U:U,Report!$B58)),"",INDEX(Data!U:U,Report!$B58)) ->  | P58: =IF(ISERROR(INDEX(Data!V:V,Report!$B58)),"",INDEX(Data!V:V,Report!$B58)) -> 
A59: 55 | B59: =IF(ISERROR(MATCH(A59,Data!A:A,0)),"",MATCH(A59,Data!A:A,0)) ->  | C59: =IF(ISERROR(INDEX(Data!I:I,Report!$B59)),"",INDEX(Data!I:I,Report!$B59)) ->  | D59: =IF(ISERROR(INDEX(Data!J:J,Report!$B59)),"",INDEX(Data!J:J,Report!$B59)) ->  | E59: =IF(ISERROR(INDEX(Data!K:K,Report!$B59)),"",INDEX(Data!K:K,Report!$B59)) ->  | F59: =IF(ISERROR(INDEX(Data!L:L,Report!$B59)),"",INDEX(Data!L:L,Report!$B59)) ->  | H59: =IF(ISERROR(INDEX(Data!N:N,Report!$B59)),"",INDEX(Data!N:N,Report!$B59)) ->  | I59: =IF(ISERROR(INDEX(Data!P:P,Report!$B59)),"",INDEX(Data!P:P,Report!$B59)) ->  | J59: =IF(ISERROR(INDEX(Data!O:O,Report!$B59)),"",INDEX(Data!O:O,Report!$B59)) ->  | K59: =IF(ISERROR(INDEX(Data!Q:Q,Report!$B59)),"",INDEX(Data!Q:Q,Report!$B59)) ->  | L59: =IF(ISERROR(INDEX(Data!R:R,Report!$B59)),"",INDEX(Data!R:R,Report!$B59)) ->  | M59: =IF(ISERROR(INDEX(Data!S:S,Report!$B59)),"",INDEX(Data!S:S,Report!$B59)) ->  | N59: =IF(ISERROR(INDEX(Data!T:T,Report!$B59)),"",INDEX(Data!T:T,Report!$B59)) ->  | O59: =IF(ISERROR(INDEX(Data!U:U,Report!$B59)),"",INDEX(Data!U:U,Report!$B59)) ->  | P59: =IF(ISERROR(INDEX(Data!V:V,Report!$B59)),"",INDEX(Data!V:V,Report!$B59)) -> 
A60: 56 | B60: =IF(ISERROR(MATCH(A60,Data!A:A,0)),"",MATCH(A60,Data!A:A,0)) ->  | C60: =IF(ISERROR(INDEX(Data!I:I,Report!$B60)),"",INDEX(Data!I:I,Report!$B60)) ->  | D60: =IF(ISERROR(INDEX(Data!J:J,Report!$B60)),"",INDEX(Data!J:J,Report!$B60)) ->  | E60: =IF(ISERROR(INDEX(Data!K:K,Report!$B60)),"",INDEX(Data!K:K,Report!$B60)) ->  | F60: =IF(ISERROR(INDEX(Data!L:L,Report!$B60)),"",INDEX(Data!L:L,Report!$B60)) ->  | H60: =IF(ISERROR(INDEX(Data!N:N,Report!$B60)),"",INDEX(Data!N:N,Report!$B60)) ->  | I60: =IF(ISERROR(INDEX(Data!P:P,Report!$B60)),"",INDEX(Data!P:P,Report!$B60)) ->  | J60: =IF(ISERROR(INDEX(Data!O:O,Report!$B60)),"",INDEX(Data!O:O,Report!$B60)) ->  | K60: =IF(ISERROR(INDEX(Data!Q:Q,Report!$B60)),"",INDEX(Data!Q:Q,Report!$B60)) ->  | L60: =IF(ISERROR(INDEX(Data!R:R,Report!$B60)),"",INDEX(Data!R:R,Report!$B60)) ->  | M60: =IF(ISERROR(INDEX(Data!S:S,Report!$B60)),"",INDEX(Data!S:S,Report!$B60)) ->  | N60: =IF(ISERROR(INDEX(Data!T:T,Report!$B60)),"",INDEX(Data!T:T,Report!$B60)) ->  | O60: =IF(ISERROR(INDEX(Data!U:U,Report!$B60)),"",INDEX(Data!U:U,Report!$B60)) ->  | P60: =IF(ISERROR(INDEX(Data!V:V,Report!$B60)),"",INDEX(Data!V:V,Report!$B60)) -> 
A61: 57 | B61: =IF(ISERROR(MATCH(A61,Data!A:A,0)),"",MATCH(A61,Data!A:A,0)) -> 31 | C61: =IF(ISERROR(INDEX(Data!I:I,Report!$B61)),"",INDEX(Data!I:I,Report!$B61)) -> 00:33:00 | D61: =IF(ISERROR(INDEX(Data!J:J,Report!$B61)),"",INDEX(Data!J:J,Report!$B61)) -> Game against Boomer at level 2.0 Single point data: | E61: =IF(ISERROR(INDEX(Data!K:K,Report!$B61)),"",INDEX(Data!K:K,Report!$B61)) -> Player's point | F61: =IF(ISERROR(INDEX(Data!L:L,Report!$B61)),"",INDEX(Data!L:L,Report!$B61)) -> New Point | H61: =IF(ISERROR(INDEX(Data!N:N,Report!$B61)),"",INDEX(Data!N:N,Report!$B61)) -> 1 | I61: =IF(ISERROR(INDEX(Data!P:P,Report!$B61)),"",INDEX(Data!P:P,Report!$B61)) -> Player Serve | J61: =IF(ISERROR(INDEX(Data!O:O,Report!$B61)),"",INDEX(Data!O:O,Report!$B61)) -> 4 | K61: =IF(ISERROR(INDEX(Data!Q:Q,Report!$B61)),"",INDEX(Data!Q:Q,Report!$B61)) -> 2 | L61: =IF(ISERROR(INDEX(Data!R:R,Report!$B61)),"",INDEX(Data!R:R,Report!$B61)) -> 18 | M61: =IF(ISERROR(INDEX(Data!S:S,Report!$B61)),"",INDEX(Data!S:S,Report!$B61)) -> 20 | N61: =IF(ISERROR(INDEX(Data!T:T,Report!$B61)),"",INDEX(Data!T:T,Report!$B61)) -> 3.9 | O61: =IF(ISERROR(INDEX(Data!U:U,Report!$B61)),"",INDEX(Data!U:U,Report!$B61)) -> 108 | P61: =IF(ISERROR(INDEX(Data!V:V,Report!$B61)),"",INDEX(Data!V:V,Report!$B61)) -> 5.3 | R61: | | S61: ||||||||||
A62: 58 | B62: =IF(ISERROR(MATCH(A62,Data!A:A,0)),"",MATCH(A62,Data!A:A,0)) ->  | C62: =IF(ISERROR(INDEX(Data!I:I,Report!$B62)),"",INDEX(Data!I:I,Report!$B62)) ->  | D62: =IF(ISERROR(INDEX(Data!J:J,Report!$B62)),"",INDEX(Data!J:J,Report!$B62)) ->  | E62: =IF(ISERROR(INDEX(Data!K:K,Report!$B62)),"",INDEX(Data!K:K,Report!$B62)) ->  | F62: =IF(ISERROR(INDEX(Data!L:L,Report!$B62)),"",INDEX(Data!L:L,Report!$B62)) ->  | H62: =IF(ISERROR(INDEX(Data!N:N,Report!$B62)),"",INDEX(Data!N:N,Report!$B62)) ->  | I62: =IF(ISERROR(INDEX(Data!P:P,Report!$B62)),"",INDEX(Data!P:P,Report!$B62)) ->  | J62: =IF(ISERROR(INDEX(Data!O:O,Report!$B62)),"",INDEX(Data!O:O,Report!$B62)) ->  | K62: =IF(ISERROR(INDEX(Data!Q:Q,Report!$B62)),"",INDEX(Data!Q:Q,Report!$B62)) ->  | L62: =IF(ISERROR(INDEX(Data!R:R,Report!$B62)),"",INDEX(Data!R:R,Report!$B62)) ->  | M62: =IF(ISERROR(INDEX(Data!S:S,Report!$B62)),"",INDEX(Data!S:S,Report!$B62)) ->  | N62: =IF(ISERROR(INDEX(Data!T:T,Report!$B62)),"",INDEX(Data!T:T,Report!$B62)) ->  | O62: =IF(ISERROR(INDEX(Data!U:U,Report!$B62)),"",INDEX(Data!U:U,Report!$B62)) ->  | P62: =IF(ISERROR(INDEX(Data!V:V,Report!$B62)),"",INDEX(Data!V:V,Report!$B62)) -> 
A63: 59 | B63: =IF(ISERROR(MATCH(A63,Data!A:A,0)),"",MATCH(A63,Data!A:A,0)) ->  | C63: =IF(ISERROR(INDEX(Data!I:I,Report!$B63)),"",INDEX(Data!I:I,Report!$B63)) ->  | D63: =IF(ISERROR(INDEX(Data!J:J,Report!$B63)),"",INDEX(Data!J:J,Report!$B63)) ->  | E63: =IF(ISERROR(INDEX(Data!K:K,Report!$B63)),"",INDEX(Data!K:K,Report!$B63)) ->  | F63: =IF(ISERROR(INDEX(Data!L:L,Report!$B63)),"",INDEX(Data!L:L,Report!$B63)) ->  | H63: =IF(ISERROR(INDEX(Data!N:N,Report!$B63)),"",INDEX(Data!N:N,Report!$B63)) ->  | I63: =IF(ISERROR(INDEX(Data!P:P,Report!$B63)),"",INDEX(Data!P:P,Report!$B63)) ->  | J63: =IF(ISERROR(INDEX(Data!O:O,Report!$B63)),"",INDEX(Data!O:O,Report!$B63)) ->  | K63: =IF(ISERROR(INDEX(Data!Q:Q,Report!$B63)),"",INDEX(Data!Q:Q,Report!$B63)) ->  | L63: =IF(ISERROR(INDEX(Data!R:R,Report!$B63)),"",INDEX(Data!R:R,Report!$B63)) ->  | M63: =IF(ISERROR(INDEX(Data!S:S,Report!$B63)),"",INDEX(Data!S:S,Report!$B63)) ->  | N63: =IF(ISERROR(INDEX(Data!T:T,Report!$B63)),"",INDEX(Data!T:T,Report!$B63)) ->  | O63: =IF(ISERROR(INDEX(Data!U:U,Report!$B63)),"",INDEX(Data!U:U,Report!$B63)) ->  | P63: =IF(ISERROR(INDEX(Data!V:V,Report!$B63)),"",INDEX(Data!V:V,Report!$B63)) -> 
A64: 60 | B64: =IF(ISERROR(MATCH(A64,Data!A:A,0)),"",MATCH(A64,Data!A:A,0)) ->  | C64: =IF(ISERROR(INDEX(Data!I:I,Report!$B64)),"",INDEX(Data!I:I,Report!$B64)) ->  | D64: =IF(ISERROR(INDEX(Data!J:J,Report!$B64)),"",INDEX(Data!J:J,Report!$B64)) ->  | E64: =IF(ISERROR(INDEX(Data!K:K,Report!$B64)),"",INDEX(Data!K:K,Report!$B64)) ->  | F64: =IF(ISERROR(INDEX(Data!L:L,Report!$B64)),"",INDEX(Data!L:L,Report!$B64)) ->  | H64: =IF(ISERROR(INDEX(Data!N:N,Report!$B64)),"",INDEX(Data!N:N,Report!$B64)) ->  | I64: =IF(ISERROR(INDEX(Data!P:P,Report!$B64)),"",INDEX(Data!P:P,Report!$B64)) ->  | J64: =IF(ISERROR(INDEX(Data!O:O,Report!$B64)),"",INDEX(Data!O:O,Report!$B64)) ->  | K64: =IF(ISERROR(INDEX(Data!Q:Q,Report!$B64)),"",INDEX(Data!Q:Q,Report!$B64)) ->  | L64: =IF(ISERROR(INDEX(Data!R:R,Report!$B64)),"",INDEX(Data!R:R,Report!$B64)) ->  | M64: =IF(ISERROR(INDEX(Data!S:S,Report!$B64)),"",INDEX(Data!S:S,Report!$B64)) ->  | N64: =IF(ISERROR(INDEX(Data!T:T,Report!$B64)),"",INDEX(Data!T:T,Report!$B64)) ->  | O64: =IF(ISERROR(INDEX(Data!U:U,Report!$B64)),"",INDEX(Data!U:U,Report!$B64)) ->  | P64: =IF(ISERROR(INDEX(Data!V:V,Report!$B64)),"",INDEX(Data!V:V,Report!$B64)) -> 
A65: 61 | B65: =IF(ISERROR(MATCH(A65,Data!A:A,0)),"",MATCH(A65,Data!A:A,0)) -> 32 | C65: =IF(ISERROR(INDEX(Data!I:I,Report!$B65)),"",INDEX(Data!I:I,Report!$B65)) ->  | D65: =IF(ISERROR(INDEX(Data!J:J,Report!$B65)),"",INDEX(Data!J:J,Report!$B65)) -> User Drill #85 3 line rated mini Tennis | E65: =IF(ISERROR(INDEX(Data!K:K,Report!$B65)),"",INDEX(Data!K:K,Report!$B65)) -> 0 | F65: =IF(ISERROR(INDEX(Data!L:L,Report!$B65)),"",INDEX(Data!L:L,Report!$B65)) -> New Point | H65: =IF(ISERROR(INDEX(Data!N:N,Report!$B65)),"",INDEX(Data!N:N,Report!$B65)) -> 1 | I65: =IF(ISERROR(INDEX(Data!P:P,Report!$B65)),"",INDEX(Data!P:P,Report!$B65)) -> 0 | J65: =IF(ISERROR(INDEX(Data!O:O,Report!$B65)),"",INDEX(Data!O:O,Report!$B65)) -> 11 | K65: =IF(ISERROR(INDEX(Data!Q:Q,Report!$B65)),"",INDEX(Data!Q:Q,Report!$B65)) -> 3.5 | L65: =IF(ISERROR(INDEX(Data!R:R,Report!$B65)),"",INDEX(Data!R:R,Report!$B65)) -> 14 | M65: =IF(ISERROR(INDEX(Data!S:S,Report!$B65)),"",INDEX(Data!S:S,Report!$B65)) -> 11 | N65: =IF(ISERROR(INDEX(Data!T:T,Report!$B65)),"",INDEX(Data!T:T,Report!$B65)) -> 2.3 | O65: =IF(ISERROR(INDEX(Data!U:U,Report!$B65)),"",INDEX(Data!U:U,Report!$B65)) -> 93 | P65: =IF(ISERROR(INDEX(Data!V:V,Report!$B65)),"",INDEX(Data!V:V,Report!$B65)) -> 4.6 | R65: | | S65: |||||
A66: 62 | B66: =IF(ISERROR(MATCH(A66,Data!A:A,0)),"",MATCH(A66,Data!A:A,0)) ->  | C66: =IF(ISERROR(INDEX(Data!I:I,Report!$B66)),"",INDEX(Data!I:I,Report!$B66)) ->  | D66: =IF(ISERROR(INDEX(Data!J:J,Report!$B66)),"",INDEX(Data!J:J,Report!$B66)) ->  | E66: =IF(ISERROR(INDEX(Data!K:K,Report!$B66)),"",INDEX(Data!K:K,Report!$B66)) ->  | F66: =IF(ISERROR(INDEX(Data!L:L,Report!$B66)),"",INDEX(Data!L:L,Report!$B66)) ->  | H66: =IF(ISERROR(INDEX(Data!N:N,Report!$B66)),"",INDEX(Data!N:N,Report!$B66)) ->  | I66: =IF(ISERROR(INDEX(Data!P:P,Report!$B66)),"",INDEX(Data!P:P,Report!$B66)) ->  | J66: =IF(ISERROR(INDEX(Data!O:O,Report!$B66)),"",INDEX(Data!O:O,Report!$B66)) ->  | K66: =IF(ISERROR(INDEX(Data!Q:Q,Report!$B66)),"",INDEX(Data!Q:Q,Report!$B66)) ->  | L66: =IF(ISERROR(INDEX(Data!R:R,Report!$B66)),"",INDEX(Data!R:R,Report!$B66)) ->  | M66: =IF(ISERROR(INDEX(Data!S:S,Report!$B66)),"",INDEX(Data!S:S,Report!$B66)) ->  | N66: =IF(ISERROR(INDEX(Data!T:T,Report!$B66)),"",INDEX(Data!T:T,Report!$B66)) ->  | O66: =IF(ISERROR(INDEX(Data!U:U,Report!$B66)),"",INDEX(Data!U:U,Report!$B66)) ->  | P66: =IF(ISERROR(INDEX(Data!V:V,Report!$B66)),"",INDEX(Data!V:V,Report!$B66)) -> 
A67: 63 | B67: =IF(ISERROR(MATCH(A67,Data!A:A,0)),"",MATCH(A67,Data!A:A,0)) ->  | C67: =IF(ISERROR(INDEX(Data!I:I,Report!$B67)),"",INDEX(Data!I:I,Report!$B67)) ->  | D67: =IF(ISERROR(INDEX(Data!J:J,Report!$B67)),"",INDEX(Data!J:J,Report!$B67)) ->  | E67: =IF(ISERROR(INDEX(Data!K:K,Report!$B67)),"",INDEX(Data!K:K,Report!$B67)) ->  | F67: =IF(ISERROR(INDEX(Data!L:L,Report!$B67)),"",INDEX(Data!L:L,Report!$B67)) ->  | H67: =IF(ISERROR(INDEX(Data!N:N,Report!$B67)),"",INDEX(Data!N:N,Report!$B67)) ->  | I67: =IF(ISERROR(INDEX(Data!P:P,Report!$B67)),"",INDEX(Data!P:P,Report!$B67)) ->  | J67: =IF(ISERROR(INDEX(Data!O:O,Report!$B67)),"",INDEX(Data!O:O,Report!$B67)) ->  | K67: =IF(ISERROR(INDEX(Data!Q:Q,Report!$B67)),"",INDEX(Data!Q:Q,Report!$B67)) ->  | L67: =IF(ISERROR(INDEX(Data!R:R,Report!$B67)),"",INDEX(Data!R:R,Report!$B67)) ->  | M67: =IF(ISERROR(INDEX(Data!S:S,Report!$B67)),"",INDEX(Data!S:S,Report!$B67)) ->  | N67: =IF(ISERROR(INDEX(Data!T:T,Report!$B67)),"",INDEX(Data!T:T,Report!$B67)) ->  | O67: =IF(ISERROR(INDEX(Data!U:U,Report!$B67)),"",INDEX(Data!U:U,Report!$B67)) ->  | P67: =IF(ISERROR(INDEX(Data!V:V,Report!$B67)),"",INDEX(Data!V:V,Report!$B67)) -> 
A68: 64 | B68: =IF(ISERROR(MATCH(A68,Data!A:A,0)),"",MATCH(A68,Data!A:A,0)) ->  | C68: =IF(ISERROR(INDEX(Data!I:I,Report!$B68)),"",INDEX(Data!I:I,Report!$B68)) ->  | D68: =IF(ISERROR(INDEX(Data!J:J,Report!$B68)),"",INDEX(Data!J:J,Report!$B68)) ->  | E68: =IF(ISERROR(INDEX(Data!K:K,Report!$B68)),"",INDEX(Data!K:K,Report!$B68)) ->  | F68: =IF(ISERROR(INDEX(Data!L:L,Report!$B68)),"",INDEX(Data!L:L,Report!$B68)) ->  | H68: =IF(ISERROR(INDEX(Data!N:N,Report!$B68)),"",INDEX(Data!N:N,Report!$B68)) ->  | I68: =IF(ISERROR(INDEX(Data!P:P,Report!$B68)),"",INDEX(Data!P:P,Report!$B68)) ->  | J68: =IF(ISERROR(INDEX(Data!O:O,Report!$B68)),"",INDEX(Data!O:O,Report!$B68)) ->  | K68: =IF(ISERROR(INDEX(Data!Q:Q,Report!$B68)),"",INDEX(Data!Q:Q,Report!$B68)) ->  | L68: =IF(ISERROR(INDEX(Data!R:R,Report!$B68)),"",INDEX(Data!R:R,Report!$B68)) ->  | M68: =IF(ISERROR(INDEX(Data!S:S,Report!$B68)),"",INDEX(Data!S:S,Report!$B68)) ->  | N68: =IF(ISERROR(INDEX(Data!T:T,Report!$B68)),"",INDEX(Data!T:T,Report!$B68)) ->  | O68: =IF(ISERROR(INDEX(Data!U:U,Report!$B68)),"",INDEX(Data!U:U,Report!$B68)) ->  | P68: =IF(ISERROR(INDEX(Data!V:V,Report!$B68)),"",INDEX(Data!V:V,Report!$B68)) -> 
A69: 65 | B69: =IF(ISERROR(MATCH(A69,Data!A:A,0)),"",MATCH(A69,Data!A:A,0)) -> 33 | C69: =IF(ISERROR(INDEX(Data!I:I,Report!$B69)),"",INDEX(Data!I:I,Report!$B69)) -> 04:34:28 | D69: =IF(ISERROR(INDEX(Data!J:J,Report!$B69)),"",INDEX(Data!J:J,Report!$B69)) -> Game against Boomer at level 3.5 Single point data: | E69: =IF(ISERROR(INDEX(Data!K:K,Report!$B69)),"",INDEX(Data!K:K,Report!$B69)) -> Boomer's point | F69: =IF(ISERROR(INDEX(Data!L:L,Report!$B69)),"",INDEX(Data!L:L,Report!$B69)) -> New Point | H69: =IF(ISERROR(INDEX(Data!N:N,Report!$B69)),"",INDEX(Data!N:N,Report!$B69)) -> 1 | I69: =IF(ISERROR(INDEX(Data!P:P,Report!$B69)),"",INDEX(Data!P:P,Report!$B69)) -> Player Serve | J69: =IF(ISERROR(INDEX(Data!O:O,Report!$B69)),"",INDEX(Data!O:O,Report!$B69)) -> 4 | K69: =IF(ISERROR(INDEX(Data!Q:Q,Report!$B69)),"",INDEX(Data!Q:Q,Report!$B69)) -> 3.5 | L69: =IF(ISERROR(INDEX(Data!R:R,Report!$B69)),"",INDEX(Data!R:R,Report!$B69)) -> 15 | M69: =IF(ISERROR(INDEX(Data!S:S,Report!$B69)),"",INDEX(Data!S:S,Report!$B69)) -> 7 | N69: =IF(ISERROR(INDEX(Data!T:T,Report!$B69)),"",INDEX(Data!T:T,Report!$B69)) -> 3.3 | O69: =IF(ISERROR(INDEX(Data!U:U,Report!$B69)),"",INDEX(Data!U:U,Report!$B69)) -> 101 | P69: =IF(ISERROR(INDEX(Data!V:V,Report!$B69)),"",INDEX(Data!V:V,Report!$B69)) -> 4.8 | R69: =IF(H69=0,"",IF(ISERROR(REPT(" ",L69) & "|"),"",REPT(" ",L69) & "|")) -> | | S69: |||
A70: 66 | B70: =IF(ISERROR(MATCH(A70,Data!A:A,0)),"",MATCH(A70,Data!A:A,0)) -> 34 | C70: =IF(ISERROR(INDEX(Data!I:I,Report!$B70)),"",INDEX(Data!I:I,Report!$B70)) ->  | D70: =IF(ISERROR(INDEX(Data!J:J,Report!$B70)),"",INDEX(Data!J:J,Report!$B70)) -> User Drill #85 3 line rated mini Tennis | E70: =IF(ISERROR(INDEX(Data!K:K,Report!$B70)),"",INDEX(Data!K:K,Report!$B70)) -> 0 | F70: =IF(ISERROR(INDEX(Data!L:L,Report!$B70)),"",INDEX(Data!L:L,Report!$B70)) -> 0 | H70: =IF(ISERROR(INDEX(Data!N:N,Report!$B70)),"",INDEX(Data!N:N,Report!$B70)) -> 2 | I70: =IF(ISERROR(INDEX(Data!P:P,Report!$B70)),"",INDEX(Data!P:P,Report!$B70)) -> 0 | J70: =IF(ISERROR(INDEX(Data!O:O,Report!$B70)),"",INDEX(Data!O:O,Report!$B70)) -> 4 | K70: =IF(ISERROR(INDEX(Data!Q:Q,Report!$B70)),"",INDEX(Data!Q:Q,Report!$B70)) -> 3.5 | L70: =IF(ISERROR(INDEX(Data!R:R,Report!$B70)),"",INDEX(Data!R:R,Report!$B70)) -> 6 | M70: =IF(ISERROR(INDEX(Data!S:S,Report!$B70)),"",INDEX(Data!S:S,Report!$B70)) -> 3 | N70: =IF(ISERROR(INDEX(Data!T:T,Report!$B70)),"",INDEX(Data!T:T,Report!$B70)) -> 6.2 | O70: =IF(ISERROR(INDEX(Data!U:U,Report!$B70)),"",INDEX(Data!U:U,Report!$B70)) -> 16 | P70: =IF(ISERROR(INDEX(Data!V:V,Report!$B70)),"",INDEX(Data!V:V,Report!$B70)) -> 4.2 | R70: | | S70: =IF(ISERROR(REPT("|",M70/2)),"",REPT("|",M70/2)) -> |
A71: =A70+1 -> 67 | B71: =IF(ISERROR(MATCH(A71,Data!A:A,0)),"",MATCH(A71,Data!A:A,0)) -> 35 | C71: =IF(ISERROR(INDEX(Data!I:I,Report!$B71)),"",INDEX(Data!I:I,Report!$B71)) -> 04:34:28 | D71: =IF(ISERROR(INDEX(Data!J:J,Report!$B71)),"",INDEX(Data!J:J,Report!$B71)) -> Game against Boomer at level 3.5 Single point data: | E71: =IF(ISERROR(INDEX(Data!K:K,Report!$B71)),"",INDEX(Data!K:K,Report!$B71)) -> Boomer's point | F71: =IF(ISERROR(INDEX(Data!L:L,Report!$B71)),"",INDEX(Data!L:L,Report!$B71)) -> 0 | H71: =IF(ISERROR(INDEX(Data!N:N,Report!$B71)),"",INDEX(Data!N:N,Report!$B71)) -> 2 | I71: =IF(ISERROR(INDEX(Data!P:P,Report!$B71)),"",INDEX(Data!P:P,Report!$B71)) -> Topspin | J71: =IF(ISERROR(INDEX(Data!O:O,Report!$B71)),"",INDEX(Data!O:O,Report!$B71)) -> 6 | K71: =IF(ISERROR(INDEX(Data!Q:Q,Report!$B71)),"",INDEX(Data!Q:Q,Report!$B71)) -> 3.5 | L71: =IF(ISERROR(INDEX(Data!R:R,Report!$B71)),"",INDEX(Data!R:R,Report!$B71)) -> 8 | M71: =IF(ISERROR(INDEX(Data!S:S,Report!$B71)),"",INDEX(Data!S:S,Report!$B71)) -> 18 | N71: =IF(ISERROR(INDEX(Data!T:T,Report!$B71)),"",INDEX(Data!T:T,Report!$B71)) -> 2.3 | O71: =IF(ISERROR(INDEX(Data!U:U,Report!$B71)),"",INDEX(Data!U:U,Report!$B71)) -> 20 | P71: =IF(ISERROR(INDEX(Data!V:V,Report!$B71)),"",INDEX(Data!V:V,Report!$B71)) -> 1.9 | R71: | | S71: |||||||||
A72: 68 | B72: =IF(ISERROR(MATCH(A72,Data!A:A,0)),"",MATCH(A72,Data!A:A,0)) -> 36 | C72: =IF(ISERROR(INDEX(Data!I:I,Report!$B72)),"",INDEX(Data!I:I,Report!$B72)) -> 04:34:28 | D72: =IF(ISERROR(INDEX(Data!J:J,Report!$B72)),"",INDEX(Data!J:J,Report!$B72)) -> Game against Boomer at level 3.5 Single point data: | E72: =IF(ISERROR(INDEX(Data!K:K,Report!$B72)),"",INDEX(Data!K:K,Report!$B72)) -> Boomer's point | F72: =IF(ISERROR(INDEX(Data!L:L,Report!$B72)),"",INDEX(Data!L:L,Report!$B72)) -> 0 | H72: =IF(ISERROR(INDEX(Data!N:N,Report!$B72)),"",INDEX(Data!N:N,Report!$B72)) -> 3 | I72: =IF(ISERROR(INDEX(Data!P:P,Report!$B72)),"",INDEX(Data!P:P,Report!$B72)) -> Heavy Topspin | J72: =IF(ISERROR(INDEX(Data!O:O,Report!$B72)),"",INDEX(Data!O:O,Report!$B72)) -> 4 | K72: =IF(ISERROR(INDEX(Data!Q:Q,Report!$B72)),"",INDEX(Data!Q:Q,Report!$B72)) -> 3.5 | L72: =IF(ISERROR(INDEX(Data!R:R,Report!$B72)),"",INDEX(Data!R:R,Report!$B72)) -> 18 | M72: =IF(ISERROR(INDEX(Data!S:S,Report!$B72)),"",INDEX(Data!S:S,Report!$B72)) -> 18 | N72: =IF(ISERROR(INDEX(Data!T:T,Report!$B72)),"",INDEX(Data!T:T,Report!$B72)) -> 3.2 | O72: =IF(ISERROR(INDEX(Data!U:U,Report!$B72)),"",INDEX(Data!U:U,Report!$B72)) -> 11 | P72: =IF(ISERROR(INDEX(Data!V:V,Report!$B72)),"",INDEX(Data!V:V,Report!$B72)) -> 2.2 | R72: | | S72: |||||||||
A73: 69 | B73: =IF(ISERROR(MATCH(A73,Data!A:A,0)),"",MATCH(A73,Data!A:A,0)) -> 37 | C73: =IF(ISERROR(INDEX(Data!I:I,Report!$B73)),"",INDEX(Data!I:I,Report!$B73)) ->  | D73: =IF(ISERROR(INDEX(Data!J:J,Report!$B73)),"",INDEX(Data!J:J,Report!$B73)) -> User Drill #85 3 line rated mini Tennis | E73: =IF(ISERROR(INDEX(Data!K:K,Report!$B73)),"",INDEX(Data!K:K,Report!$B73)) -> 0 | F73: =IF(ISERROR(INDEX(Data!L:L,Report!$B73)),"",INDEX(Data!L:L,Report!$B73)) -> 0 | H73: =IF(ISERROR(INDEX(Data!N:N,Report!$B73)),"",INDEX(Data!N:N,Report!$B73)) -> 3 | I73: =IF(ISERROR(INDEX(Data!P:P,Report!$B73)),"",INDEX(Data!P:P,Report!$B73)) -> 0 | J73: =IF(ISERROR(INDEX(Data!O:O,Report!$B73)),"",INDEX(Data!O:O,Report!$B73)) -> 10 | K73: =IF(ISERROR(INDEX(Data!Q:Q,Report!$B73)),"",INDEX(Data!Q:Q,Report!$B73)) -> 3.5 | L73: =IF(ISERROR(INDEX(Data!R:R,Report!$B73)),"",INDEX(Data!R:R,Report!$B73)) -> 0 | M73: =IF(ISERROR(INDEX(Data!S:S,Report!$B73)),"",INDEX(Data!S:S,Report!$B73)) -> 0 | N73: =IF(ISERROR(INDEX(Data!T:T,Report!$B73)),"",INDEX(Data!T:T,Report!$B73)) -> 0 | O73: =IF(ISERROR(INDEX(Data!U:U,Report!$B73)),"",INDEX(Data!U:U,Report!$B73)) -> 0 | P73: =IF(ISERROR(INDEX(Data!V:V,Report!$B73)),"",INDEX(Data!V:V,Report!$B73)) -> 0 | R73: |
A74: 70 | B74: =IF(ISERROR(MATCH(A74,Data!A:A,0)),"",MATCH(A74,Data!A:A,0)) -> 38 | C74: =IF(ISERROR(INDEX(Data!I:I,Report!$B74)),"",INDEX(Data!I:I,Report!$B74)) -> 04:34:28 | D74: =IF(ISERROR(INDEX(Data!J:J,Report!$B74)),"",INDEX(Data!J:J,Report!$B74)) -> Game against Boomer at level 3.5 Single point data: | E74: =IF(ISERROR(INDEX(Data!K:K,Report!$B74)),"",INDEX(Data!K:K,Report!$B74)) -> Boomer's point | F74: =IF(ISERROR(INDEX(Data!L:L,Report!$B74)),"",INDEX(Data!L:L,Report!$B74)) -> 0 | H74: =IF(ISERROR(INDEX(Data!N:N,Report!$B74)),"",INDEX(Data!N:N,Report!$B74)) -> 4 | I74: =IF(ISERROR(INDEX(Data!P:P,Report!$B74)),"",INDEX(Data!P:P,Report!$B74)) -> Pass | J74: =IF(ISERROR(INDEX(Data!O:O,Report!$B74)),"",INDEX(Data!O:O,Report!$B74)) -> 4 | K74: =IF(ISERROR(INDEX(Data!Q:Q,Report!$B74)),"",INDEX(Data!Q:Q,Report!$B74)) -> 3.5 | L74: =IF(ISERROR(INDEX(Data!R:R,Report!$B74)),"",INDEX(Data!R:R,Report!$B74)) -> 24 | M74: =IF(ISERROR(INDEX(Data!S:S,Report!$B74)),"",INDEX(Data!S:S,Report!$B74)) -> 18 | N74: =IF(ISERROR(INDEX(Data!T:T,Report!$B74)),"",INDEX(Data!T:T,Report!$B74)) -> 4 | O74: =IF(ISERROR(INDEX(Data!U:U,Report!$B74)),"",INDEX(Data!U:U,Report!$B74)) -> 20 | P74: =IF(ISERROR(INDEX(Data!V:V,Report!$B74)),"",INDEX(Data!V:V,Report!$B74)) -> 3.1 | R74: | | S74: |||||||||
A75: 71 | B75: =IF(ISERROR(MATCH(A75,Data!A:A,0)),"",MATCH(A75,Data!A:A,0)) -> 39 | C75: =IF(ISERROR(INDEX(Data!I:I,Report!$B75)),"",INDEX(Data!I:I,Report!$B75)) -> 04:34:28 | D75: =IF(ISERROR(INDEX(Data!J:J,Report!$B75)),"",INDEX(Data!J:J,Report!$B75)) -> Game against Boomer at level 3.5 Single point data: | E75: =IF(ISERROR(INDEX(Data!K:K,Report!$B75)),"",INDEX(Data!K:K,Report!$B75)) -> Boomer's point | F75: =IF(ISERROR(INDEX(Data!L:L,Report!$B75)),"",INDEX(Data!L:L,Report!$B75)) -> 0 | H75: =IF(ISERROR(INDEX(Data!N:N,Report!$B75)),"",INDEX(Data!N:N,Report!$B75)) -> 5 | I75: =IF(ISERROR(INDEX(Data!P:P,Report!$B75)),"",INDEX(Data!P:P,Report!$B75)) -> Lob | J75: =IF(ISERROR(INDEX(Data!O:O,Report!$B75)),"",INDEX(Data!O:O,Report!$B75)) -> 4 | K75: =IF(ISERROR(INDEX(Data!Q:Q,Report!$B75)),"",INDEX(Data!Q:Q,Report!$B75)) -> 3.5 | L75: =IF(ISERROR(INDEX(Data!R:R,Report!$B75)),"",INDEX(Data!R:R,Report!$B75)) -> 0 | M75: =IF(ISERROR(INDEX(Data!S:S,Report!$B75)),"",INDEX(Data!S:S,Report!$B75)) -> 0 | N75: =IF(ISERROR(INDEX(Data!T:T,Report!$B75)),"",INDEX(Data!T:T,Report!$B75)) -> 0 | O75: =IF(ISERROR(INDEX(Data!U:U,Report!$B75)),"",INDEX(Data!U:U,Report!$B75)) -> 0 | P75: =IF(ISERROR(INDEX(Data!V:V,Report!$B75)),"",INDEX(Data!V:V,Report!$B75)) -> 0 | R75: |
A76: 72 | B76: =IF(ISERROR(MATCH(A76,Data!A:A,0)),"",MATCH(A76,Data!A:A,0)) ->  | C76: =IF(ISERROR(INDEX(Data!I:I,Report!$B76)),"",INDEX(Data!I:I,Report!$B76)) ->  | D76: =IF(ISERROR(INDEX(Data!J:J,Report!$B76)),"",INDEX(Data!J:J,Report!$B76)) ->  | E76: =IF(ISERROR(INDEX(Data!K:K,Report!$B76)),"",INDEX(Data!K:K,Report!$B76)) ->  | F76: =IF(ISERROR(INDEX(Data!L:L,Report!$B76)),"",INDEX(Data!L:L,Report!$B76)) ->  | H76: =IF(ISERROR(INDEX(Data!N:N,Report!$B76)),"",INDEX(Data!N:N,Report!$B76)) ->  | I76: =IF(ISERROR(INDEX(Data!P:P,Report!$B76)),"",INDEX(Data!P:P,Report!$B76)) ->  | J76: =IF(ISERROR(INDEX(Data!O:O,Report!$B76)),"",INDEX(Data!O:O,Report!$B76)) ->  | K76: =IF(ISERROR(INDEX(Data!Q:Q,Report!$B76)),"",INDEX(Data!Q:Q,Report!$B76)) ->  | L76: =IF(ISERROR(INDEX(Data!R:R,Report!$B76)),"",INDEX(Data!R:R,Report!$B76)) ->  | M76: =IF(ISERROR(INDEX(Data!S:S,Report!$B76)),"",INDEX(Data!S:S,Report!$B76)) ->  | N76: =IF(ISERROR(INDEX(Data!T:T,Report!$B76)),"",INDEX(Data!T:T,Report!$B76)) ->  | O76: =IF(ISERROR(INDEX(Data!U:U,Report!$B76)),"",INDEX(Data!U:U,Report!$B76)) ->  | P76: =IF(ISERROR(INDEX(Data!V:V,Report!$B76)),"",INDEX(Data!V:V,Report!$B76)) -> 
A77: 73 | B77: =IF(ISERROR(MATCH(A77,Data!A:A,0)),"",MATCH(A77,Data!A:A,0)) ->  | C77: =IF(ISERROR(INDEX(Data!I:I,Report!$B77)),"",INDEX(Data!I:I,Report!$B77)) ->  | D77: =IF(ISERROR(INDEX(Data!J:J,Report!$B77)),"",INDEX(Data!J:J,Report!$B77)) ->  | E77: =IF(ISERROR(INDEX(Data!K:K,Report!$B77)),"",INDEX(Data!K:K,Report!$B77)) ->  | F77: =IF(ISERROR(INDEX(Data!L:L,Report!$B77)),"",INDEX(Data!L:L,Report!$B77)) ->  | H77: =IF(ISERROR(INDEX(Data!N:N,Report!$B77)),"",INDEX(Data!N:N,Report!$B77)) ->  | I77: =IF(ISERROR(INDEX(Data!P:P,Report!$B77)),"",INDEX(Data!P:P,Report!$B77)) ->  | J77: =IF(ISERROR(INDEX(Data!O:O,Report!$B77)),"",INDEX(Data!O:O,Report!$B77)) ->  | K77: =IF(ISERROR(INDEX(Data!Q:Q,Report!$B77)),"",INDEX(Data!Q:Q,Report!$B77)) ->  | L77: =IF(ISERROR(INDEX(Data!R:R,Report!$B77)),"",INDEX(Data!R:R,Report!$B77)) ->  | M77: =IF(ISERROR(INDEX(Data!S:S,Report!$B77)),"",INDEX(Data!S:S,Report!$B77)) ->  | N77: =IF(ISERROR(INDEX(Data!T:T,Report!$B77)),"",INDEX(Data!T:T,Report!$B77)) ->  | O77: =IF(ISERROR(INDEX(Data!U:U,Report!$B77)),"",INDEX(Data!U:U,Report!$B77)) ->  | P77: =IF(ISERROR(INDEX(Data!V:V,Report!$B77)),"",INDEX(Data!V:V,Report!$B77)) -> 
A78: 74 | B78: =IF(ISERROR(MATCH(A78,Data!A:A,0)),"",MATCH(A78,Data!A:A,0)) ->  | C78: =IF(ISERROR(INDEX(Data!I:I,Report!$B78)),"",INDEX(Data!I:I,Report!$B78)) ->  | D78: =IF(ISERROR(INDEX(Data!J:J,Report!$B78)),"",INDEX(Data!J:J,Report!$B78)) ->  | E78: =IF(ISERROR(INDEX(Data!K:K,Report!$B78)),"",INDEX(Data!K:K,Report!$B78)) ->  | F78: =IF(ISERROR(INDEX(Data!L:L,Report!$B78)),"",INDEX(Data!L:L,Report!$B78)) ->  | H78: =IF(ISERROR(INDEX(Data!N:N,Report!$B78)),"",INDEX(Data!N:N,Report!$B78)) ->  | I78: =IF(ISERROR(INDEX(Data!P:P,Report!$B78)),"",INDEX(Data!P:P,Report!$B78)) ->  | J78: =IF(ISERROR(INDEX(Data!O:O,Report!$B78)),"",INDEX(Data!O:O,Report!$B78)) ->  | K78: =IF(ISERROR(INDEX(Data!Q:Q,Report!$B78)),"",INDEX(Data!Q:Q,Report!$B78)) ->  | L78: =IF(ISERROR(INDEX(Data!R:R,Report!$B78)),"",INDEX(Data!R:R,Report!$B78)) ->  | M78: =IF(ISERROR(INDEX(Data!S:S,Report!$B78)),"",INDEX(Data!S:S,Report!$B78)) ->  | N78: =IF(ISERROR(INDEX(Data!T:T,Report!$B78)),"",INDEX(Data!T:T,Report!$B78)) ->  | O78: =IF(ISERROR(INDEX(Data!U:U,Report!$B78)),"",INDEX(Data!U:U,Report!$B78)) ->  | P78: =IF(ISERROR(INDEX(Data!V:V,Report!$B78)),"",INDEX(Data!V:V,Report!$B78)) -> 
A79: 75 | B79: =IF(ISERROR(MATCH(A79,Data!A:A,0)),"",MATCH(A79,Data!A:A,0)) -> 40 | C79: =IF(ISERROR(INDEX(Data!I:I,Report!$B79)),"",INDEX(Data!I:I,Report!$B79)) ->  | D79: =IF(ISERROR(INDEX(Data!J:J,Report!$B79)),"",INDEX(Data!J:J,Report!$B79)) -> User Drill #85 3 line rated mini Tennis | E79: =IF(ISERROR(INDEX(Data!K:K,Report!$B79)),"",INDEX(Data!K:K,Report!$B79)) -> 0 | F79: =IF(ISERROR(INDEX(Data!L:L,Report!$B79)),"",INDEX(Data!L:L,Report!$B79)) -> New Point | H79: =IF(ISERROR(INDEX(Data!N:N,Report!$B79)),"",INDEX(Data!N:N,Report!$B79)) -> 1 | I79: =IF(ISERROR(INDEX(Data!P:P,Report!$B79)),"",INDEX(Data!P:P,Report!$B79)) -> 0 | J79: =IF(ISERROR(INDEX(Data!O:O,Report!$B79)),"",INDEX(Data!O:O,Report!$B79)) -> 11 | K79: =IF(ISERROR(INDEX(Data!Q:Q,Report!$B79)),"",INDEX(Data!Q:Q,Report!$B79)) -> 3.5 | L79: =IF(ISERROR(INDEX(Data!R:R,Report!$B79)),"",INDEX(Data!R:R,Report!$B79)) -> 0 | M79: =IF(ISERROR(INDEX(Data!S:S,Report!$B79)),"",INDEX(Data!S:S,Report!$B79)) -> 0 | N79: =IF(ISERROR(INDEX(Data!T:T,Report!$B79)),"",INDEX(Data!T:T,Report!$B79)) -> 0 | O79: =IF(ISERROR(INDEX(Data!U:U,Report!$B79)),"",INDEX(Data!U:U,Report!$B79)) -> 0 | P79: =IF(ISERROR(INDEX(Data!V:V,Report!$B79)),"",INDEX(Data!V:V,Report!$B79)) -> 0 | R79: |
A80: 76 | B80: =IF(ISERROR(MATCH(A80,Data!A:A,0)),"",MATCH(A80,Data!A:A,0)) ->  | C80: =IF(ISERROR(INDEX(Data!I:I,Report!$B80)),"",INDEX(Data!I:I,Report!$B80)) ->  | D80: =IF(ISERROR(INDEX(Data!J:J,Report!$B80)),"",INDEX(Data!J:J,Report!$B80)) ->  | E80: =IF(ISERROR(INDEX(Data!K:K,Report!$B80)),"",INDEX(Data!K:K,Report!$B80)) ->  | F80: =IF(ISERROR(INDEX(Data!L:L,Report!$B80)),"",INDEX(Data!L:L,Report!$B80)) ->  | H80: =IF(ISERROR(INDEX(Data!N:N,Report!$B80)),"",INDEX(Data!N:N,Report!$B80)) ->  | I80: =IF(ISERROR(INDEX(Data!P:P,Report!$B80)),"",INDEX(Data!P:P,Report!$B80)) ->  | J80: =IF(ISERROR(INDEX(Data!O:O,Report!$B80)),"",INDEX(Data!O:O,Report!$B80)) ->  | K80: =IF(ISERROR(INDEX(Data!Q:Q,Report!$B80)),"",INDEX(Data!Q:Q,Report!$B80)) ->  | L80: =IF(ISERROR(INDEX(Data!R:R,Report!$B80)),"",INDEX(Data!R:R,Report!$B80)) ->  | M80: =IF(ISERROR(INDEX(Data!S:S,Report!$B80)),"",INDEX(Data!S:S,Report!$B80)) ->  | N80: =IF(ISERROR(INDEX(Data!T:T,Report!$B80)),"",INDEX(Data!T:T,Report!$B80)) ->  | O80: =IF(ISERROR(INDEX(Data!U:U,Report!$B80)),"",INDEX(Data!U:U,Report!$B80)) ->  | P80: =IF(ISERROR(INDEX(Data!V:V,Report!$B80)),"",INDEX(Data!V:V,Report!$B80)) -> 
A81: 77 | B81: =IF(ISERROR(MATCH(A81,Data!A:A,0)),"",MATCH(A81,Data!A:A,0)) ->  | C81: =IF(ISERROR(INDEX(Data!I:I,Report!$B81)),"",INDEX(Data!I:I,Report!$B81)) ->  | D81: =IF(ISERROR(INDEX(Data!J:J,Report!$B81)),"",INDEX(Data!J:J,Report!$B81)) ->  | E81: =IF(ISERROR(INDEX(Data!K:K,Report!$B81)),"",INDEX(Data!K:K,Report!$B81)) ->  | F81: =IF(ISERROR(INDEX(Data!L:L,Report!$B81)),"",INDEX(Data!L:L,Report!$B81)) ->  | H81: =IF(ISERROR(INDEX(Data!N:N,Report!$B81)),"",INDEX(Data!N:N,Report!$B81)) ->  | I81: =IF(ISERROR(INDEX(Data!P:P,Report!$B81)),"",INDEX(Data!P:P,Report!$B81)) ->  | J81: =IF(ISERROR(INDEX(Data!O:O,Report!$B81)),"",INDEX(Data!O:O,Report!$B81)) ->  | K81: =IF(ISERROR(INDEX(Data!Q:Q,Report!$B81)),"",INDEX(Data!Q:Q,Report!$B81)) ->  | L81: =IF(ISERROR(INDEX(Data!R:R,Report!$B81)),"",INDEX(Data!R:R,Report!$B81)) ->  | M81: =IF(ISERROR(INDEX(Data!S:S,Report!$B81)),"",INDEX(Data!S:S,Report!$B81)) ->  | N81: =IF(ISERROR(INDEX(Data!T:T,Report!$B81)),"",INDEX(Data!T:T,Report!$B81)) ->  | O81: =IF(ISERROR(INDEX(Data!U:U,Report!$B81)),"",INDEX(Data!U:U,Report!$B81)) ->  | P81: =IF(ISERROR(INDEX(Data!V:V,Report!$B81)),"",INDEX(Data!V:V,Report!$B81)) -> 
A82: 78 | B82: =IF(ISERROR(MATCH(A82,Data!A:A,0)),"",MATCH(A82,Data!A:A,0)) ->  | C82: =IF(ISERROR(INDEX(Data!I:I,Report!$B82)),"",INDEX(Data!I:I,Report!$B82)) ->  | D82: =IF(ISERROR(INDEX(Data!J:J,Report!$B82)),"",INDEX(Data!J:J,Report!$B82)) ->  | E82: =IF(ISERROR(INDEX(Data!K:K,Report!$B82)),"",INDEX(Data!K:K,Report!$B82)) ->  | F82: =IF(ISERROR(INDEX(Data!L:L,Report!$B82)),"",INDEX(Data!L:L,Report!$B82)) ->  | H82: =IF(ISERROR(INDEX(Data!N:N,Report!$B82)),"",INDEX(Data!N:N,Report!$B82)) ->  | I82: =IF(ISERROR(INDEX(Data!P:P,Report!$B82)),"",INDEX(Data!P:P,Report!$B82)) ->  | J82: =IF(ISERROR(INDEX(Data!O:O,Report!$B82)),"",INDEX(Data!O:O,Report!$B82)) ->  | K82: =IF(ISERROR(INDEX(Data!Q:Q,Report!$B82)),"",INDEX(Data!Q:Q,Report!$B82)) ->  | L82: =IF(ISERROR(INDEX(Data!R:R,Report!$B82)),"",INDEX(Data!R:R,Report!$B82)) ->  | M82: =IF(ISERROR(INDEX(Data!S:S,Report!$B82)),"",INDEX(Data!S:S,Report!$B82)) ->  | N82: =IF(ISERROR(INDEX(Data!T:T,Report!$B82)),"",INDEX(Data!T:T,Report!$B82)) ->  | O82: =IF(ISERROR(INDEX(Data!U:U,Report!$B82)),"",INDEX(Data!U:U,Report!$B82)) ->  | P82: =IF(ISERROR(INDEX(Data!V:V,Report!$B82)),"",INDEX(Data!V:V,Report!$B82)) -> 
A83: 79 | B83: =IF(ISERROR(MATCH(A83,Data!A:A,0)),"",MATCH(A83,Data!A:A,0)) -> 41 | C83: =IF(ISERROR(INDEX(Data!I:I,Report!$B83)),"",INDEX(Data!I:I,Report!$B83)) -> 00:33:20 | D83: =IF(ISERROR(INDEX(Data!J:J,Report!$B83)),"",INDEX(Data!J:J,Report!$B83)) -> Game against Boomer at level 2.0 Single point data: | E83: =IF(ISERROR(INDEX(Data!K:K,Report!$B83)),"",INDEX(Data!K:K,Report!$B83)) -> Player's point | F83: =IF(ISERROR(INDEX(Data!L:L,Report!$B83)),"",INDEX(Data!L:L,Report!$B83)) -> New Point | H83: =IF(ISERROR(INDEX(Data!N:N,Report!$B83)),"",INDEX(Data!N:N,Report!$B83)) -> 1 | I83: =IF(ISERROR(INDEX(Data!P:P,Report!$B83)),"",INDEX(Data!P:P,Report!$B83)) -> Player Serve | J83: =IF(ISERROR(INDEX(Data!O:O,Report!$B83)),"",INDEX(Data!O:O,Report!$B83)) -> 4 | K83: =IF(ISERROR(INDEX(Data!Q:Q,Report!$B83)),"",INDEX(Data!Q:Q,Report!$B83)) -> 2 | L83: =IF(ISERROR(INDEX(Data!R:R,Report!$B83)),"",INDEX(Data!R:R,Report!$B83)) -> 16 | M83: =IF(ISERROR(INDEX(Data!S:S,Report!$B83)),"",INDEX(Data!S:S,Report!$B83)) -> 6 | N83: =IF(ISERROR(INDEX(Data!T:T,Report!$B83)),"",INDEX(Data!T:T,Report!$B83)) -> 3.8 | O83: =IF(ISERROR(INDEX(Data!U:U,Report!$B83)),"",INDEX(Data!U:U,Report!$B83)) -> 110 | P83: =IF(ISERROR(INDEX(Data!V:V,Report!$B83)),"",INDEX(Data!V:V,Report!$B83)) -> 5.3 | R83: | | S83: |||
A84: 80 | B84: =IF(ISERROR(MATCH(A84,Data!A:A,0)),"",MATCH(A84,Data!A:A,0)) ->  | C84: =IF(ISERROR(INDEX(Data!I:I,Report!$B84)),"",INDEX(Data!I:I,Report!$B84)) ->  | D84: =IF(ISERROR(INDEX(Data!J:J,Report!$B84)),"",INDEX(Data!J:J,Report!$B84)) ->  | E84: =IF(ISERROR(INDEX(Data!K:K,Report!$B84)),"",INDEX(Data!K:K,Report!$B84)) ->  | F84: =IF(ISERROR(INDEX(Data!L:L,Report!$B84)),"",INDEX(Data!L:L,Report!$B84)) ->  | H84: =IF(ISERROR(INDEX(Data!N:N,Report!$B84)),"",INDEX(Data!N:N,Report!$B84)) ->  | I84: =IF(ISERROR(INDEX(Data!P:P,Report!$B84)),"",INDEX(Data!P:P,Report!$B84)) ->  | J84: =IF(ISERROR(INDEX(Data!O:O,Report!$B84)),"",INDEX(Data!O:O,Report!$B84)) ->  | K84: =IF(ISERROR(INDEX(Data!Q:Q,Report!$B84)),"",INDEX(Data!Q:Q,Report!$B84)) ->  | L84: =IF(ISERROR(INDEX(Data!R:R,Report!$B84)),"",INDEX(Data!R:R,Report!$B84)) ->  | M84: =IF(ISERROR(INDEX(Data!S:S,Report!$B84)),"",INDEX(Data!S:S,Report!$B84)) ->  | N84: =IF(ISERROR(INDEX(Data!T:T,Report!$B84)),"",INDEX(Data!T:T,Report!$B84)) ->  | O84: =IF(ISERROR(INDEX(Data!U:U,Report!$B84)),"",INDEX(Data!U:U,Report!$B84)) ->  | P84: =IF(ISERROR(INDEX(Data!V:V,Report!$B84)),"",INDEX(Data!V:V,Report!$B84)) -> 
A85: 81 | B85: =IF(ISERROR(MATCH(A85,Data!A:A,0)),"",MATCH(A85,Data!A:A,0)) ->  | C85: =IF(ISERROR(INDEX(Data!I:I,Report!$B85)),"",INDEX(Data!I:I,Report!$B85)) ->  | D85: =IF(ISERROR(INDEX(Data!J:J,Report!$B85)),"",INDEX(Data!J:J,Report!$B85)) ->  | E85: =IF(ISERROR(INDEX(Data!K:K,Report!$B85)),"",INDEX(Data!K:K,Report!$B85)) ->  | F85: =IF(ISERROR(INDEX(Data!L:L,Report!$B85)),"",INDEX(Data!L:L,Report!$B85)) ->  | H85: =IF(ISERROR(INDEX(Data!N:N,Report!$B85)),"",INDEX(Data!N:N,Report!$B85)) ->  | I85: =IF(ISERROR(INDEX(Data!P:P,Report!$B85)),"",INDEX(Data!P:P,Report!$B85)) ->  | J85: =IF(ISERROR(INDEX(Data!O:O,Report!$B85)),"",INDEX(Data!O:O,Report!$B85)) ->  | K85: =IF(ISERROR(INDEX(Data!Q:Q,Report!$B85)),"",INDEX(Data!Q:Q,Report!$B85)) ->  | L85: =IF(ISERROR(INDEX(Data!R:R,Report!$B85)),"",INDEX(Data!R:R,Report!$B85)) ->  | M85: =IF(ISERROR(INDEX(Data!S:S,Report!$B85)),"",INDEX(Data!S:S,Report!$B85)) ->  | N85: =IF(ISERROR(INDEX(Data!T:T,Report!$B85)),"",INDEX(Data!T:T,Report!$B85)) ->  | O85: =IF(ISERROR(INDEX(Data!U:U,Report!$B85)),"",INDEX(Data!U:U,Report!$B85)) ->  | P85: =IF(ISERROR(INDEX(Data!V:V,Report!$B85)),"",INDEX(Data!V:V,Report!$B85)) -> 
A86: 82 | B86: =IF(ISERROR(MATCH(A86,Data!A:A,0)),"",MATCH(A86,Data!A:A,0)) ->  | C86: =IF(ISERROR(INDEX(Data!I:I,Report!$B86)),"",INDEX(Data!I:I,Report!$B86)) ->  | D86: =IF(ISERROR(INDEX(Data!J:J,Report!$B86)),"",INDEX(Data!J:J,Report!$B86)) ->  | E86: =IF(ISERROR(INDEX(Data!K:K,Report!$B86)),"",INDEX(Data!K:K,Report!$B86)) ->  | F86: =IF(ISERROR(INDEX(Data!L:L,Report!$B86)),"",INDEX(Data!L:L,Report!$B86)) ->  | H86: =IF(ISERROR(INDEX(Data!N:N,Report!$B86)),"",INDEX(Data!N:N,Report!$B86)) ->  | I86: =IF(ISERROR(INDEX(Data!P:P,Report!$B86)),"",INDEX(Data!P:P,Report!$B86)) ->  | J86: =IF(ISERROR(INDEX(Data!O:O,Report!$B86)),"",INDEX(Data!O:O,Report!$B86)) ->  | K86: =IF(ISERROR(INDEX(Data!Q:Q,Report!$B86)),"",INDEX(Data!Q:Q,Report!$B86)) ->  | L86: =IF(ISERROR(INDEX(Data!R:R,Report!$B86)),"",INDEX(Data!R:R,Report!$B86)) ->  | M86: =IF(ISERROR(INDEX(Data!S:S,Report!$B86)),"",INDEX(Data!S:S,Report!$B86)) ->  | N86: =IF(ISERROR(INDEX(Data!T:T,Report!$B86)),"",INDEX(Data!T:T,Report!$B86)) ->  | O86: =IF(ISERROR(INDEX(Data!U:U,Report!$B86)),"",INDEX(Data!U:U,Report!$B86)) ->  | P86: =IF(ISERROR(INDEX(Data!V:V,Report!$B86)),"",INDEX(Data!V:V,Report!$B86)) -> 
A87: 83 | B87: =IF(ISERROR(MATCH(A87,Data!A:A,0)),"",MATCH(A87,Data!A:A,0)) -> 42 | C87: =IF(ISERROR(INDEX(Data!I:I,Report!$B87)),"",INDEX(Data!I:I,Report!$B87)) -> 04:35:12 | D87: =IF(ISERROR(INDEX(Data!J:J,Report!$B87)),"",INDEX(Data!J:J,Report!$B87)) -> Game against Boomer at level 3.5 Single point data: | E87: =IF(ISERROR(INDEX(Data!K:K,Report!$B87)),"",INDEX(Data!K:K,Report!$B87)) -> Player's point | F87: =IF(ISERROR(INDEX(Data!L:L,Report!$B87)),"",INDEX(Data!L:L,Report!$B87)) -> New Point | H87: =IF(ISERROR(INDEX(Data!N:N,Report!$B87)),"",INDEX(Data!N:N,Report!$B87)) -> 1 | I87: =IF(ISERROR(INDEX(Data!P:P,Report!$B87)),"",INDEX(Data!P:P,Report!$B87)) -> Player Serve | J87: =IF(ISERROR(INDEX(Data!O:O,Report!$B87)),"",INDEX(Data!O:O,Report!$B87)) -> 4 | K87: =IF(ISERROR(INDEX(Data!Q:Q,Report!$B87)),"",INDEX(Data!Q:Q,Report!$B87)) -> 3.5 | L87: =IF(ISERROR(INDEX(Data!R:R,Report!$B87)),"",INDEX(Data!R:R,Report!$B87)) -> 15 | M87: =IF(ISERROR(INDEX(Data!S:S,Report!$B87)),"",INDEX(Data!S:S,Report!$B87)) -> 18 | N87: =IF(ISERROR(INDEX(Data!T:T,Report!$B87)),"",INDEX(Data!T:T,Report!$B87)) -> 3.8 | O87: =IF(ISERROR(INDEX(Data!U:U,Report!$B87)),"",INDEX(Data!U:U,Report!$B87)) -> 93 | P87: =IF(ISERROR(INDEX(Data!V:V,Report!$B87)),"",INDEX(Data!V:V,Report!$B87)) -> 4.8 | R87: | | S87: |||||||||
A88: 84 | B88: =IF(ISERROR(MATCH(A88,Data!A:A,0)),"",MATCH(A88,Data!A:A,0)) -> 43 | C88: =IF(ISERROR(INDEX(Data!I:I,Report!$B88)),"",INDEX(Data!I:I,Report!$B88)) ->  | D88: =IF(ISERROR(INDEX(Data!J:J,Report!$B88)),"",INDEX(Data!J:J,Report!$B88)) -> User Drill #85 3 line rated mini Tennis | E88: =IF(ISERROR(INDEX(Data!K:K,Report!$B88)),"",INDEX(Data!K:K,Report!$B88)) -> 0 | F88: =IF(ISERROR(INDEX(Data!L:L,Report!$B88)),"",INDEX(Data!L:L,Report!$B88)) -> 0 | H88: =IF(ISERROR(INDEX(Data!N:N,Report!$B88)),"",INDEX(Data!N:N,Report!$B88)) -> 2 | I88: =IF(ISERROR(INDEX(Data!P:P,Report!$B88)),"",INDEX(Data!P:P,Report!$B88)) -> 0 | J88: =IF(ISERROR(INDEX(Data!O:O,Report!$B88)),"",INDEX(Data!O:O,Report!$B88)) -> 4 | K88: =IF(ISERROR(INDEX(Data!Q:Q,Report!$B88)),"",INDEX(Data!Q:Q,Report!$B88)) -> 3.5 | L88: =IF(ISERROR(INDEX(Data!R:R,Report!$B88)),"",INDEX(Data!R:R,Report!$B88)) -> 0 | M88: =IF(ISERROR(INDEX(Data!S:S,Report!$B88)),"",INDEX(Data!S:S,Report!$B88)) -> 0 | N88: =IF(ISERROR(INDEX(Data!T:T,Report!$B88)),"",INDEX(Data!T:T,Report!$B88)) -> 0 | O88: =IF(ISERROR(INDEX(Data!U:U,Report!$B88)),"",INDEX(Data!U:U,Report!$B88)) -> 0 | P88: =IF(ISERROR(INDEX(Data!V:V,Report!$B88)),"",INDEX(Data!V:V,Report!$B88)) -> 0 | R88: |
A89: 85 | B89: =IF(ISERROR(MATCH(A89,Data!A:A,0)),"",MATCH(A89,Data!A:A,0)) -> 44 | C89: =IF(ISERROR(INDEX(Data!I:I,Report!$B89)),"",INDEX(Data!I:I,Report!$B89)) -> 04:35:12 | D89: =IF(ISERROR(INDEX(Data!J:J,Report!$B89)),"",INDEX(Data!J:J,Report!$B89)) -> Game against Boomer at level 3.5 Single point data: | E89: =IF(ISERROR(INDEX(Data!K:K,Report!$B89)),"",INDEX(Data!K:K,Report!$B89)) -> Player's point | F89: =IF(ISERROR(INDEX(Data!L:L,Report!$B89)),"",INDEX(Data!L:L,Report!$B89)) -> 0 | H89: =IF(ISERROR(INDEX(Data!N:N,Report!$B89)),"",INDEX(Data!N:N,Report!$B89)) -> 2 | I89: =IF(ISERROR(INDEX(Data!P:P,Report!$B89)),"",INDEX(Data!P:P,Report!$B89)) -> Flat Drive | J89: =IF(ISERROR(INDEX(Data!O:O,Report!$B89)),"",INDEX(Data!O:O,Report!$B89)) -> 5 | K89: =IF(ISERROR(INDEX(Data!Q:Q,Report!$B89)),"",INDEX(Data!Q:Q,Report!$B89)) -> 3.5 | L89: =IF(ISERROR(INDEX(Data!R:R,Report!$B89)),"",INDEX(Data!R:R,Report!$B89)) -> 27 | M89: =IF(ISERROR(INDEX(Data!S:S,Report!$B89)),"",INDEX(Data!S:S,Report!$B89)) -> 5 | N89: =IF(ISERROR(INDEX(Data!T:T,Report!$B89)),"",INDEX(Data!T:T,Report!$B89)) -> 5.3 | O89: =IF(ISERROR(INDEX(Data!U:U,Report!$B89)),"",INDEX(Data!U:U,Report!$B89)) -> 36 | P89: =IF(ISERROR(INDEX(Data!V:V,Report!$B89)),"",INDEX(Data!V:V,Report!$B89)) -> 4 | R89: | | S89: ||
A90: 86 | B90: =IF(ISERROR(MATCH(A90,Data!A:A,0)),"",MATCH(A90,Data!A:A,0)) -> 45 | C90: =IF(ISERROR(INDEX(Data!I:I,Report!$B90)),"",INDEX(Data!I:I,Report!$B90)) ->  | D90: =IF(ISERROR(INDEX(Data!J:J,Report!$B90)),"",INDEX(Data!J:J,Report!$B90)) -> User Drill #85 3 line rated mini Tennis | E90: =IF(ISERROR(INDEX(Data!K:K,Report!$B90)),"",INDEX(Data!K:K,Report!$B90)) -> 0 | F90: =IF(ISERROR(INDEX(Data!L:L,Report!$B90)),"",INDEX(Data!L:L,Report!$B90)) -> 0 | H90: =IF(ISERROR(INDEX(Data!N:N,Report!$B90)),"",INDEX(Data!N:N,Report!$B90)) -> 3 | I90: =IF(ISERROR(INDEX(Data!P:P,Report!$B90)),"",INDEX(Data!P:P,Report!$B90)) -> 0 | J90: =IF(ISERROR(INDEX(Data!O:O,Report!$B90)),"",INDEX(Data!O:O,Report!$B90)) -> 10 | K90: =IF(ISERROR(INDEX(Data!Q:Q,Report!$B90)),"",INDEX(Data!Q:Q,Report!$B90)) -> 3.5 | L90: =IF(ISERROR(INDEX(Data!R:R,Report!$B90)),"",INDEX(Data!R:R,Report!$B90)) -> 4 | M90: =IF(ISERROR(INDEX(Data!S:S,Report!$B90)),"",INDEX(Data!S:S,Report!$B90)) -> 7 | N90: =IF(ISERROR(INDEX(Data!T:T,Report!$B90)),"",INDEX(Data!T:T,Report!$B90)) -> 2.1 | O90: =IF(ISERROR(INDEX(Data!U:U,Report!$B90)),"",INDEX(Data!U:U,Report!$B90)) -> 26 | P90: =IF(ISERROR(INDEX(Data!V:V,Report!$B90)),"",INDEX(Data!V:V,Report!$B90)) -> 2.8 | R90: | | S90: |||
A91: 87 | B91: =IF(ISERROR(MATCH(A91,Data!A:A,0)),"",MATCH(A91,Data!A:A,0)) -> 46 | C91: =IF(ISERROR(INDEX(Data!I:I,Report!$B91)),"",INDEX(Data!I:I,Report!$B91)) -> 04:35:12 | D91: =IF(ISERROR(INDEX(Data!J:J,Report!$B91)),"",INDEX(Data!J:J,Report!$B91)) -> Game against Boomer at level 3.5 Single point data: | E91: =IF(ISERROR(INDEX(Data!K:K,Report!$B91)),"",INDEX(Data!K:K,Report!$B91)) -> Player's point | F91: =IF(ISERROR(INDEX(Data!L:L,Report!$B91)),"",INDEX(Data!L:L,Report!$B91)) -> 0 | H91: =IF(ISERROR(INDEX(Data!N:N,Report!$B91)),"",INDEX(Data!N:N,Report!$B91)) -> 3 | I91: =IF(ISERROR(INDEX(Data!P:P,Report!$B91)),"",INDEX(Data!P:P,Report!$B91)) -> Lob | J91: =IF(ISERROR(INDEX(Data!O:O,Report!$B91)),"",INDEX(Data!O:O,Report!$B91)) -> 4 | K91: =IF(ISERROR(INDEX(Data!Q:Q,Report!$B91)),"",INDEX(Data!Q:Q,Report!$B91)) -> 3.5 | L91: =IF(ISERROR(INDEX(Data!R:R,Report!$B91)),"",INDEX(Data!R:R,Report!$B91)) -> 33 | M91: =IF(ISERROR(INDEX(Data!S:S,Report!$B91)),"",INDEX(Data!S:S,Report!$B91)) -> 11 | N91: =IF(ISERROR(INDEX(Data!T:T,Report!$B91)),"",INDEX(Data!T:T,Report!$B91)) -> 5 | O91: =IF(ISERROR(INDEX(Data!U:U,Report!$B91)),"",INDEX(Data!U:U,Report!$B91)) -> 43 | P91: =IF(ISERROR(INDEX(Data!V:V,Report!$B91)),"",INDEX(Data!V:V,Report!$B91)) -> 4.2 | R91: | | S91: |||||
A92: 88 | B92: =IF(ISERROR(MATCH(A92,Data!A:A,0)),"",MATCH(A92,Data!A:A,0)) -> 47 | C92: =IF(ISERROR(INDEX(Data!I:I,Report!$B92)),"",INDEX(Data!I:I,Report!$B92)) -> 04:35:12 | D92: =IF(ISERROR(INDEX(Data!J:J,Report!$B92)),"",INDEX(Data!J:J,Report!$B92)) -> Game against Boomer at level 3.5 Single point data: | E92: =IF(ISERROR(INDEX(Data!K:K,Report!$B92)),"",INDEX(Data!K:K,Report!$B92)) -> Player's point | F92: =IF(ISERROR(INDEX(Data!L:L,Report!$B92)),"",INDEX(Data!L:L,Report!$B92)) -> 0 | H92: =IF(ISERROR(INDEX(Data!N:N,Report!$B92)),"",INDEX(Data!N:N,Report!$B92)) -> 4 | I92: =IF(ISERROR(INDEX(Data!P:P,Report!$B92)),"",INDEX(Data!P:P,Report!$B92)) -> Pass | J92: =IF(ISERROR(INDEX(Data!O:O,Report!$B92)),"",INDEX(Data!O:O,Report!$B92)) -> 5 | K92: =IF(ISERROR(INDEX(Data!Q:Q,Report!$B92)),"",INDEX(Data!Q:Q,Report!$B92)) -> 3.5 | L92: =IF(ISERROR(INDEX(Data!R:R,Report!$B92)),"",INDEX(Data!R:R,Report!$B92)) -> 22 | M92: =IF(ISERROR(INDEX(Data!S:S,Report!$B92)),"",INDEX(Data!S:S,Report!$B92)) -> 3 | N92: =IF(ISERROR(INDEX(Data!T:T,Report!$B92)),"",INDEX(Data!T:T,Report!$B92)) -> 6.2 | O92: =IF(ISERROR(INDEX(Data!U:U,Report!$B92)),"",INDEX(Data!U:U,Report!$B92)) -> 37 | P92: =IF(ISERROR(INDEX(Data!V:V,Report!$B92)),"",INDEX(Data!V:V,Report!$B92)) -> 5.2 | R92: | | S92: |
A93: 89 | B93: =IF(ISERROR(MATCH(A93,Data!A:A,0)),"",MATCH(A93,Data!A:A,0)) -> 48 | C93: =IF(ISERROR(INDEX(Data!I:I,Report!$B93)),"",INDEX(Data!I:I,Report!$B93)) -> 04:35:12 | D93: =IF(ISERROR(INDEX(Data!J:J,Report!$B93)),"",INDEX(Data!J:J,Report!$B93)) -> Game against Boomer at level 3.5 Single point data: | E93: =IF(ISERROR(INDEX(Data!K:K,Report!$B93)),"",INDEX(Data!K:K,Report!$B93)) -> Player's point | F93: =IF(ISERROR(INDEX(Data!L:L,Report!$B93)),"",INDEX(Data!L:L,Report!$B93)) -> 0 | H93: =IF(ISERROR(INDEX(Data!N:N,Report!$B93)),"",INDEX(Data!N:N,Report!$B93)) -> 5 | I93: =IF(ISERROR(INDEX(Data!P:P,Report!$B93)),"",INDEX(Data!P:P,Report!$B93)) -> Topspin | J93: =IF(ISERROR(INDEX(Data!O:O,Report!$B93)),"",INDEX(Data!O:O,Report!$B93)) -> 4 | K93: =IF(ISERROR(INDEX(Data!Q:Q,Report!$B93)),"",INDEX(Data!Q:Q,Report!$B93)) -> 3.5 | L93: =IF(ISERROR(INDEX(Data!R:R,Report!$B93)),"",INDEX(Data!R:R,Report!$B93)) -> 23 | M93: =IF(ISERROR(INDEX(Data!S:S,Report!$B93)),"",INDEX(Data!S:S,Report!$B93)) -> 23 | N93: =IF(ISERROR(INDEX(Data!T:T,Report!$B93)),"",INDEX(Data!T:T,Report!$B93)) -> 4.9 | O93: =IF(ISERROR(INDEX(Data!U:U,Report!$B93)),"",INDEX(Data!U:U,Report!$B93)) -> 48 | P93: =IF(ISERROR(INDEX(Data!V:V,Report!$B93)),"",INDEX(Data!V:V,Report!$B93)) -> 5.2 | R93: | | S93: |||||||||||
A94: 90 | B94: =IF(ISERROR(MATCH(A94,Data!A:A,0)),"",MATCH(A94,Data!A:A,0)) ->  | C94: =IF(ISERROR(INDEX(Data!I:I,Report!$B94)),"",INDEX(Data!I:I,Report!$B94)) ->  | D94: =IF(ISERROR(INDEX(Data!J:J,Report!$B94)),"",INDEX(Data!J:J,Report!$B94)) ->  | E94: =IF(ISERROR(INDEX(Data!K:K,Report!$B94)),"",INDEX(Data!K:K,Report!$B94)) ->  | F94: =IF(ISERROR(INDEX(Data!L:L,Report!$B94)),"",INDEX(Data!L:L,Report!$B94)) ->  | H94: =IF(ISERROR(INDEX(Data!N:N,Report!$B94)),"",INDEX(Data!N:N,Report!$B94)) ->  | I94: =IF(ISERROR(INDEX(Data!P:P,Report!$B94)),"",INDEX(Data!P:P,Report!$B94)) ->  | J94: =IF(ISERROR(INDEX(Data!O:O,Report!$B94)),"",INDEX(Data!O:O,Report!$B94)) ->  | K94: =IF(ISERROR(INDEX(Data!Q:Q,Report!$B94)),"",INDEX(Data!Q:Q,Report!$B94)) ->  | L94: =IF(ISERROR(INDEX(Data!R:R,Report!$B94)),"",INDEX(Data!R:R,Report!$B94)) ->  | M94: =IF(ISERROR(INDEX(Data!S:S,Report!$B94)),"",INDEX(Data!S:S,Report!$B94)) ->  | N94: =IF(ISERROR(INDEX(Data!T:T,Report!$B94)),"",INDEX(Data!T:T,Report!$B94)) ->  | O94: =IF(ISERROR(INDEX(Data!U:U,Report!$B94)),"",INDEX(Data!U:U,Report!$B94)) ->  | P94: =IF(ISERROR(INDEX(Data!V:V,Report!$B94)),"",INDEX(Data!V:V,Report!$B94)) -> 
A95: 91 | B95: =IF(ISERROR(MATCH(A95,Data!A:A,0)),"",MATCH(A95,Data!A:A,0)) ->  | C95: =IF(ISERROR(INDEX(Data!I:I,Report!$B95)),"",INDEX(Data!I:I,Report!$B95)) ->  | D95: =IF(ISERROR(INDEX(Data!J:J,Report!$B95)),"",INDEX(Data!J:J,Report!$B95)) ->  | E95: =IF(ISERROR(INDEX(Data!K:K,Report!$B95)),"",INDEX(Data!K:K,Report!$B95)) ->  | F95: =IF(ISERROR(INDEX(Data!L:L,Report!$B95)),"",INDEX(Data!L:L,Report!$B95)) ->  | H95: =IF(ISERROR(INDEX(Data!N:N,Report!$B95)),"",INDEX(Data!N:N,Report!$B95)) ->  | I95: =IF(ISERROR(INDEX(Data!P:P,Report!$B95)),"",INDEX(Data!P:P,Report!$B95)) ->  | J95: =IF(ISERROR(INDEX(Data!O:O,Report!$B95)),"",INDEX(Data!O:O,Report!$B95)) ->  | K95: =IF(ISERROR(INDEX(Data!Q:Q,Report!$B95)),"",INDEX(Data!Q:Q,Report!$B95)) ->  | L95: =IF(ISERROR(INDEX(Data!R:R,Report!$B95)),"",INDEX(Data!R:R,Report!$B95)) ->  | M95: =IF(ISERROR(INDEX(Data!S:S,Report!$B95)),"",INDEX(Data!S:S,Report!$B95)) ->  | N95: =IF(ISERROR(INDEX(Data!T:T,Report!$B95)),"",INDEX(Data!T:T,Report!$B95)) ->  | O95: =IF(ISERROR(INDEX(Data!U:U,Report!$B95)),"",INDEX(Data!U:U,Report!$B95)) ->  | P95: =IF(ISERROR(INDEX(Data!V:V,Report!$B95)),"",INDEX(Data!V:V,Report!$B95)) -> 
A96: 92 | B96: =IF(ISERROR(MATCH(A96,Data!A:A,0)),"",MATCH(A96,Data!A:A,0)) ->  | C96: =IF(ISERROR(INDEX(Data!I:I,Report!$B96)),"",INDEX(Data!I:I,Report!$B96)) ->  | D96: =IF(ISERROR(INDEX(Data!J:J,Report!$B96)),"",INDEX(Data!J:J,Report!$B96)) ->  | E96: =IF(ISERROR(INDEX(Data!K:K,Report!$B96)),"",INDEX(Data!K:K,Report!$B96)) ->  | F96: =IF(ISERROR(INDEX(Data!L:L,Report!$B96)),"",INDEX(Data!L:L,Report!$B96)) ->  | H96: =IF(ISERROR(INDEX(Data!N:N,Report!$B96)),"",INDEX(Data!N:N,Report!$B96)) ->  | I96: =IF(ISERROR(INDEX(Data!P:P,Report!$B96)),"",INDEX(Data!P:P,Report!$B96)) ->  | J96: =IF(ISERROR(INDEX(Data!O:O,Report!$B96)),"",INDEX(Data!O:O,Report!$B96)) ->  | K96: =IF(ISERROR(INDEX(Data!Q:Q,Report!$B96)),"",INDEX(Data!Q:Q,Report!$B96)) ->  | L96: =IF(ISERROR(INDEX(Data!R:R,Report!$B96)),"",INDEX(Data!R:R,Report!$B96)) ->  | M96: =IF(ISERROR(INDEX(Data!S:S,Report!$B96)),"",INDEX(Data!S:S,Report!$B96)) ->  | N96: =IF(ISERROR(INDEX(Data!T:T,Report!$B96)),"",INDEX(Data!T:T,Report!$B96)) ->  | O96: =IF(ISERROR(INDEX(Data!U:U,Report!$B96)),"",INDEX(Data!U:U,Report!$B96)) ->  | P96: =IF(ISERROR(INDEX(Data!V:V,Report!$B96)),"",INDEX(Data!V:V,Report!$B96)) -> 
A97: 93 | B97: =IF(ISERROR(MATCH(A97,Data!A:A,0)),"",MATCH(A97,Data!A:A,0)) -> 49 | C97: =IF(ISERROR(INDEX(Data!I:I,Report!$B97)),"",INDEX(Data!I:I,Report!$B97)) -> 00:33:47 | D97: =IF(ISERROR(INDEX(Data!J:J,Report!$B97)),"",INDEX(Data!J:J,Report!$B97)) -> Game against Boomer at level 2.0 Single point data: | E97: =IF(ISERROR(INDEX(Data!K:K,Report!$B97)),"",INDEX(Data!K:K,Report!$B97)) -> Player's point | F97: =IF(ISERROR(INDEX(Data!L:L,Report!$B97)),"",INDEX(Data!L:L,Report!$B97)) -> New Point | H97: =IF(ISERROR(INDEX(Data!N:N,Report!$B97)),"",INDEX(Data!N:N,Report!$B97)) -> 1 | I97: =IF(ISERROR(INDEX(Data!P:P,Report!$B97)),"",INDEX(Data!P:P,Report!$B97)) -> Serve | J97: =IF(ISERROR(INDEX(Data!O:O,Report!$B97)),"",INDEX(Data!O:O,Report!$B97)) -> 0 | K97: =IF(ISERROR(INDEX(Data!Q:Q,Report!$B97)),"",INDEX(Data!Q:Q,Report!$B97)) -> 2 | L97: =IF(ISERROR(INDEX(Data!R:R,Report!$B97)),"",INDEX(Data!R:R,Report!$B97)) -> 23 | M97: =IF(ISERROR(INDEX(Data!S:S,Report!$B97)),"",INDEX(Data!S:S,Report!$B97)) -> 23 | N97: =IF(ISERROR(INDEX(Data!T:T,Report!$B97)),"",INDEX(Data!T:T,Report!$B97)) -> 4.7 | O97: =IF(ISERROR(INDEX(Data!U:U,Report!$B97)),"",INDEX(Data!U:U,Report!$B97)) -> 47 | P97: =IF(ISERROR(INDEX(Data!V:V,Report!$B97)),"",INDEX(Data!V:V,Report!$B97)) -> 4.2 | R97: | | S97: |||||||||||
A98: 94 | B98: =IF(ISERROR(MATCH(A98,Data!A:A,0)),"",MATCH(A98,Data!A:A,0)) ->  | C98: =IF(ISERROR(INDEX(Data!I:I,Report!$B98)),"",INDEX(Data!I:I,Report!$B98)) ->  | D98: =IF(ISERROR(INDEX(Data!J:J,Report!$B98)),"",INDEX(Data!J:J,Report!$B98)) ->  | E98: =IF(ISERROR(INDEX(Data!K:K,Report!$B98)),"",INDEX(Data!K:K,Report!$B98)) ->  | F98: =IF(ISERROR(INDEX(Data!L:L,Report!$B98)),"",INDEX(Data!L:L,Report!$B98)) ->  | H98: =IF(ISERROR(INDEX(Data!N:N,Report!$B98)),"",INDEX(Data!N:N,Report!$B98)) ->  | I98: =IF(ISERROR(INDEX(Data!P:P,Report!$B98)),"",INDEX(Data!P:P,Report!$B98)) ->  | J98: =IF(ISERROR(INDEX(Data!O:O,Report!$B98)),"",INDEX(Data!O:O,Report!$B98)) ->  | K98: =IF(ISERROR(INDEX(Data!Q:Q,Report!$B98)),"",INDEX(Data!Q:Q,Report!$B98)) ->  | L98: =IF(ISERROR(INDEX(Data!R:R,Report!$B98)),"",INDEX(Data!R:R,Report!$B98)) ->  | M98: =IF(ISERROR(INDEX(Data!S:S,Report!$B98)),"",INDEX(Data!S:S,Report!$B98)) ->  | N98: =IF(ISERROR(INDEX(Data!T:T,Report!$B98)),"",INDEX(Data!T:T,Report!$B98)) ->  | O98: =IF(ISERROR(INDEX(Data!U:U,Report!$B98)),"",INDEX(Data!U:U,Report!$B98)) ->  | P98: =IF(ISERROR(INDEX(Data!V:V,Report!$B98)),"",INDEX(Data!V:V,Report!$B98)) -> 
A99: 95 | B99: =IF(ISERROR(MATCH(A99,Data!A:A,0)),"",MATCH(A99,Data!A:A,0)) ->  | C99: =IF(ISERROR(INDEX(Data!I:I,Report!$B99)),"",INDEX(Data!I:I,Report!$B99)) ->  | D99: =IF(ISERROR(INDEX(Data!J:J,Report!$B99)),"",INDEX(Data!J:J,Report!$B99)) ->  | E99: =IF(ISERROR(INDEX(Data!K:K,Report!$B99)),"",INDEX(Data!K:K,Report!$B99)) ->  | F99: =IF(ISERROR(INDEX(Data!L:L,Report!$B99)),"",INDEX(Data!L:L,Report!$B99)) ->  | H99: =IF(ISERROR(INDEX(Data!N:N,Report!$B99)),"",INDEX(Data!N:N,Report!$B99)) ->  | I99: =IF(ISERROR(INDEX(Data!P:P,Report!$B99)),"",INDEX(Data!P:P,Report!$B99)) ->  | J99: =IF(ISERROR(INDEX(Data!O:O,Report!$B99)),"",INDEX(Data!O:O,Report!$B99)) ->  | K99: =IF(ISERROR(INDEX(Data!Q:Q,Report!$B99)),"",INDEX(Data!Q:Q,Report!$B99)) ->  | L99: =IF(ISERROR(INDEX(Data!R:R,Report!$B99)),"",INDEX(Data!R:R,Report!$B99)) ->  | M99: =IF(ISERROR(INDEX(Data!S:S,Report!$B99)),"",INDEX(Data!S:S,Report!$B99)) ->  | N99: =IF(ISERROR(INDEX(Data!T:T,Report!$B99)),"",INDEX(Data!T:T,Report!$B99)) ->  | O99: =IF(ISERROR(INDEX(Data!U:U,Report!$B99)),"",INDEX(Data!U:U,Report!$B99)) ->  | P99: =IF(ISERROR(INDEX(Data!V:V,Report!$B99)),"",INDEX(Data!V:V,Report!$B99)) -> 
A100: 96 | B100: =IF(ISERROR(MATCH(A100,Data!A:A,0)),"",MATCH(A100,Data!A:A,0)) ->  | C100: =IF(ISERROR(INDEX(Data!I:I,Report!$B100)),"",INDEX(Data!I:I,Report!$B100)) ->  | D100: =IF(ISERROR(INDEX(Data!J:J,Report!$B100)),"",INDEX(Data!J:J,Report!$B100)) ->  | E100: =IF(ISERROR(INDEX(Data!K:K,Report!$B100)),"",INDEX(Data!K:K,Report!$B100)) ->  | F100: =IF(ISERROR(INDEX(Data!L:L,Report!$B100)),"",INDEX(Data!L:L,Report!$B100)) ->  | H100: =IF(ISERROR(INDEX(Data!N:N,Report!$B100)),"",INDEX(Data!N:N,Report!$B100)) ->  | I100: =IF(ISERROR(INDEX(Data!P:P,Report!$B100)),"",INDEX(Data!P:P,Report!$B100)) ->  | J100: =IF(ISERROR(INDEX(Data!O:O,Report!$B100)),"",INDEX(Data!O:O,Report!$B100)) ->  | K100: =IF(ISERROR(INDEX(Data!Q:Q,Report!$B100)),"",INDEX(Data!Q:Q,Report!$B100)) ->  | L100: =IF(ISERROR(INDEX(Data!R:R,Report!$B100)),"",INDEX(Data!R:R,Report!$B100)) ->  | M100: =IF(ISERROR(INDEX(Data!S:S,Report!$B100)),"",INDEX(Data!S:S,Report!$B100)) ->  | N100: =IF(ISERROR(INDEX(Data!T:T,Report!$B100)),"",INDEX(Data!T:T,Report!$B100)) ->  | O100: =IF(ISERROR(INDEX(Data!U:U,Report!$B100)),"",INDEX(Data!U:U,Report!$B100)) ->  | P100: =IF(ISERROR(INDEX(Data!V:V,Report!$B100)),"",INDEX(Data!V:V,Report!$B100)) -> 
A101: 97 | B101: =IF(ISERROR(MATCH(A101,Data!A:A,0)),"",MATCH(A101,Data!A:A,0)) -> 50 | C101: =IF(ISERROR(INDEX(Data!I:I,Report!$B101)),"",INDEX(Data!I:I,Report!$B101)) -> 04:35:35 | D101: =IF(ISERROR(INDEX(Data!J:J,Report!$B101)),"",INDEX(Data!J:J,Report!$B101)) -> Game against Boomer at level 3.5 Single point data: | E101: =IF(ISERROR(INDEX(Data!K:K,Report!$B101)),"",INDEX(Data!K:K,Report!$B101)) -> Player's point | F101: =IF(ISERROR(INDEX(Data!L:L,Report!$B101)),"",INDEX(Data!L:L,Report!$B101)) -> New Point | H101: =IF(ISERROR(INDEX(Data!N:N,Report!$B101)),"",INDEX(Data!N:N,Report!$B101)) -> 1 | I101: =IF(ISERROR(INDEX(Data!P:P,Report!$B101)),"",INDEX(Data!P:P,Report!$B101)) -> Serve | J101: =IF(ISERROR(INDEX(Data!O:O,Report!$B101)),"",INDEX(Data!O:O,Report!$B101)) -> 5 | K101: =IF(ISERROR(INDEX(Data!Q:Q,Report!$B101)),"",INDEX(Data!Q:Q,Report!$B101)) -> 3.5 | L101: =IF(ISERROR(INDEX(Data!R:R,Report!$B101)),"",INDEX(Data!R:R,Report!$B101)) -> 23 | M101: =IF(ISERROR(INDEX(Data!S:S,Report!$B101)),"",INDEX(Data!S:S,Report!$B101)) -> 5 | N101: =IF(ISERROR(INDEX(Data!T:T,Report!$B101)),"",INDEX(Data!T:T,Report!$B101)) -> 4.7 | O101: =IF(ISERROR(INDEX(Data!U:U,Report!$B101)),"",INDEX(Data!U:U,Report!$B101)) -> 36 | P101: =IF(ISERROR(INDEX(Data!V:V,Report!$B101)),"",INDEX(Data!V:V,Report!$B101)) -> 3.7 | R101: | | S101: ||
A102: 98 | B102: =IF(ISERROR(MATCH(A102,Data!A:A,0)),"",MATCH(A102,Data!A:A,0)) ->  | C102: =IF(ISERROR(INDEX(Data!I:I,Report!$B102)),"",INDEX(Data!I:I,Report!$B102)) ->  | D102: =IF(ISERROR(INDEX(Data!J:J,Report!$B102)),"",INDEX(Data!J:J,Report!$B102)) ->  | E102: =IF(ISERROR(INDEX(Data!K:K,Report!$B102)),"",INDEX(Data!K:K,Report!$B102)) ->  | F102: =IF(ISERROR(INDEX(Data!L:L,Report!$B102)),"",INDEX(Data!L:L,Report!$B102)) ->  | H102: =IF(ISERROR(INDEX(Data!N:N,Report!$B102)),"",INDEX(Data!N:N,Report!$B102)) ->  | I102: =IF(ISERROR(INDEX(Data!P:P,Report!$B102)),"",INDEX(Data!P:P,Report!$B102)) ->  | J102: =IF(ISERROR(INDEX(Data!O:O,Report!$B102)),"",INDEX(Data!O:O,Report!$B102)) ->  | K102: =IF(ISERROR(INDEX(Data!Q:Q,Report!$B102)),"",INDEX(Data!Q:Q,Report!$B102)) ->  | L102: =IF(ISERROR(INDEX(Data!R:R,Report!$B102)),"",INDEX(Data!R:R,Report!$B102)) ->  | M102: =IF(ISERROR(INDEX(Data!S:S,Report!$B102)),"",INDEX(Data!S:S,Report!$B102)) ->  | N102: =IF(ISERROR(INDEX(Data!T:T,Report!$B102)),"",INDEX(Data!T:T,Report!$B102)) ->  | O102: =IF(ISERROR(INDEX(Data!U:U,Report!$B102)),"",INDEX(Data!U:U,Report!$B102)) ->  | P102: =IF(ISERROR(INDEX(Data!V:V,Report!$B102)),"",INDEX(Data!V:V,Report!$B102)) -> 
A103: 99 | B103: =IF(ISERROR(MATCH(A103,Data!A:A,0)),"",MATCH(A103,Data!A:A,0)) ->  | C103: =IF(ISERROR(INDEX(Data!I:I,Report!$B103)),"",INDEX(Data!I:I,Report!$B103)) ->  | D103: =IF(ISERROR(INDEX(Data!J:J,Report!$B103)),"",INDEX(Data!J:J,Report!$B103)) ->  | E103: =IF(ISERROR(INDEX(Data!K:K,Report!$B103)),"",INDEX(Data!K:K,Report!$B103)) ->  | F103: =IF(ISERROR(INDEX(Data!L:L,Report!$B103)),"",INDEX(Data!L:L,Report!$B103)) ->  | H103: =IF(ISERROR(INDEX(Data!N:N,Report!$B103)),"",INDEX(Data!N:N,Report!$B103)) ->  | I103: =IF(ISERROR(INDEX(Data!P:P,Report!$B103)),"",INDEX(Data!P:P,Report!$B103)) ->  | J103: =IF(ISERROR(INDEX(Data!O:O,Report!$B103)),"",INDEX(Data!O:O,Report!$B103)) ->  | K103: =IF(ISERROR(INDEX(Data!Q:Q,Report!$B103)),"",INDEX(Data!Q:Q,Report!$B103)) ->  | L103: =IF(ISERROR(INDEX(Data!R:R,Report!$B103)),"",INDEX(Data!R:R,Report!$B103)) ->  | M103: =IF(ISERROR(INDEX(Data!S:S,Report!$B103)),"",INDEX(Data!S:S,Report!$B103)) ->  | N103: =IF(ISERROR(INDEX(Data!T:T,Report!$B103)),"",INDEX(Data!T:T,Report!$B103)) ->  | O103: =IF(ISERROR(INDEX(Data!U:U,Report!$B103)),"",INDEX(Data!U:U,Report!$B103)) ->  | P103: =IF(ISERROR(INDEX(Data!V:V,Report!$B103)),"",INDEX(Data!V:V,Report!$B103)) -> 
A104: 100 | B104: =IF(ISERROR(MATCH(A104,Data!A:A,0)),"",MATCH(A104,Data!A:A,0)) ->  | C104: =IF(ISERROR(INDEX(Data!I:I,Report!$B104)),"",INDEX(Data!I:I,Report!$B104)) ->  | D104: =IF(ISERROR(INDEX(Data!J:J,Report!$B104)),"",INDEX(Data!J:J,Report!$B104)) ->  | E104: =IF(ISERROR(INDEX(Data!K:K,Report!$B104)),"",INDEX(Data!K:K,Report!$B104)) ->  | F104: =IF(ISERROR(INDEX(Data!L:L,Report!$B104)),"",INDEX(Data!L:L,Report!$B104)) ->  | H104: =IF(ISERROR(INDEX(Data!N:N,Report!$B104)),"",INDEX(Data!N:N,Report!$B104)) ->  | I104: =IF(ISERROR(INDEX(Data!P:P,Report!$B104)),"",INDEX(Data!P:P,Report!$B104)) ->  | J104: =IF(ISERROR(INDEX(Data!O:O,Report!$B104)),"",INDEX(Data!O:O,Report!$B104)) ->  | K104: =IF(ISERROR(INDEX(Data!Q:Q,Report!$B104)),"",INDEX(Data!Q:Q,Report!$B104)) ->  | L104: =IF(ISERROR(INDEX(Data!R:R,Report!$B104)),"",INDEX(Data!R:R,Report!$B104)) ->  | M104: =IF(ISERROR(INDEX(Data!S:S,Report!$B104)),"",INDEX(Data!S:S,Report!$B104)) ->  | N104: =IF(ISERROR(INDEX(Data!T:T,Report!$B104)),"",INDEX(Data!T:T,Report!$B104)) ->  | O104: =IF(ISERROR(INDEX(Data!U:U,Report!$B104)),"",INDEX(Data!U:U,Report!$B104)) ->  | P104: =IF(ISERROR(INDEX(Data!V:V,Report!$B104)),"",INDEX(Data!V:V,Report!$B104)) -> 
A105: 101 | B105: =IF(ISERROR(MATCH(A105,Data!A:A,0)),"",MATCH(A105,Data!A:A,0)) -> 51 | C105: =IF(ISERROR(INDEX(Data!I:I,Report!$B105)),"",INDEX(Data!I:I,Report!$B105)) ->  | D105: =IF(ISERROR(INDEX(Data!J:J,Report!$B105)),"",INDEX(Data!J:J,Report!$B105)) -> User Drill #85 3 line rated mini Tennis | E105: =IF(ISERROR(INDEX(Data!K:K,Report!$B105)),"",INDEX(Data!K:K,Report!$B105)) -> 0 | F105: =IF(ISERROR(INDEX(Data!L:L,Report!$B105)),"",INDEX(Data!L:L,Report!$B105)) -> New Point | H105: =IF(ISERROR(INDEX(Data!N:N,Report!$B105)),"",INDEX(Data!N:N,Report!$B105)) -> 1 | I105: =IF(ISERROR(INDEX(Data!P:P,Report!$B105)),"",INDEX(Data!P:P,Report!$B105)) -> 0 | J105: =IF(ISERROR(INDEX(Data!O:O,Report!$B105)),"",INDEX(Data!O:O,Report!$B105)) -> 11 | K105: =IF(ISERROR(INDEX(Data!Q:Q,Report!$B105)),"",INDEX(Data!Q:Q,Report!$B105)) -> 3.5 | L105: =IF(ISERROR(INDEX(Data!R:R,Report!$B105)),"",INDEX(Data!R:R,Report!$B105)) -> 0 | M105: =IF(ISERROR(INDEX(Data!S:S,Report!$B105)),"",INDEX(Data!S:S,Report!$B105)) -> 0 | N105: =IF(ISERROR(INDEX(Data!T:T,Report!$B105)),"",INDEX(Data!T:T,Report!$B105)) -> 0 | O105: =IF(ISERROR(INDEX(Data!U:U,Report!$B105)),"",INDEX(Data!U:U,Report!$B105)) -> 0 | P105: =IF(ISERROR(INDEX(Data!V:V,Report!$B105)),"",INDEX(Data!V:V,Report!$B105)) -> 0 | R105: |
A106: 102 | B106: =IF(ISERROR(MATCH(A106,Data!A:A,0)),"",MATCH(A106,Data!A:A,0)) -> 52 | C106: =IF(ISERROR(INDEX(Data!I:I,Report!$B106)),"",INDEX(Data!I:I,Report!$B106)) -> 00:33:47 | D106: =IF(ISERROR(INDEX(Data!J:J,Report!$B106)),"",INDEX(Data!J:J,Report!$B106)) -> Game against Boomer at level 2.0 Single point data: | E106: =IF(ISERROR(INDEX(Data!K:K,Report!$B106)),"",INDEX(Data!K:K,Report!$B106)) -> Player's point | F106: =IF(ISERROR(INDEX(Data!L:L,Report!$B106)),"",INDEX(Data!L:L,Report!$B106)) -> 0 | H106: =IF(ISERROR(INDEX(Data!N:N,Report!$B106)),"",INDEX(Data!N:N,Report!$B106)) -> 2 | I106: =IF(ISERROR(INDEX(Data!P:P,Report!$B106)),"",INDEX(Data!P:P,Report!$B106)) -> Heavy Topspin | J106: =IF(ISERROR(INDEX(Data!O:O,Report!$B106)),"",INDEX(Data!O:O,Report!$B106)) -> 3 | K106: =IF(ISERROR(INDEX(Data!Q:Q,Report!$B106)),"",INDEX(Data!Q:Q,Report!$B106)) -> 2 | L106: =IF(ISERROR(INDEX(Data!R:R,Report!$B106)),"",INDEX(Data!R:R,Report!$B106)) -> 22 | M106: =IF(ISERROR(INDEX(Data!S:S,Report!$B106)),"",INDEX(Data!S:S,Report!$B106)) -> 1 | N106: =IF(ISERROR(INDEX(Data!T:T,Report!$B106)),"",INDEX(Data!T:T,Report!$B106)) -> 5 | O106: =IF(ISERROR(INDEX(Data!U:U,Report!$B106)),"",INDEX(Data!U:U,Report!$B106)) -> 40 | P106: =IF(ISERROR(INDEX(Data!V:V,Report!$B106)),"",INDEX(Data!V:V,Report!$B106)) -> 4.1 | R106: |
A107: 103 | B107: =IF(ISERROR(MATCH(A107,Data!A:A,0)),"",MATCH(A107,Data!A:A,0)) -> 53 | C107: =IF(ISERROR(INDEX(Data!I:I,Report!$B107)),"",INDEX(Data!I:I,Report!$B107)) ->  | D107: =IF(ISERROR(INDEX(Data!J:J,Report!$B107)),"",INDEX(Data!J:J,Report!$B107)) -> User Drill #85 3 line rated mini Tennis | E107: =IF(ISERROR(INDEX(Data!K:K,Report!$B107)),"",INDEX(Data!K:K,Report!$B107)) -> 0 | F107: =IF(ISERROR(INDEX(Data!L:L,Report!$B107)),"",INDEX(Data!L:L,Report!$B107)) -> 0 | H107: =IF(ISERROR(INDEX(Data!N:N,Report!$B107)),"",INDEX(Data!N:N,Report!$B107)) -> 2 | I107: =IF(ISERROR(INDEX(Data!P:P,Report!$B107)),"",INDEX(Data!P:P,Report!$B107)) -> 0 | J107: =IF(ISERROR(INDEX(Data!O:O,Report!$B107)),"",INDEX(Data!O:O,Report!$B107)) -> 4 | K107: =IF(ISERROR(INDEX(Data!Q:Q,Report!$B107)),"",INDEX(Data!Q:Q,Report!$B107)) -> 3.5 | L107: =IF(ISERROR(INDEX(Data!R:R,Report!$B107)),"",INDEX(Data!R:R,Report!$B107)) -> 0 | M107: =IF(ISERROR(INDEX(Data!S:S,Report!$B107)),"",INDEX(Data!S:S,Report!$B107)) -> 0 | N107: =IF(ISERROR(INDEX(Data!T:T,Report!$B107)),"",INDEX(Data!T:T,Report!$B107)) -> 0 | O107: =IF(ISERROR(INDEX(Data!U:U,Report!$B107)),"",INDEX(Data!U:U,Report!$B107)) -> 0 | P107: =IF(ISERROR(INDEX(Data!V:V,Report!$B107)),"",INDEX(Data!V:V,Report!$B107)) -> 0 | R107: |
A108: 104 | B108: =IF(ISERROR(MATCH(A108,Data!A:A,0)),"",MATCH(A108,Data!A:A,0)) -> 54 | C108: =IF(ISERROR(INDEX(Data!I:I,Report!$B108)),"",INDEX(Data!I:I,Report!$B108)) -> 04:35:35 | D108: =IF(ISERROR(INDEX(Data!J:J,Report!$B108)),"",INDEX(Data!J:J,Report!$B108)) -> Game against Boomer at level 3.5 Single point data: | E108: =IF(ISERROR(INDEX(Data!K:K,Report!$B108)),"",INDEX(Data!K:K,Report!$B108)) -> Player's point | F108: =IF(ISERROR(INDEX(Data!L:L,Report!$B108)),"",INDEX(Data!L:L,Report!$B108)) -> 0 | H108: =IF(ISERROR(INDEX(Data!N:N,Report!$B108)),"",INDEX(Data!N:N,Report!$B108)) -> 2 | I108: =IF(ISERROR(INDEX(Data!P:P,Report!$B108)),"",INDEX(Data!P:P,Report!$B108)) -> Topspin | J108: =IF(ISERROR(INDEX(Data!O:O,Report!$B108)),"",INDEX(Data!O:O,Report!$B108)) -> 6 | K108: =IF(ISERROR(INDEX(Data!Q:Q,Report!$B108)),"",INDEX(Data!Q:Q,Report!$B108)) -> 3.5 | L108: =IF(ISERROR(INDEX(Data!R:R,Report!$B108)),"",INDEX(Data!R:R,Report!$B108)) -> 27 | M108: =IF(ISERROR(INDEX(Data!S:S,Report!$B108)),"",INDEX(Data!S:S,Report!$B108)) -> 4 | N108: =IF(ISERROR(INDEX(Data!T:T,Report!$B108)),"",INDEX(Data!T:T,Report!$B108)) -> 6.2 | O108: =IF(ISERROR(INDEX(Data!U:U,Report!$B108)),"",INDEX(Data!U:U,Report!$B108)) -> 44 | P108: =IF(ISERROR(INDEX(Data!V:V,Report!$B108)),"",INDEX(Data!V:V,Report!$B108)) -> 5.6 | R108: | | S108: ||
A109: 105 | B109: =IF(ISERROR(MATCH(A109,Data!A:A,0)),"",MATCH(A109,Data!A:A,0)) -> 55 | C109: =IF(ISERROR(INDEX(Data!I:I,Report!$B109)),"",INDEX(Data!I:I,Report!$B109)) -> 00:33:47 | D109: =IF(ISERROR(INDEX(Data!J:J,Report!$B109)),"",INDEX(Data!J:J,Report!$B109)) -> Game against Boomer at level 2.0 Single point data: | E109: =IF(ISERROR(INDEX(Data!K:K,Report!$B109)),"",INDEX(Data!K:K,Report!$B109)) -> Player's point | F109: =IF(ISERROR(INDEX(Data!L:L,Report!$B109)),"",INDEX(Data!L:L,Report!$B109)) -> 0 | H109: =IF(ISERROR(INDEX(Data!N:N,Report!$B109)),"",INDEX(Data!N:N,Report!$B109)) -> 3 | I109: =IF(ISERROR(INDEX(Data!P:P,Report!$B109)),"",INDEX(Data!P:P,Report!$B109)) -> Topspin | J109: =IF(ISERROR(INDEX(Data!O:O,Report!$B109)),"",INDEX(Data!O:O,Report!$B109)) -> 4 | K109: =IF(ISERROR(INDEX(Data!Q:Q,Report!$B109)),"",INDEX(Data!Q:Q,Report!$B109)) -> 2 | L109: =IF(ISERROR(INDEX(Data!R:R,Report!$B109)),"",INDEX(Data!R:R,Report!$B109)) -> 37 | M109: =IF(ISERROR(INDEX(Data!S:S,Report!$B109)),"",INDEX(Data!S:S,Report!$B109)) -> 2 | N109: =IF(ISERROR(INDEX(Data!T:T,Report!$B109)),"",INDEX(Data!T:T,Report!$B109)) -> 6.5 | O109: =IF(ISERROR(INDEX(Data!U:U,Report!$B109)),"",INDEX(Data!U:U,Report!$B109)) -> 49 | P109: =IF(ISERROR(INDEX(Data!V:V,Report!$B109)),"",INDEX(Data!V:V,Report!$B109)) -> 5.2 | R109: | | S109: |
A110: 106 | B110: =IF(ISERROR(MATCH(A110,Data!A:A,0)),"",MATCH(A110,Data!A:A,0)) -> 56 | C110: =IF(ISERROR(INDEX(Data!I:I,Report!$B110)),"",INDEX(Data!I:I,Report!$B110)) ->  | D110: =IF(ISERROR(INDEX(Data!J:J,Report!$B110)),"",INDEX(Data!J:J,Report!$B110)) -> User Drill #85 3 line rated mini Tennis | E110: =IF(ISERROR(INDEX(Data!K:K,Report!$B110)),"",INDEX(Data!K:K,Report!$B110)) -> 0 | F110: =IF(ISERROR(INDEX(Data!L:L,Report!$B110)),"",INDEX(Data!L:L,Report!$B110)) -> 0 | H110: =IF(ISERROR(INDEX(Data!N:N,Report!$B110)),"",INDEX(Data!N:N,Report!$B110)) -> 3 | I110: =IF(ISERROR(INDEX(Data!P:P,Report!$B110)),"",INDEX(Data!P:P,Report!$B110)) -> 0 | J110: =IF(ISERROR(INDEX(Data!O:O,Report!$B110)),"",INDEX(Data!O:O,Report!$B110)) -> 10 | K110: =IF(ISERROR(INDEX(Data!Q:Q,Report!$B110)),"",INDEX(Data!Q:Q,Report!$B110)) -> 3.5 | L110: =IF(ISERROR(INDEX(Data!R:R,Report!$B110)),"",INDEX(Data!R:R,Report!$B110)) -> 0 | M110: =IF(ISERROR(INDEX(Data!S:S,Report!$B110)),"",INDEX(Data!S:S,Report!$B110)) -> 0 | N110: =IF(ISERROR(INDEX(Data!T:T,Report!$B110)),"",INDEX(Data!T:T,Report!$B110)) -> 0 | O110: =IF(ISERROR(INDEX(Data!U:U,Report!$B110)),"",INDEX(Data!U:U,Report!$B110)) -> 0 | P110: =IF(ISERROR(INDEX(Data!V:V,Report!$B110)),"",INDEX(Data!V:V,Report!$B110)) -> 0 | R110: |
A111: 107 | B111: =IF(ISERROR(MATCH(A111,Data!A:A,0)),"",MATCH(A111,Data!A:A,0)) ->  | C111: =IF(ISERROR(INDEX(Data!I:I,Report!$B111)),"",INDEX(Data!I:I,Report!$B111)) ->  | D111: =IF(ISERROR(INDEX(Data!J:J,Report!$B111)),"",INDEX(Data!J:J,Report!$B111)) ->  | E111: =IF(ISERROR(INDEX(Data!K:K,Report!$B111)),"",INDEX(Data!K:K,Report!$B111)) ->  | F111: =IF(ISERROR(INDEX(Data!L:L,Report!$B111)),"",INDEX(Data!L:L,Report!$B111)) ->  | H111: =IF(ISERROR(INDEX(Data!N:N,Report!$B111)),"",INDEX(Data!N:N,Report!$B111)) ->  | I111: =IF(ISERROR(INDEX(Data!P:P,Report!$B111)),"",INDEX(Data!P:P,Report!$B111)) ->  | J111: =IF(ISERROR(INDEX(Data!O:O,Report!$B111)),"",INDEX(Data!O:O,Report!$B111)) ->  | K111: =IF(ISERROR(INDEX(Data!Q:Q,Report!$B111)),"",INDEX(Data!Q:Q,Report!$B111)) ->  | L111: =IF(ISERROR(INDEX(Data!R:R,Report!$B111)),"",INDEX(Data!R:R,Report!$B111)) ->  | M111: =IF(ISERROR(INDEX(Data!S:S,Report!$B111)),"",INDEX(Data!S:S,Report!$B111)) ->  | N111: =IF(ISERROR(INDEX(Data!T:T,Report!$B111)),"",INDEX(Data!T:T,Report!$B111)) ->  | O111: =IF(ISERROR(INDEX(Data!U:U,Report!$B111)),"",INDEX(Data!U:U,Report!$B111)) ->  | P111: =IF(ISERROR(INDEX(Data!V:V,Report!$B111)),"",INDEX(Data!V:V,Report!$B111)) -> 
A112: 108 | B112: =IF(ISERROR(MATCH(A112,Data!A:A,0)),"",MATCH(A112,Data!A:A,0)) ->  | C112: =IF(ISERROR(INDEX(Data!I:I,Report!$B112)),"",INDEX(Data!I:I,Report!$B112)) ->  | D112: =IF(ISERROR(INDEX(Data!J:J,Report!$B112)),"",INDEX(Data!J:J,Report!$B112)) ->  | E112: =IF(ISERROR(INDEX(Data!K:K,Report!$B112)),"",INDEX(Data!K:K,Report!$B112)) ->  | F112: =IF(ISERROR(INDEX(Data!L:L,Report!$B112)),"",INDEX(Data!L:L,Report!$B112)) ->  | H112: =IF(ISERROR(INDEX(Data!N:N,Report!$B112)),"",INDEX(Data!N:N,Report!$B112)) ->  | I112: =IF(ISERROR(INDEX(Data!P:P,Report!$B112)),"",INDEX(Data!P:P,Report!$B112)) ->  | J112: =IF(ISERROR(INDEX(Data!O:O,Report!$B112)),"",INDEX(Data!O:O,Report!$B112)) ->  | K112: =IF(ISERROR(INDEX(Data!Q:Q,Report!$B112)),"",INDEX(Data!Q:Q,Report!$B112)) ->  | L112: =IF(ISERROR(INDEX(Data!R:R,Report!$B112)),"",INDEX(Data!R:R,Report!$B112)) ->  | M112: =IF(ISERROR(INDEX(Data!S:S,Report!$B112)),"",INDEX(Data!S:S,Report!$B112)) ->  | N112: =IF(ISERROR(INDEX(Data!T:T,Report!$B112)),"",INDEX(Data!T:T,Report!$B112)) ->  | O112: =IF(ISERROR(INDEX(Data!U:U,Report!$B112)),"",INDEX(Data!U:U,Report!$B112)) ->  | P112: =IF(ISERROR(INDEX(Data!V:V,Report!$B112)),"",INDEX(Data!V:V,Report!$B112)) -> 
A113: 109 | B113: =IF(ISERROR(MATCH(A113,Data!A:A,0)),"",MATCH(A113,Data!A:A,0)) ->  | C113: =IF(ISERROR(INDEX(Data!I:I,Report!$B113)),"",INDEX(Data!I:I,Report!$B113)) ->  | D113: =IF(ISERROR(INDEX(Data!J:J,Report!$B113)),"",INDEX(Data!J:J,Report!$B113)) ->  | E113: =IF(ISERROR(INDEX(Data!K:K,Report!$B113)),"",INDEX(Data!K:K,Report!$B113)) ->  | F113: =IF(ISERROR(INDEX(Data!L:L,Report!$B113)),"",INDEX(Data!L:L,Report!$B113)) ->  | H113: =IF(ISERROR(INDEX(Data!N:N,Report!$B113)),"",INDEX(Data!N:N,Report!$B113)) ->  | I113: =IF(ISERROR(INDEX(Data!P:P,Report!$B113)),"",INDEX(Data!P:P,Report!$B113)) ->  | J113: =IF(ISERROR(INDEX(Data!O:O,Report!$B113)),"",INDEX(Data!O:O,Report!$B113)) ->  | K113: =IF(ISERROR(INDEX(Data!Q:Q,Report!$B113)),"",INDEX(Data!Q:Q,Report!$B113)) ->  | L113: =IF(ISERROR(INDEX(Data!R:R,Report!$B113)),"",INDEX(Data!R:R,Report!$B113)) ->  | M113: =IF(ISERROR(INDEX(Data!S:S,Report!$B113)),"",INDEX(Data!S:S,Report!$B113)) ->  | N113: =IF(ISERROR(INDEX(Data!T:T,Report!$B113)),"",INDEX(Data!T:T,Report!$B113)) ->  | O113: =IF(ISERROR(INDEX(Data!U:U,Report!$B113)),"",INDEX(Data!U:U,Report!$B113)) ->  | P113: =IF(ISERROR(INDEX(Data!V:V,Report!$B113)),"",INDEX(Data!V:V,Report!$B113)) -> 
A114: 110 | B114: =IF(ISERROR(MATCH(A114,Data!A:A,0)),"",MATCH(A114,Data!A:A,0)) -> 57 | C114: =IF(ISERROR(INDEX(Data!I:I,Report!$B114)),"",INDEX(Data!I:I,Report!$B114)) -> 00:34:06 | D114: =IF(ISERROR(INDEX(Data!J:J,Report!$B114)),"",INDEX(Data!J:J,Report!$B114)) -> Game against Boomer at level 2.0 Single point data: | E114: =IF(ISERROR(INDEX(Data!K:K,Report!$B114)),"",INDEX(Data!K:K,Report!$B114)) -> Boomer's point | F114: =IF(ISERROR(INDEX(Data!L:L,Report!$B114)),"",INDEX(Data!L:L,Report!$B114)) -> New Point | H114: =IF(ISERROR(INDEX(Data!N:N,Report!$B114)),"",INDEX(Data!N:N,Report!$B114)) -> 1 | I114: =IF(ISERROR(INDEX(Data!P:P,Report!$B114)),"",INDEX(Data!P:P,Report!$B114)) -> Serve | J114: =IF(ISERROR(INDEX(Data!O:O,Report!$B114)),"",INDEX(Data!O:O,Report!$B114)) -> 5 | K114: =IF(ISERROR(INDEX(Data!Q:Q,Report!$B114)),"",INDEX(Data!Q:Q,Report!$B114)) -> 2 | L114: =IF(ISERROR(INDEX(Data!R:R,Report!$B114)),"",INDEX(Data!R:R,Report!$B114)) -> 22 | M114: =IF(ISERROR(INDEX(Data!S:S,Report!$B114)),"",INDEX(Data!S:S,Report!$B114)) -> 8 | N114: =IF(ISERROR(INDEX(Data!T:T,Report!$B114)),"",INDEX(Data!T:T,Report!$B114)) -> 3.9 | O114: =IF(ISERROR(INDEX(Data!U:U,Report!$B114)),"",INDEX(Data!U:U,Report!$B114)) -> 46 | P114: =IF(ISERROR(INDEX(Data!V:V,Report!$B114)),"",INDEX(Data!V:V,Report!$B114)) -> 3.7 | R114: | | S114: ||||
A115: 111 | B115: =IF(ISERROR(MATCH(A115,Data!A:A,0)),"",MATCH(A115,Data!A:A,0)) ->  | C115: =IF(ISERROR(INDEX(Data!I:I,Report!$B115)),"",INDEX(Data!I:I,Report!$B115)) ->  | D115: =IF(ISERROR(INDEX(Data!J:J,Report!$B115)),"",INDEX(Data!J:J,Report!$B115)) ->  | E115: =IF(ISERROR(INDEX(Data!K:K,Report!$B115)),"",INDEX(Data!K:K,Report!$B115)) ->  | F115: =IF(ISERROR(INDEX(Data!L:L,Report!$B115)),"",INDEX(Data!L:L,Report!$B115)) ->  | H115: =IF(ISERROR(INDEX(Data!N:N,Report!$B115)),"",INDEX(Data!N:N,Report!$B115)) ->  | I115: =IF(ISERROR(INDEX(Data!P:P,Report!$B115)),"",INDEX(Data!P:P,Report!$B115)) ->  | J115: =IF(ISERROR(INDEX(Data!O:O,Report!$B115)),"",INDEX(Data!O:O,Report!$B115)) ->  | K115: =IF(ISERROR(INDEX(Data!Q:Q,Report!$B115)),"",INDEX(Data!Q:Q,Report!$B115)) ->  | L115: =IF(ISERROR(INDEX(Data!R:R,Report!$B115)),"",INDEX(Data!R:R,Report!$B115)) ->  | M115: =IF(ISERROR(INDEX(Data!S:S,Report!$B115)),"",INDEX(Data!S:S,Report!$B115)) ->  | N115: =IF(ISERROR(INDEX(Data!T:T,Report!$B115)),"",INDEX(Data!T:T,Report!$B115)) ->  | O115: =IF(ISERROR(INDEX(Data!U:U,Report!$B115)),"",INDEX(Data!U:U,Report!$B115)) ->  | P115: =IF(ISERROR(INDEX(Data!V:V,Report!$B115)),"",INDEX(Data!V:V,Report!$B115)) -> 
A116: 112 | B116: =IF(ISERROR(MATCH(A116,Data!A:A,0)),"",MATCH(A116,Data!A:A,0)) ->  | C116: =IF(ISERROR(INDEX(Data!I:I,Report!$B116)),"",INDEX(Data!I:I,Report!$B116)) ->  | D116: =IF(ISERROR(INDEX(Data!J:J,Report!$B116)),"",INDEX(Data!J:J,Report!$B116)) ->  | E116: =IF(ISERROR(INDEX(Data!K:K,Report!$B116)),"",INDEX(Data!K:K,Report!$B116)) ->  | F116: =IF(ISERROR(INDEX(Data!L:L,Report!$B116)),"",INDEX(Data!L:L,Report!$B116)) ->  | H116: =IF(ISERROR(INDEX(Data!N:N,Report!$B116)),"",INDEX(Data!N:N,Report!$B116)) ->  | I116: =IF(ISERROR(INDEX(Data!P:P,Report!$B116)),"",INDEX(Data!P:P,Report!$B116)) ->  | J116: =IF(ISERROR(INDEX(Data!O:O,Report!$B116)),"",INDEX(Data!O:O,Report!$B116)) ->  | K116: =IF(ISERROR(INDEX(Data!Q:Q,Report!$B116)),"",INDEX(Data!Q:Q,Report!$B116)) ->  | L116: =IF(ISERROR(INDEX(Data!R:R,Report!$B116)),"",INDEX(Data!R:R,Report!$B116)) ->  | M116: =IF(ISERROR(INDEX(Data!S:S,Report!$B116)),"",INDEX(Data!S:S,Report!$B116)) ->  | N116: =IF(ISERROR(INDEX(Data!T:T,Report!$B116)),"",INDEX(Data!T:T,Report!$B116)) ->  | O116: =IF(ISERROR(INDEX(Data!U:U,Report!$B116)),"",INDEX(Data!U:U,Report!$B116)) ->  | P116: =IF(ISERROR(INDEX(Data!V:V,Report!$B116)),"",INDEX(Data!V:V,Report!$B116)) -> 
A117: 113 | B117: =IF(ISERROR(MATCH(A117,Data!A:A,0)),"",MATCH(A117,Data!A:A,0)) ->  | C117: =IF(ISERROR(INDEX(Data!I:I,Report!$B117)),"",INDEX(Data!I:I,Report!$B117)) ->  | D117: =IF(ISERROR(INDEX(Data!J:J,Report!$B117)),"",INDEX(Data!J:J,Report!$B117)) ->  | E117: =IF(ISERROR(INDEX(Data!K:K,Report!$B117)),"",INDEX(Data!K:K,Report!$B117)) ->  | F117: =IF(ISERROR(INDEX(Data!L:L,Report!$B117)),"",INDEX(Data!L:L,Report!$B117)) ->  | H117: =IF(ISERROR(INDEX(Data!N:N,Report!$B117)),"",INDEX(Data!N:N,Report!$B117)) ->  | I117: =IF(ISERROR(INDEX(Data!P:P,Report!$B117)),"",INDEX(Data!P:P,Report!$B117)) ->  | J117: =IF(ISERROR(INDEX(Data!O:O,Report!$B117)),"",INDEX(Data!O:O,Report!$B117)) ->  | K117: =IF(ISERROR(INDEX(Data!Q:Q,Report!$B117)),"",INDEX(Data!Q:Q,Report!$B117)) ->  | L117: =IF(ISERROR(INDEX(Data!R:R,Report!$B117)),"",INDEX(Data!R:R,Report!$B117)) ->  | M117: =IF(ISERROR(INDEX(Data!S:S,Report!$B117)),"",INDEX(Data!S:S,Report!$B117)) ->  | N117: =IF(ISERROR(INDEX(Data!T:T,Report!$B117)),"",INDEX(Data!T:T,Report!$B117)) ->  | O117: =IF(ISERROR(INDEX(Data!U:U,Report!$B117)),"",INDEX(Data!U:U,Report!$B117)) ->  | P117: =IF(ISERROR(INDEX(Data!V:V,Report!$B117)),"",INDEX(Data!V:V,Report!$B117)) -> 
A118: 114 | B118: =IF(ISERROR(MATCH(A118,Data!A:A,0)),"",MATCH(A118,Data!A:A,0)) -> 58 | C118: =IF(ISERROR(INDEX(Data!I:I,Report!$B118)),"",INDEX(Data!I:I,Report!$B118)) ->  | D118: =IF(ISERROR(INDEX(Data!J:J,Report!$B118)),"",INDEX(Data!J:J,Report!$B118)) -> User Drill #85 3 line rated mini Tennis | E118: =IF(ISERROR(INDEX(Data!K:K,Report!$B118)),"",INDEX(Data!K:K,Report!$B118)) -> 0 | F118: =IF(ISERROR(INDEX(Data!L:L,Report!$B118)),"",INDEX(Data!L:L,Report!$B118)) -> New Point | H118: =IF(ISERROR(INDEX(Data!N:N,Report!$B118)),"",INDEX(Data!N:N,Report!$B118)) -> 1 | I118: =IF(ISERROR(INDEX(Data!P:P,Report!$B118)),"",INDEX(Data!P:P,Report!$B118)) -> 0 | J118: =IF(ISERROR(INDEX(Data!O:O,Report!$B118)),"",INDEX(Data!O:O,Report!$B118)) -> 11 | K118: =IF(ISERROR(INDEX(Data!Q:Q,Report!$B118)),"",INDEX(Data!Q:Q,Report!$B118)) -> 3.5 | L118: =IF(ISERROR(INDEX(Data!R:R,Report!$B118)),"",INDEX(Data!R:R,Report!$B118)) -> 0 | M118: =IF(ISERROR(INDEX(Data!S:S,Report!$B118)),"",INDEX(Data!S:S,Report!$B118)) -> 0 | N118: =IF(ISERROR(INDEX(Data!T:T,Report!$B118)),"",INDEX(Data!T:T,Report!$B118)) -> 0 | O118: =IF(ISERROR(INDEX(Data!U:U,Report!$B118)),"",INDEX(Data!U:U,Report!$B118)) -> 0 | P118: =IF(ISERROR(INDEX(Data!V:V,Report!$B118)),"",INDEX(Data!V:V,Report!$B118)) -> 0 | R118: |
A119: 115 | B119: =IF(ISERROR(MATCH(A119,Data!A:A,0)),"",MATCH(A119,Data!A:A,0)) ->  | C119: =IF(ISERROR(INDEX(Data!I:I,Report!$B119)),"",INDEX(Data!I:I,Report!$B119)) ->  | D119: =IF(ISERROR(INDEX(Data!J:J,Report!$B119)),"",INDEX(Data!J:J,Report!$B119)) ->  | E119: =IF(ISERROR(INDEX(Data!K:K,Report!$B119)),"",INDEX(Data!K:K,Report!$B119)) ->  | F119: =IF(ISERROR(INDEX(Data!L:L,Report!$B119)),"",INDEX(Data!L:L,Report!$B119)) ->  | H119: =IF(ISERROR(INDEX(Data!N:N,Report!$B119)),"",INDEX(Data!N:N,Report!$B119)) ->  | I119: =IF(ISERROR(INDEX(Data!P:P,Report!$B119)),"",INDEX(Data!P:P,Report!$B119)) ->  | J119: =IF(ISERROR(INDEX(Data!O:O,Report!$B119)),"",INDEX(Data!O:O,Report!$B119)) ->  | K119: =IF(ISERROR(INDEX(Data!Q:Q,Report!$B119)),"",INDEX(Data!Q:Q,Report!$B119)) ->  | L119: =IF(ISERROR(INDEX(Data!R:R,Report!$B119)),"",INDEX(Data!R:R,Report!$B119)) ->  | M119: =IF(ISERROR(INDEX(Data!S:S,Report!$B119)),"",INDEX(Data!S:S,Report!$B119)) ->  | N119: =IF(ISERROR(INDEX(Data!T:T,Report!$B119)),"",INDEX(Data!T:T,Report!$B119)) ->  | O119: =IF(ISERROR(INDEX(Data!U:U,Report!$B119)),"",INDEX(Data!U:U,Report!$B119)) ->  | P119: =IF(ISERROR(INDEX(Data!V:V,Report!$B119)),"",INDEX(Data!V:V,Report!$B119)) -> 
A120: 116 | B120: =IF(ISERROR(MATCH(A120,Data!A:A,0)),"",MATCH(A120,Data!A:A,0)) ->  | C120: =IF(ISERROR(INDEX(Data!I:I,Report!$B120)),"",INDEX(Data!I:I,Report!$B120)) ->  | D120: =IF(ISERROR(INDEX(Data!J:J,Report!$B120)),"",INDEX(Data!J:J,Report!$B120)) ->  | E120: =IF(ISERROR(INDEX(Data!K:K,Report!$B120)),"",INDEX(Data!K:K,Report!$B120)) ->  | F120: =IF(ISERROR(INDEX(Data!L:L,Report!$B120)),"",INDEX(Data!L:L,Report!$B120)) ->  | H120: =IF(ISERROR(INDEX(Data!N:N,Report!$B120)),"",INDEX(Data!N:N,Report!$B120)) ->  | I120: =IF(ISERROR(INDEX(Data!P:P,Report!$B120)),"",INDEX(Data!P:P,Report!$B120)) ->  | J120: =IF(ISERROR(INDEX(Data!O:O,Report!$B120)),"",INDEX(Data!O:O,Report!$B120)) ->  | K120: =IF(ISERROR(INDEX(Data!Q:Q,Report!$B120)),"",INDEX(Data!Q:Q,Report!$B120)) ->  | L120: =IF(ISERROR(INDEX(Data!R:R,Report!$B120)),"",INDEX(Data!R:R,Report!$B120)) ->  | M120: =IF(ISERROR(INDEX(Data!S:S,Report!$B120)),"",INDEX(Data!S:S,Report!$B120)) ->  | N120: =IF(ISERROR(INDEX(Data!T:T,Report!$B120)),"",INDEX(Data!T:T,Report!$B120)) ->  | O120: =IF(ISERROR(INDEX(Data!U:U,Report!$B120)),"",INDEX(Data!U:U,Report!$B120)) ->  | P120: =IF(ISERROR(INDEX(Data!V:V,Report!$B120)),"",INDEX(Data!V:V,Report!$B120)) -> 
A121: 117 | B121: =IF(ISERROR(MATCH(A121,Data!A:A,0)),"",MATCH(A121,Data!A:A,0)) ->  | C121: =IF(ISERROR(INDEX(Data!I:I,Report!$B121)),"",INDEX(Data!I:I,Report!$B121)) ->  | D121: =IF(ISERROR(INDEX(Data!J:J,Report!$B121)),"",INDEX(Data!J:J,Report!$B121)) ->  | E121: =IF(ISERROR(INDEX(Data!K:K,Report!$B121)),"",INDEX(Data!K:K,Report!$B121)) ->  | F121: =IF(ISERROR(INDEX(Data!L:L,Report!$B121)),"",INDEX(Data!L:L,Report!$B121)) ->  | H121: =IF(ISERROR(INDEX(Data!N:N,Report!$B121)),"",INDEX(Data!N:N,Report!$B121)) ->  | I121: =IF(ISERROR(INDEX(Data!P:P,Report!$B121)),"",INDEX(Data!P:P,Report!$B121)) ->  | J121: =IF(ISERROR(INDEX(Data!O:O,Report!$B121)),"",INDEX(Data!O:O,Report!$B121)) ->  | K121: =IF(ISERROR(INDEX(Data!Q:Q,Report!$B121)),"",INDEX(Data!Q:Q,Report!$B121)) ->  | L121: =IF(ISERROR(INDEX(Data!R:R,Report!$B121)),"",INDEX(Data!R:R,Report!$B121)) ->  | M121: =IF(ISERROR(INDEX(Data!S:S,Report!$B121)),"",INDEX(Data!S:S,Report!$B121)) ->  | N121: =IF(ISERROR(INDEX(Data!T:T,Report!$B121)),"",INDEX(Data!T:T,Report!$B121)) ->  | O121: =IF(ISERROR(INDEX(Data!U:U,Report!$B121)),"",INDEX(Data!U:U,Report!$B121)) ->  | P121: =IF(ISERROR(INDEX(Data!V:V,Report!$B121)),"",INDEX(Data!V:V,Report!$B121)) -> 
A122: 118 | B122: =IF(ISERROR(MATCH(A122,Data!A:A,0)),"",MATCH(A122,Data!A:A,0)) -> 59 | C122: =IF(ISERROR(INDEX(Data!I:I,Report!$B122)),"",INDEX(Data!I:I,Report!$B122)) -> 04:35:48 | D122: =IF(ISERROR(INDEX(Data!J:J,Report!$B122)),"",INDEX(Data!J:J,Report!$B122)) -> Game against Boomer at level 3.5 Single point data: | E122: =IF(ISERROR(INDEX(Data!K:K,Report!$B122)),"",INDEX(Data!K:K,Report!$B122)) -> Boomer's point | F122: =IF(ISERROR(INDEX(Data!L:L,Report!$B122)),"",INDEX(Data!L:L,Report!$B122)) -> New Point | H122: =IF(ISERROR(INDEX(Data!N:N,Report!$B122)),"",INDEX(Data!N:N,Report!$B122)) -> 1 | I122: =IF(ISERROR(INDEX(Data!P:P,Report!$B122)),"",INDEX(Data!P:P,Report!$B122)) -> Serve | J122: =IF(ISERROR(INDEX(Data!O:O,Report!$B122)),"",INDEX(Data!O:O,Report!$B122)) -> 0 | K122: =IF(ISERROR(INDEX(Data!Q:Q,Report!$B122)),"",INDEX(Data!Q:Q,Report!$B122)) -> 3.5 | L122: =IF(ISERROR(INDEX(Data!R:R,Report!$B122)),"",INDEX(Data!R:R,Report!$B122)) -> 0 | M122: =IF(ISERROR(INDEX(Data!S:S,Report!$B122)),"",INDEX(Data!S:S,Report!$B122)) -> 0 | N122: =IF(ISERROR(INDEX(Data!T:T,Report!$B122)),"",INDEX(Data!T:T,Report!$B122)) -> 0 | O122: =IF(ISERROR(INDEX(Data!U:U,Report!$B122)),"",INDEX(Data!U:U,Report!$B122)) -> 0 | P122: =IF(ISERROR(INDEX(Data!V:V,Report!$B122)),"",INDEX(Data!V:V,Report!$B122)) -> 0 | R122: =IF(H122=0,"",IF(ISERROR(REPT(" ",L122) & "|"),"",REPT(" ",L122) & "|")) -> |
A123: 119 | B123: =IF(ISERROR(MATCH(A123,Data!A:A,0)),"",MATCH(A123,Data!A:A,0)) -> 60 | C123: =IF(ISERROR(INDEX(Data!I:I,Report!$B123)),"",INDEX(Data!I:I,Report!$B123)) -> 00:34:06 | D123: =IF(ISERROR(INDEX(Data!J:J,Report!$B123)),"",INDEX(Data!J:J,Report!$B123)) -> Game against Boomer at level 2.0 Single point data: | E123: =IF(ISERROR(INDEX(Data!K:K,Report!$B123)),"",INDEX(Data!K:K,Report!$B123)) -> Boomer's point | F123: =IF(ISERROR(INDEX(Data!L:L,Report!$B123)),"",INDEX(Data!L:L,Report!$B123)) -> 0 | H123: =IF(ISERROR(INDEX(Data!N:N,Report!$B123)),"",INDEX(Data!N:N,Report!$B123)) -> 2 | I123: =IF(ISERROR(INDEX(Data!P:P,Report!$B123)),"",INDEX(Data!P:P,Report!$B123)) -> Topspin | J123: =IF(ISERROR(INDEX(Data!O:O,Report!$B123)),"",INDEX(Data!O:O,Report!$B123)) -> 4 | K123: =IF(ISERROR(INDEX(Data!Q:Q,Report!$B123)),"",INDEX(Data!Q:Q,Report!$B123)) -> 2 | L123: =IF(ISERROR(INDEX(Data!R:R,Report!$B123)),"",INDEX(Data!R:R,Report!$B123)) -> 0 | M123: =IF(ISERROR(INDEX(Data!S:S,Report!$B123)),"",INDEX(Data!S:S,Report!$B123)) -> 0 | N123: =IF(ISERROR(INDEX(Data!T:T,Report!$B123)),"",INDEX(Data!T:T,Report!$B123)) -> 0 | O123: =IF(ISERROR(INDEX(Data!U:U,Report!$B123)),"",INDEX(Data!U:U,Report!$B123)) -> 0 | P123: =IF(ISERROR(INDEX(Data!V:V,Report!$B123)),"",INDEX(Data!V:V,Report!$B123)) -> 0 | R123: =IF(H123=0,"",IF(ISERROR(REPT(" ",L123) & "|"),"",REPT(" ",L123) & "|")) -> |
A124: 120 | B124: =IF(ISERROR(MATCH(A124,Data!A:A,0)),"",MATCH(A124,Data!A:A,0)) -> 61 | C124: =IF(ISERROR(INDEX(Data!I:I,Report!$B124)),"",INDEX(Data!I:I,Report!$B124)) ->  | D124: =IF(ISERROR(INDEX(Data!J:J,Report!$B124)),"",INDEX(Data!J:J,Report!$B124)) -> User Drill #85 3 line rated mini Tennis | E124: =IF(ISERROR(INDEX(Data!K:K,Report!$B124)),"",INDEX(Data!K:K,Report!$B124)) -> 0 | F124: =IF(ISERROR(INDEX(Data!L:L,Report!$B124)),"",INDEX(Data!L:L,Report!$B124)) -> 0 | H124: =IF(ISERROR(INDEX(Data!N:N,Report!$B124)),"",INDEX(Data!N:N,Report!$B124)) -> 2 | I124: =IF(ISERROR(INDEX(Data!P:P,Report!$B124)),"",INDEX(Data!P:P,Report!$B124)) -> 0 | J124: =IF(ISERROR(INDEX(Data!O:O,Report!$B124)),"",INDEX(Data!O:O,Report!$B124)) -> 4 | K124: =IF(ISERROR(INDEX(Data!Q:Q,Report!$B124)),"",INDEX(Data!Q:Q,Report!$B124)) -> 3.5 | L124: =IF(ISERROR(INDEX(Data!R:R,Report!$B124)),"",INDEX(Data!R:R,Report!$B124)) -> 0 | M124: =IF(ISERROR(INDEX(Data!S:S,Report!$B124)),"",INDEX(Data!S:S,Report!$B124)) -> 0 | N124: =IF(ISERROR(INDEX(Data!T:T,Report!$B124)),"",INDEX(Data!T:T,Report!$B124)) -> 0 | O124: =IF(ISERROR(INDEX(Data!U:U,Report!$B124)),"",INDEX(Data!U:U,Report!$B124)) -> 0 | P124: =IF(ISERROR(INDEX(Data!V:V,Report!$B124)),"",INDEX(Data!V:V,Report!$B124)) -> 0 | R124: |
A125: 121 | B125: =IF(ISERROR(MATCH(A125,Data!A:A,0)),"",MATCH(A125,Data!A:A,0)) -> 62 | C125: =IF(ISERROR(INDEX(Data!I:I,Report!$B125)),"",INDEX(Data!I:I,Report!$B125)) ->  | D125: =IF(ISERROR(INDEX(Data!J:J,Report!$B125)),"",INDEX(Data!J:J,Report!$B125)) -> User Drill #85 3 line rated mini Tennis | E125: =IF(ISERROR(INDEX(Data!K:K,Report!$B125)),"",INDEX(Data!K:K,Report!$B125)) -> 0 | F125: =IF(ISERROR(INDEX(Data!L:L,Report!$B125)),"",INDEX(Data!L:L,Report!$B125)) -> 0 | H125: =IF(ISERROR(INDEX(Data!N:N,Report!$B125)),"",INDEX(Data!N:N,Report!$B125)) -> 3 | I125: =IF(ISERROR(INDEX(Data!P:P,Report!$B125)),"",INDEX(Data!P:P,Report!$B125)) -> 0 | J125: =IF(ISERROR(INDEX(Data!O:O,Report!$B125)),"",INDEX(Data!O:O,Report!$B125)) -> 10 | K125: =IF(ISERROR(INDEX(Data!Q:Q,Report!$B125)),"",INDEX(Data!Q:Q,Report!$B125)) -> 3.5 | L125: =IF(ISERROR(INDEX(Data!R:R,Report!$B125)),"",INDEX(Data!R:R,Report!$B125)) -> 0 | M125: =IF(ISERROR(INDEX(Data!S:S,Report!$B125)),"",INDEX(Data!S:S,Report!$B125)) -> 0 | N125: =IF(ISERROR(INDEX(Data!T:T,Report!$B125)),"",INDEX(Data!T:T,Report!$B125)) -> 0 | O125: =IF(ISERROR(INDEX(Data!U:U,Report!$B125)),"",INDEX(Data!U:U,Report!$B125)) -> 0 | P125: =IF(ISERROR(INDEX(Data!V:V,Report!$B125)),"",INDEX(Data!V:V,Report!$B125)) -> 0 | R125: |
A126: 122 | B126: =IF(ISERROR(MATCH(A126,Data!A:A,0)),"",MATCH(A126,Data!A:A,0)) ->  | C126: =IF(ISERROR(INDEX(Data!I:I,Report!$B126)),"",INDEX(Data!I:I,Report!$B126)) ->  | D126: =IF(ISERROR(INDEX(Data!J:J,Report!$B126)),"",INDEX(Data!J:J,Report!$B126)) ->  | E126: =IF(ISERROR(INDEX(Data!K:K,Report!$B126)),"",INDEX(Data!K:K,Report!$B126)) ->  | F126: =IF(ISERROR(INDEX(Data!L:L,Report!$B126)),"",INDEX(Data!L:L,Report!$B126)) ->  | H126: =IF(ISERROR(INDEX(Data!N:N,Report!$B126)),"",INDEX(Data!N:N,Report!$B126)) ->  | I126: =IF(ISERROR(INDEX(Data!P:P,Report!$B126)),"",INDEX(Data!P:P,Report!$B126)) ->  | J126: =IF(ISERROR(INDEX(Data!O:O,Report!$B126)),"",INDEX(Data!O:O,Report!$B126)) ->  | K126: =IF(ISERROR(INDEX(Data!Q:Q,Report!$B126)),"",INDEX(Data!Q:Q,Report!$B126)) ->  | L126: =IF(ISERROR(INDEX(Data!R:R,Report!$B126)),"",INDEX(Data!R:R,Report!$B126)) ->  | M126: =IF(ISERROR(INDEX(Data!S:S,Report!$B126)),"",INDEX(Data!S:S,Report!$B126)) ->  | N126: =IF(ISERROR(INDEX(Data!T:T,Report!$B126)),"",INDEX(Data!T:T,Report!$B126)) ->  | O126: =IF(ISERROR(INDEX(Data!U:U,Report!$B126)),"",INDEX(Data!U:U,Report!$B126)) ->  | P126: =IF(ISERROR(INDEX(Data!V:V,Report!$B126)),"",INDEX(Data!V:V,Report!$B126)) -> 
A127: 123 | B127: =IF(ISERROR(MATCH(A127,Data!A:A,0)),"",MATCH(A127,Data!A:A,0)) ->  | C127: =IF(ISERROR(INDEX(Data!I:I,Report!$B127)),"",INDEX(Data!I:I,Report!$B127)) ->  | D127: =IF(ISERROR(INDEX(Data!J:J,Report!$B127)),"",INDEX(Data!J:J,Report!$B127)) ->  | E127: =IF(ISERROR(INDEX(Data!K:K,Report!$B127)),"",INDEX(Data!K:K,Report!$B127)) ->  | F127: =IF(ISERROR(INDEX(Data!L:L,Report!$B127)),"",INDEX(Data!L:L,Report!$B127)) ->  | H127: =IF(ISERROR(INDEX(Data!N:N,Report!$B127)),"",INDEX(Data!N:N,Report!$B127)) ->  | I127: =IF(ISERROR(INDEX(Data!P:P,Report!$B127)),"",INDEX(Data!P:P,Report!$B127)) ->  | J127: =IF(ISERROR(INDEX(Data!O:O,Report!$B127)),"",INDEX(Data!O:O,Report!$B127)) ->  | K127: =IF(ISERROR(INDEX(Data!Q:Q,Report!$B127)),"",INDEX(Data!Q:Q,Report!$B127)) ->  | L127: =IF(ISERROR(INDEX(Data!R:R,Report!$B127)),"",INDEX(Data!R:R,Report!$B127)) ->  | M127: =IF(ISERROR(INDEX(Data!S:S,Report!$B127)),"",INDEX(Data!S:S,Report!$B127)) ->  | N127: =IF(ISERROR(INDEX(Data!T:T,Report!$B127)),"",INDEX(Data!T:T,Report!$B127)) ->  | O127: =IF(ISERROR(INDEX(Data!U:U,Report!$B127)),"",INDEX(Data!U:U,Report!$B127)) ->  | P127: =IF(ISERROR(INDEX(Data!V:V,Report!$B127)),"",INDEX(Data!V:V,Report!$B127)) -> 
A128: 124 | B128: =IF(ISERROR(MATCH(A128,Data!A:A,0)),"",MATCH(A128,Data!A:A,0)) ->  | C128: =IF(ISERROR(INDEX(Data!I:I,Report!$B128)),"",INDEX(Data!I:I,Report!$B128)) ->  | D128: =IF(ISERROR(INDEX(Data!J:J,Report!$B128)),"",INDEX(Data!J:J,Report!$B128)) ->  | E128: =IF(ISERROR(INDEX(Data!K:K,Report!$B128)),"",INDEX(Data!K:K,Report!$B128)) ->  | F128: =IF(ISERROR(INDEX(Data!L:L,Report!$B128)),"",INDEX(Data!L:L,Report!$B128)) ->  | H128: =IF(ISERROR(INDEX(Data!N:N,Report!$B128)),"",INDEX(Data!N:N,Report!$B128)) ->  | I128: =IF(ISERROR(INDEX(Data!P:P,Report!$B128)),"",INDEX(Data!P:P,Report!$B128)) ->  | J128: =IF(ISERROR(INDEX(Data!O:O,Report!$B128)),"",INDEX(Data!O:O,Report!$B128)) ->  | K128: =IF(ISERROR(INDEX(Data!Q:Q,Report!$B128)),"",INDEX(Data!Q:Q,Report!$B128)) ->  | L128: =IF(ISERROR(INDEX(Data!R:R,Report!$B128)),"",INDEX(Data!R:R,Report!$B128)) ->  | M128: =IF(ISERROR(INDEX(Data!S:S,Report!$B128)),"",INDEX(Data!S:S,Report!$B128)) ->  | N128: =IF(ISERROR(INDEX(Data!T:T,Report!$B128)),"",INDEX(Data!T:T,Report!$B128)) ->  | O128: =IF(ISERROR(INDEX(Data!U:U,Report!$B128)),"",INDEX(Data!U:U,Report!$B128)) ->  | P128: =IF(ISERROR(INDEX(Data!V:V,Report!$B128)),"",INDEX(Data!V:V,Report!$B128)) -> 
A129: 125 | B129: =IF(ISERROR(MATCH(A129,Data!A:A,0)),"",MATCH(A129,Data!A:A,0)) -> 63 | C129: =IF(ISERROR(INDEX(Data!I:I,Report!$B129)),"",INDEX(Data!I:I,Report!$B129)) -> 04:36:22 | D129: =IF(ISERROR(INDEX(Data!J:J,Report!$B129)),"",INDEX(Data!J:J,Report!$B129)) -> Game against Boomer at level 3.5 Single point data: | E129: =IF(ISERROR(INDEX(Data!K:K,Report!$B129)),"",INDEX(Data!K:K,Report!$B129)) -> Player's point | F129: =IF(ISERROR(INDEX(Data!L:L,Report!$B129)),"",INDEX(Data!L:L,Report!$B129)) -> New Point | H129: =IF(ISERROR(INDEX(Data!N:N,Report!$B129)),"",INDEX(Data!N:N,Report!$B129)) -> 1 | I129: =IF(ISERROR(INDEX(Data!P:P,Report!$B129)),"",INDEX(Data!P:P,Report!$B129)) -> Player Serve | J129: =IF(ISERROR(INDEX(Data!O:O,Report!$B129)),"",INDEX(Data!O:O,Report!$B129)) -> 4 | K129: =IF(ISERROR(INDEX(Data!Q:Q,Report!$B129)),"",INDEX(Data!Q:Q,Report!$B129)) -> 3.5 | L129: =IF(ISERROR(INDEX(Data!R:R,Report!$B129)),"",INDEX(Data!R:R,Report!$B129)) -> 11 | M129: =IF(ISERROR(INDEX(Data!S:S,Report!$B129)),"",INDEX(Data!S:S,Report!$B129)) -> 6 | N129: =IF(ISERROR(INDEX(Data!T:T,Report!$B129)),"",INDEX(Data!T:T,Report!$B129)) -> 2.5 | O129: =IF(ISERROR(INDEX(Data!U:U,Report!$B129)),"",INDEX(Data!U:U,Report!$B129)) -> 96 | P129: =IF(ISERROR(INDEX(Data!V:V,Report!$B129)),"",INDEX(Data!V:V,Report!$B129)) -> 4.3 | R129: | | S129: |||
A130: 126 | B130: =IF(ISERROR(MATCH(A130,Data!A:A,0)),"",MATCH(A130,Data!A:A,0)) ->  | C130: =IF(ISERROR(INDEX(Data!I:I,Report!$B130)),"",INDEX(Data!I:I,Report!$B130)) ->  | D130: =IF(ISERROR(INDEX(Data!J:J,Report!$B130)),"",INDEX(Data!J:J,Report!$B130)) ->  | E130: =IF(ISERROR(INDEX(Data!K:K,Report!$B130)),"",INDEX(Data!K:K,Report!$B130)) ->  | F130: =IF(ISERROR(INDEX(Data!L:L,Report!$B130)),"",INDEX(Data!L:L,Report!$B130)) ->  | H130: =IF(ISERROR(INDEX(Data!N:N,Report!$B130)),"",INDEX(Data!N:N,Report!$B130)) ->  | I130: =IF(ISERROR(INDEX(Data!P:P,Report!$B130)),"",INDEX(Data!P:P,Report!$B130)) ->  | J130: =IF(ISERROR(INDEX(Data!O:O,Report!$B130)),"",INDEX(Data!O:O,Report!$B130)) ->  | K130: =IF(ISERROR(INDEX(Data!Q:Q,Report!$B130)),"",INDEX(Data!Q:Q,Report!$B130)) ->  | L130: =IF(ISERROR(INDEX(Data!R:R,Report!$B130)),"",INDEX(Data!R:R,Report!$B130)) ->  | M130: =IF(ISERROR(INDEX(Data!S:S,Report!$B130)),"",INDEX(Data!S:S,Report!$B130)) ->  | N130: =IF(ISERROR(INDEX(Data!T:T,Report!$B130)),"",INDEX(Data!T:T,Report!$B130)) ->  | O130: =IF(ISERROR(INDEX(Data!U:U,Report!$B130)),"",INDEX(Data!U:U,Report!$B130)) ->  | P130: =IF(ISERROR(INDEX(Data!V:V,Report!$B130)),"",INDEX(Data!V:V,Report!$B130)) -> 
A131: 127 | B131: =IF(ISERROR(MATCH(A131,Data!A:A,0)),"",MATCH(A131,Data!A:A,0)) ->  | C131: =IF(ISERROR(INDEX(Data!I:I,Report!$B131)),"",INDEX(Data!I:I,Report!$B131)) ->  | D131: =IF(ISERROR(INDEX(Data!J:J,Report!$B131)),"",INDEX(Data!J:J,Report!$B131)) ->  | E131: =IF(ISERROR(INDEX(Data!K:K,Report!$B131)),"",INDEX(Data!K:K,Report!$B131)) ->  | F131: =IF(ISERROR(INDEX(Data!L:L,Report!$B131)),"",INDEX(Data!L:L,Report!$B131)) ->  | H131: =IF(ISERROR(INDEX(Data!N:N,Report!$B131)),"",INDEX(Data!N:N,Report!$B131)) ->  | I131: =IF(ISERROR(INDEX(Data!P:P,Report!$B131)),"",INDEX(Data!P:P,Report!$B131)) ->  | J131: =IF(ISERROR(INDEX(Data!O:O,Report!$B131)),"",INDEX(Data!O:O,Report!$B131)) ->  | K131: =IF(ISERROR(INDEX(Data!Q:Q,Report!$B131)),"",INDEX(Data!Q:Q,Report!$B131)) ->  | L131: =IF(ISERROR(INDEX(Data!R:R,Report!$B131)),"",INDEX(Data!R:R,Report!$B131)) ->  | M131: =IF(ISERROR(INDEX(Data!S:S,Report!$B131)),"",INDEX(Data!S:S,Report!$B131)) ->  | N131: =IF(ISERROR(INDEX(Data!T:T,Report!$B131)),"",INDEX(Data!T:T,Report!$B131)) ->  | O131: =IF(ISERROR(INDEX(Data!U:U,Report!$B131)),"",INDEX(Data!U:U,Report!$B131)) ->  | P131: =IF(ISERROR(INDEX(Data!V:V,Report!$B131)),"",INDEX(Data!V:V,Report!$B131)) -> 
A132: 128 | B132: =IF(ISERROR(MATCH(A132,Data!A:A,0)),"",MATCH(A132,Data!A:A,0)) ->  | C132: =IF(ISERROR(INDEX(Data!I:I,Report!$B132)),"",INDEX(Data!I:I,Report!$B132)) ->  | D132: =IF(ISERROR(INDEX(Data!J:J,Report!$B132)),"",INDEX(Data!J:J,Report!$B132)) ->  | E132: =IF(ISERROR(INDEX(Data!K:K,Report!$B132)),"",INDEX(Data!K:K,Report!$B132)) ->  | F132: =IF(ISERROR(INDEX(Data!L:L,Report!$B132)),"",INDEX(Data!L:L,Report!$B132)) ->  | H132: =IF(ISERROR(INDEX(Data!N:N,Report!$B132)),"",INDEX(Data!N:N,Report!$B132)) ->  | I132: =IF(ISERROR(INDEX(Data!P:P,Report!$B132)),"",INDEX(Data!P:P,Report!$B132)) ->  | J132: =IF(ISERROR(INDEX(Data!O:O,Report!$B132)),"",INDEX(Data!O:O,Report!$B132)) ->  | K132: =IF(ISERROR(INDEX(Data!Q:Q,Report!$B132)),"",INDEX(Data!Q:Q,Report!$B132)) ->  | L132: =IF(ISERROR(INDEX(Data!R:R,Report!$B132)),"",INDEX(Data!R:R,Report!$B132)) ->  | M132: =IF(ISERROR(INDEX(Data!S:S,Report!$B132)),"",INDEX(Data!S:S,Report!$B132)) ->  | N132: =IF(ISERROR(INDEX(Data!T:T,Report!$B132)),"",INDEX(Data!T:T,Report!$B132)) ->  | O132: =IF(ISERROR(INDEX(Data!U:U,Report!$B132)),"",INDEX(Data!U:U,Report!$B132)) ->  | P132: =IF(ISERROR(INDEX(Data!V:V,Report!$B132)),"",INDEX(Data!V:V,Report!$B132)) -> 
A133: 129 | B133: =IF(ISERROR(MATCH(A133,Data!A:A,0)),"",MATCH(A133,Data!A:A,0)) -> 64 | C133: =IF(ISERROR(INDEX(Data!I:I,Report!$B133)),"",INDEX(Data!I:I,Report!$B133)) ->  | D133: =IF(ISERROR(INDEX(Data!J:J,Report!$B133)),"",INDEX(Data!J:J,Report!$B133)) -> User Drill #85 3 line rated mini Tennis | E133: =IF(ISERROR(INDEX(Data!K:K,Report!$B133)),"",INDEX(Data!K:K,Report!$B133)) -> 0 | F133: =IF(ISERROR(INDEX(Data!L:L,Report!$B133)),"",INDEX(Data!L:L,Report!$B133)) -> New Point | H133: =IF(ISERROR(INDEX(Data!N:N,Report!$B133)),"",INDEX(Data!N:N,Report!$B133)) -> 1 | I133: =IF(ISERROR(INDEX(Data!P:P,Report!$B133)),"",INDEX(Data!P:P,Report!$B133)) -> 0 | J133: =IF(ISERROR(INDEX(Data!O:O,Report!$B133)),"",INDEX(Data!O:O,Report!$B133)) -> 11 | K133: =IF(ISERROR(INDEX(Data!Q:Q,Report!$B133)),"",INDEX(Data!Q:Q,Report!$B133)) -> 3.5 | L133: =IF(ISERROR(INDEX(Data!R:R,Report!$B133)),"",INDEX(Data!R:R,Report!$B133)) -> 0 | M133: =IF(ISERROR(INDEX(Data!S:S,Report!$B133)),"",INDEX(Data!S:S,Report!$B133)) -> 0 | N133: =IF(ISERROR(INDEX(Data!T:T,Report!$B133)),"",INDEX(Data!T:T,Report!$B133)) -> 0 | O133: =IF(ISERROR(INDEX(Data!U:U,Report!$B133)),"",INDEX(Data!U:U,Report!$B133)) -> 0 | P133: =IF(ISERROR(INDEX(Data!V:V,Report!$B133)),"",INDEX(Data!V:V,Report!$B133)) -> 0 | R133: |
A134: 130 | B134: =IF(ISERROR(MATCH(A134,Data!A:A,0)),"",MATCH(A134,Data!A:A,0)) ->  | C134: =IF(ISERROR(INDEX(Data!I:I,Report!$B134)),"",INDEX(Data!I:I,Report!$B134)) ->  | D134: =IF(ISERROR(INDEX(Data!J:J,Report!$B134)),"",INDEX(Data!J:J,Report!$B134)) ->  | E134: =IF(ISERROR(INDEX(Data!K:K,Report!$B134)),"",INDEX(Data!K:K,Report!$B134)) ->  | F134: =IF(ISERROR(INDEX(Data!L:L,Report!$B134)),"",INDEX(Data!L:L,Report!$B134)) ->  | H134: =IF(ISERROR(INDEX(Data!N:N,Report!$B134)),"",INDEX(Data!N:N,Report!$B134)) ->  | I134: =IF(ISERROR(INDEX(Data!P:P,Report!$B134)),"",INDEX(Data!P:P,Report!$B134)) ->  | J134: =IF(ISERROR(INDEX(Data!O:O,Report!$B134)),"",INDEX(Data!O:O,Report!$B134)) ->  | K134: =IF(ISERROR(INDEX(Data!Q:Q,Report!$B134)),"",INDEX(Data!Q:Q,Report!$B134)) ->  | L134: =IF(ISERROR(INDEX(Data!R:R,Report!$B134)),"",INDEX(Data!R:R,Report!$B134)) ->  | M134: =IF(ISERROR(INDEX(Data!S:S,Report!$B134)),"",INDEX(Data!S:S,Report!$B134)) ->  | N134: =IF(ISERROR(INDEX(Data!T:T,Report!$B134)),"",INDEX(Data!T:T,Report!$B134)) ->  | O134: =IF(ISERROR(INDEX(Data!U:U,Report!$B134)),"",INDEX(Data!U:U,Report!$B134)) ->  | P134: =IF(ISERROR(INDEX(Data!V:V,Report!$B134)),"",INDEX(Data!V:V,Report!$B134)) ->  | S134: =IF(ISERROR(REPT("|",M134/2)),"",REPT("|",M134/2)) -> 
A135: =A134+1 -> 131 | B135: =IF(ISERROR(MATCH(A135,Data!A:A,0)),"",MATCH(A135,Data!A:A,0)) ->  | C135: =IF(ISERROR(INDEX(Data!I:I,Report!$B135)),"",INDEX(Data!I:I,Report!$B135)) ->  | D135: =IF(ISERROR(INDEX(Data!J:J,Report!$B135)),"",INDEX(Data!J:J,Report!$B135)) ->  | E135: =IF(ISERROR(INDEX(Data!K:K,Report!$B135)),"",INDEX(Data!K:K,Report!$B135)) ->  | F135: =IF(ISERROR(INDEX(Data!L:L,Report!$B135)),"",INDEX(Data!L:L,Report!$B135)) ->  | H135: =IF(ISERROR(INDEX(Data!N:N,Report!$B135)),"",INDEX(Data!N:N,Report!$B135)) ->  | I135: Game against Boomer at level 3.5 Single point data: | J135: =IF(ISERROR(INDEX(Data!O:O,Report!$B135)),"",INDEX(Data!O:O,Report!$B135)) ->  | M135: =IF(ISERROR(INDEX(Data!S:S,Report!$B135)),"",INDEX(Data!S:S,Report!$B135)) ->  | N135: =IF(ISERROR(INDEX(Data!T:T,Report!$B135)),"",INDEX(Data!T:T,Report!$B135)) ->  | O135: =IF(ISERROR(INDEX(Data!U:U,Report!$B135)),"",INDEX(Data!U:U,Report!$B135)) ->  | P135: =IF(ISERROR(INDEX(Data!V:V,Report!$B135)),"",INDEX(Data!V:V,Report!$B135)) ->  | R135: |
A136: 132 | B136: =IF(ISERROR(MATCH(A136,Data!A:A,0)),"",MATCH(A136,Data!A:A,0)) ->  | C136: =IF(ISERROR(INDEX(Data!I:I,Report!$B136)),"",INDEX(Data!I:I,Report!$B136)) ->  | D136: =IF(ISERROR(INDEX(Data!J:J,Report!$B136)),"",INDEX(Data!J:J,Report!$B136)) ->  | E136: =IF(ISERROR(INDEX(Data!K:K,Report!$B136)),"",INDEX(Data!K:K,Report!$B136)) ->  | F136: =IF(ISERROR(INDEX(Data!L:L,Report!$B136)),"",INDEX(Data!L:L,Report!$B136)) ->  | H136: =IF(ISERROR(INDEX(Data!N:N,Report!$B136)),"",INDEX(Data!N:N,Report!$B136)) ->  | I136: Boomer serving | J136: =IF(ISERROR(INDEX(Data!O:O,Report!$B136)),"",INDEX(Data!O:O,Report!$B136)) ->  | K136: =IF(ISERROR(INDEX(Data!Q:Q,Report!$B135)),"",INDEX(Data!Q:Q,Report!$B135)) ->  | M136: =IF(ISERROR(INDEX(Data!S:S,Report!$B136)),"",INDEX(Data!S:S,Report!$B136)) ->  | N136: =IF(ISERROR(INDEX(Data!T:T,Report!$B136)),"",INDEX(Data!T:T,Report!$B136)) ->  | O136: =IF(ISERROR(INDEX(Data!U:U,Report!$B136)),"",INDEX(Data!U:U,Report!$B136)) ->  | P136: =IF(ISERROR(INDEX(Data!V:V,Report!$B136)),"",INDEX(Data!V:V,Report!$B136)) ->  | R136: |
A137: 133 | B137: =IF(ISERROR(MATCH(A137,Data!A:A,0)),"",MATCH(A137,Data!A:A,0)) -> 65 | C137: =IF(ISERROR(INDEX(Data!I:I,Report!$B137)),"",INDEX(Data!I:I,Report!$B137)) -> 00:34:26 | D137: =IF(ISERROR(INDEX(Data!J:J,Report!$B137)),"",INDEX(Data!J:J,Report!$B137)) -> Game against Boomer at level 2.0 Single point data: | E137: =IF(ISERROR(INDEX(Data!K:K,Report!$B137)),"",INDEX(Data!K:K,Report!$B137)) -> Player's point | F137: =IF(ISERROR(INDEX(Data!L:L,Report!$B137)),"",INDEX(Data!L:L,Report!$B137)) -> New Point | G137: =IF(ISERROR(INDEX(Data!M:M,Report!$B137)),"",INDEX(Data!M:M,Report!$B137)) -> Boomer serving | H137: =IF(ISERROR(INDEX(Data!N:N,Report!$B137)),"",INDEX(Data!N:N,Report!$B137)) -> 1 | I137: =IF(ISERROR(INDEX(Data!P:P,Report!$B137)),"",INDEX(Data!P:P,Report!$B137)) -> Serve | J137: =IF(ISERROR(INDEX(Data!O:O,Report!$B137)),"",INDEX(Data!O:O,Report!$B137)) -> 0 | K137: =IF(ISERROR(INDEX(Data!Q:Q,Report!$B137)),"",INDEX(Data!Q:Q,Report!$B137)) -> 2 | L137: =IF(ISERROR(INDEX(Data!R:R,Report!$B137)),"",INDEX(Data!R:R,Report!$B137)) -> 25 | M137: =IF(ISERROR(INDEX(Data!S:S,Report!$B137)),"",INDEX(Data!S:S,Report!$B137)) -> 25 | N137: =IF(ISERROR(INDEX(Data!T:T,Report!$B137)),"",INDEX(Data!T:T,Report!$B137)) -> 5.3 | O137: =IF(ISERROR(INDEX(Data!U:U,Report!$B137)),"",INDEX(Data!U:U,Report!$B137)) -> 45 | P137: =IF(ISERROR(INDEX(Data!V:V,Report!$B137)),"",INDEX(Data!V:V,Report!$B137)) -> 4.4 | R137: | | S137: ||||||||||||
A138: 134 | B138: =IF(ISERROR(MATCH(A138,Data!A:A,0)),"",MATCH(A138,Data!A:A,0)) -> 66 | C138: =IF(ISERROR(INDEX(Data!I:I,Report!$B138)),"",INDEX(Data!I:I,Report!$B138)) ->  | D138: =IF(ISERROR(INDEX(Data!J:J,Report!$B138)),"",INDEX(Data!J:J,Report!$B138)) -> User Drill #85 3 line rated mini Tennis | E138: =IF(ISERROR(INDEX(Data!K:K,Report!$B138)),"",INDEX(Data!K:K,Report!$B138)) -> 0 | F138: =IF(ISERROR(INDEX(Data!L:L,Report!$B138)),"",INDEX(Data!L:L,Report!$B138)) -> 0 | H138: =IF(ISERROR(INDEX(Data!N:N,Report!$B138)),"",INDEX(Data!N:N,Report!$B138)) -> 2 | I138: =IF(ISERROR(INDEX(Data!P:P,Report!$B138)),"",INDEX(Data!P:P,Report!$B138)) -> 0 | J138: =IF(ISERROR(INDEX(Data!O:O,Report!$B138)),"",INDEX(Data!O:O,Report!$B138)) -> 4 | K138: =IF(ISERROR(INDEX(Data!Q:Q,Report!$B138)),"",INDEX(Data!Q:Q,Report!$B138)) -> 3.5 | L138: =IF(ISERROR(INDEX(Data!R:R,Report!$B138)),"",INDEX(Data!R:R,Report!$B138)) -> 0 | M138: =IF(ISERROR(INDEX(Data!S:S,Report!$B138)),"",INDEX(Data!S:S,Report!$B138)) -> 0 | N138: =IF(ISERROR(INDEX(Data!T:T,Report!$B138)),"",INDEX(Data!T:T,Report!$B138)) -> 0 | O138: =IF(ISERROR(INDEX(Data!U:U,Report!$B138)),"",INDEX(Data!U:U,Report!$B138)) -> 0 | P138: =IF(ISERROR(INDEX(Data!V:V,Report!$B138)),"",INDEX(Data!V:V,Report!$B138)) -> 0 | R138: |
A139: 135 | B139: =IF(ISERROR(MATCH(A139,Data!A:A,0)),"",MATCH(A139,Data!A:A,0)) -> 67 | C139: =IF(ISERROR(INDEX(Data!I:I,Report!$B139)),"",INDEX(Data!I:I,Report!$B139)) -> 00:34:26 | D139: =IF(ISERROR(INDEX(Data!J:J,Report!$B139)),"",INDEX(Data!J:J,Report!$B139)) -> Game against Boomer at level 2.0 Single point data: | E139: =IF(ISERROR(INDEX(Data!K:K,Report!$B139)),"",INDEX(Data!K:K,Report!$B139)) -> Player's point | F139: =IF(ISERROR(INDEX(Data!L:L,Report!$B139)),"",INDEX(Data!L:L,Report!$B139)) -> 0 | H139: =IF(ISERROR(INDEX(Data!N:N,Report!$B139)),"",INDEX(Data!N:N,Report!$B139)) -> 2 | I139: Boomer's point | J139: =IF(ISERROR(INDEX(Data!O:O,Report!$B139)),"",INDEX(Data!O:O,Report!$B139)) -> 5 | K139: =IF(ISERROR(INDEX(Data!Q:Q,Report!$B139)),"",INDEX(Data!Q:Q,Report!$B139)) -> 2 | L139: =IF(ISERROR(INDEX(Data!R:R,Report!$B139)),"",INDEX(Data!R:R,Report!$B139)) -> 29 | M139: =IF(ISERROR(INDEX(Data!S:S,Report!$B139)),"",INDEX(Data!S:S,Report!$B139)) -> 21 | N139: =IF(ISERROR(INDEX(Data!T:T,Report!$B139)),"",INDEX(Data!T:T,Report!$B139)) -> 5.3 | O139: =IF(ISERROR(INDEX(Data!U:U,Report!$B139)),"",INDEX(Data!U:U,Report!$B139)) -> 47 | P139: =IF(ISERROR(INDEX(Data!V:V,Report!$B139)),"",INDEX(Data!V:V,Report!$B139)) -> 4.5 | R139: | | S139: ||||||||||
A140: 136 | B140: =IF(ISERROR(MATCH(A140,Data!A:A,0)),"",MATCH(A140,Data!A:A,0)) -> 68 | C140: =IF(ISERROR(INDEX(Data!I:I,Report!$B140)),"",INDEX(Data!I:I,Report!$B140)) -> 04:36:22 | D140: =IF(ISERROR(INDEX(Data!J:J,Report!$B140)),"",INDEX(Data!J:J,Report!$B140)) -> Game against Boomer at level 3.5 Single point data: | E140: =IF(ISERROR(INDEX(Data!K:K,Report!$B140)),"",INDEX(Data!K:K,Report!$B140)) -> Player's point | F140: =IF(ISERROR(INDEX(Data!L:L,Report!$B140)),"",INDEX(Data!L:L,Report!$B140)) -> 0 | H140: =IF(ISERROR(INDEX(Data!N:N,Report!$B140)),"",INDEX(Data!N:N,Report!$B140)) -> 2 | I140: =IF(ISERROR(INDEX(Data!P:P,Report!$B140)),"",INDEX(Data!P:P,Report!$B140)) -> Topspin | J140: =IF(ISERROR(INDEX(Data!O:O,Report!$B140)),"",INDEX(Data!O:O,Report!$B140)) -> 4 | K140: =IF(ISERROR(INDEX(Data!Q:Q,Report!$B140)),"",INDEX(Data!Q:Q,Report!$B140)) -> 3.5 | L140: =IF(ISERROR(INDEX(Data!R:R,Report!$B140)),"",INDEX(Data!R:R,Report!$B140)) -> 28 | M140: =IF(ISERROR(INDEX(Data!S:S,Report!$B140)),"",INDEX(Data!S:S,Report!$B140)) -> 23 | N140: =IF(ISERROR(INDEX(Data!T:T,Report!$B140)),"",INDEX(Data!T:T,Report!$B140)) -> 5.7 | O140: =IF(ISERROR(INDEX(Data!U:U,Report!$B140)),"",INDEX(Data!U:U,Report!$B140)) -> 43 | P140: =IF(ISERROR(INDEX(Data!V:V,Report!$B140)),"",INDEX(Data!V:V,Report!$B140)) -> 4.5 | R140: | | S140: |||||||||||
A141: 137 | B141: =IF(ISERROR(MATCH(A141,Data!A:A,0)),"",MATCH(A141,Data!A:A,0)) -> 69 | C141: =IF(ISERROR(INDEX(Data!I:I,Report!$B141)),"",INDEX(Data!I:I,Report!$B141)) -> 04:36:22 | D141: =IF(ISERROR(INDEX(Data!J:J,Report!$B141)),"",INDEX(Data!J:J,Report!$B141)) -> Game against Boomer at level 3.5 Single point data: | E141: =IF(ISERROR(INDEX(Data!K:K,Report!$B141)),"",INDEX(Data!K:K,Report!$B141)) -> Player's point | F141: =IF(ISERROR(INDEX(Data!L:L,Report!$B141)),"",INDEX(Data!L:L,Report!$B141)) -> 0 | H141: =IF(ISERROR(INDEX(Data!N:N,Report!$B141)),"",INDEX(Data!N:N,Report!$B141)) -> 3 | I141: =IF(ISERROR(INDEX(Data!P:P,Report!$B141)),"",INDEX(Data!P:P,Report!$B141)) -> Drop Shot | J141: =IF(ISERROR(INDEX(Data!O:O,Report!$B141)),"",INDEX(Data!O:O,Report!$B141)) -> 5 | K141: =IF(ISERROR(INDEX(Data!Q:Q,Report!$B141)),"",INDEX(Data!Q:Q,Report!$B141)) -> 3.5 | L141: =IF(ISERROR(INDEX(Data!R:R,Report!$B141)),"",INDEX(Data!R:R,Report!$B141)) -> 31 | M141: =IF(ISERROR(INDEX(Data!S:S,Report!$B141)),"",INDEX(Data!S:S,Report!$B141)) -> 7 | N141: =IF(ISERROR(INDEX(Data!T:T,Report!$B141)),"",INDEX(Data!T:T,Report!$B141)) -> 5.3 | O141: =IF(ISERROR(INDEX(Data!U:U,Report!$B141)),"",INDEX(Data!U:U,Report!$B141)) -> 41 | P141: =IF(ISERROR(INDEX(Data!V:V,Report!$B141)),"",INDEX(Data!V:V,Report!$B141)) -> 4.2 | R141: | | S141: |||
A142: 138 | B142: =IF(ISERROR(MATCH(A142,Data!A:A,0)),"",MATCH(A142,Data!A:A,0)) -> 70 | C142: =IF(ISERROR(INDEX(Data!I:I,Report!$B142)),"",INDEX(Data!I:I,Report!$B142)) ->  | D142: =IF(ISERROR(INDEX(Data!J:J,Report!$B142)),"",INDEX(Data!J:J,Report!$B142)) -> User Drill #85 3 line rated mini Tennis | E142: =IF(ISERROR(INDEX(Data!K:K,Report!$B142)),"",INDEX(Data!K:K,Report!$B142)) -> 0 | F142: =IF(ISERROR(INDEX(Data!L:L,Report!$B142)),"",INDEX(Data!L:L,Report!$B142)) -> 0 | H142: =IF(ISERROR(INDEX(Data!N:N,Report!$B142)),"",INDEX(Data!N:N,Report!$B142)) -> 3 | I142: =IF(ISERROR(INDEX(Data!P:P,Report!$B142)),"",INDEX(Data!P:P,Report!$B142)) -> 0 | J142: =IF(ISERROR(INDEX(Data!O:O,Report!$B142)),"",INDEX(Data!O:O,Report!$B142)) -> 10 | K142: =IF(ISERROR(INDEX(Data!Q:Q,Report!$B142)),"",INDEX(Data!Q:Q,Report!$B142)) -> 3.5 | L142: =IF(ISERROR(INDEX(Data!R:R,Report!$B142)),"",INDEX(Data!R:R,Report!$B142)) -> 0 | M142: =IF(ISERROR(INDEX(Data!S:S,Report!$B142)),"",INDEX(Data!S:S,Report!$B142)) -> 0 | N142: =IF(ISERROR(INDEX(Data!T:T,Report!$B142)),"",INDEX(Data!T:T,Report!$B142)) -> 0 | O142: =IF(ISERROR(INDEX(Data!U:U,Report!$B142)),"",INDEX(Data!U:U,Report!$B142)) -> 0 | P142: =IF(ISERROR(INDEX(Data!V:V,Report!$B142)),"",INDEX(Data!V:V,Report!$B142)) -> 0 | R142: |
A143: 139 | B143: =IF(ISERROR(MATCH(A143,Data!A:A,0)),"",MATCH(A143,Data!A:A,0)) -> 71 | C143: =IF(ISERROR(INDEX(Data!I:I,Report!$B143)),"",INDEX(Data!I:I,Report!$B143)) -> 04:36:22 | D143: =IF(ISERROR(INDEX(Data!J:J,Report!$B143)),"",INDEX(Data!J:J,Report!$B143)) -> Game against Boomer at level 3.5 Single point data: | E143: =IF(ISERROR(INDEX(Data!K:K,Report!$B143)),"",INDEX(Data!K:K,Report!$B143)) -> Player's point | F143: =IF(ISERROR(INDEX(Data!L:L,Report!$B143)),"",INDEX(Data!L:L,Report!$B143)) -> 0 | H143: =IF(ISERROR(INDEX(Data!N:N,Report!$B143)),"",INDEX(Data!N:N,Report!$B143)) -> 4 | I143: =IF(ISERROR(INDEX(Data!P:P,Report!$B143)),"",INDEX(Data!P:P,Report!$B143)) -> Lob | J143: =IF(ISERROR(INDEX(Data!O:O,Report!$B143)),"",INDEX(Data!O:O,Report!$B143)) -> 3 | K143: =IF(ISERROR(INDEX(Data!Q:Q,Report!$B143)),"",INDEX(Data!Q:Q,Report!$B143)) -> 3.5 | L143: =IF(ISERROR(INDEX(Data!R:R,Report!$B143)),"",INDEX(Data!R:R,Report!$B143)) -> 19 | M143: =IF(ISERROR(INDEX(Data!S:S,Report!$B143)),"",INDEX(Data!S:S,Report!$B143)) -> 17 | N143: =IF(ISERROR(INDEX(Data!T:T,Report!$B143)),"",INDEX(Data!T:T,Report!$B143)) -> 3.2 | O143: =IF(ISERROR(INDEX(Data!U:U,Report!$B143)),"",INDEX(Data!U:U,Report!$B143)) -> 106 | P143: =IF(ISERROR(INDEX(Data!V:V,Report!$B143)),"",INDEX(Data!V:V,Report!$B143)) -> 7 | R143: | | S143: ||||||||
A144: 140 | B144: =IF(ISERROR(MATCH(A144,Data!A:A,0)),"",MATCH(A144,Data!A:A,0)) ->  | C144: =IF(ISERROR(INDEX(Data!I:I,Report!$B144)),"",INDEX(Data!I:I,Report!$B144)) ->  | D144: =IF(ISERROR(INDEX(Data!J:J,Report!$B144)),"",INDEX(Data!J:J,Report!$B144)) ->  | E144: =IF(ISERROR(INDEX(Data!K:K,Report!$B144)),"",INDEX(Data!K:K,Report!$B144)) ->  | F144: =IF(ISERROR(INDEX(Data!L:L,Report!$B144)),"",INDEX(Data!L:L,Report!$B144)) ->  | H144: =IF(ISERROR(INDEX(Data!N:N,Report!$B144)),"",INDEX(Data!N:N,Report!$B144)) ->  | I144: =IF(ISERROR(INDEX(Data!P:P,Report!$B144)),"",INDEX(Data!P:P,Report!$B144)) ->  | J144: =IF(ISERROR(INDEX(Data!O:O,Report!$B144)),"",INDEX(Data!O:O,Report!$B144)) ->  | K144: =IF(ISERROR(INDEX(Data!Q:Q,Report!$B144)),"",INDEX(Data!Q:Q,Report!$B144)) ->  | L144: =IF(ISERROR(INDEX(Data!R:R,Report!$B144)),"",INDEX(Data!R:R,Report!$B144)) ->  | M144: =IF(ISERROR(INDEX(Data!S:S,Report!$B144)),"",INDEX(Data!S:S,Report!$B144)) ->  | N144: =IF(ISERROR(INDEX(Data!T:T,Report!$B144)),"",INDEX(Data!T:T,Report!$B144)) ->  | O144: =IF(ISERROR(INDEX(Data!U:U,Report!$B144)),"",INDEX(Data!U:U,Report!$B144)) ->  | P144: =IF(ISERROR(INDEX(Data!V:V,Report!$B144)),"",INDEX(Data!V:V,Report!$B144)) -> 
A145: 141 | B145: =IF(ISERROR(MATCH(A145,Data!A:A,0)),"",MATCH(A145,Data!A:A,0)) ->  | C145: =IF(ISERROR(INDEX(Data!I:I,Report!$B145)),"",INDEX(Data!I:I,Report!$B145)) ->  | D145: =IF(ISERROR(INDEX(Data!J:J,Report!$B145)),"",INDEX(Data!J:J,Report!$B145)) ->  | E145: =IF(ISERROR(INDEX(Data!K:K,Report!$B145)),"",INDEX(Data!K:K,Report!$B145)) ->  | F145: =IF(ISERROR(INDEX(Data!L:L,Report!$B145)),"",INDEX(Data!L:L,Report!$B145)) ->  | H145: =IF(ISERROR(INDEX(Data!N:N,Report!$B145)),"",INDEX(Data!N:N,Report!$B145)) ->  | I145: =IF(ISERROR(INDEX(Data!P:P,Report!$B145)),"",INDEX(Data!P:P,Report!$B145)) ->  | J145: =IF(ISERROR(INDEX(Data!O:O,Report!$B145)),"",INDEX(Data!O:O,Report!$B145)) ->  | K145: =IF(ISERROR(INDEX(Data!Q:Q,Report!$B145)),"",INDEX(Data!Q:Q,Report!$B145)) ->  | L145: =IF(ISERROR(INDEX(Data!R:R,Report!$B145)),"",INDEX(Data!R:R,Report!$B145)) ->  | M145: =IF(ISERROR(INDEX(Data!S:S,Report!$B145)),"",INDEX(Data!S:S,Report!$B145)) ->  | N145: =IF(ISERROR(INDEX(Data!T:T,Report!$B145)),"",INDEX(Data!T:T,Report!$B145)) ->  | O145: =IF(ISERROR(INDEX(Data!U:U,Report!$B145)),"",INDEX(Data!U:U,Report!$B145)) ->  | P145: =IF(ISERROR(INDEX(Data!V:V,Report!$B145)),"",INDEX(Data!V:V,Report!$B145)) -> 
A146: 142 | B146: =IF(ISERROR(MATCH(A146,Data!A:A,0)),"",MATCH(A146,Data!A:A,0)) ->  | C146: =IF(ISERROR(INDEX(Data!I:I,Report!$B146)),"",INDEX(Data!I:I,Report!$B146)) ->  | D146: =IF(ISERROR(INDEX(Data!J:J,Report!$B146)),"",INDEX(Data!J:J,Report!$B146)) ->  | E146: =IF(ISERROR(INDEX(Data!K:K,Report!$B146)),"",INDEX(Data!K:K,Report!$B146)) ->  | F146: =IF(ISERROR(INDEX(Data!L:L,Report!$B146)),"",INDEX(Data!L:L,Report!$B146)) ->  | H146: =IF(ISERROR(INDEX(Data!N:N,Report!$B146)),"",INDEX(Data!N:N,Report!$B146)) ->  | I146: =IF(ISERROR(INDEX(Data!P:P,Report!$B146)),"",INDEX(Data!P:P,Report!$B146)) ->  | J146: =IF(ISERROR(INDEX(Data!O:O,Report!$B146)),"",INDEX(Data!O:O,Report!$B146)) ->  | K146: =IF(ISERROR(INDEX(Data!Q:Q,Report!$B146)),"",INDEX(Data!Q:Q,Report!$B146)) ->  | L146: =IF(ISERROR(INDEX(Data!R:R,Report!$B146)),"",INDEX(Data!R:R,Report!$B146)) ->  | M146: =IF(ISERROR(INDEX(Data!S:S,Report!$B146)),"",INDEX(Data!S:S,Report!$B146)) ->  | N146: =IF(ISERROR(INDEX(Data!T:T,Report!$B146)),"",INDEX(Data!T:T,Report!$B146)) ->  | O146: =IF(ISERROR(INDEX(Data!U:U,Report!$B146)),"",INDEX(Data!U:U,Report!$B146)) ->  | P146: =IF(ISERROR(INDEX(Data!V:V,Report!$B146)),"",INDEX(Data!V:V,Report!$B146)) -> 
A147: 143 | B147: =IF(ISERROR(MATCH(A147,Data!A:A,0)),"",MATCH(A147,Data!A:A,0)) -> 72 | C147: =IF(ISERROR(INDEX(Data!I:I,Report!$B147)),"",INDEX(Data!I:I,Report!$B147)) -> 04:36:41 | D147: =IF(ISERROR(INDEX(Data!J:J,Report!$B147)),"",INDEX(Data!J:J,Report!$B147)) -> Game against Boomer at level 3.5 Single point data: | E147: =IF(ISERROR(INDEX(Data!K:K,Report!$B147)),"",INDEX(Data!K:K,Report!$B147)) -> Player's point | F147: =IF(ISERROR(INDEX(Data!L:L,Report!$B147)),"",INDEX(Data!L:L,Report!$B147)) -> New Point | H147: =IF(ISERROR(INDEX(Data!N:N,Report!$B147)),"",INDEX(Data!N:N,Report!$B147)) -> 1 | I147: =IF(ISERROR(INDEX(Data!P:P,Report!$B147)),"",INDEX(Data!P:P,Report!$B147)) -> Player Serve | J147: =IF(ISERROR(INDEX(Data!O:O,Report!$B147)),"",INDEX(Data!O:O,Report!$B147)) -> 4 | K147: =IF(ISERROR(INDEX(Data!Q:Q,Report!$B147)),"",INDEX(Data!Q:Q,Report!$B147)) -> 3.5 | L147: =IF(ISERROR(INDEX(Data!R:R,Report!$B147)),"",INDEX(Data!R:R,Report!$B147)) -> 16 | M147: =IF(ISERROR(INDEX(Data!S:S,Report!$B147)),"",INDEX(Data!S:S,Report!$B147)) -> 20 | N147: =IF(ISERROR(INDEX(Data!T:T,Report!$B147)),"",INDEX(Data!T:T,Report!$B147)) -> 3.5 | O147: =IF(ISERROR(INDEX(Data!U:U,Report!$B147)),"",INDEX(Data!U:U,Report!$B147)) -> 111 | P147: =IF(ISERROR(INDEX(Data!V:V,Report!$B147)),"",INDEX(Data!V:V,Report!$B147)) -> 5.2 | R147: | | S147: ||||||||||
A148: 144 | B148: =IF(ISERROR(MATCH(A148,Data!A:A,0)),"",MATCH(A148,Data!A:A,0)) ->  | C148: =IF(ISERROR(INDEX(Data!I:I,Report!$B148)),"",INDEX(Data!I:I,Report!$B148)) ->  | D148: =IF(ISERROR(INDEX(Data!J:J,Report!$B148)),"",INDEX(Data!J:J,Report!$B148)) ->  | E148: =IF(ISERROR(INDEX(Data!K:K,Report!$B148)),"",INDEX(Data!K:K,Report!$B148)) ->  | F148: =IF(ISERROR(INDEX(Data!L:L,Report!$B148)),"",INDEX(Data!L:L,Report!$B148)) ->  | H148: =IF(ISERROR(INDEX(Data!N:N,Report!$B148)),"",INDEX(Data!N:N,Report!$B148)) ->  | I148: =IF(ISERROR(INDEX(Data!P:P,Report!$B148)),"",INDEX(Data!P:P,Report!$B148)) ->  | J148: =IF(ISERROR(INDEX(Data!O:O,Report!$B148)),"",INDEX(Data!O:O,Report!$B148)) ->  | K148: =IF(ISERROR(INDEX(Data!Q:Q,Report!$B148)),"",INDEX(Data!Q:Q,Report!$B148)) ->  | L148: =IF(ISERROR(INDEX(Data!R:R,Report!$B148)),"",INDEX(Data!R:R,Report!$B148)) ->  | M148: =IF(ISERROR(INDEX(Data!S:S,Report!$B148)),"",INDEX(Data!S:S,Report!$B148)) ->  | N148: =IF(ISERROR(INDEX(Data!T:T,Report!$B148)),"",INDEX(Data!T:T,Report!$B148)) ->  | O148: =IF(ISERROR(INDEX(Data!U:U,Report!$B148)),"",INDEX(Data!U:U,Report!$B148)) ->  | P148: =IF(ISERROR(INDEX(Data!V:V,Report!$B148)),"",INDEX(Data!V:V,Report!$B148)) -> 
A149: 145 | B149: =IF(ISERROR(MATCH(A149,Data!A:A,0)),"",MATCH(A149,Data!A:A,0)) ->  | C149: =IF(ISERROR(INDEX(Data!I:I,Report!$B149)),"",INDEX(Data!I:I,Report!$B149)) ->  | D149: =IF(ISERROR(INDEX(Data!J:J,Report!$B149)),"",INDEX(Data!J:J,Report!$B149)) ->  | E149: =IF(ISERROR(INDEX(Data!K:K,Report!$B149)),"",INDEX(Data!K:K,Report!$B149)) ->  | F149: =IF(ISERROR(INDEX(Data!L:L,Report!$B149)),"",INDEX(Data!L:L,Report!$B149)) ->  | H149: =IF(ISERROR(INDEX(Data!N:N,Report!$B149)),"",INDEX(Data!N:N,Report!$B149)) ->  | I149: =IF(ISERROR(INDEX(Data!P:P,Report!$B149)),"",INDEX(Data!P:P,Report!$B149)) ->  | J149: =IF(ISERROR(INDEX(Data!O:O,Report!$B149)),"",INDEX(Data!O:O,Report!$B149)) ->  | K149: =IF(ISERROR(INDEX(Data!Q:Q,Report!$B149)),"",INDEX(Data!Q:Q,Report!$B149)) ->  | L149: =IF(ISERROR(INDEX(Data!R:R,Report!$B149)),"",INDEX(Data!R:R,Report!$B149)) ->  | M149: =IF(ISERROR(INDEX(Data!S:S,Report!$B149)),"",INDEX(Data!S:S,Report!$B149)) ->  | N149: =IF(ISERROR(INDEX(Data!T:T,Report!$B149)),"",INDEX(Data!T:T,Report!$B149)) ->  | O149: =IF(ISERROR(INDEX(Data!U:U,Report!$B149)),"",INDEX(Data!U:U,Report!$B149)) ->  | P149: =IF(ISERROR(INDEX(Data!V:V,Report!$B149)),"",INDEX(Data!V:V,Report!$B149)) -> 
A150: 146 | B150: =IF(ISERROR(MATCH(A150,Data!A:A,0)),"",MATCH(A150,Data!A:A,0)) ->  | C150: =IF(ISERROR(INDEX(Data!I:I,Report!$B150)),"",INDEX(Data!I:I,Report!$B150)) ->  | D150: =IF(ISERROR(INDEX(Data!J:J,Report!$B150)),"",INDEX(Data!J:J,Report!$B150)) ->  | E150: =IF(ISERROR(INDEX(Data!K:K,Report!$B150)),"",INDEX(Data!K:K,Report!$B150)) ->  | F150: =IF(ISERROR(INDEX(Data!L:L,Report!$B150)),"",INDEX(Data!L:L,Report!$B150)) ->  | H150: =IF(ISERROR(INDEX(Data!N:N,Report!$B150)),"",INDEX(Data!N:N,Report!$B150)) ->  | I150: =IF(ISERROR(INDEX(Data!P:P,Report!$B150)),"",INDEX(Data!P:P,Report!$B150)) ->  | J150: =IF(ISERROR(INDEX(Data!O:O,Report!$B150)),"",INDEX(Data!O:O,Report!$B150)) ->  | K150: =IF(ISERROR(INDEX(Data!Q:Q,Report!$B150)),"",INDEX(Data!Q:Q,Report!$B150)) ->  | L150: =IF(ISERROR(INDEX(Data!R:R,Report!$B150)),"",INDEX(Data!R:R,Report!$B150)) ->  | M150: =IF(ISERROR(INDEX(Data!S:S,Report!$B150)),"",INDEX(Data!S:S,Report!$B150)) ->  | N150: =IF(ISERROR(INDEX(Data!T:T,Report!$B150)),"",INDEX(Data!T:T,Report!$B150)) ->  | O150: =IF(ISERROR(INDEX(Data!U:U,Report!$B150)),"",INDEX(Data!U:U,Report!$B150)) ->  | P150: =IF(ISERROR(INDEX(Data!V:V,Report!$B150)),"",INDEX(Data!V:V,Report!$B150)) -> 
A151: 147 | B151: =IF(ISERROR(MATCH(A151,Data!A:A,0)),"",MATCH(A151,Data!A:A,0)) -> 73 | C151: =IF(ISERROR(INDEX(Data!I:I,Report!$B151)),"",INDEX(Data!I:I,Report!$B151)) ->  | D151: =IF(ISERROR(INDEX(Data!J:J,Report!$B151)),"",INDEX(Data!J:J,Report!$B151)) -> User Drill #85 3 line rated mini Tennis | E151: =IF(ISERROR(INDEX(Data!K:K,Report!$B151)),"",INDEX(Data!K:K,Report!$B151)) -> 0 | F151: =IF(ISERROR(INDEX(Data!L:L,Report!$B151)),"",INDEX(Data!L:L,Report!$B151)) -> New Point | H151: =IF(ISERROR(INDEX(Data!N:N,Report!$B151)),"",INDEX(Data!N:N,Report!$B151)) -> 1 | I151: =IF(ISERROR(INDEX(Data!P:P,Report!$B151)),"",INDEX(Data!P:P,Report!$B151)) -> 0 | J151: =IF(ISERROR(INDEX(Data!O:O,Report!$B151)),"",INDEX(Data!O:O,Report!$B151)) -> 11 | K151: =IF(ISERROR(INDEX(Data!Q:Q,Report!$B151)),"",INDEX(Data!Q:Q,Report!$B151)) -> 3.5 | L151: =IF(ISERROR(INDEX(Data!R:R,Report!$B151)),"",INDEX(Data!R:R,Report!$B151)) -> 0 | M151: =IF(ISERROR(INDEX(Data!S:S,Report!$B151)),"",INDEX(Data!S:S,Report!$B151)) -> 0 | N151: =IF(ISERROR(INDEX(Data!T:T,Report!$B151)),"",INDEX(Data!T:T,Report!$B151)) -> 0 | O151: =IF(ISERROR(INDEX(Data!U:U,Report!$B151)),"",INDEX(Data!U:U,Report!$B151)) -> 0 | P151: =IF(ISERROR(INDEX(Data!V:V,Report!$B151)),"",INDEX(Data!V:V,Report!$B151)) -> 0 | R151: |
A152: 148 | B152: =IF(ISERROR(MATCH(A152,Data!A:A,0)),"",MATCH(A152,Data!A:A,0)) ->  | C152: =IF(ISERROR(INDEX(Data!I:I,Report!$B152)),"",INDEX(Data!I:I,Report!$B152)) ->  | D152: =IF(ISERROR(INDEX(Data!J:J,Report!$B152)),"",INDEX(Data!J:J,Report!$B152)) ->  | E152: =IF(ISERROR(INDEX(Data!K:K,Report!$B152)),"",INDEX(Data!K:K,Report!$B152)) ->  | F152: =IF(ISERROR(INDEX(Data!L:L,Report!$B152)),"",INDEX(Data!L:L,Report!$B152)) ->  | H152: =IF(ISERROR(INDEX(Data!N:N,Report!$B152)),"",INDEX(Data!N:N,Report!$B152)) ->  | I152: =IF(ISERROR(INDEX(Data!P:P,Report!$B152)),"",INDEX(Data!P:P,Report!$B152)) ->  | J152: =IF(ISERROR(INDEX(Data!O:O,Report!$B152)),"",INDEX(Data!O:O,Report!$B152)) ->  | K152: =IF(ISERROR(INDEX(Data!Q:Q,Report!$B152)),"",INDEX(Data!Q:Q,Report!$B152)) ->  | L152: =IF(ISERROR(INDEX(Data!R:R,Report!$B152)),"",INDEX(Data!R:R,Report!$B152)) ->  | M152: =IF(ISERROR(INDEX(Data!S:S,Report!$B152)),"",INDEX(Data!S:S,Report!$B152)) ->  | N152: =IF(ISERROR(INDEX(Data!T:T,Report!$B152)),"",INDEX(Data!T:T,Report!$B152)) ->  | O152: =IF(ISERROR(INDEX(Data!U:U,Report!$B152)),"",INDEX(Data!U:U,Report!$B152)) ->  | P152: =IF(ISERROR(INDEX(Data!V:V,Report!$B152)),"",INDEX(Data!V:V,Report!$B152)) -> 
A153: 149 | B153: =IF(ISERROR(MATCH(A153,Data!A:A,0)),"",MATCH(A153,Data!A:A,0)) ->  | C153: =IF(ISERROR(INDEX(Data!I:I,Report!$B153)),"",INDEX(Data!I:I,Report!$B153)) ->  | D153: =IF(ISERROR(INDEX(Data!J:J,Report!$B153)),"",INDEX(Data!J:J,Report!$B153)) ->  | E153: =IF(ISERROR(INDEX(Data!K:K,Report!$B153)),"",INDEX(Data!K:K,Report!$B153)) ->  | F153: =IF(ISERROR(INDEX(Data!L:L,Report!$B153)),"",INDEX(Data!L:L,Report!$B153)) ->  | H153: =IF(ISERROR(INDEX(Data!N:N,Report!$B153)),"",INDEX(Data!N:N,Report!$B153)) ->  | I153: =IF(ISERROR(INDEX(Data!P:P,Report!$B153)),"",INDEX(Data!P:P,Report!$B153)) ->  | J153: =IF(ISERROR(INDEX(Data!O:O,Report!$B153)),"",INDEX(Data!O:O,Report!$B153)) ->  | K153: =IF(ISERROR(INDEX(Data!Q:Q,Report!$B153)),"",INDEX(Data!Q:Q,Report!$B153)) ->  | L153: =IF(ISERROR(INDEX(Data!R:R,Report!$B153)),"",INDEX(Data!R:R,Report!$B153)) ->  | M153: =IF(ISERROR(INDEX(Data!S:S,Report!$B153)),"",INDEX(Data!S:S,Report!$B153)) ->  | N153: =IF(ISERROR(INDEX(Data!T:T,Report!$B153)),"",INDEX(Data!T:T,Report!$B153)) ->  | O153: =IF(ISERROR(INDEX(Data!U:U,Report!$B153)),"",INDEX(Data!U:U,Report!$B153)) ->  | P153: =IF(ISERROR(INDEX(Data!V:V,Report!$B153)),"",INDEX(Data!V:V,Report!$B153)) -> 
A154: 150 | B154: =IF(ISERROR(MATCH(A154,Data!A:A,0)),"",MATCH(A154,Data!A:A,0)) ->  | C154: =IF(ISERROR(INDEX(Data!I:I,Report!$B154)),"",INDEX(Data!I:I,Report!$B154)) ->  | D154: =IF(ISERROR(INDEX(Data!J:J,Report!$B154)),"",INDEX(Data!J:J,Report!$B154)) ->  | E154: =IF(ISERROR(INDEX(Data!K:K,Report!$B154)),"",INDEX(Data!K:K,Report!$B154)) ->  | F154: =IF(ISERROR(INDEX(Data!L:L,Report!$B154)),"",INDEX(Data!L:L,Report!$B154)) ->  | H154: =IF(ISERROR(INDEX(Data!N:N,Report!$B154)),"",INDEX(Data!N:N,Report!$B154)) ->  | I154: =IF(ISERROR(INDEX(Data!P:P,Report!$B154)),"",INDEX(Data!P:P,Report!$B154)) ->  | J154: =IF(ISERROR(INDEX(Data!O:O,Report!$B154)),"",INDEX(Data!O:O,Report!$B154)) ->  | K154: =IF(ISERROR(INDEX(Data!Q:Q,Report!$B154)),"",INDEX(Data!Q:Q,Report!$B154)) ->  | L154: =IF(ISERROR(INDEX(Data!R:R,Report!$B154)),"",INDEX(Data!R:R,Report!$B154)) ->  | M154: =IF(ISERROR(INDEX(Data!S:S,Report!$B154)),"",INDEX(Data!S:S,Report!$B154)) ->  | N154: =IF(ISERROR(INDEX(Data!T:T,Report!$B154)),"",INDEX(Data!T:T,Report!$B154)) ->  | O154: =IF(ISERROR(INDEX(Data!U:U,Report!$B154)),"",INDEX(Data!U:U,Report!$B154)) ->  | P154: =IF(ISERROR(INDEX(Data!V:V,Report!$B154)),"",INDEX(Data!V:V,Report!$B154)) -> 
A155: 151 | B155: =IF(ISERROR(MATCH(A155,Data!A:A,0)),"",MATCH(A155,Data!A:A,0)) -> 74 | C155: =IF(ISERROR(INDEX(Data!I:I,Report!$B155)),"",INDEX(Data!I:I,Report!$B155)) -> 00:34:50 | D155: =IF(ISERROR(INDEX(Data!J:J,Report!$B155)),"",INDEX(Data!J:J,Report!$B155)) -> Game against Boomer at level 2.0 Single point data: | E155: =IF(ISERROR(INDEX(Data!K:K,Report!$B155)),"",INDEX(Data!K:K,Report!$B155)) -> Player's point | F155: =IF(ISERROR(INDEX(Data!L:L,Report!$B155)),"",INDEX(Data!L:L,Report!$B155)) -> New Point | H155: =IF(ISERROR(INDEX(Data!N:N,Report!$B155)),"",INDEX(Data!N:N,Report!$B155)) -> 1 | I155: =IF(ISERROR(INDEX(Data!P:P,Report!$B155)),"",INDEX(Data!P:P,Report!$B155)) -> Serve | J155: =IF(ISERROR(INDEX(Data!O:O,Report!$B155)),"",INDEX(Data!O:O,Report!$B155)) -> 8 | K155: =IF(ISERROR(INDEX(Data!Q:Q,Report!$B155)),"",INDEX(Data!Q:Q,Report!$B155)) -> 2 | L155: =IF(ISERROR(INDEX(Data!R:R,Report!$B155)),"",INDEX(Data!R:R,Report!$B155)) -> 28 | M155: =IF(ISERROR(INDEX(Data!S:S,Report!$B155)),"",INDEX(Data!S:S,Report!$B155)) -> 4 | N155: =IF(ISERROR(INDEX(Data!T:T,Report!$B155)),"",INDEX(Data!T:T,Report!$B155)) -> 5.3 | O155: =IF(ISERROR(INDEX(Data!U:U,Report!$B155)),"",INDEX(Data!U:U,Report!$B155)) -> 49 | P155: =IF(ISERROR(INDEX(Data!V:V,Report!$B155)),"",INDEX(Data!V:V,Report!$B155)) -> 4.6 | R155: | | S155: ||
A156: 152 | B156: =IF(ISERROR(MATCH(A156,Data!A:A,0)),"",MATCH(A156,Data!A:A,0)) -> 75 | C156: =IF(ISERROR(INDEX(Data!I:I,Report!$B156)),"",INDEX(Data!I:I,Report!$B156)) ->  | D156: =IF(ISERROR(INDEX(Data!J:J,Report!$B156)),"",INDEX(Data!J:J,Report!$B156)) -> User Drill #85 3 line rated mini Tennis | E156: =IF(ISERROR(INDEX(Data!K:K,Report!$B156)),"",INDEX(Data!K:K,Report!$B156)) -> 0 | F156: =IF(ISERROR(INDEX(Data!L:L,Report!$B156)),"",INDEX(Data!L:L,Report!$B156)) -> 0 | H156: =IF(ISERROR(INDEX(Data!N:N,Report!$B156)),"",INDEX(Data!N:N,Report!$B156)) -> 2 | I156: =IF(ISERROR(INDEX(Data!P:P,Report!$B156)),"",INDEX(Data!P:P,Report!$B156)) -> 0 | J156: =IF(ISERROR(INDEX(Data!O:O,Report!$B156)),"",INDEX(Data!O:O,Report!$B156)) -> 4 | K156: =IF(ISERROR(INDEX(Data!Q:Q,Report!$B156)),"",INDEX(Data!Q:Q,Report!$B156)) -> 3.5 | L156: =IF(ISERROR(INDEX(Data!R:R,Report!$B156)),"",INDEX(Data!R:R,Report!$B156)) -> 25 | M156: =IF(ISERROR(INDEX(Data!S:S,Report!$B156)),"",INDEX(Data!S:S,Report!$B156)) -> 19 | N156: =IF(ISERROR(INDEX(Data!T:T,Report!$B156)),"",INDEX(Data!T:T,Report!$B156)) -> 4.3 | O156: =IF(ISERROR(INDEX(Data!U:U,Report!$B156)),"",INDEX(Data!U:U,Report!$B156)) -> 35 | P156: =IF(ISERROR(INDEX(Data!V:V,Report!$B156)),"",INDEX(Data!V:V,Report!$B156)) -> 4.6 | R156: | | S156: |||||||||
A157: 153 | B157: =IF(ISERROR(MATCH(A157,Data!A:A,0)),"",MATCH(A157,Data!A:A,0)) -> 76 | C157: =IF(ISERROR(INDEX(Data!I:I,Report!$B157)),"",INDEX(Data!I:I,Report!$B157)) -> 00:34:50 | D157: =IF(ISERROR(INDEX(Data!J:J,Report!$B157)),"",INDEX(Data!J:J,Report!$B157)) -> Game against Boomer at level 2.0 Single point data: | E157: =IF(ISERROR(INDEX(Data!K:K,Report!$B157)),"",INDEX(Data!K:K,Report!$B157)) -> Player's point | F157: =IF(ISERROR(INDEX(Data!L:L,Report!$B157)),"",INDEX(Data!L:L,Report!$B157)) -> 0 | H157: =IF(ISERROR(INDEX(Data!N:N,Report!$B157)),"",INDEX(Data!N:N,Report!$B157)) -> 2 | I157: =IF(ISERROR(INDEX(Data!P:P,Report!$B157)),"",INDEX(Data!P:P,Report!$B157)) -> Heavy Topspin | J157: =IF(ISERROR(INDEX(Data!O:O,Report!$B157)),"",INDEX(Data!O:O,Report!$B157)) -> 5 | K157: =IF(ISERROR(INDEX(Data!Q:Q,Report!$B157)),"",INDEX(Data!Q:Q,Report!$B157)) -> 2 | L157: =IF(ISERROR(INDEX(Data!R:R,Report!$B157)),"",INDEX(Data!R:R,Report!$B157)) -> 20 | M157: =IF(ISERROR(INDEX(Data!S:S,Report!$B157)),"",INDEX(Data!S:S,Report!$B157)) -> 5 | N157: =IF(ISERROR(INDEX(Data!T:T,Report!$B157)),"",INDEX(Data!T:T,Report!$B157)) -> 4.2 | O157: =IF(ISERROR(INDEX(Data!U:U,Report!$B157)),"",INDEX(Data!U:U,Report!$B157)) -> 46 | P157: =IF(ISERROR(INDEX(Data!V:V,Report!$B157)),"",INDEX(Data!V:V,Report!$B157)) -> 3.9 | R157: | | S157: ||
A158: 154 | B158: =IF(ISERROR(MATCH(A158,Data!A:A,0)),"",MATCH(A158,Data!A:A,0)) -> 77 | C158: =IF(ISERROR(INDEX(Data!I:I,Report!$B158)),"",INDEX(Data!I:I,Report!$B158)) -> 00:34:50 | D158: =IF(ISERROR(INDEX(Data!J:J,Report!$B158)),"",INDEX(Data!J:J,Report!$B158)) -> Game against Boomer at level 2.0 Single point data: | E158: =IF(ISERROR(INDEX(Data!K:K,Report!$B158)),"",INDEX(Data!K:K,Report!$B158)) -> Player's point | F158: =IF(ISERROR(INDEX(Data!L:L,Report!$B158)),"",INDEX(Data!L:L,Report!$B158)) -> 0 | H158: =IF(ISERROR(INDEX(Data!N:N,Report!$B158)),"",INDEX(Data!N:N,Report!$B158)) -> 3 | I158: =IF(ISERROR(INDEX(Data!P:P,Report!$B158)),"",INDEX(Data!P:P,Report!$B158)) -> Pass | J158: =IF(ISERROR(INDEX(Data!O:O,Report!$B158)),"",INDEX(Data!O:O,Report!$B158)) -> 3 | K158: =IF(ISERROR(INDEX(Data!Q:Q,Report!$B158)),"",INDEX(Data!Q:Q,Report!$B158)) -> 2 | L158: =IF(ISERROR(INDEX(Data!R:R,Report!$B158)),"",INDEX(Data!R:R,Report!$B158)) -> 25 | M158: =IF(ISERROR(INDEX(Data!S:S,Report!$B158)),"",INDEX(Data!S:S,Report!$B158)) -> 3 | N158: =IF(ISERROR(INDEX(Data!T:T,Report!$B158)),"",INDEX(Data!T:T,Report!$B158)) -> 5.3 | O158: =IF(ISERROR(INDEX(Data!U:U,Report!$B158)),"",INDEX(Data!U:U,Report!$B158)) -> 50 | P158: =IF(ISERROR(INDEX(Data!V:V,Report!$B158)),"",INDEX(Data!V:V,Report!$B158)) -> 4.6 | R158: | | S158: |
A159: 155 | B159: =IF(ISERROR(MATCH(A159,Data!A:A,0)),"",MATCH(A159,Data!A:A,0)) -> 78 | C159: =IF(ISERROR(INDEX(Data!I:I,Report!$B159)),"",INDEX(Data!I:I,Report!$B159)) ->  | D159: =IF(ISERROR(INDEX(Data!J:J,Report!$B159)),"",INDEX(Data!J:J,Report!$B159)) -> User Drill #85 3 line rated mini Tennis | E159: =IF(ISERROR(INDEX(Data!K:K,Report!$B159)),"",INDEX(Data!K:K,Report!$B159)) -> 0 | F159: =IF(ISERROR(INDEX(Data!L:L,Report!$B159)),"",INDEX(Data!L:L,Report!$B159)) -> 0 | H159: =IF(ISERROR(INDEX(Data!N:N,Report!$B159)),"",INDEX(Data!N:N,Report!$B159)) -> 3 | I159: =IF(ISERROR(INDEX(Data!P:P,Report!$B159)),"",INDEX(Data!P:P,Report!$B159)) -> 0 | J159: =IF(ISERROR(INDEX(Data!O:O,Report!$B159)),"",INDEX(Data!O:O,Report!$B159)) -> 10 | K159: =IF(ISERROR(INDEX(Data!Q:Q,Report!$B159)),"",INDEX(Data!Q:Q,Report!$B159)) -> 3.5 | L159: =IF(ISERROR(INDEX(Data!R:R,Report!$B159)),"",INDEX(Data!R:R,Report!$B159)) -> 0 | M159: =IF(ISERROR(INDEX(Data!S:S,Report!$B159)),"",INDEX(Data!S:S,Report!$B159)) -> 0 | N159: =IF(ISERROR(INDEX(Data!T:T,Report!$B159)),"",INDEX(Data!T:T,Report!$B159)) -> 0 | O159: =IF(ISERROR(INDEX(Data!U:U,Report!$B159)),"",INDEX(Data!U:U,Report!$B159)) -> 0 | P159: =IF(ISERROR(INDEX(Data!V:V,Report!$B159)),"",INDEX(Data!V:V,Report!$B159)) -> 0 | R159: |
A160: 156 | B160: =IF(ISERROR(MATCH(A160,Data!A:A,0)),"",MATCH(A160,Data!A:A,0)) ->  | C160: =IF(ISERROR(INDEX(Data!I:I,Report!$B160)),"",INDEX(Data!I:I,Report!$B160)) ->  | D160: =IF(ISERROR(INDEX(Data!J:J,Report!$B160)),"",INDEX(Data!J:J,Report!$B160)) ->  | E160: =IF(ISERROR(INDEX(Data!K:K,Report!$B160)),"",INDEX(Data!K:K,Report!$B160)) ->  | F160: =IF(ISERROR(INDEX(Data!L:L,Report!$B160)),"",INDEX(Data!L:L,Report!$B160)) ->  | H160: =IF(ISERROR(INDEX(Data!N:N,Report!$B160)),"",INDEX(Data!N:N,Report!$B160)) ->  | I160: =IF(ISERROR(INDEX(Data!P:P,Report!$B160)),"",INDEX(Data!P:P,Report!$B160)) ->  | J160: =IF(ISERROR(INDEX(Data!O:O,Report!$B160)),"",INDEX(Data!O:O,Report!$B160)) ->  | K160: =IF(ISERROR(INDEX(Data!Q:Q,Report!$B160)),"",INDEX(Data!Q:Q,Report!$B160)) ->  | L160: =IF(ISERROR(INDEX(Data!R:R,Report!$B160)),"",INDEX(Data!R:R,Report!$B160)) ->  | M160: =IF(ISERROR(INDEX(Data!S:S,Report!$B160)),"",INDEX(Data!S:S,Report!$B160)) ->  | N160: =IF(ISERROR(INDEX(Data!T:T,Report!$B160)),"",INDEX(Data!T:T,Report!$B160)) ->  | O160: =IF(ISERROR(INDEX(Data!U:U,Report!$B160)),"",INDEX(Data!U:U,Report!$B160)) ->  | P160: =IF(ISERROR(INDEX(Data!V:V,Report!$B160)),"",INDEX(Data!V:V,Report!$B160)) -> 
A161: 157 | B161: =IF(ISERROR(MATCH(A161,Data!A:A,0)),"",MATCH(A161,Data!A:A,0)) ->  | C161: =IF(ISERROR(INDEX(Data!I:I,Report!$B161)),"",INDEX(Data!I:I,Report!$B161)) ->  | D161: =IF(ISERROR(INDEX(Data!J:J,Report!$B161)),"",INDEX(Data!J:J,Report!$B161)) ->  | E161: =IF(ISERROR(INDEX(Data!K:K,Report!$B161)),"",INDEX(Data!K:K,Report!$B161)) ->  | F161: =IF(ISERROR(INDEX(Data!L:L,Report!$B161)),"",INDEX(Data!L:L,Report!$B161)) ->  | H161: =IF(ISERROR(INDEX(Data!N:N,Report!$B161)),"",INDEX(Data!N:N,Report!$B161)) ->  | I161: =IF(ISERROR(INDEX(Data!P:P,Report!$B161)),"",INDEX(Data!P:P,Report!$B161)) ->  | J161: =IF(ISERROR(INDEX(Data!O:O,Report!$B161)),"",INDEX(Data!O:O,Report!$B161)) ->  | K161: =IF(ISERROR(INDEX(Data!Q:Q,Report!$B161)),"",INDEX(Data!Q:Q,Report!$B161)) ->  | L161: =IF(ISERROR(INDEX(Data!R:R,Report!$B161)),"",INDEX(Data!R:R,Report!$B161)) ->  | M161: =IF(ISERROR(INDEX(Data!S:S,Report!$B161)),"",INDEX(Data!S:S,Report!$B161)) ->  | N161: =IF(ISERROR(INDEX(Data!T:T,Report!$B161)),"",INDEX(Data!T:T,Report!$B161)) ->  | O161: =IF(ISERROR(INDEX(Data!U:U,Report!$B161)),"",INDEX(Data!U:U,Report!$B161)) ->  | P161: =IF(ISERROR(INDEX(Data!V:V,Report!$B161)),"",INDEX(Data!V:V,Report!$B161)) -> 
A162: 158 | B162: =IF(ISERROR(MATCH(A162,Data!A:A,0)),"",MATCH(A162,Data!A:A,0)) ->  | C162: =IF(ISERROR(INDEX(Data!I:I,Report!$B162)),"",INDEX(Data!I:I,Report!$B162)) ->  | D162: =IF(ISERROR(INDEX(Data!J:J,Report!$B162)),"",INDEX(Data!J:J,Report!$B162)) ->  | E162: =IF(ISERROR(INDEX(Data!K:K,Report!$B162)),"",INDEX(Data!K:K,Report!$B162)) ->  | F162: =IF(ISERROR(INDEX(Data!L:L,Report!$B162)),"",INDEX(Data!L:L,Report!$B162)) ->  | H162: =IF(ISERROR(INDEX(Data!N:N,Report!$B162)),"",INDEX(Data!N:N,Report!$B162)) ->  | I162: =IF(ISERROR(INDEX(Data!P:P,Report!$B162)),"",INDEX(Data!P:P,Report!$B162)) ->  | J162: =IF(ISERROR(INDEX(Data!O:O,Report!$B162)),"",INDEX(Data!O:O,Report!$B162)) ->  | K162: =IF(ISERROR(INDEX(Data!Q:Q,Report!$B162)),"",INDEX(Data!Q:Q,Report!$B162)) ->  | L162: =IF(ISERROR(INDEX(Data!R:R,Report!$B162)),"",INDEX(Data!R:R,Report!$B162)) ->  | M162: =IF(ISERROR(INDEX(Data!S:S,Report!$B162)),"",INDEX(Data!S:S,Report!$B162)) ->  | N162: =IF(ISERROR(INDEX(Data!T:T,Report!$B162)),"",INDEX(Data!T:T,Report!$B162)) ->  | O162: =IF(ISERROR(INDEX(Data!U:U,Report!$B162)),"",INDEX(Data!U:U,Report!$B162)) ->  | P162: =IF(ISERROR(INDEX(Data!V:V,Report!$B162)),"",INDEX(Data!V:V,Report!$B162)) -> 
A163: 159 | B163: =IF(ISERROR(MATCH(A163,Data!A:A,0)),"",MATCH(A163,Data!A:A,0)) -> 79 | C163: =IF(ISERROR(INDEX(Data!I:I,Report!$B163)),"",INDEX(Data!I:I,Report!$B163)) ->  | D163: =IF(ISERROR(INDEX(Data!J:J,Report!$B163)),"",INDEX(Data!J:J,Report!$B163)) -> User Drill #85 3 line rated mini Tennis | E163: =IF(ISERROR(INDEX(Data!K:K,Report!$B163)),"",INDEX(Data!K:K,Report!$B163)) -> 0 | F163: =IF(ISERROR(INDEX(Data!L:L,Report!$B163)),"",INDEX(Data!L:L,Report!$B163)) -> New Point | H163: =IF(ISERROR(INDEX(Data!N:N,Report!$B163)),"",INDEX(Data!N:N,Report!$B163)) -> 1 | I163: =IF(ISERROR(INDEX(Data!P:P,Report!$B163)),"",INDEX(Data!P:P,Report!$B163)) -> 0 | J163: =IF(ISERROR(INDEX(Data!O:O,Report!$B163)),"",INDEX(Data!O:O,Report!$B163)) -> 11 | K163: =IF(ISERROR(INDEX(Data!Q:Q,Report!$B163)),"",INDEX(Data!Q:Q,Report!$B163)) -> 3.5 | L163: =IF(ISERROR(INDEX(Data!R:R,Report!$B163)),"",INDEX(Data!R:R,Report!$B163)) -> 0 | M163: =IF(ISERROR(INDEX(Data!S:S,Report!$B163)),"",INDEX(Data!S:S,Report!$B163)) -> 0 | N163: =IF(ISERROR(INDEX(Data!T:T,Report!$B163)),"",INDEX(Data!T:T,Report!$B163)) -> 0 | O163: =IF(ISERROR(INDEX(Data!U:U,Report!$B163)),"",INDEX(Data!U:U,Report!$B163)) -> 0 | P163: =IF(ISERROR(INDEX(Data!V:V,Report!$B163)),"",INDEX(Data!V:V,Report!$B163)) -> 0 | R163: |
A164: 160 | B164: =IF(ISERROR(MATCH(A164,Data!A:A,0)),"",MATCH(A164,Data!A:A,0)) ->  | C164: =IF(ISERROR(INDEX(Data!I:I,Report!$B164)),"",INDEX(Data!I:I,Report!$B164)) ->  | D164: =IF(ISERROR(INDEX(Data!J:J,Report!$B164)),"",INDEX(Data!J:J,Report!$B164)) ->  | E164: =IF(ISERROR(INDEX(Data!K:K,Report!$B164)),"",INDEX(Data!K:K,Report!$B164)) ->  | F164: =IF(ISERROR(INDEX(Data!L:L,Report!$B164)),"",INDEX(Data!L:L,Report!$B164)) ->  | H164: =IF(ISERROR(INDEX(Data!N:N,Report!$B164)),"",INDEX(Data!N:N,Report!$B164)) ->  | I164: =IF(ISERROR(INDEX(Data!P:P,Report!$B164)),"",INDEX(Data!P:P,Report!$B164)) ->  | J164: =IF(ISERROR(INDEX(Data!O:O,Report!$B164)),"",INDEX(Data!O:O,Report!$B164)) ->  | K164: =IF(ISERROR(INDEX(Data!Q:Q,Report!$B164)),"",INDEX(Data!Q:Q,Report!$B164)) ->  | L164: =IF(ISERROR(INDEX(Data!R:R,Report!$B164)),"",INDEX(Data!R:R,Report!$B164)) ->  | M164: =IF(ISERROR(INDEX(Data!S:S,Report!$B164)),"",INDEX(Data!S:S,Report!$B164)) ->  | N164: =IF(ISERROR(INDEX(Data!T:T,Report!$B164)),"",INDEX(Data!T:T,Report!$B164)) ->  | O164: =IF(ISERROR(INDEX(Data!U:U,Report!$B164)),"",INDEX(Data!U:U,Report!$B164)) ->  | P164: =IF(ISERROR(INDEX(Data!V:V,Report!$B164)),"",INDEX(Data!V:V,Report!$B164)) -> 
A165: 161 | B165: =IF(ISERROR(MATCH(A165,Data!A:A,0)),"",MATCH(A165,Data!A:A,0)) ->  | C165: =IF(ISERROR(INDEX(Data!I:I,Report!$B165)),"",INDEX(Data!I:I,Report!$B165)) ->  | D165: =IF(ISERROR(INDEX(Data!J:J,Report!$B165)),"",INDEX(Data!J:J,Report!$B165)) ->  | E165: =IF(ISERROR(INDEX(Data!K:K,Report!$B165)),"",INDEX(Data!K:K,Report!$B165)) ->  | F165: =IF(ISERROR(INDEX(Data!L:L,Report!$B165)),"",INDEX(Data!L:L,Report!$B165)) ->  | H165: =IF(ISERROR(INDEX(Data!N:N,Report!$B165)),"",INDEX(Data!N:N,Report!$B165)) ->  | I165: =IF(ISERROR(INDEX(Data!P:P,Report!$B165)),"",INDEX(Data!P:P,Report!$B165)) ->  | J165: =IF(ISERROR(INDEX(Data!O:O,Report!$B165)),"",INDEX(Data!O:O,Report!$B165)) ->  | K165: =IF(ISERROR(INDEX(Data!Q:Q,Report!$B165)),"",INDEX(Data!Q:Q,Report!$B165)) ->  | L165: =IF(ISERROR(INDEX(Data!R:R,Report!$B165)),"",INDEX(Data!R:R,Report!$B165)) ->  | M165: =IF(ISERROR(INDEX(Data!S:S,Report!$B165)),"",INDEX(Data!S:S,Report!$B165)) ->  | N165: =IF(ISERROR(INDEX(Data!T:T,Report!$B165)),"",INDEX(Data!T:T,Report!$B165)) ->  | O165: =IF(ISERROR(INDEX(Data!U:U,Report!$B165)),"",INDEX(Data!U:U,Report!$B165)) ->  | P165: =IF(ISERROR(INDEX(Data!V:V,Report!$B165)),"",INDEX(Data!V:V,Report!$B165)) -> 
A166: 162 | B166: =IF(ISERROR(MATCH(A166,Data!A:A,0)),"",MATCH(A166,Data!A:A,0)) ->  | C166: =IF(ISERROR(INDEX(Data!I:I,Report!$B166)),"",INDEX(Data!I:I,Report!$B166)) ->  | D166: =IF(ISERROR(INDEX(Data!J:J,Report!$B166)),"",INDEX(Data!J:J,Report!$B166)) ->  | E166: =IF(ISERROR(INDEX(Data!K:K,Report!$B166)),"",INDEX(Data!K:K,Report!$B166)) ->  | F166: =IF(ISERROR(INDEX(Data!L:L,Report!$B166)),"",INDEX(Data!L:L,Report!$B166)) ->  | H166: =IF(ISERROR(INDEX(Data!N:N,Report!$B166)),"",INDEX(Data!N:N,Report!$B166)) ->  | I166: =IF(ISERROR(INDEX(Data!P:P,Report!$B166)),"",INDEX(Data!P:P,Report!$B166)) ->  | J166: =IF(ISERROR(INDEX(Data!O:O,Report!$B166)),"",INDEX(Data!O:O,Report!$B166)) ->  | K166: =IF(ISERROR(INDEX(Data!Q:Q,Report!$B166)),"",INDEX(Data!Q:Q,Report!$B166)) ->  | L166: =IF(ISERROR(INDEX(Data!R:R,Report!$B166)),"",INDEX(Data!R:R,Report!$B166)) ->  | M166: =IF(ISERROR(INDEX(Data!S:S,Report!$B166)),"",INDEX(Data!S:S,Report!$B166)) ->  | N166: =IF(ISERROR(INDEX(Data!T:T,Report!$B166)),"",INDEX(Data!T:T,Report!$B166)) ->  | O166: =IF(ISERROR(INDEX(Data!U:U,Report!$B166)),"",INDEX(Data!U:U,Report!$B166)) ->  | P166: =IF(ISERROR(INDEX(Data!V:V,Report!$B166)),"",INDEX(Data!V:V,Report!$B166)) -> 
A167: 163 | B167: =IF(ISERROR(MATCH(A167,Data!A:A,0)),"",MATCH(A167,Data!A:A,0)) -> 80 | C167: =IF(ISERROR(INDEX(Data!I:I,Report!$B167)),"",INDEX(Data!I:I,Report!$B167)) -> 04:37:06 | D167: =IF(ISERROR(INDEX(Data!J:J,Report!$B167)),"",INDEX(Data!J:J,Report!$B167)) -> Game against Boomer at level 3.5 Single point data: | E167: =IF(ISERROR(INDEX(Data!K:K,Report!$B167)),"",INDEX(Data!K:K,Report!$B167)) -> Boomer's point | F167: =IF(ISERROR(INDEX(Data!L:L,Report!$B167)),"",INDEX(Data!L:L,Report!$B167)) -> New Point | H167: =IF(ISERROR(INDEX(Data!N:N,Report!$B167)),"",INDEX(Data!N:N,Report!$B167)) -> 1 | I167: =IF(ISERROR(INDEX(Data!P:P,Report!$B167)),"",INDEX(Data!P:P,Report!$B167)) -> Serve | J167: =IF(ISERROR(INDEX(Data!O:O,Report!$B167)),"",INDEX(Data!O:O,Report!$B167)) -> 8 | K167: =IF(ISERROR(INDEX(Data!Q:Q,Report!$B167)),"",INDEX(Data!Q:Q,Report!$B167)) -> 3.5 | L167: =IF(ISERROR(INDEX(Data!R:R,Report!$B167)),"",INDEX(Data!R:R,Report!$B167)) -> 28 | M167: =IF(ISERROR(INDEX(Data!S:S,Report!$B167)),"",INDEX(Data!S:S,Report!$B167)) -> 10 | N167: =IF(ISERROR(INDEX(Data!T:T,Report!$B167)),"",INDEX(Data!T:T,Report!$B167)) -> 4.5 | O167: =IF(ISERROR(INDEX(Data!U:U,Report!$B167)),"",INDEX(Data!U:U,Report!$B167)) -> 35 | P167: =IF(ISERROR(INDEX(Data!V:V,Report!$B167)),"",INDEX(Data!V:V,Report!$B167)) -> 3.6 | R167: | | S167: |||||
A168: 164 | B168: =IF(ISERROR(MATCH(A168,Data!A:A,0)),"",MATCH(A168,Data!A:A,0)) ->  | C168: =IF(ISERROR(INDEX(Data!I:I,Report!$B168)),"",INDEX(Data!I:I,Report!$B168)) ->  | D168: =IF(ISERROR(INDEX(Data!J:J,Report!$B168)),"",INDEX(Data!J:J,Report!$B168)) ->  | E168: =IF(ISERROR(INDEX(Data!K:K,Report!$B168)),"",INDEX(Data!K:K,Report!$B168)) ->  | F168: =IF(ISERROR(INDEX(Data!L:L,Report!$B168)),"",INDEX(Data!L:L,Report!$B168)) ->  | H168: =IF(ISERROR(INDEX(Data!N:N,Report!$B168)),"",INDEX(Data!N:N,Report!$B168)) ->  | I168: =IF(ISERROR(INDEX(Data!P:P,Report!$B168)),"",INDEX(Data!P:P,Report!$B168)) ->  | J168: =IF(ISERROR(INDEX(Data!O:O,Report!$B168)),"",INDEX(Data!O:O,Report!$B168)) ->  | K168: =IF(ISERROR(INDEX(Data!Q:Q,Report!$B168)),"",INDEX(Data!Q:Q,Report!$B168)) ->  | L168: =IF(ISERROR(INDEX(Data!R:R,Report!$B168)),"",INDEX(Data!R:R,Report!$B168)) ->  | M168: =IF(ISERROR(INDEX(Data!S:S,Report!$B168)),"",INDEX(Data!S:S,Report!$B168)) ->  | N168: =IF(ISERROR(INDEX(Data!T:T,Report!$B168)),"",INDEX(Data!T:T,Report!$B168)) ->  | O168: =IF(ISERROR(INDEX(Data!U:U,Report!$B168)),"",INDEX(Data!U:U,Report!$B168)) ->  | P168: =IF(ISERROR(INDEX(Data!V:V,Report!$B168)),"",INDEX(Data!V:V,Report!$B168)) -> 
A169: 165 | B169: =IF(ISERROR(MATCH(A169,Data!A:A,0)),"",MATCH(A169,Data!A:A,0)) ->  | C169: =IF(ISERROR(INDEX(Data!I:I,Report!$B169)),"",INDEX(Data!I:I,Report!$B169)) ->  | D169: =IF(ISERROR(INDEX(Data!J:J,Report!$B169)),"",INDEX(Data!J:J,Report!$B169)) ->  | E169: =IF(ISERROR(INDEX(Data!K:K,Report!$B169)),"",INDEX(Data!K:K,Report!$B169)) ->  | F169: =IF(ISERROR(INDEX(Data!L:L,Report!$B169)),"",INDEX(Data!L:L,Report!$B169)) ->  | H169: =IF(ISERROR(INDEX(Data!N:N,Report!$B169)),"",INDEX(Data!N:N,Report!$B169)) ->  | I169: =IF(ISERROR(INDEX(Data!P:P,Report!$B169)),"",INDEX(Data!P:P,Report!$B169)) ->  | J169: =IF(ISERROR(INDEX(Data!O:O,Report!$B169)),"",INDEX(Data!O:O,Report!$B169)) ->  | K169: =IF(ISERROR(INDEX(Data!Q:Q,Report!$B169)),"",INDEX(Data!Q:Q,Report!$B169)) ->  | L169: =IF(ISERROR(INDEX(Data!R:R,Report!$B169)),"",INDEX(Data!R:R,Report!$B169)) ->  | M169: =IF(ISERROR(INDEX(Data!S:S,Report!$B169)),"",INDEX(Data!S:S,Report!$B169)) ->  | N169: =IF(ISERROR(INDEX(Data!T:T,Report!$B169)),"",INDEX(Data!T:T,Report!$B169)) ->  | O169: =IF(ISERROR(INDEX(Data!U:U,Report!$B169)),"",INDEX(Data!U:U,Report!$B169)) ->  | P169: =IF(ISERROR(INDEX(Data!V:V,Report!$B169)),"",INDEX(Data!V:V,Report!$B169)) -> 
A170: 166 | B170: =IF(ISERROR(MATCH(A170,Data!A:A,0)),"",MATCH(A170,Data!A:A,0)) ->  | C170: =IF(ISERROR(INDEX(Data!I:I,Report!$B170)),"",INDEX(Data!I:I,Report!$B170)) ->  | D170: =IF(ISERROR(INDEX(Data!J:J,Report!$B170)),"",INDEX(Data!J:J,Report!$B170)) ->  | E170: =IF(ISERROR(INDEX(Data!K:K,Report!$B170)),"",INDEX(Data!K:K,Report!$B170)) ->  | F170: =IF(ISERROR(INDEX(Data!L:L,Report!$B170)),"",INDEX(Data!L:L,Report!$B170)) ->  | H170: =IF(ISERROR(INDEX(Data!N:N,Report!$B170)),"",INDEX(Data!N:N,Report!$B170)) ->  | I170: =IF(ISERROR(INDEX(Data!P:P,Report!$B170)),"",INDEX(Data!P:P,Report!$B170)) ->  | J170: =IF(ISERROR(INDEX(Data!O:O,Report!$B170)),"",INDEX(Data!O:O,Report!$B170)) ->  | K170: =IF(ISERROR(INDEX(Data!Q:Q,Report!$B170)),"",INDEX(Data!Q:Q,Report!$B170)) ->  | L170: =IF(ISERROR(INDEX(Data!R:R,Report!$B170)),"",INDEX(Data!R:R,Report!$B170)) ->  | M170: =IF(ISERROR(INDEX(Data!S:S,Report!$B170)),"",INDEX(Data!S:S,Report!$B170)) ->  | N170: =IF(ISERROR(INDEX(Data!T:T,Report!$B170)),"",INDEX(Data!T:T,Report!$B170)) ->  | O170: =IF(ISERROR(INDEX(Data!U:U,Report!$B170)),"",INDEX(Data!U:U,Report!$B170)) ->  | P170: =IF(ISERROR(INDEX(Data!V:V,Report!$B170)),"",INDEX(Data!V:V,Report!$B170)) -> 
A171: 167 | B171: =IF(ISERROR(MATCH(A171,Data!A:A,0)),"",MATCH(A171,Data!A:A,0)) -> 81 | C171: =IF(ISERROR(INDEX(Data!I:I,Report!$B171)),"",INDEX(Data!I:I,Report!$B171)) -> 00:35:20 | D171: =IF(ISERROR(INDEX(Data!J:J,Report!$B171)),"",INDEX(Data!J:J,Report!$B171)) -> Game against Boomer at level 2.0 Single point data: | E171: =IF(ISERROR(INDEX(Data!K:K,Report!$B171)),"",INDEX(Data!K:K,Report!$B171)) -> Player's point | F171: =IF(ISERROR(INDEX(Data!L:L,Report!$B171)),"",INDEX(Data!L:L,Report!$B171)) -> New Point | H171: =IF(ISERROR(INDEX(Data!N:N,Report!$B171)),"",INDEX(Data!N:N,Report!$B171)) -> 1 | I171: =IF(ISERROR(INDEX(Data!P:P,Report!$B171)),"",INDEX(Data!P:P,Report!$B171)) -> Serve | J171: =IF(ISERROR(INDEX(Data!O:O,Report!$B171)),"",INDEX(Data!O:O,Report!$B171)) -> 3 | K171: =IF(ISERROR(INDEX(Data!Q:Q,Report!$B171)),"",INDEX(Data!Q:Q,Report!$B171)) -> 2 | L171: =IF(ISERROR(INDEX(Data!R:R,Report!$B171)),"",INDEX(Data!R:R,Report!$B171)) -> 31 | M171: =IF(ISERROR(INDEX(Data!S:S,Report!$B171)),"",INDEX(Data!S:S,Report!$B171)) -> 4 | N171: =IF(ISERROR(INDEX(Data!T:T,Report!$B171)),"",INDEX(Data!T:T,Report!$B171)) -> 5.9 | O171: =IF(ISERROR(INDEX(Data!U:U,Report!$B171)),"",INDEX(Data!U:U,Report!$B171)) -> 50 | P171: =IF(ISERROR(INDEX(Data!V:V,Report!$B171)),"",INDEX(Data!V:V,Report!$B171)) -> 4.9 | R171: | | S171: ||
A172: 168 | B172: =IF(ISERROR(MATCH(A172,Data!A:A,0)),"",MATCH(A172,Data!A:A,0)) -> 82 | C172: =IF(ISERROR(INDEX(Data!I:I,Report!$B172)),"",INDEX(Data!I:I,Report!$B172)) -> 04:37:06 | D172: =IF(ISERROR(INDEX(Data!J:J,Report!$B172)),"",INDEX(Data!J:J,Report!$B172)) -> Game against Boomer at level 3.5 Single point data: | E172: =IF(ISERROR(INDEX(Data!K:K,Report!$B172)),"",INDEX(Data!K:K,Report!$B172)) -> Boomer's point | F172: =IF(ISERROR(INDEX(Data!L:L,Report!$B172)),"",INDEX(Data!L:L,Report!$B172)) -> 0 | H172: =IF(ISERROR(INDEX(Data!N:N,Report!$B172)),"",INDEX(Data!N:N,Report!$B172)) -> 2 | I172: =IF(ISERROR(INDEX(Data!P:P,Report!$B172)),"",INDEX(Data!P:P,Report!$B172)) -> Topspin | J172: =IF(ISERROR(INDEX(Data!O:O,Report!$B172)),"",INDEX(Data!O:O,Report!$B172)) -> 4 | K172: =IF(ISERROR(INDEX(Data!Q:Q,Report!$B172)),"",INDEX(Data!Q:Q,Report!$B172)) -> 3.5 | L172: =IF(ISERROR(INDEX(Data!R:R,Report!$B172)),"",INDEX(Data!R:R,Report!$B172)) -> 16 | M172: =IF(ISERROR(INDEX(Data!S:S,Report!$B172)),"",INDEX(Data!S:S,Report!$B172)) -> 19 | N172: =IF(ISERROR(INDEX(Data!T:T,Report!$B172)),"",INDEX(Data!T:T,Report!$B172)) -> 2.9 | O172: =IF(ISERROR(INDEX(Data!U:U,Report!$B172)),"",INDEX(Data!U:U,Report!$B172)) -> 41 | P172: =IF(ISERROR(INDEX(Data!V:V,Report!$B172)),"",INDEX(Data!V:V,Report!$B172)) -> 3.8 | R172: | | S172: |||||||||
A173: 169 | B173: =IF(ISERROR(MATCH(A173,Data!A:A,0)),"",MATCH(A173,Data!A:A,0)) -> 83 | C173: =IF(ISERROR(INDEX(Data!I:I,Report!$B173)),"",INDEX(Data!I:I,Report!$B173)) ->  | D173: =IF(ISERROR(INDEX(Data!J:J,Report!$B173)),"",INDEX(Data!J:J,Report!$B173)) -> User Drill #85 3 line rated mini Tennis | E173: =IF(ISERROR(INDEX(Data!K:K,Report!$B173)),"",INDEX(Data!K:K,Report!$B173)) -> 0 | F173: =IF(ISERROR(INDEX(Data!L:L,Report!$B173)),"",INDEX(Data!L:L,Report!$B173)) -> 0 | H173: =IF(ISERROR(INDEX(Data!N:N,Report!$B173)),"",INDEX(Data!N:N,Report!$B173)) -> 2 | I173: =IF(ISERROR(INDEX(Data!P:P,Report!$B173)),"",INDEX(Data!P:P,Report!$B173)) -> 0 | J173: =IF(ISERROR(INDEX(Data!O:O,Report!$B173)),"",INDEX(Data!O:O,Report!$B173)) -> 4 | K173: =IF(ISERROR(INDEX(Data!Q:Q,Report!$B173)),"",INDEX(Data!Q:Q,Report!$B173)) -> 3.5 | L173: =IF(ISERROR(INDEX(Data!R:R,Report!$B173)),"",INDEX(Data!R:R,Report!$B173)) -> 21 | M173: =IF(ISERROR(INDEX(Data!S:S,Report!$B173)),"",INDEX(Data!S:S,Report!$B173)) -> 7 | N173: =IF(ISERROR(INDEX(Data!T:T,Report!$B173)),"",INDEX(Data!T:T,Report!$B173)) -> 4 | O173: =IF(ISERROR(INDEX(Data!U:U,Report!$B173)),"",INDEX(Data!U:U,Report!$B173)) -> 30 | P173: =IF(ISERROR(INDEX(Data!V:V,Report!$B173)),"",INDEX(Data!V:V,Report!$B173)) -> 4.1 | R173: | | S173: |||
A174: 170 | B174: =IF(ISERROR(MATCH(A174,Data!A:A,0)),"",MATCH(A174,Data!A:A,0)) -> 84 | C174: =IF(ISERROR(INDEX(Data!I:I,Report!$B174)),"",INDEX(Data!I:I,Report!$B174)) -> 00:35:20 | D174: =IF(ISERROR(INDEX(Data!J:J,Report!$B174)),"",INDEX(Data!J:J,Report!$B174)) -> Game against Boomer at level 2.0 Single point data: | E174: =IF(ISERROR(INDEX(Data!K:K,Report!$B174)),"",INDEX(Data!K:K,Report!$B174)) -> Player's point | F174: =IF(ISERROR(INDEX(Data!L:L,Report!$B174)),"",INDEX(Data!L:L,Report!$B174)) -> 0 | H174: =IF(ISERROR(INDEX(Data!N:N,Report!$B174)),"",INDEX(Data!N:N,Report!$B174)) -> 2 | I174: =IF(ISERROR(INDEX(Data!P:P,Report!$B174)),"",INDEX(Data!P:P,Report!$B174)) -> Heavy Topspin | J174: =IF(ISERROR(INDEX(Data!O:O,Report!$B174)),"",INDEX(Data!O:O,Report!$B174)) -> 3 | K174: =IF(ISERROR(INDEX(Data!Q:Q,Report!$B174)),"",INDEX(Data!Q:Q,Report!$B174)) -> 2 | L174: =IF(ISERROR(INDEX(Data!R:R,Report!$B174)),"",INDEX(Data!R:R,Report!$B174)) -> 35 | M174: =IF(ISERROR(INDEX(Data!S:S,Report!$B174)),"",INDEX(Data!S:S,Report!$B174)) -> 2 | N174: =IF(ISERROR(INDEX(Data!T:T,Report!$B174)),"",INDEX(Data!T:T,Report!$B174)) -> 6.5 | O174: =IF(ISERROR(INDEX(Data!U:U,Report!$B174)),"",INDEX(Data!U:U,Report!$B174)) -> 54 | P174: =IF(ISERROR(INDEX(Data!V:V,Report!$B174)),"",INDEX(Data!V:V,Report!$B174)) -> 5.4 | R174: | | S174: |
A175: 171 | B175: =IF(ISERROR(MATCH(A175,Data!A:A,0)),"",MATCH(A175,Data!A:A,0)) -> 85 | C175: =IF(ISERROR(INDEX(Data!I:I,Report!$B175)),"",INDEX(Data!I:I,Report!$B175)) ->  | D175: =IF(ISERROR(INDEX(Data!J:J,Report!$B175)),"",INDEX(Data!J:J,Report!$B175)) -> User Drill #85 3 line rated mini Tennis | E175: =IF(ISERROR(INDEX(Data!K:K,Report!$B175)),"",INDEX(Data!K:K,Report!$B175)) -> 0 | F175: =IF(ISERROR(INDEX(Data!L:L,Report!$B175)),"",INDEX(Data!L:L,Report!$B175)) -> 0 | H175: =IF(ISERROR(INDEX(Data!N:N,Report!$B175)),"",INDEX(Data!N:N,Report!$B175)) -> 3 | I175: =IF(ISERROR(INDEX(Data!P:P,Report!$B175)),"",INDEX(Data!P:P,Report!$B175)) -> 0 | J175: =IF(ISERROR(INDEX(Data!O:O,Report!$B175)),"",INDEX(Data!O:O,Report!$B175)) -> 10 | K175: =IF(ISERROR(INDEX(Data!Q:Q,Report!$B175)),"",INDEX(Data!Q:Q,Report!$B175)) -> 3.5 | L175: =IF(ISERROR(INDEX(Data!R:R,Report!$B175)),"",INDEX(Data!R:R,Report!$B175)) -> 0 | M175: =IF(ISERROR(INDEX(Data!S:S,Report!$B175)),"",INDEX(Data!S:S,Report!$B175)) -> 0 | N175: =IF(ISERROR(INDEX(Data!T:T,Report!$B175)),"",INDEX(Data!T:T,Report!$B175)) -> 0 | O175: =IF(ISERROR(INDEX(Data!U:U,Report!$B175)),"",INDEX(Data!U:U,Report!$B175)) -> 0 | P175: =IF(ISERROR(INDEX(Data!V:V,Report!$B175)),"",INDEX(Data!V:V,Report!$B175)) -> 0 | R175: |
A176: 172 | B176: =IF(ISERROR(MATCH(A176,Data!A:A,0)),"",MATCH(A176,Data!A:A,0)) -> 86 | C176: =IF(ISERROR(INDEX(Data!I:I,Report!$B176)),"",INDEX(Data!I:I,Report!$B176)) -> 04:37:06 | D176: =IF(ISERROR(INDEX(Data!J:J,Report!$B176)),"",INDEX(Data!J:J,Report!$B176)) -> Game against Boomer at level 3.5 Single point data: | E176: =IF(ISERROR(INDEX(Data!K:K,Report!$B176)),"",INDEX(Data!K:K,Report!$B176)) -> Boomer's point | F176: =IF(ISERROR(INDEX(Data!L:L,Report!$B176)),"",INDEX(Data!L:L,Report!$B176)) -> 0 | H176: =IF(ISERROR(INDEX(Data!N:N,Report!$B176)),"",INDEX(Data!N:N,Report!$B176)) -> 3 | I176: =IF(ISERROR(INDEX(Data!P:P,Report!$B176)),"",INDEX(Data!P:P,Report!$B176)) -> Topspin | J176: =IF(ISERROR(INDEX(Data!O:O,Report!$B176)),"",INDEX(Data!O:O,Report!$B176)) -> 5 | K176: =IF(ISERROR(INDEX(Data!Q:Q,Report!$B176)),"",INDEX(Data!Q:Q,Report!$B176)) -> 3.5 | L176: =IF(ISERROR(INDEX(Data!R:R,Report!$B176)),"",INDEX(Data!R:R,Report!$B176)) -> 14 | M176: =IF(ISERROR(INDEX(Data!S:S,Report!$B176)),"",INDEX(Data!S:S,Report!$B176)) -> 9 | N176: =IF(ISERROR(INDEX(Data!T:T,Report!$B176)),"",INDEX(Data!T:T,Report!$B176)) -> 2.6 | O176: =IF(ISERROR(INDEX(Data!U:U,Report!$B176)),"",INDEX(Data!U:U,Report!$B176)) -> 44 | P176: =IF(ISERROR(INDEX(Data!V:V,Report!$B176)),"",INDEX(Data!V:V,Report!$B176)) -> 3.8 | R176: | | S176: ||||
A177: 173 | B177: =IF(ISERROR(MATCH(A177,Data!A:A,0)),"",MATCH(A177,Data!A:A,0)) -> 87 | C177: =IF(ISERROR(INDEX(Data!I:I,Report!$B177)),"",INDEX(Data!I:I,Report!$B177)) -> 04:37:06 | D177: =IF(ISERROR(INDEX(Data!J:J,Report!$B177)),"",INDEX(Data!J:J,Report!$B177)) -> Game against Boomer at level 3.5 Single point data: | E177: =IF(ISERROR(INDEX(Data!K:K,Report!$B177)),"",INDEX(Data!K:K,Report!$B177)) -> Boomer's point | F177: =IF(ISERROR(INDEX(Data!L:L,Report!$B177)),"",INDEX(Data!L:L,Report!$B177)) -> 0 | H177: =IF(ISERROR(INDEX(Data!N:N,Report!$B177)),"",INDEX(Data!N:N,Report!$B177)) -> 4 | I177: =IF(ISERROR(INDEX(Data!P:P,Report!$B177)),"",INDEX(Data!P:P,Report!$B177)) -> Lob | J177: =IF(ISERROR(INDEX(Data!O:O,Report!$B177)),"",INDEX(Data!O:O,Report!$B177)) -> 4 | K177: =IF(ISERROR(INDEX(Data!Q:Q,Report!$B177)),"",INDEX(Data!Q:Q,Report!$B177)) -> 3.5 | L177: =IF(ISERROR(INDEX(Data!R:R,Report!$B177)),"",INDEX(Data!R:R,Report!$B177)) -> 0 | M177: =IF(ISERROR(INDEX(Data!S:S,Report!$B177)),"",INDEX(Data!S:S,Report!$B177)) -> 0 | N177: =IF(ISERROR(INDEX(Data!T:T,Report!$B177)),"",INDEX(Data!T:T,Report!$B177)) -> 0 | O177: =IF(ISERROR(INDEX(Data!U:U,Report!$B177)),"",INDEX(Data!U:U,Report!$B177)) -> 0 | P177: =IF(ISERROR(INDEX(Data!V:V,Report!$B177)),"",INDEX(Data!V:V,Report!$B177)) -> 0 | R177: |
A178: 174 | B178: =IF(ISERROR(MATCH(A178,Data!A:A,0)),"",MATCH(A178,Data!A:A,0)) ->  | C178: =IF(ISERROR(INDEX(Data!I:I,Report!$B178)),"",INDEX(Data!I:I,Report!$B178)) ->  | D178: =IF(ISERROR(INDEX(Data!J:J,Report!$B178)),"",INDEX(Data!J:J,Report!$B178)) ->  | E178: =IF(ISERROR(INDEX(Data!K:K,Report!$B178)),"",INDEX(Data!K:K,Report!$B178)) ->  | F178: =IF(ISERROR(INDEX(Data!L:L,Report!$B178)),"",INDEX(Data!L:L,Report!$B178)) ->  | H178: =IF(ISERROR(INDEX(Data!N:N,Report!$B178)),"",INDEX(Data!N:N,Report!$B178)) ->  | I178: =IF(ISERROR(INDEX(Data!P:P,Report!$B178)),"",INDEX(Data!P:P,Report!$B178)) ->  | J178: =IF(ISERROR(INDEX(Data!O:O,Report!$B178)),"",INDEX(Data!O:O,Report!$B178)) ->  | K178: =IF(ISERROR(INDEX(Data!Q:Q,Report!$B178)),"",INDEX(Data!Q:Q,Report!$B178)) ->  | L178: =IF(ISERROR(INDEX(Data!R:R,Report!$B178)),"",INDEX(Data!R:R,Report!$B178)) ->  | M178: =IF(ISERROR(INDEX(Data!S:S,Report!$B178)),"",INDEX(Data!S:S,Report!$B178)) ->  | N178: =IF(ISERROR(INDEX(Data!T:T,Report!$B178)),"",INDEX(Data!T:T,Report!$B178)) ->  | O178: =IF(ISERROR(INDEX(Data!U:U,Report!$B178)),"",INDEX(Data!U:U,Report!$B178)) ->  | P178: =IF(ISERROR(INDEX(Data!V:V,Report!$B178)),"",INDEX(Data!V:V,Report!$B178)) -> 
A179: 175 | B179: =IF(ISERROR(MATCH(A179,Data!A:A,0)),"",MATCH(A179,Data!A:A,0)) ->  | C179: =IF(ISERROR(INDEX(Data!I:I,Report!$B179)),"",INDEX(Data!I:I,Report!$B179)) ->  | D179: =IF(ISERROR(INDEX(Data!J:J,Report!$B179)),"",INDEX(Data!J:J,Report!$B179)) ->  | E179: =IF(ISERROR(INDEX(Data!K:K,Report!$B179)),"",INDEX(Data!K:K,Report!$B179)) ->  | F179: =IF(ISERROR(INDEX(Data!L:L,Report!$B179)),"",INDEX(Data!L:L,Report!$B179)) ->  | H179: =IF(ISERROR(INDEX(Data!N:N,Report!$B179)),"",INDEX(Data!N:N,Report!$B179)) ->  | I179: =IF(ISERROR(INDEX(Data!P:P,Report!$B179)),"",INDEX(Data!P:P,Report!$B179)) ->  | J179: =IF(ISERROR(INDEX(Data!O:O,Report!$B179)),"",INDEX(Data!O:O,Report!$B179)) ->  | K179: =IF(ISERROR(INDEX(Data!Q:Q,Report!$B179)),"",INDEX(Data!Q:Q,Report!$B179)) ->  | L179: =IF(ISERROR(INDEX(Data!R:R,Report!$B179)),"",INDEX(Data!R:R,Report!$B179)) ->  | M179: =IF(ISERROR(INDEX(Data!S:S,Report!$B179)),"",INDEX(Data!S:S,Report!$B179)) ->  | N179: =IF(ISERROR(INDEX(Data!T:T,Report!$B179)),"",INDEX(Data!T:T,Report!$B179)) ->  | O179: =IF(ISERROR(INDEX(Data!U:U,Report!$B179)),"",INDEX(Data!U:U,Report!$B179)) ->  | P179: =IF(ISERROR(INDEX(Data!V:V,Report!$B179)),"",INDEX(Data!V:V,Report!$B179)) -> 
A180: 176 | B180: =IF(ISERROR(MATCH(A180,Data!A:A,0)),"",MATCH(A180,Data!A:A,0)) ->  | C180: =IF(ISERROR(INDEX(Data!I:I,Report!$B180)),"",INDEX(Data!I:I,Report!$B180)) ->  | D180: =IF(ISERROR(INDEX(Data!J:J,Report!$B180)),"",INDEX(Data!J:J,Report!$B180)) ->  | E180: =IF(ISERROR(INDEX(Data!K:K,Report!$B180)),"",INDEX(Data!K:K,Report!$B180)) ->  | F180: =IF(ISERROR(INDEX(Data!L:L,Report!$B180)),"",INDEX(Data!L:L,Report!$B180)) ->  | H180: =IF(ISERROR(INDEX(Data!N:N,Report!$B180)),"",INDEX(Data!N:N,Report!$B180)) ->  | I180: =IF(ISERROR(INDEX(Data!P:P,Report!$B180)),"",INDEX(Data!P:P,Report!$B180)) ->  | J180: =IF(ISERROR(INDEX(Data!O:O,Report!$B180)),"",INDEX(Data!O:O,Report!$B180)) ->  | K180: =IF(ISERROR(INDEX(Data!Q:Q,Report!$B180)),"",INDEX(Data!Q:Q,Report!$B180)) ->  | L180: =IF(ISERROR(INDEX(Data!R:R,Report!$B180)),"",INDEX(Data!R:R,Report!$B180)) ->  | M180: =IF(ISERROR(INDEX(Data!S:S,Report!$B180)),"",INDEX(Data!S:S,Report!$B180)) ->  | N180: =IF(ISERROR(INDEX(Data!T:T,Report!$B180)),"",INDEX(Data!T:T,Report!$B180)) ->  | O180: =IF(ISERROR(INDEX(Data!U:U,Report!$B180)),"",INDEX(Data!U:U,Report!$B180)) ->  | P180: =IF(ISERROR(INDEX(Data!V:V,Report!$B180)),"",INDEX(Data!V:V,Report!$B180)) -> 
A181: 177 | B181: =IF(ISERROR(MATCH(A181,Data!A:A,0)),"",MATCH(A181,Data!A:A,0)) -> 88 | C181: =IF(ISERROR(INDEX(Data!I:I,Report!$B181)),"",INDEX(Data!I:I,Report!$B181)) -> 04:37:32 | D181: =IF(ISERROR(INDEX(Data!J:J,Report!$B181)),"",INDEX(Data!J:J,Report!$B181)) -> Game against Boomer at level 3.5 Single point data: | E181: =IF(ISERROR(INDEX(Data!K:K,Report!$B181)),"",INDEX(Data!K:K,Report!$B181)) -> Player's point | F181: =IF(ISERROR(INDEX(Data!L:L,Report!$B181)),"",INDEX(Data!L:L,Report!$B181)) -> New Point | H181: =IF(ISERROR(INDEX(Data!N:N,Report!$B181)),"",INDEX(Data!N:N,Report!$B181)) -> 1 | I181: =IF(ISERROR(INDEX(Data!P:P,Report!$B181)),"",INDEX(Data!P:P,Report!$B181)) -> Serve | J181: =IF(ISERROR(INDEX(Data!O:O,Report!$B181)),"",INDEX(Data!O:O,Report!$B181)) -> 3 | K181: =IF(ISERROR(INDEX(Data!Q:Q,Report!$B181)),"",INDEX(Data!Q:Q,Report!$B181)) -> 3.5 | L181: =IF(ISERROR(INDEX(Data!R:R,Report!$B181)),"",INDEX(Data!R:R,Report!$B181)) -> 27 | M181: =IF(ISERROR(INDEX(Data!S:S,Report!$B181)),"",INDEX(Data!S:S,Report!$B181)) -> 9 | N181: =IF(ISERROR(INDEX(Data!T:T,Report!$B181)),"",INDEX(Data!T:T,Report!$B181)) -> 4.7 | O181: =IF(ISERROR(INDEX(Data!U:U,Report!$B181)),"",INDEX(Data!U:U,Report!$B181)) -> 35 | P181: =IF(ISERROR(INDEX(Data!V:V,Report!$B181)),"",INDEX(Data!V:V,Report!$B181)) -> 3.7 | R181: | | S181: ||||
A182: 178 | B182: =IF(ISERROR(MATCH(A182,Data!A:A,0)),"",MATCH(A182,Data!A:A,0)) ->  | C182: =IF(ISERROR(INDEX(Data!I:I,Report!$B182)),"",INDEX(Data!I:I,Report!$B182)) ->  | D182: =IF(ISERROR(INDEX(Data!J:J,Report!$B182)),"",INDEX(Data!J:J,Report!$B182)) ->  | E182: =IF(ISERROR(INDEX(Data!K:K,Report!$B182)),"",INDEX(Data!K:K,Report!$B182)) ->  | F182: =IF(ISERROR(INDEX(Data!L:L,Report!$B182)),"",INDEX(Data!L:L,Report!$B182)) ->  | H182: =IF(ISERROR(INDEX(Data!N:N,Report!$B182)),"",INDEX(Data!N:N,Report!$B182)) ->  | I182: =IF(ISERROR(INDEX(Data!P:P,Report!$B182)),"",INDEX(Data!P:P,Report!$B182)) ->  | J182: =IF(ISERROR(INDEX(Data!O:O,Report!$B182)),"",INDEX(Data!O:O,Report!$B182)) ->  | K182: =IF(ISERROR(INDEX(Data!Q:Q,Report!$B182)),"",INDEX(Data!Q:Q,Report!$B182)) ->  | L182: =IF(ISERROR(INDEX(Data!R:R,Report!$B182)),"",INDEX(Data!R:R,Report!$B182)) ->  | M182: =IF(ISERROR(INDEX(Data!S:S,Report!$B182)),"",INDEX(Data!S:S,Report!$B182)) ->  | N182: =IF(ISERROR(INDEX(Data!T:T,Report!$B182)),"",INDEX(Data!T:T,Report!$B182)) ->  | O182: =IF(ISERROR(INDEX(Data!U:U,Report!$B182)),"",INDEX(Data!U:U,Report!$B182)) ->  | P182: =IF(ISERROR(INDEX(Data!V:V,Report!$B182)),"",INDEX(Data!V:V,Report!$B182)) -> 
A183: 179 | B183: =IF(ISERROR(MATCH(A183,Data!A:A,0)),"",MATCH(A183,Data!A:A,0)) ->  | C183: =IF(ISERROR(INDEX(Data!I:I,Report!$B183)),"",INDEX(Data!I:I,Report!$B183)) ->  | D183: =IF(ISERROR(INDEX(Data!J:J,Report!$B183)),"",INDEX(Data!J:J,Report!$B183)) ->  | E183: =IF(ISERROR(INDEX(Data!K:K,Report!$B183)),"",INDEX(Data!K:K,Report!$B183)) ->  | F183: =IF(ISERROR(INDEX(Data!L:L,Report!$B183)),"",INDEX(Data!L:L,Report!$B183)) ->  | H183: =IF(ISERROR(INDEX(Data!N:N,Report!$B183)),"",INDEX(Data!N:N,Report!$B183)) ->  | I183: =IF(ISERROR(INDEX(Data!P:P,Report!$B183)),"",INDEX(Data!P:P,Report!$B183)) ->  | J183: =IF(ISERROR(INDEX(Data!O:O,Report!$B183)),"",INDEX(Data!O:O,Report!$B183)) ->  | K183: =IF(ISERROR(INDEX(Data!Q:Q,Report!$B183)),"",INDEX(Data!Q:Q,Report!$B183)) ->  | L183: =IF(ISERROR(INDEX(Data!R:R,Report!$B183)),"",INDEX(Data!R:R,Report!$B183)) ->  | M183: =IF(ISERROR(INDEX(Data!S:S,Report!$B183)),"",INDEX(Data!S:S,Report!$B183)) ->  | N183: =IF(ISERROR(INDEX(Data!T:T,Report!$B183)),"",INDEX(Data!T:T,Report!$B183)) ->  | O183: =IF(ISERROR(INDEX(Data!U:U,Report!$B183)),"",INDEX(Data!U:U,Report!$B183)) ->  | P183: =IF(ISERROR(INDEX(Data!V:V,Report!$B183)),"",INDEX(Data!V:V,Report!$B183)) -> 
A184: 180 | B184: =IF(ISERROR(MATCH(A184,Data!A:A,0)),"",MATCH(A184,Data!A:A,0)) ->  | C184: =IF(ISERROR(INDEX(Data!I:I,Report!$B184)),"",INDEX(Data!I:I,Report!$B184)) ->  | D184: =IF(ISERROR(INDEX(Data!J:J,Report!$B184)),"",INDEX(Data!J:J,Report!$B184)) ->  | E184: =IF(ISERROR(INDEX(Data!K:K,Report!$B184)),"",INDEX(Data!K:K,Report!$B184)) ->  | F184: =IF(ISERROR(INDEX(Data!L:L,Report!$B184)),"",INDEX(Data!L:L,Report!$B184)) ->  | H184: =IF(ISERROR(INDEX(Data!N:N,Report!$B184)),"",INDEX(Data!N:N,Report!$B184)) ->  | I184: =IF(ISERROR(INDEX(Data!P:P,Report!$B184)),"",INDEX(Data!P:P,Report!$B184)) ->  | J184: =IF(ISERROR(INDEX(Data!O:O,Report!$B184)),"",INDEX(Data!O:O,Report!$B184)) ->  | K184: =IF(ISERROR(INDEX(Data!Q:Q,Report!$B184)),"",INDEX(Data!Q:Q,Report!$B184)) ->  | L184: =IF(ISERROR(INDEX(Data!R:R,Report!$B184)),"",INDEX(Data!R:R,Report!$B184)) ->  | M184: =IF(ISERROR(INDEX(Data!S:S,Report!$B184)),"",INDEX(Data!S:S,Report!$B184)) ->  | N184: =IF(ISERROR(INDEX(Data!T:T,Report!$B184)),"",INDEX(Data!T:T,Report!$B184)) ->  | O184: =IF(ISERROR(INDEX(Data!U:U,Report!$B184)),"",INDEX(Data!U:U,Report!$B184)) ->  | P184: =IF(ISERROR(INDEX(Data!V:V,Report!$B184)),"",INDEX(Data!V:V,Report!$B184)) -> 
A185: 181 | B185: =IF(ISERROR(MATCH(A185,Data!A:A,0)),"",MATCH(A185,Data!A:A,0)) -> 89 | C185: =IF(ISERROR(INDEX(Data!I:I,Report!$B185)),"",INDEX(Data!I:I,Report!$B185)) -> 00:35:41 | D185: =IF(ISERROR(INDEX(Data!J:J,Report!$B185)),"",INDEX(Data!J:J,Report!$B185)) -> Game against Boomer at level 2.0 Single point data: | E185: =IF(ISERROR(INDEX(Data!K:K,Report!$B185)),"",INDEX(Data!K:K,Report!$B185)) -> Player's point | F185: =IF(ISERROR(INDEX(Data!L:L,Report!$B185)),"",INDEX(Data!L:L,Report!$B185)) -> New Point | H185: =IF(ISERROR(INDEX(Data!N:N,Report!$B185)),"",INDEX(Data!N:N,Report!$B185)) -> 1 | I185: =IF(ISERROR(INDEX(Data!P:P,Report!$B185)),"",INDEX(Data!P:P,Report!$B185)) -> Player Serve | J185: =IF(ISERROR(INDEX(Data!O:O,Report!$B185)),"",INDEX(Data!O:O,Report!$B185)) -> 4 | K185: =IF(ISERROR(INDEX(Data!Q:Q,Report!$B185)),"",INDEX(Data!Q:Q,Report!$B185)) -> 2 | L185: =IF(ISERROR(INDEX(Data!R:R,Report!$B185)),"",INDEX(Data!R:R,Report!$B185)) -> 19 | M185: =IF(ISERROR(INDEX(Data!S:S,Report!$B185)),"",INDEX(Data!S:S,Report!$B185)) -> 17 | N185: =IF(ISERROR(INDEX(Data!T:T,Report!$B185)),"",INDEX(Data!T:T,Report!$B185)) -> 5.4 | O185: =IF(ISERROR(INDEX(Data!U:U,Report!$B185)),"",INDEX(Data!U:U,Report!$B185)) -> 108 | P185: =IF(ISERROR(INDEX(Data!V:V,Report!$B185)),"",INDEX(Data!V:V,Report!$B185)) -> 6.1 | R185: | | S185: ||||||||
A186: 182 | B186: =IF(ISERROR(MATCH(A186,Data!A:A,0)),"",MATCH(A186,Data!A:A,0)) ->  | C186: =IF(ISERROR(INDEX(Data!I:I,Report!$B186)),"",INDEX(Data!I:I,Report!$B186)) ->  | D186: =IF(ISERROR(INDEX(Data!J:J,Report!$B186)),"",INDEX(Data!J:J,Report!$B186)) ->  | E186: =IF(ISERROR(INDEX(Data!K:K,Report!$B186)),"",INDEX(Data!K:K,Report!$B186)) ->  | F186: =IF(ISERROR(INDEX(Data!L:L,Report!$B186)),"",INDEX(Data!L:L,Report!$B186)) ->  | H186: =IF(ISERROR(INDEX(Data!N:N,Report!$B186)),"",INDEX(Data!N:N,Report!$B186)) ->  | I186: =IF(ISERROR(INDEX(Data!P:P,Report!$B186)),"",INDEX(Data!P:P,Report!$B186)) ->  | J186: =IF(ISERROR(INDEX(Data!O:O,Report!$B186)),"",INDEX(Data!O:O,Report!$B186)) ->  | K186: =IF(ISERROR(INDEX(Data!Q:Q,Report!$B186)),"",INDEX(Data!Q:Q,Report!$B186)) ->  | L186: =IF(ISERROR(INDEX(Data!R:R,Report!$B186)),"",INDEX(Data!R:R,Report!$B186)) ->  | M186: =IF(ISERROR(INDEX(Data!S:S,Report!$B186)),"",INDEX(Data!S:S,Report!$B186)) ->  | N186: =IF(ISERROR(INDEX(Data!T:T,Report!$B186)),"",INDEX(Data!T:T,Report!$B186)) ->  | O186: =IF(ISERROR(INDEX(Data!U:U,Report!$B186)),"",INDEX(Data!U:U,Report!$B186)) ->  | P186: =IF(ISERROR(INDEX(Data!V:V,Report!$B186)),"",INDEX(Data!V:V,Report!$B186)) -> 
A187: 183 | B187: =IF(ISERROR(MATCH(A187,Data!A:A,0)),"",MATCH(A187,Data!A:A,0)) ->  | C187: =IF(ISERROR(INDEX(Data!I:I,Report!$B187)),"",INDEX(Data!I:I,Report!$B187)) ->  | D187: =IF(ISERROR(INDEX(Data!J:J,Report!$B187)),"",INDEX(Data!J:J,Report!$B187)) ->  | E187: =IF(ISERROR(INDEX(Data!K:K,Report!$B187)),"",INDEX(Data!K:K,Report!$B187)) ->  | F187: =IF(ISERROR(INDEX(Data!L:L,Report!$B187)),"",INDEX(Data!L:L,Report!$B187)) ->  | H187: =IF(ISERROR(INDEX(Data!N:N,Report!$B187)),"",INDEX(Data!N:N,Report!$B187)) ->  | I187: =IF(ISERROR(INDEX(Data!P:P,Report!$B187)),"",INDEX(Data!P:P,Report!$B187)) ->  | J187: =IF(ISERROR(INDEX(Data!O:O,Report!$B187)),"",INDEX(Data!O:O,Report!$B187)) ->  | K187: =IF(ISERROR(INDEX(Data!Q:Q,Report!$B187)),"",INDEX(Data!Q:Q,Report!$B187)) ->  | L187: =IF(ISERROR(INDEX(Data!R:R,Report!$B187)),"",INDEX(Data!R:R,Report!$B187)) ->  | M187: =IF(ISERROR(INDEX(Data!S:S,Report!$B187)),"",INDEX(Data!S:S,Report!$B187)) ->  | N187: =IF(ISERROR(INDEX(Data!T:T,Report!$B187)),"",INDEX(Data!T:T,Report!$B187)) ->  | O187: =IF(ISERROR(INDEX(Data!U:U,Report!$B187)),"",INDEX(Data!U:U,Report!$B187)) ->  | P187: =IF(ISERROR(INDEX(Data!V:V,Report!$B187)),"",INDEX(Data!V:V,Report!$B187)) ->  | R187: =IF(H187=0,"",IF(ISERROR(REPT(" ",L187) & "|"),"",REPT(" ",L187) & "|")) -> 
A188: 184 | B188: =IF(ISERROR(MATCH(A188,Data!A:A,0)),"",MATCH(A188,Data!A:A,0)) ->  | C188: =IF(ISERROR(INDEX(Data!I:I,Report!$B188)),"",INDEX(Data!I:I,Report!$B188)) ->  | D188: =IF(ISERROR(INDEX(Data!J:J,Report!$B188)),"",INDEX(Data!J:J,Report!$B188)) ->  | E188: =IF(ISERROR(INDEX(Data!K:K,Report!$B188)),"",INDEX(Data!K:K,Report!$B188)) ->  | F188: =IF(ISERROR(INDEX(Data!L:L,Report!$B188)),"",INDEX(Data!L:L,Report!$B188)) ->  | H188: =IF(ISERROR(INDEX(Data!N:N,Report!$B188)),"",INDEX(Data!N:N,Report!$B188)) ->  | I188: =IF(ISERROR(INDEX(Data!P:P,Report!$B188)),"",INDEX(Data!P:P,Report!$B188)) ->  | J188: =IF(ISERROR(INDEX(Data!O:O,Report!$B188)),"",INDEX(Data!O:O,Report!$B188)) ->  | K188: =IF(ISERROR(INDEX(Data!Q:Q,Report!$B188)),"",INDEX(Data!Q:Q,Report!$B188)) ->  | L188: =IF(ISERROR(INDEX(Data!R:R,Report!$B188)),"",INDEX(Data!R:R,Report!$B188)) ->  | M188: =IF(ISERROR(INDEX(Data!S:S,Report!$B188)),"",INDEX(Data!S:S,Report!$B188)) ->  | N188: =IF(ISERROR(INDEX(Data!T:T,Report!$B188)),"",INDEX(Data!T:T,Report!$B188)) ->  | O188: =IF(ISERROR(INDEX(Data!U:U,Report!$B188)),"",INDEX(Data!U:U,Report!$B188)) ->  | P188: =IF(ISERROR(INDEX(Data!V:V,Report!$B188)),"",INDEX(Data!V:V,Report!$B188)) -> 
A189: 185 | B189: =IF(ISERROR(MATCH(A189,Data!A:A,0)),"",MATCH(A189,Data!A:A,0)) -> 90 | C189: =IF(ISERROR(INDEX(Data!I:I,Report!$B189)),"",INDEX(Data!I:I,Report!$B189)) ->  | D189: =IF(ISERROR(INDEX(Data!J:J,Report!$B189)),"",INDEX(Data!J:J,Report!$B189)) -> User Drill #85 3 line rated mini Tennis | E189: =IF(ISERROR(INDEX(Data!K:K,Report!$B189)),"",INDEX(Data!K:K,Report!$B189)) -> 0 | F189: =IF(ISERROR(INDEX(Data!L:L,Report!$B189)),"",INDEX(Data!L:L,Report!$B189)) -> New Point | H189: =IF(ISERROR(INDEX(Data!N:N,Report!$B189)),"",INDEX(Data!N:N,Report!$B189)) -> 1 | I189: =IF(ISERROR(INDEX(Data!P:P,Report!$B189)),"",INDEX(Data!P:P,Report!$B189)) -> 0 | J189: =IF(ISERROR(INDEX(Data!O:O,Report!$B189)),"",INDEX(Data!O:O,Report!$B189)) -> 11 | K189: =IF(ISERROR(INDEX(Data!Q:Q,Report!$B189)),"",INDEX(Data!Q:Q,Report!$B189)) -> 3.5 | L189: =IF(ISERROR(INDEX(Data!R:R,Report!$B189)),"",INDEX(Data!R:R,Report!$B189)) -> 0 | M189: =IF(ISERROR(INDEX(Data!S:S,Report!$B189)),"",INDEX(Data!S:S,Report!$B189)) -> 0 | N189: =IF(ISERROR(INDEX(Data!T:T,Report!$B189)),"",INDEX(Data!T:T,Report!$B189)) -> 0 | O189: =IF(ISERROR(INDEX(Data!U:U,Report!$B189)),"",INDEX(Data!U:U,Report!$B189)) -> 0 | P189: =IF(ISERROR(INDEX(Data!V:V,Report!$B189)),"",INDEX(Data!V:V,Report!$B189)) -> 0 | R189: |
A190: 186 | B190: =IF(ISERROR(MATCH(A190,Data!A:A,0)),"",MATCH(A190,Data!A:A,0)) -> 91 | C190: =IF(ISERROR(INDEX(Data!I:I,Report!$B190)),"",INDEX(Data!I:I,Report!$B190)) -> 04:37:32 | D190: =IF(ISERROR(INDEX(Data!J:J,Report!$B190)),"",INDEX(Data!J:J,Report!$B190)) -> Game against Boomer at level 3.5 Single point data: | E190: =IF(ISERROR(INDEX(Data!K:K,Report!$B190)),"",INDEX(Data!K:K,Report!$B190)) -> Player's point | F190: =IF(ISERROR(INDEX(Data!L:L,Report!$B190)),"",INDEX(Data!L:L,Report!$B190)) -> 0 | H190: =IF(ISERROR(INDEX(Data!N:N,Report!$B190)),"",INDEX(Data!N:N,Report!$B190)) -> 2 | I190: =IF(ISERROR(INDEX(Data!P:P,Report!$B190)),"",INDEX(Data!P:P,Report!$B190)) -> Topspin | J190: =IF(ISERROR(INDEX(Data!O:O,Report!$B190)),"",INDEX(Data!O:O,Report!$B190)) -> 3 | K190: =IF(ISERROR(INDEX(Data!Q:Q,Report!$B190)),"",INDEX(Data!Q:Q,Report!$B190)) -> 3.5 | L190: =IF(ISERROR(INDEX(Data!R:R,Report!$B190)),"",INDEX(Data!R:R,Report!$B190)) -> 24 | M190: =IF(ISERROR(INDEX(Data!S:S,Report!$B190)),"",INDEX(Data!S:S,Report!$B190)) -> 19 | N190: =IF(ISERROR(INDEX(Data!T:T,Report!$B190)),"",INDEX(Data!T:T,Report!$B190)) -> 4 | O190: =IF(ISERROR(INDEX(Data!U:U,Report!$B190)),"",INDEX(Data!U:U,Report!$B190)) -> 55 | P190: =IF(ISERROR(INDEX(Data!V:V,Report!$B190)),"",INDEX(Data!V:V,Report!$B190)) -> 5.2 | R190: | | S190: |||||||||
A191: 187 | B191: =IF(ISERROR(MATCH(A191,Data!A:A,0)),"",MATCH(A191,Data!A:A,0)) -> 92 | C191: =IF(ISERROR(INDEX(Data!I:I,Report!$B191)),"",INDEX(Data!I:I,Report!$B191)) ->  | D191: =IF(ISERROR(INDEX(Data!J:J,Report!$B191)),"",INDEX(Data!J:J,Report!$B191)) -> User Drill #85 3 line rated mini Tennis | E191: =IF(ISERROR(INDEX(Data!K:K,Report!$B191)),"",INDEX(Data!K:K,Report!$B191)) -> 0 | F191: =IF(ISERROR(INDEX(Data!L:L,Report!$B191)),"",INDEX(Data!L:L,Report!$B191)) -> 0 | H191: =IF(ISERROR(INDEX(Data!N:N,Report!$B191)),"",INDEX(Data!N:N,Report!$B191)) -> 2 | I191: =IF(ISERROR(INDEX(Data!P:P,Report!$B191)),"",INDEX(Data!P:P,Report!$B191)) -> 0 | J191: =IF(ISERROR(INDEX(Data!O:O,Report!$B191)),"",INDEX(Data!O:O,Report!$B191)) -> 4 | K191: =IF(ISERROR(INDEX(Data!Q:Q,Report!$B191)),"",INDEX(Data!Q:Q,Report!$B191)) -> 3.5 | L191: =IF(ISERROR(INDEX(Data!R:R,Report!$B191)),"",INDEX(Data!R:R,Report!$B191)) -> 0 | M191: =IF(ISERROR(INDEX(Data!S:S,Report!$B191)),"",INDEX(Data!S:S,Report!$B191)) -> 0 | N191: =IF(ISERROR(INDEX(Data!T:T,Report!$B191)),"",INDEX(Data!T:T,Report!$B191)) -> 0 | O191: =IF(ISERROR(INDEX(Data!U:U,Report!$B191)),"",INDEX(Data!U:U,Report!$B191)) -> 0 | P191: =IF(ISERROR(INDEX(Data!V:V,Report!$B191)),"",INDEX(Data!V:V,Report!$B191)) -> 0 | R191: |
A192: 188 | B192: =IF(ISERROR(MATCH(A192,Data!A:A,0)),"",MATCH(A192,Data!A:A,0)) -> 93 | C192: =IF(ISERROR(INDEX(Data!I:I,Report!$B192)),"",INDEX(Data!I:I,Report!$B192)) -> 04:37:32 | D192: =IF(ISERROR(INDEX(Data!J:J,Report!$B192)),"",INDEX(Data!J:J,Report!$B192)) -> Game against Boomer at level 3.5 Single point data: | E192: =IF(ISERROR(INDEX(Data!K:K,Report!$B192)),"",INDEX(Data!K:K,Report!$B192)) -> Player's point | F192: =IF(ISERROR(INDEX(Data!L:L,Report!$B192)),"",INDEX(Data!L:L,Report!$B192)) -> 0 | H192: =IF(ISERROR(INDEX(Data!N:N,Report!$B192)),"",INDEX(Data!N:N,Report!$B192)) -> 3 | I192: =IF(ISERROR(INDEX(Data!P:P,Report!$B192)),"",INDEX(Data!P:P,Report!$B192)) -> Flat Drive | J192: =IF(ISERROR(INDEX(Data!O:O,Report!$B192)),"",INDEX(Data!O:O,Report!$B192)) -> 2 | K192: =IF(ISERROR(INDEX(Data!Q:Q,Report!$B192)),"",INDEX(Data!Q:Q,Report!$B192)) -> 3.5 | L192: =IF(ISERROR(INDEX(Data!R:R,Report!$B192)),"",INDEX(Data!R:R,Report!$B192)) -> 21 | M192: =IF(ISERROR(INDEX(Data!S:S,Report!$B192)),"",INDEX(Data!S:S,Report!$B192)) -> 5 | N192: =IF(ISERROR(INDEX(Data!T:T,Report!$B192)),"",INDEX(Data!T:T,Report!$B192)) -> 4.9 | O192: =IF(ISERROR(INDEX(Data!U:U,Report!$B192)),"",INDEX(Data!U:U,Report!$B192)) -> 37 | P192: =IF(ISERROR(INDEX(Data!V:V,Report!$B192)),"",INDEX(Data!V:V,Report!$B192)) -> 4.6 | R192: | | S192: ||
A193: 189 | B193: =IF(ISERROR(MATCH(A193,Data!A:A,0)),"",MATCH(A193,Data!A:A,0)) -> 94 | C193: =IF(ISERROR(INDEX(Data!I:I,Report!$B193)),"",INDEX(Data!I:I,Report!$B193)) ->  | D193: =IF(ISERROR(INDEX(Data!J:J,Report!$B193)),"",INDEX(Data!J:J,Report!$B193)) -> User Drill #85 3 line rated mini Tennis | E193: =IF(ISERROR(INDEX(Data!K:K,Report!$B193)),"",INDEX(Data!K:K,Report!$B193)) -> 0 | F193: =IF(ISERROR(INDEX(Data!L:L,Report!$B193)),"",INDEX(Data!L:L,Report!$B193)) -> 0 | H193: =IF(ISERROR(INDEX(Data!N:N,Report!$B193)),"",INDEX(Data!N:N,Report!$B193)) -> 3 | I193: =IF(ISERROR(INDEX(Data!P:P,Report!$B193)),"",INDEX(Data!P:P,Report!$B193)) -> 0 | J193: =IF(ISERROR(INDEX(Data!O:O,Report!$B193)),"",INDEX(Data!O:O,Report!$B193)) -> 10 | K193: =IF(ISERROR(INDEX(Data!Q:Q,Report!$B193)),"",INDEX(Data!Q:Q,Report!$B193)) -> 3.5 | L193: =IF(ISERROR(INDEX(Data!R:R,Report!$B193)),"",INDEX(Data!R:R,Report!$B193)) -> 0 | M193: =IF(ISERROR(INDEX(Data!S:S,Report!$B193)),"",INDEX(Data!S:S,Report!$B193)) -> 0 | N193: =IF(ISERROR(INDEX(Data!T:T,Report!$B193)),"",INDEX(Data!T:T,Report!$B193)) -> 0 | O193: =IF(ISERROR(INDEX(Data!U:U,Report!$B193)),"",INDEX(Data!U:U,Report!$B193)) -> 0 | P193: =IF(ISERROR(INDEX(Data!V:V,Report!$B193)),"",INDEX(Data!V:V,Report!$B193)) -> 0 | R193: |
A194: 190 | B194: =IF(ISERROR(MATCH(A194,Data!A:A,0)),"",MATCH(A194,Data!A:A,0)) -> 95 | C194: =IF(ISERROR(INDEX(Data!I:I,Report!$B194)),"",INDEX(Data!I:I,Report!$B194)) -> 04:37:32 | D194: =IF(ISERROR(INDEX(Data!J:J,Report!$B194)),"",INDEX(Data!J:J,Report!$B194)) -> Game against Boomer at level 3.5 Single point data: | E194: =IF(ISERROR(INDEX(Data!K:K,Report!$B194)),"",INDEX(Data!K:K,Report!$B194)) -> Player's point | F194: =IF(ISERROR(INDEX(Data!L:L,Report!$B194)),"",INDEX(Data!L:L,Report!$B194)) -> 0 | H194: =IF(ISERROR(INDEX(Data!N:N,Report!$B194)),"",INDEX(Data!N:N,Report!$B194)) -> 4 | I194: =IF(ISERROR(INDEX(Data!P:P,Report!$B194)),"",INDEX(Data!P:P,Report!$B194)) -> Lob | J194: =IF(ISERROR(INDEX(Data!O:O,Report!$B194)),"",INDEX(Data!O:O,Report!$B194)) -> 4 | K194: =IF(ISERROR(INDEX(Data!Q:Q,Report!$B194)),"",INDEX(Data!Q:Q,Report!$B194)) -> 3.5 | L194: =IF(ISERROR(INDEX(Data!R:R,Report!$B194)),"",INDEX(Data!R:R,Report!$B194)) -> 33 | M194: =IF(ISERROR(INDEX(Data!S:S,Report!$B194)),"",INDEX(Data!S:S,Report!$B194)) -> 17 | N194: =IF(ISERROR(INDEX(Data!T:T,Report!$B194)),"",INDEX(Data!T:T,Report!$B194)) -> 4.9 | O194: =IF(ISERROR(INDEX(Data!U:U,Report!$B194)),"",INDEX(Data!U:U,Report!$B194)) -> 93 | P194: =IF(ISERROR(INDEX(Data!V:V,Report!$B194)),"",INDEX(Data!V:V,Report!$B194)) -> 7 | R194: | | S194: ||||||||
A195: 191 | B195: =IF(ISERROR(MATCH(A195,Data!A:A,0)),"",MATCH(A195,Data!A:A,0)) ->  | C195: =IF(ISERROR(INDEX(Data!I:I,Report!$B195)),"",INDEX(Data!I:I,Report!$B195)) ->  | D195: =IF(ISERROR(INDEX(Data!J:J,Report!$B195)),"",INDEX(Data!J:J,Report!$B195)) ->  | E195: =IF(ISERROR(INDEX(Data!K:K,Report!$B195)),"",INDEX(Data!K:K,Report!$B195)) ->  | F195: =IF(ISERROR(INDEX(Data!L:L,Report!$B195)),"",INDEX(Data!L:L,Report!$B195)) ->  | H195: =IF(ISERROR(INDEX(Data!N:N,Report!$B195)),"",INDEX(Data!N:N,Report!$B195)) ->  | I195: =IF(ISERROR(INDEX(Data!P:P,Report!$B195)),"",INDEX(Data!P:P,Report!$B195)) ->  | J195: =IF(ISERROR(INDEX(Data!O:O,Report!$B195)),"",INDEX(Data!O:O,Report!$B195)) ->  | K195: =IF(ISERROR(INDEX(Data!Q:Q,Report!$B195)),"",INDEX(Data!Q:Q,Report!$B195)) ->  | L195: =IF(ISERROR(INDEX(Data!R:R,Report!$B195)),"",INDEX(Data!R:R,Report!$B195)) ->  | M195: =IF(ISERROR(INDEX(Data!S:S,Report!$B195)),"",INDEX(Data!S:S,Report!$B195)) ->  | N195: =IF(ISERROR(INDEX(Data!T:T,Report!$B195)),"",INDEX(Data!T:T,Report!$B195)) ->  | O195: =IF(ISERROR(INDEX(Data!U:U,Report!$B195)),"",INDEX(Data!U:U,Report!$B195)) ->  | P195: =IF(ISERROR(INDEX(Data!V:V,Report!$B195)),"",INDEX(Data!V:V,Report!$B195)) -> 
A196: 192 | B196: =IF(ISERROR(MATCH(A196,Data!A:A,0)),"",MATCH(A196,Data!A:A,0)) ->  | C196: =IF(ISERROR(INDEX(Data!I:I,Report!$B196)),"",INDEX(Data!I:I,Report!$B196)) ->  | D196: =IF(ISERROR(INDEX(Data!J:J,Report!$B196)),"",INDEX(Data!J:J,Report!$B196)) ->  | E196: =IF(ISERROR(INDEX(Data!K:K,Report!$B196)),"",INDEX(Data!K:K,Report!$B196)) ->  | F196: =IF(ISERROR(INDEX(Data!L:L,Report!$B196)),"",INDEX(Data!L:L,Report!$B196)) ->  | H196: =IF(ISERROR(INDEX(Data!N:N,Report!$B196)),"",INDEX(Data!N:N,Report!$B196)) ->  | I196: =IF(ISERROR(INDEX(Data!P:P,Report!$B196)),"",INDEX(Data!P:P,Report!$B196)) ->  | J196: =IF(ISERROR(INDEX(Data!O:O,Report!$B196)),"",INDEX(Data!O:O,Report!$B196)) ->  | K196: =IF(ISERROR(INDEX(Data!Q:Q,Report!$B196)),"",INDEX(Data!Q:Q,Report!$B196)) ->  | L196: =IF(ISERROR(INDEX(Data!R:R,Report!$B196)),"",INDEX(Data!R:R,Report!$B196)) ->  | M196: =IF(ISERROR(INDEX(Data!S:S,Report!$B196)),"",INDEX(Data!S:S,Report!$B196)) ->  | N196: =IF(ISERROR(INDEX(Data!T:T,Report!$B196)),"",INDEX(Data!T:T,Report!$B196)) ->  | O196: =IF(ISERROR(INDEX(Data!U:U,Report!$B196)),"",INDEX(Data!U:U,Report!$B196)) ->  | P196: =IF(ISERROR(INDEX(Data!V:V,Report!$B196)),"",INDEX(Data!V:V,Report!$B196)) -> 
A197: 193 | B197: =IF(ISERROR(MATCH(A197,Data!A:A,0)),"",MATCH(A197,Data!A:A,0)) ->  | C197: =IF(ISERROR(INDEX(Data!I:I,Report!$B197)),"",INDEX(Data!I:I,Report!$B197)) ->  | D197: =IF(ISERROR(INDEX(Data!J:J,Report!$B197)),"",INDEX(Data!J:J,Report!$B197)) ->  | E197: =IF(ISERROR(INDEX(Data!K:K,Report!$B197)),"",INDEX(Data!K:K,Report!$B197)) ->  | F197: =IF(ISERROR(INDEX(Data!L:L,Report!$B197)),"",INDEX(Data!L:L,Report!$B197)) ->  | H197: =IF(ISERROR(INDEX(Data!N:N,Report!$B197)),"",INDEX(Data!N:N,Report!$B197)) ->  | I197: =IF(ISERROR(INDEX(Data!P:P,Report!$B197)),"",INDEX(Data!P:P,Report!$B197)) ->  | J197: =IF(ISERROR(INDEX(Data!O:O,Report!$B197)),"",INDEX(Data!O:O,Report!$B197)) ->  | K197: =IF(ISERROR(INDEX(Data!Q:Q,Report!$B197)),"",INDEX(Data!Q:Q,Report!$B197)) ->  | L197: =IF(ISERROR(INDEX(Data!R:R,Report!$B197)),"",INDEX(Data!R:R,Report!$B197)) ->  | M197: =IF(ISERROR(INDEX(Data!S:S,Report!$B197)),"",INDEX(Data!S:S,Report!$B197)) ->  | N197: =IF(ISERROR(INDEX(Data!T:T,Report!$B197)),"",INDEX(Data!T:T,Report!$B197)) ->  | O197: =IF(ISERROR(INDEX(Data!U:U,Report!$B197)),"",INDEX(Data!U:U,Report!$B197)) ->  | P197: =IF(ISERROR(INDEX(Data!V:V,Report!$B197)),"",INDEX(Data!V:V,Report!$B197)) -> 
A198: 194 | B198: =IF(ISERROR(MATCH(A198,Data!A:A,0)),"",MATCH(A198,Data!A:A,0)) -> 96 | C198: =IF(ISERROR(INDEX(Data!I:I,Report!$B198)),"",INDEX(Data!I:I,Report!$B198)) -> 04:38:00 | D198: =IF(ISERROR(INDEX(Data!J:J,Report!$B198)),"",INDEX(Data!J:J,Report!$B198)) -> Game against Boomer at level 3.5 Single point data: | E198: =IF(ISERROR(INDEX(Data!K:K,Report!$B198)),"",INDEX(Data!K:K,Report!$B198)) -> Player's point | F198: =IF(ISERROR(INDEX(Data!L:L,Report!$B198)),"",INDEX(Data!L:L,Report!$B198)) -> New Point | H198: =IF(ISERROR(INDEX(Data!N:N,Report!$B198)),"",INDEX(Data!N:N,Report!$B198)) -> 1 | I198: =IF(ISERROR(INDEX(Data!P:P,Report!$B198)),"",INDEX(Data!P:P,Report!$B198)) -> Serve | J198: =IF(ISERROR(INDEX(Data!O:O,Report!$B198)),"",INDEX(Data!O:O,Report!$B198)) -> 0 | K198: =IF(ISERROR(INDEX(Data!Q:Q,Report!$B198)),"",INDEX(Data!Q:Q,Report!$B198)) -> 3.5 | L198: =IF(ISERROR(INDEX(Data!R:R,Report!$B198)),"",INDEX(Data!R:R,Report!$B198)) -> 30 | M198: =IF(ISERROR(INDEX(Data!S:S,Report!$B198)),"",INDEX(Data!S:S,Report!$B198)) -> 5 | N198: =IF(ISERROR(INDEX(Data!T:T,Report!$B198)),"",INDEX(Data!T:T,Report!$B198)) -> 5.7 | O198: =IF(ISERROR(INDEX(Data!U:U,Report!$B198)),"",INDEX(Data!U:U,Report!$B198)) -> 42 | P198: =IF(ISERROR(INDEX(Data!V:V,Report!$B198)),"",INDEX(Data!V:V,Report!$B198)) -> 4.5 | R198: | | S198: =IF(ISERROR(REPT("|",M198/2)),"",REPT("|",M198/2)) -> ||
A199: =A198+1 -> 195 | B199: =IF(ISERROR(MATCH(A199,Data!A:A,0)),"",MATCH(A199,Data!A:A,0)) ->  | C199: =IF(ISERROR(INDEX(Data!I:I,Report!$B199)),"",INDEX(Data!I:I,Report!$B199)) ->  | D199: =IF(ISERROR(INDEX(Data!J:J,Report!$B199)),"",INDEX(Data!J:J,Report!$B199)) ->  | E199: =IF(ISERROR(INDEX(Data!K:K,Report!$B199)),"",INDEX(Data!K:K,Report!$B199)) ->  | F199: =IF(ISERROR(INDEX(Data!L:L,Report!$B199)),"",INDEX(Data!L:L,Report!$B199)) ->  | H199: =IF(ISERROR(INDEX(Data!N:N,Report!$B199)),"",INDEX(Data!N:N,Report!$B199)) ->  | I199: =IF(ISERROR(INDEX(Data!P:P,Report!$B199)),"",INDEX(Data!P:P,Report!$B199)) ->  | J199: =IF(ISERROR(INDEX(Data!O:O,Report!$B199)),"",INDEX(Data!O:O,Report!$B199)) ->  | K199: =IF(ISERROR(INDEX(Data!Q:Q,Report!$B199)),"",INDEX(Data!Q:Q,Report!$B199)) ->  | L199: =IF(ISERROR(INDEX(Data!R:R,Report!$B199)),"",INDEX(Data!R:R,Report!$B199)) ->  | M199: =IF(ISERROR(INDEX(Data!S:S,Report!$B199)),"",INDEX(Data!S:S,Report!$B199)) ->  | N199: =IF(ISERROR(INDEX(Data!T:T,Report!$B199)),"",INDEX(Data!T:T,Report!$B199)) ->  | O199: =IF(ISERROR(INDEX(Data!U:U,Report!$B199)),"",INDEX(Data!U:U,Report!$B199)) ->  | P199: =IF(ISERROR(INDEX(Data!V:V,Report!$B199)),"",INDEX(Data!V:V,Report!$B199)) -> 
A200: 196 | B200: =IF(ISERROR(MATCH(A200,Data!A:A,0)),"",MATCH(A200,Data!A:A,0)) ->  | C200: =IF(ISERROR(INDEX(Data!I:I,Report!$B200)),"",INDEX(Data!I:I,Report!$B200)) ->  | D200: =IF(ISERROR(INDEX(Data!J:J,Report!$B200)),"",INDEX(Data!J:J,Report!$B200)) ->  | E200: =IF(ISERROR(INDEX(Data!K:K,Report!$B200)),"",INDEX(Data!K:K,Report!$B200)) ->  | F200: =IF(ISERROR(INDEX(Data!L:L,Report!$B200)),"",INDEX(Data!L:L,Report!$B200)) ->  | H200: =IF(ISERROR(INDEX(Data!N:N,Report!$B200)),"",INDEX(Data!N:N,Report!$B200)) ->  | I200: =IF(ISERROR(INDEX(Data!P:P,Report!$B200)),"",INDEX(Data!P:P,Report!$B200)) ->  | J200: =IF(ISERROR(INDEX(Data!O:O,Report!$B200)),"",INDEX(Data!O:O,Report!$B200)) ->  | K200: =IF(ISERROR(INDEX(Data!Q:Q,Report!$B200)),"",INDEX(Data!Q:Q,Report!$B200)) ->  | L200: =IF(ISERROR(INDEX(Data!R:R,Report!$B200)),"",INDEX(Data!R:R,Report!$B200)) ->  | M200: =IF(ISERROR(INDEX(Data!S:S,Report!$B200)),"",INDEX(Data!S:S,Report!$B200)) ->  | N200: =IF(ISERROR(INDEX(Data!T:T,Report!$B200)),"",INDEX(Data!T:T,Report!$B200)) ->  | O200: =IF(ISERROR(INDEX(Data!U:U,Report!$B200)),"",INDEX(Data!U:U,Report!$B200)) ->  | P200: =IF(ISERROR(INDEX(Data!V:V,Report!$B200)),"",INDEX(Data!V:V,Report!$B200)) -> 
A201: 197 | B201: =IF(ISERROR(MATCH(A201,Data!A:A,0)),"",MATCH(A201,Data!A:A,0)) ->  | C201: =IF(ISERROR(INDEX(Data!I:I,Report!$B201)),"",INDEX(Data!I:I,Report!$B201)) ->  | D201: =IF(ISERROR(INDEX(Data!J:J,Report!$B201)),"",INDEX(Data!J:J,Report!$B201)) ->  | E201: =IF(ISERROR(INDEX(Data!K:K,Report!$B201)),"",INDEX(Data!K:K,Report!$B201)) ->  | F201: =IF(ISERROR(INDEX(Data!L:L,Report!$B201)),"",INDEX(Data!L:L,Report!$B201)) ->  | H201: =IF(ISERROR(INDEX(Data!N:N,Report!$B201)),"",INDEX(Data!N:N,Report!$B201)) ->  | I201: =IF(ISERROR(INDEX(Data!P:P,Report!$B201)),"",INDEX(Data!P:P,Report!$B201)) ->  | J201: =IF(ISERROR(INDEX(Data!O:O,Report!$B201)),"",INDEX(Data!O:O,Report!$B201)) ->  | K201: =IF(ISERROR(INDEX(Data!Q:Q,Report!$B201)),"",INDEX(Data!Q:Q,Report!$B201)) ->  | L201: =IF(ISERROR(INDEX(Data!R:R,Report!$B201)),"",INDEX(Data!R:R,Report!$B201)) ->  | M201: =IF(ISERROR(INDEX(Data!S:S,Report!$B201)),"",INDEX(Data!S:S,Report!$B201)) ->  | N201: =IF(ISERROR(INDEX(Data!T:T,Report!$B201)),"",INDEX(Data!T:T,Report!$B201)) ->  | O201: =IF(ISERROR(INDEX(Data!U:U,Report!$B201)),"",INDEX(Data!U:U,Report!$B201)) ->  | P201: =IF(ISERROR(INDEX(Data!V:V,Report!$B201)),"",INDEX(Data!V:V,Report!$B201)) -> 
... 533 more rows

Sheet Placement
C1: 5 | D1: 6 | E1: 7 | M1: Beg Line | N1: End Line | O1: Count | P1: MAxBlock
J2: 2 | L2: =INDEX(Data!M:M,M2) -> Player serving | M2: =MATCH($K$4,Data!$AF:$AF,0) -> 2 | N2: =IF(ISERROR(MATCH($K$4+1,Data!$AF:$AF,0)),MATCH(Q2,Data!$A:$A,0)+1,MATCH($K$4+1,Data!$AF:$AF,0)) -> 15 | O2: =N2-M2 -> 13 | P2: =MAX(Data!AF:AF) -> 77 | Q2: =MAX(Data!A:A) -> 864
C3: Set | D3: Game | E3: Point
A4: =Cover!C1 -> Allen Gibson | B4: =IF(L2="Player Serving","*","") -> * | C4: =IF(ISERROR(VLOOKUP("Player"&$K$5,Points!$A:$L,C$1,0)),"",VLOOKUP("Player"&$K$5,Points!$A:$L,C$1,0)) -> 0 | D4: =IF(ISERROR(VLOOKUP("Player"&$K$5,Points!$A:$L,D$1,0)),"",VLOOKUP("Player"&$K$5,Points!$A:$L,D$1,0)) -> 0 | E4: =IF(ISERROR(VLOOKUP("Player"&$K$5,Points!$A:$L,E$1,0)),"",VLOOKUP("Player"&$K$5,Points!$A:$L,E$1,0)) -> 1 | J4: Block | K4: 1
A5: Boomer | B5: =IF(L2="Player Serving","","*") ->  | C5: =IF(ISERROR(VLOOKUP($A5&$K$5,Points!$A:$L,C$1,0)),"",VLOOKUP($A5&$K$5,Points!$A:$L,C$1,0)) -> 0 | D5: =IF(ISERROR(VLOOKUP($A5&$K$5,Points!$A:$L,D$1,0)),"",VLOOKUP($A5&$K$5,Points!$A:$L,D$1,0)) -> 0 | E5: =IF(ISERROR(VLOOKUP($A5&$K$5,Points!$A:$L,E$1,0)),"",VLOOKUP($A5&$K$5,Points!$A:$L,E$1,0)) -> 0 | J5: Point | K5: =INDEX(Data!Z:Z,M2) -> 1
J7: Ball | K7: Label | L7: Width | M7: Depth | N7: Speed
J8: 1 | K8: =IF(J8>$O$2,"","#" & J8 &" " &N8 &" mph") -> #1 0 mph | L8: =INDEX(Data!S:S,Placement!$M$2) -> 0 | M8: =INDEX(Data!R:R,Placement!$M$2) -> 0 | N8: =INDEX(Data!U:U,Placement!$M$2) -> 0
J9: =IF(J8>=$O$2,"",J8+1) -> 2 | K9: #2 0 mph | L9: =IF(J9> $O$2,"",INDEX(Data!S:S,Placement!$M$2+J8)) -> 0 | M9: =IF(J9>$O$2,"",INDEX(Data!R:R,Placement!$M$2+J8)) -> 0 | N9: =IF(J9>$O$2,"",INDEX(Data!U:U,Placement!$M$2+J8)) -> 0
J10: =IF(J9>=$O$2,"",J9+1) -> 3 | K10: #3 0 mph | L10: =IF(J10> $O$2,"",INDEX(Data!S:S,Placement!$M$2+J9)) -> 0 | M10: =IF(J10>$O$2,"",INDEX(Data!R:R,Placement!$M$2+J9)) -> 0 | N10: =IF(J10>$O$2,"",INDEX(Data!U:U,Placement!$M$2+J9)) -> 0
J11: 4 | K11: #4 54 mph | L11: =IF(J11> $O$2,"",INDEX(Data!S:S,Placement!$M$2+J10)) -> 21 | M11: =IF(J11>$O$2,"",INDEX(Data!R:R,Placement!$M$2+J10)) -> 16 | N11: =IF(J11>$O$2,"",INDEX(Data!U:U,Placement!$M$2+J10)) -> 54
J12: 5 | K12: #5 0 mph | L12: =IF(J12> $O$2,"",INDEX(Data!S:S,Placement!$M$2+J11)) -> 0 | M12: =IF(J12>$O$2,"",INDEX(Data!R:R,Placement!$M$2+J11)) -> 2 | N12: =IF(J12>$O$2,"",INDEX(Data!U:U,Placement!$M$2+J11)) -> 0
J13: 6 | K13: #6 0 mph | L13: =IF(J13> $O$2,"",INDEX(Data!S:S,Placement!$M$2+J12)) -> 0 | M13: =IF(J13>$O$2,"",INDEX(Data!R:R,Placement!$M$2+J12)) -> 0 | N13: =IF(J13>$O$2,"",INDEX(Data!U:U,Placement!$M$2+J12)) -> 0
J14: 7 | K14: #7 38 mph | L14: =IF(J14> $O$2,"",INDEX(Data!S:S,Placement!$M$2+J13)) -> 9 | M14: =IF(J14>$O$2,"",INDEX(Data!R:R,Placement!$M$2+J13)) -> 27 | N14: =IF(J14>$O$2,"",INDEX(Data!U:U,Placement!$M$2+J13)) -> 38
J15: 8 | K15: #8 0 mph | L15: =IF(J15> $O$2,"",INDEX(Data!S:S,Placement!$M$2+J14)) -> 0 | M15: =IF(J15>$O$2,"",INDEX(Data!R:R,Placement!$M$2+J14)) -> 0 | N15: =IF(J15>$O$2,"",INDEX(Data!U:U,Placement!$M$2+J14)) -> 0
J16: 9 | K16: #9 45 mph | L16: =IF(J16> $O$2,"",INDEX(Data!S:S,Placement!$M$2+J15)) -> 5 | M16: =IF(J16>$O$2,"",INDEX(Data!R:R,Placement!$M$2+J15)) -> 27 | N16: =IF(J16>$O$2,"",INDEX(Data!U:U,Placement!$M$2+J15)) -> 45
J17: 10 | K17: #10 42 mph | L17: =IF(J17> $O$2,"",INDEX(Data!S:S,Placement!$M$2+J16)) -> 20 | M17: =IF(J17>$O$2,"",INDEX(Data!R:R,Placement!$M$2+J16)) -> 21 | N17: =IF(J17>$O$2,"",INDEX(Data!U:U,Placement!$M$2+J16)) -> 42
J18: 11 | K18: #11 48 mph | L18: =IF(J18> $O$2,"",INDEX(Data!S:S,Placement!$M$2+J17)) -> 10 | M18: =IF(J18>$O$2,"",INDEX(Data!R:R,Placement!$M$2+J17)) -> 30 | N18: =IF(J18>$O$2,"",INDEX(Data!U:U,Placement!$M$2+J17)) -> 48
J19: 12 | K19: #12 32 mph | L19: =IF(J19> $O$2,"",INDEX(Data!S:S,Placement!$M$2+J18)) -> 22 | M19: =IF(J19>$O$2,"",INDEX(Data!R:R,Placement!$M$2+J18)) -> 23 | N19: =IF(J19>$O$2,"",INDEX(Data!U:U,Placement!$M$2+J18)) -> 32
J20: 13 | K20: #13 44 mph | L20: =IF(J20> $O$2,"",INDEX(Data!S:S,Placement!$M$2+J19)) -> 4 | M20: =IF(J20>$O$2,"",INDEX(Data!R:R,Placement!$M$2+J19)) -> 26 | N20: =IF(J20>$O$2,"",INDEX(Data!U:U,Placement!$M$2+J19)) -> 44
L21: =IF(J21> $O$2,"",INDEX(Data!S:S,Placement!$M$2+J20)) ->  | M21: =IF(J21>$O$2,"",INDEX(Data!R:R,Placement!$M$2+J20)) ->  | N21: =IF(J21>$O$2,"",INDEX(Data!U:U,Placement!$M$2+J20)) -> 
L22: =IF(J22> $O$2,"",INDEX(Data!S:S,Placement!$M$2+J21)) ->  | M22: =IF(J22>$O$2,"",INDEX(Data!R:R,Placement!$M$2+J21)) ->  | N22: =IF(J22>$O$2,"",INDEX(Data!U:U,Placement!$M$2+J21)) -> 
L23: =IF(J23> $O$2,"",INDEX(Data!S:S,Placement!$M$2+J22)) ->  | M23: =IF(J23>$O$2,"",INDEX(Data!R:R,Placement!$M$2+J22)) ->  | N23: =IF(J23>$O$2,"",INDEX(Data!U:U,Placement!$M$2+J22)) -> 
L24: =IF(J24> $O$2,"",INDEX(Data!S:S,Placement!$M$2+J23)) ->  | M24: =IF(J24>$O$2,"",INDEX(Data!R:R,Placement!$M$2+J23)) ->  | N24: =IF(J24>$O$2,"",INDEX(Data!U:U,Placement!$M$2+J23)) -> 
L25: =IF(J25> $O$2,"",INDEX(Data!S:S,Placement!$M$2+J24)) ->  | M25: =IF(J25>$O$2,"",INDEX(Data!R:R,Placement!$M$2+J24)) ->  | N25: =IF(J25>$O$2,"",INDEX(Data!U:U,Placement!$M$2+J24)) -> 
L26: =IF(J26> $O$2,"",INDEX(Data!S:S,Placement!$M$2+J25)) ->  | M26: =IF(J26>$O$2,"",INDEX(Data!R:R,Placement!$M$2+J25)) ->  | N26: =IF(J26>$O$2,"",INDEX(Data!U:U,Placement!$M$2+J25)) -> 
L27: =IF(J27> $O$2,"",INDEX(Data!S:S,Placement!$M$2+J26)) ->  | M27: =IF(J27>$O$2,"",INDEX(Data!R:R,Placement!$M$2+J26)) ->  | N27: =IF(J27>$O$2,"",INDEX(Data!U:U,Placement!$M$2+J26)) -> 
L28: =IF(J28> $O$2,"",INDEX(Data!S:S,Placement!$M$2+J27)) ->  | M28: =IF(J28>$O$2,"",INDEX(Data!R:R,Placement!$M$2+J27)) ->  | N28: =IF(J28>$O$2,"",INDEX(Data!U:U,Placement!$M$2+J27)) -> 
L29: =IF(J29> $O$2,"",INDEX(Data!S:S,Placement!$M$2+J28)) ->  | M29: =IF(J29>$O$2,"",INDEX(Data!R:R,Placement!$M$2+J28)) ->  | N29: =IF(J29>$O$2,"",INDEX(Data!U:U,Placement!$M$2+J28)) -> 
L30: =IF(J30> $O$2,"",INDEX(Data!S:S,Placement!$M$2+J29)) ->  | M30: =IF(J30>$O$2,"",INDEX(Data!R:R,Placement!$M$2+J29)) ->  | N30: =IF(J30>$O$2,"",INDEX(Data!U:U,Placement!$M$2+J29)) -> 
L31: =IF(J31> $O$2,"",INDEX(Data!S:S,Placement!$M$2+J30)) ->  | M31: =IF(J31>$O$2,"",INDEX(Data!R:R,Placement!$M$2+J30)) ->  | N31: =IF(J31>$O$2,"",INDEX(Data!U:U,Placement!$M$2+J30)) -> 
L32: =IF(J32> $O$2,"",INDEX(Data!S:S,Placement!$M$2+J31)) ->  | M32: =IF(J32>$O$2,"",INDEX(Data!R:R,Placement!$M$2+J31)) ->  | N32: =IF(J32>$O$2,"",INDEX(Data!U:U,Placement!$M$2+J31)) -> 
L33: =IF(J33> $O$2,"",INDEX(Data!S:S,Placement!$M$2+J32)) ->  | M33: =IF(J33>$O$2,"",INDEX(Data!R:R,Placement!$M$2+J32)) ->  | N33: =IF(J33>$O$2,"",INDEX(Data!U:U,Placement!$M$2+J32)) -> 
L34: =IF(J34> $O$2,"",INDEX(Data!S:S,Placement!$M$2+J33)) ->  | M34: =IF(J34>$O$2,"",INDEX(Data!R:R,Placement!$M$2+J33)) ->  | N34: =IF(J34>$O$2,"",INDEX(Data!U:U,Placement!$M$2+J33)) -> 
L35: =IF(J35> $O$2,"",INDEX(Data!S:S,Placement!$M$2+J34)) ->  | M35: =IF(J35>$O$2,"",INDEX(Data!R:R,Placement!$M$2+J34)) ->  | N35: =IF(J35>$O$2,"",INDEX(Data!U:U,Placement!$M$2+J34)) -> 
L36: =IF(J36> $O$2,"",INDEX(Data!S:S,Placement!$M$2+J35)) ->  | M36: =IF(J36>$O$2,"",INDEX(Data!R:R,Placement!$M$2+J35)) ->  | N36: =IF(J36>$O$2,"",INDEX(Data!U:U,Placement!$M$2+J35)) -> 
L37: =IF(J37> $O$2,"",INDEX(Data!S:S,Placement!$M$2+J36)) ->  | M37: =IF(J37>$O$2,"",INDEX(Data!R:R,Placement!$M$2+J36)) ->  | N37: =IF(J37>$O$2,"",INDEX(Data!U:U,Placement!$M$2+J36)) -> 

Sheet Index Of Points
A5: Block # | B5: Beginning Row | C5: Rows | D5: Ending Row | E5: Game against Boomer at level 3.0 Single point data: | F5: Point | G5: Server | H5: Point # | I5: =INDEX(Data!AF:AF,'Index Of Points'!$A6) -> fBlock
A6: 1 | B6: =MATCH(A6,Data!AF:AF,0) -> 2 | C6: =B7-B6 -> 13 | E6: =INDEX(Data!J:J,'Index Of Points'!$B6) -> Game against Boomer at level 2.0 Single point data: | F6: =INDEX(Data!K:K,'Index Of Points'!$B6) -> Boomer's point | G6: =INDEX(Data!M:M,'Index Of Points'!$B6) -> Player serving | H6: =INDEX(Data!Z:Z,'Index Of Points'!$B6) -> 1 | I6: =INDEX(Data!AF:AF,'Index Of Points'!$B6) -> 1
A7: =IF(A6>MaxBlock-1,"",A6+1) -> 2 | B7: =IF(ISERROR(MATCH(A7,Data!AF:AF,0)),"",MATCH(A7,Data!AF:AF,0)) -> 15 | C7: =IF(ISERROR(B8-B7),"",B8-B7) -> 8 | E7: =IF(ISERROR(INDEX(Data!J:J,'Index Of Points'!$B7)),"",INDEX(Data!J:J,'Index Of Points'!$B7)) -> User Drill #85 3 line rated mini Tennis | F7: =IF(ISERROR(INDEX(Data!K:K,'Index Of Points'!$B7)),"",INDEX(Data!K:K,'Index Of Points'!$B7)) -> 0 | G7: =IF(ISERROR(INDEX(Data!M:M,'Index Of Points'!$B7)),"",INDEX(Data!M:M,'Index Of Points'!$B7)) ->  | H7: =IF(ISERROR(INDEX(Data!Z:Z,'Index Of Points'!$B7)),"",INDEX(Data!Z:Z,'Index Of Points'!$B7)) -> 0 | I7: =IF(ISERROR(INDEX(Data!AF:AF,'Index Of Points'!$B7)),"",INDEX(Data!AF:AF,'Index Of Points'!$B7)) -> 2
A8: 3 | B8: =IF(ISERROR(MATCH(A8,Data!AF:AF,0)),"",MATCH(A8,Data!AF:AF,0)) -> 23 | C8: =IF(ISERROR(B9-B8),"",B9-B8) -> 8 | E8: =IF(ISERROR(INDEX(Data!J:J,'Index Of Points'!$B8)),"",INDEX(Data!J:J,'Index Of Points'!$B8)) -> User Drill #85 3 line rated mini Tennis | F8: =IF(ISERROR(INDEX(Data!K:K,'Index Of Points'!$B8)),"",INDEX(Data!K:K,'Index Of Points'!$B8)) -> 0 | G8: =IF(ISERROR(INDEX(Data!M:M,'Index Of Points'!$B8)),"",INDEX(Data!M:M,'Index Of Points'!$B8)) ->  | H8: =IF(ISERROR(INDEX(Data!Z:Z,'Index Of Points'!$B8)),"",INDEX(Data!Z:Z,'Index Of Points'!$B8)) -> 0 | I8: =IF(ISERROR(INDEX(Data!AF:AF,'Index Of Points'!$B8)),"",INDEX(Data!AF:AF,'Index Of Points'!$B8)) -> 3
A9: 4 | B9: =IF(ISERROR(MATCH(A9,Data!AF:AF,0)),"",MATCH(A9,Data!AF:AF,0)) -> 31 | C9: 9 | E9: =IF(ISERROR(INDEX(Data!J:J,'Index Of Points'!$B9)),"",INDEX(Data!J:J,'Index Of Points'!$B9)) -> Game against Boomer at level 2.0 Single point data: | F9: =IF(ISERROR(INDEX(Data!K:K,'Index Of Points'!$B9)),"",INDEX(Data!K:K,'Index Of Points'!$B9)) -> Player's point | G9: =IF(ISERROR(INDEX(Data!M:M,'Index Of Points'!$B9)),"",INDEX(Data!M:M,'Index Of Points'!$B9)) -> Player serving | H9: =IF(ISERROR(INDEX(Data!Z:Z,'Index Of Points'!$B9)),"",INDEX(Data!Z:Z,'Index Of Points'!$B9)) -> 4 | I9: =IF(ISERROR(INDEX(Data!AF:AF,'Index Of Points'!$B9)),"",INDEX(Data!AF:AF,'Index Of Points'!$B9)) -> 4
A10: 5 | B10: =IF(ISERROR(MATCH(A10,Data!AF:AF,0)),"",MATCH(A10,Data!AF:AF,0)) -> 40 | C10: 9 | E10: =IF(ISERROR(INDEX(Data!J:J,'Index Of Points'!$B10)),"",INDEX(Data!J:J,'Index Of Points'!$B10)) -> User Drill #85 3 line rated mini Tennis | F10: =IF(ISERROR(INDEX(Data!K:K,'Index Of Points'!$B10)),"",INDEX(Data!K:K,'Index Of Points'!$B10)) -> 0 | G10: =IF(ISERROR(INDEX(Data!M:M,'Index Of Points'!$B10)),"",INDEX(Data!M:M,'Index Of Points'!$B10)) ->  | H10: =IF(ISERROR(INDEX(Data!Z:Z,'Index Of Points'!$B10)),"",INDEX(Data!Z:Z,'Index Of Points'!$B10)) -> 0 | I10: =IF(ISERROR(INDEX(Data!AF:AF,'Index Of Points'!$B10)),"",INDEX(Data!AF:AF,'Index Of Points'!$B10)) -> 5
A11: 6 | B11: =IF(ISERROR(MATCH(A11,Data!AF:AF,0)),"",MATCH(A11,Data!AF:AF,0)) -> 49 | C11: 8 | E11: =IF(ISERROR(INDEX(Data!J:J,'Index Of Points'!$B11)),"",INDEX(Data!J:J,'Index Of Points'!$B11)) -> Game against Boomer at level 2.0 Single point data: | F11: =IF(ISERROR(INDEX(Data!K:K,'Index Of Points'!$B11)),"",INDEX(Data!K:K,'Index Of Points'!$B11)) -> Player's point | G11: =IF(ISERROR(INDEX(Data!M:M,'Index Of Points'!$B11)),"",INDEX(Data!M:M,'Index Of Points'!$B11)) -> Boomer serving | H11: =IF(ISERROR(INDEX(Data!Z:Z,'Index Of Points'!$B11)),"",INDEX(Data!Z:Z,'Index Of Points'!$B11)) -> 6 | I11: =IF(ISERROR(INDEX(Data!AF:AF,'Index Of Points'!$B11)),"",INDEX(Data!AF:AF,'Index Of Points'!$B11)) -> 6
A12: 7 | B12: =IF(ISERROR(MATCH(A12,Data!AF:AF,0)),"",MATCH(A12,Data!AF:AF,0)) -> 57 | C12: 6 | E12: =IF(ISERROR(INDEX(Data!J:J,'Index Of Points'!$B12)),"",INDEX(Data!J:J,'Index Of Points'!$B12)) -> Game against Boomer at level 2.0 Single point data: | F12: =IF(ISERROR(INDEX(Data!K:K,'Index Of Points'!$B12)),"",INDEX(Data!K:K,'Index Of Points'!$B12)) -> Boomer's point | G12: =IF(ISERROR(INDEX(Data!M:M,'Index Of Points'!$B12)),"",INDEX(Data!M:M,'Index Of Points'!$B12)) -> Boomer serving | H12: =IF(ISERROR(INDEX(Data!Z:Z,'Index Of Points'!$B12)),"",INDEX(Data!Z:Z,'Index Of Points'!$B12)) -> 7 | I12: =IF(ISERROR(INDEX(Data!AF:AF,'Index Of Points'!$B12)),"",INDEX(Data!AF:AF,'Index Of Points'!$B12)) -> 7
A13: 8 | B13: =IF(ISERROR(MATCH(A13,Data!AF:AF,0)),"",MATCH(A13,Data!AF:AF,0)) -> 63 | C13: 9 | E13: =IF(ISERROR(INDEX(Data!J:J,'Index Of Points'!$B13)),"",INDEX(Data!J:J,'Index Of Points'!$B13)) -> Game against Boomer at level 3.5 Single point data: | F13: =IF(ISERROR(INDEX(Data!K:K,'Index Of Points'!$B13)),"",INDEX(Data!K:K,'Index Of Points'!$B13)) -> Player's point | G13: =IF(ISERROR(INDEX(Data!M:M,'Index Of Points'!$B13)),"",INDEX(Data!M:M,'Index Of Points'!$B13)) -> Player serving | H13: =IF(ISERROR(INDEX(Data!Z:Z,'Index Of Points'!$B13)),"",INDEX(Data!Z:Z,'Index Of Points'!$B13)) -> 9 | I13: =IF(ISERROR(INDEX(Data!AF:AF,'Index Of Points'!$B13)),"",INDEX(Data!AF:AF,'Index Of Points'!$B13)) -> 8
A14: 9 | B14: =IF(ISERROR(MATCH(A14,Data!AF:AF,0)),"",MATCH(A14,Data!AF:AF,0)) -> 72 | C14: 7 | E14: =IF(ISERROR(INDEX(Data!J:J,'Index Of Points'!$B14)),"",INDEX(Data!J:J,'Index Of Points'!$B14)) -> Game against Boomer at level 3.5 Single point data: | F14: =IF(ISERROR(INDEX(Data!K:K,'Index Of Points'!$B14)),"",INDEX(Data!K:K,'Index Of Points'!$B14)) -> Player's point | G14: =IF(ISERROR(INDEX(Data!M:M,'Index Of Points'!$B14)),"",INDEX(Data!M:M,'Index Of Points'!$B14)) -> Boomer serving | H14: =IF(ISERROR(INDEX(Data!Z:Z,'Index Of Points'!$B14)),"",INDEX(Data!Z:Z,'Index Of Points'!$B14)) -> 10 | I14: =IF(ISERROR(INDEX(Data!AF:AF,'Index Of Points'!$B14)),"",INDEX(Data!AF:AF,'Index Of Points'!$B14)) -> 9
A15: 10 | B15: =IF(ISERROR(MATCH(A15,Data!AF:AF,0)),"",MATCH(A15,Data!AF:AF,0)) -> 79 | C15: 9 | E15: =IF(ISERROR(INDEX(Data!J:J,'Index Of Points'!$B15)),"",INDEX(Data!J:J,'Index Of Points'!$B15)) -> User Drill #85 3 line rated mini Tennis | F15: =IF(ISERROR(INDEX(Data!K:K,'Index Of Points'!$B15)),"",INDEX(Data!K:K,'Index Of Points'!$B15)) -> 0 | G15: =IF(ISERROR(INDEX(Data!M:M,'Index Of Points'!$B15)),"",INDEX(Data!M:M,'Index Of Points'!$B15)) ->  | H15: =IF(ISERROR(INDEX(Data!Z:Z,'Index Of Points'!$B15)),"",INDEX(Data!Z:Z,'Index Of Points'!$B15)) -> 0 | I15: =IF(ISERROR(INDEX(Data!AF:AF,'Index Of Points'!$B15)),"",INDEX(Data!AF:AF,'Index Of Points'!$B15)) -> 10
A16: 11 | B16: =IF(ISERROR(MATCH(A16,Data!AF:AF,0)),"",MATCH(A16,Data!AF:AF,0)) -> 88 | C16: 8 | E16: =IF(ISERROR(INDEX(Data!J:J,'Index Of Points'!$B16)),"",INDEX(Data!J:J,'Index Of Points'!$B16)) -> Game against Boomer at level 3.5 Single point data: | F16: =IF(ISERROR(INDEX(Data!K:K,'Index Of Points'!$B16)),"",INDEX(Data!K:K,'Index Of Points'!$B16)) -> Player's point | G16: =IF(ISERROR(INDEX(Data!M:M,'Index Of Points'!$B16)),"",INDEX(Data!M:M,'Index Of Points'!$B16)) -> Boomer serving | H16: =IF(ISERROR(INDEX(Data!Z:Z,'Index Of Points'!$B16)),"",INDEX(Data!Z:Z,'Index Of Points'!$B16)) -> 12 | I16: =IF(ISERROR(INDEX(Data!AF:AF,'Index Of Points'!$B16)),"",INDEX(Data!AF:AF,'Index Of Points'!$B16)) -> 11
A17: 12 | B17: =IF(ISERROR(MATCH(A17,Data!AF:AF,0)),"",MATCH(A17,Data!AF:AF,0)) -> 96 | C17: 8 | E17: =IF(ISERROR(INDEX(Data!J:J,'Index Of Points'!$B17)),"",INDEX(Data!J:J,'Index Of Points'!$B17)) -> Game against Boomer at level 3.5 Single point data: | F17: =IF(ISERROR(INDEX(Data!K:K,'Index Of Points'!$B17)),"",INDEX(Data!K:K,'Index Of Points'!$B17)) -> Player's point | G17: =IF(ISERROR(INDEX(Data!M:M,'Index Of Points'!$B17)),"",INDEX(Data!M:M,'Index Of Points'!$B17)) -> Player serving | H17: =IF(ISERROR(INDEX(Data!Z:Z,'Index Of Points'!$B17)),"",INDEX(Data!Z:Z,'Index Of Points'!$B17)) -> 13 | I17: =IF(ISERROR(INDEX(Data!AF:AF,'Index Of Points'!$B17)),"",INDEX(Data!AF:AF,'Index Of Points'!$B17)) -> 12
A18: 13 | B18: =IF(ISERROR(MATCH(A18,Data!AF:AF,0)),"",MATCH(A18,Data!AF:AF,0)) -> 104 | C18: 9 | E18: =IF(ISERROR(INDEX(Data!J:J,'Index Of Points'!$B18)),"",INDEX(Data!J:J,'Index Of Points'!$B18)) -> Game against Boomer at level 3.5 Single point data: | F18: =IF(ISERROR(INDEX(Data!K:K,'Index Of Points'!$B18)),"",INDEX(Data!K:K,'Index Of Points'!$B18)) -> Player's point | G18: =IF(ISERROR(INDEX(Data!M:M,'Index Of Points'!$B18)),"",INDEX(Data!M:M,'Index Of Points'!$B18)) -> Player serving | H18: =IF(ISERROR(INDEX(Data!Z:Z,'Index Of Points'!$B18)),"",INDEX(Data!Z:Z,'Index Of Points'!$B18)) -> 14 | I18: =IF(ISERROR(INDEX(Data!AF:AF,'Index Of Points'!$B18)),"",INDEX(Data!AF:AF,'Index Of Points'!$B18)) -> 13
A19: 14 | B19: =IF(ISERROR(MATCH(A19,Data!AF:AF,0)),"",MATCH(A19,Data!AF:AF,0)) -> 113 | C19: 8 | E19: =IF(ISERROR(INDEX(Data!J:J,'Index Of Points'!$B19)),"",INDEX(Data!J:J,'Index Of Points'!$B19)) -> Game against Boomer at level 2.0 Single point data: | F19: =IF(ISERROR(INDEX(Data!K:K,'Index Of Points'!$B19)),"",INDEX(Data!K:K,'Index Of Points'!$B19)) -> Player's point | G19: =IF(ISERROR(INDEX(Data!M:M,'Index Of Points'!$B19)),"",INDEX(Data!M:M,'Index Of Points'!$B19)) -> Boomer serving | H19: =IF(ISERROR(INDEX(Data!Z:Z,'Index Of Points'!$B19)),"",INDEX(Data!Z:Z,'Index Of Points'!$B19)) -> 14 | I19: =IF(ISERROR(INDEX(Data!AF:AF,'Index Of Points'!$B19)),"",INDEX(Data!AF:AF,'Index Of Points'!$B19)) -> 14
A20: 15 | B20: =IF(ISERROR(MATCH(A20,Data!AF:AF,0)),"",MATCH(A20,Data!AF:AF,0)) -> 121 | C20: 10 | E20: =IF(ISERROR(INDEX(Data!J:J,'Index Of Points'!$B20)),"",INDEX(Data!J:J,'Index Of Points'!$B20)) -> User Drill #85 3 line rated mini Tennis | F20: =IF(ISERROR(INDEX(Data!K:K,'Index Of Points'!$B20)),"",INDEX(Data!K:K,'Index Of Points'!$B20)) -> 0 | G20: =IF(ISERROR(INDEX(Data!M:M,'Index Of Points'!$B20)),"",INDEX(Data!M:M,'Index Of Points'!$B20)) ->  | H20: =IF(ISERROR(INDEX(Data!Z:Z,'Index Of Points'!$B20)),"",INDEX(Data!Z:Z,'Index Of Points'!$B20)) -> 0 | I20: =IF(ISERROR(INDEX(Data!AF:AF,'Index Of Points'!$B20)),"",INDEX(Data!AF:AF,'Index Of Points'!$B20)) -> 15
A21: 16 | B21: =IF(ISERROR(MATCH(A21,Data!AF:AF,0)),"",MATCH(A21,Data!AF:AF,0)) -> 131 | C21: 11 | E21: =IF(ISERROR(INDEX(Data!J:J,'Index Of Points'!$B21)),"",INDEX(Data!J:J,'Index Of Points'!$B21)) -> User Drill #85 3 line rated mini Tennis | F21: =IF(ISERROR(INDEX(Data!K:K,'Index Of Points'!$B21)),"",INDEX(Data!K:K,'Index Of Points'!$B21)) -> 0 | G21: =IF(ISERROR(INDEX(Data!M:M,'Index Of Points'!$B21)),"",INDEX(Data!M:M,'Index Of Points'!$B21)) ->  | H21: =IF(ISERROR(INDEX(Data!Z:Z,'Index Of Points'!$B21)),"",INDEX(Data!Z:Z,'Index Of Points'!$B21)) -> 0 | I21: =IF(ISERROR(INDEX(Data!AF:AF,'Index Of Points'!$B21)),"",INDEX(Data!AF:AF,'Index Of Points'!$B21)) -> 16
A22: 17 | B22: =IF(ISERROR(MATCH(A22,Data!AF:AF,0)),"",MATCH(A22,Data!AF:AF,0)) -> 142 | C22: 6 | E22: =IF(ISERROR(INDEX(Data!J:J,'Index Of Points'!$B22)),"",INDEX(Data!J:J,'Index Of Points'!$B22)) -> Game against Boomer at level 3.5 Single point data: | F22: =IF(ISERROR(INDEX(Data!K:K,'Index Of Points'!$B22)),"",INDEX(Data!K:K,'Index Of Points'!$B22)) -> Player's point | G22: =IF(ISERROR(INDEX(Data!M:M,'Index Of Points'!$B22)),"",INDEX(Data!M:M,'Index Of Points'!$B22)) -> Player serving | H22: =IF(ISERROR(INDEX(Data!Z:Z,'Index Of Points'!$B22)),"",INDEX(Data!Z:Z,'Index Of Points'!$B22)) -> 18 | I22: =IF(ISERROR(INDEX(Data!AF:AF,'Index Of Points'!$B22)),"",INDEX(Data!AF:AF,'Index Of Points'!$B22)) -> 17
A23: 18 | B23: =IF(ISERROR(MATCH(A23,Data!AF:AF,0)),"",MATCH(A23,Data!AF:AF,0)) -> 148 | C23: 11 | E23: =IF(ISERROR(INDEX(Data!J:J,'Index Of Points'!$B23)),"",INDEX(Data!J:J,'Index Of Points'!$B23)) -> Game against Boomer at level 3.5 Single point data: | F23: =IF(ISERROR(INDEX(Data!K:K,'Index Of Points'!$B23)),"",INDEX(Data!K:K,'Index Of Points'!$B23)) -> Player's point | G23: =IF(ISERROR(INDEX(Data!M:M,'Index Of Points'!$B23)),"",INDEX(Data!M:M,'Index Of Points'!$B23)) -> Boomer serving | H23: =IF(ISERROR(INDEX(Data!Z:Z,'Index Of Points'!$B23)),"",INDEX(Data!Z:Z,'Index Of Points'!$B23)) -> 19 | I23: =IF(ISERROR(INDEX(Data!AF:AF,'Index Of Points'!$B23)),"",INDEX(Data!AF:AF,'Index Of Points'!$B23)) -> 18
A24: 19 | B24: =IF(ISERROR(MATCH(A24,Data!AF:AF,0)),"",MATCH(A24,Data!AF:AF,0)) -> 159 | C24: 6 | E24: =IF(ISERROR(INDEX(Data!J:J,'Index Of Points'!$B24)),"",INDEX(Data!J:J,'Index Of Points'!$B24)) -> User Drill #188 3 line rated mini tennis | F24: =IF(ISERROR(INDEX(Data!K:K,'Index Of Points'!$B24)),"",INDEX(Data!K:K,'Index Of Points'!$B24)) -> 0 | G24: =IF(ISERROR(INDEX(Data!M:M,'Index Of Points'!$B24)),"",INDEX(Data!M:M,'Index Of Points'!$B24)) ->  | H24: =IF(ISERROR(INDEX(Data!Z:Z,'Index Of Points'!$B24)),"",INDEX(Data!Z:Z,'Index Of Points'!$B24)) -> 0 | I24: =IF(ISERROR(INDEX(Data!AF:AF,'Index Of Points'!$B24)),"",INDEX(Data!AF:AF,'Index Of Points'!$B24)) -> 19
A25: 20 | B25: =IF(ISERROR(MATCH(A25,Data!AF:AF,0)),"",MATCH(A25,Data!AF:AF,0)) -> 165 | C25: 10 | E25: =IF(ISERROR(INDEX(Data!J:J,'Index Of Points'!$B25)),"",INDEX(Data!J:J,'Index Of Points'!$B25)) -> User Drill #188 3 line rated mini tennis | F25: =IF(ISERROR(INDEX(Data!K:K,'Index Of Points'!$B25)),"",INDEX(Data!K:K,'Index Of Points'!$B25)) -> 0 | G25: =IF(ISERROR(INDEX(Data!M:M,'Index Of Points'!$B25)),"",INDEX(Data!M:M,'Index Of Points'!$B25)) ->  | H25: =IF(ISERROR(INDEX(Data!Z:Z,'Index Of Points'!$B25)),"",INDEX(Data!Z:Z,'Index Of Points'!$B25)) -> 0 | I25: =IF(ISERROR(INDEX(Data!AF:AF,'Index Of Points'!$B25)),"",INDEX(Data!AF:AF,'Index Of Points'!$B25)) -> 20
A26: 21 | B26: =IF(ISERROR(MATCH(A26,Data!AF:AF,0)),"",MATCH(A26,Data!AF:AF,0)) -> 175 | C26: 9 | E26: =IF(ISERROR(INDEX(Data!J:J,'Index Of Points'!$B26)),"",INDEX(Data!J:J,'Index Of Points'!$B26)) -> Game against Boomer at level 3.5 Single point data: | F26: =IF(ISERROR(INDEX(Data!K:K,'Index Of Points'!$B26)),"",INDEX(Data!K:K,'Index Of Points'!$B26)) -> Player's point | G26: =IF(ISERROR(INDEX(Data!M:M,'Index Of Points'!$B26)),"",INDEX(Data!M:M,'Index Of Points'!$B26)) -> Player serving | H26: =IF(ISERROR(INDEX(Data!Z:Z,'Index Of Points'!$B26)),"",INDEX(Data!Z:Z,'Index Of Points'!$B26)) -> 23 | I26: =IF(ISERROR(INDEX(Data!AF:AF,'Index Of Points'!$B26)),"",INDEX(Data!AF:AF,'Index Of Points'!$B26)) -> 21
A27: 22 | B27: =IF(ISERROR(MATCH(A27,Data!AF:AF,0)),"",MATCH(A27,Data!AF:AF,0)) -> 184 | C27: 7 | E27: =IF(ISERROR(INDEX(Data!J:J,'Index Of Points'!$B27)),"",INDEX(Data!J:J,'Index Of Points'!$B27)) -> Game against Boomer at level 3.5 Single point data: | F27: =IF(ISERROR(INDEX(Data!K:K,'Index Of Points'!$B27)),"",INDEX(Data!K:K,'Index Of Points'!$B27)) -> Boomer's point | G27: =IF(ISERROR(INDEX(Data!M:M,'Index Of Points'!$B27)),"",INDEX(Data!M:M,'Index Of Points'!$B27)) -> Player serving | H27: =IF(ISERROR(INDEX(Data!Z:Z,'Index Of Points'!$B27)),"",INDEX(Data!Z:Z,'Index Of Points'!$B27)) -> 24 | I27: =IF(ISERROR(INDEX(Data!AF:AF,'Index Of Points'!$B27)),"",INDEX(Data!AF:AF,'Index Of Points'!$B27)) -> 22
A28: 23 | B28: =IF(ISERROR(MATCH(A28,Data!AF:AF,0)),"",MATCH(A28,Data!AF:AF,0)) -> 191 | C28: 5 | E28: =IF(ISERROR(INDEX(Data!J:J,'Index Of Points'!$B28)),"",INDEX(Data!J:J,'Index Of Points'!$B28)) -> User Drill #188 3 line rated mini tennis | F28: =IF(ISERROR(INDEX(Data!K:K,'Index Of Points'!$B28)),"",INDEX(Data!K:K,'Index Of Points'!$B28)) -> 0 | G28: =IF(ISERROR(INDEX(Data!M:M,'Index Of Points'!$B28)),"",INDEX(Data!M:M,'Index Of Points'!$B28)) ->  | H28: =IF(ISERROR(INDEX(Data!Z:Z,'Index Of Points'!$B28)),"",INDEX(Data!Z:Z,'Index Of Points'!$B28)) -> 0 | I28: =IF(ISERROR(INDEX(Data!AF:AF,'Index Of Points'!$B28)),"",INDEX(Data!AF:AF,'Index Of Points'!$B28)) -> 23
A29: 24 | B29: =IF(ISERROR(MATCH(A29,Data!AF:AF,0)),"",MATCH(A29,Data!AF:AF,0)) -> 196 | C29: 10 | E29: =IF(ISERROR(INDEX(Data!J:J,'Index Of Points'!$B29)),"",INDEX(Data!J:J,'Index Of Points'!$B29)) -> Game against Boomer at level 2.0 Single point data: | F29: =IF(ISERROR(INDEX(Data!K:K,'Index Of Points'!$B29)),"",INDEX(Data!K:K,'Index Of Points'!$B29)) -> Player's point | G29: =IF(ISERROR(INDEX(Data!M:M,'Index Of Points'!$B29)),"",INDEX(Data!M:M,'Index Of Points'!$B29)) -> Boomer serving | H29: =IF(ISERROR(INDEX(Data!Z:Z,'Index Of Points'!$B29)),"",INDEX(Data!Z:Z,'Index Of Points'!$B29)) -> 24 | I29: =IF(ISERROR(INDEX(Data!AF:AF,'Index Of Points'!$B29)),"",INDEX(Data!AF:AF,'Index Of Points'!$B29)) -> 24
A30: 25 | B30: =IF(ISERROR(MATCH(A30,Data!AF:AF,0)),"",MATCH(A30,Data!AF:AF,0)) -> 206 | C30: 6 | E30: =IF(ISERROR(INDEX(Data!J:J,'Index Of Points'!$B30)),"",INDEX(Data!J:J,'Index Of Points'!$B30)) -> User Drill #188 3 line rated mini tennis | F30: =IF(ISERROR(INDEX(Data!K:K,'Index Of Points'!$B30)),"",INDEX(Data!K:K,'Index Of Points'!$B30)) -> 0 | G30: =IF(ISERROR(INDEX(Data!M:M,'Index Of Points'!$B30)),"",INDEX(Data!M:M,'Index Of Points'!$B30)) ->  | H30: =IF(ISERROR(INDEX(Data!Z:Z,'Index Of Points'!$B30)),"",INDEX(Data!Z:Z,'Index Of Points'!$B30)) -> 0 | I30: =IF(ISERROR(INDEX(Data!AF:AF,'Index Of Points'!$B30)),"",INDEX(Data!AF:AF,'Index Of Points'!$B30)) -> 25
A31: 26 | B31: =IF(ISERROR(MATCH(A31,Data!AF:AF,0)),"",MATCH(A31,Data!AF:AF,0)) -> 212 | C31: 11 | E31: =IF(ISERROR(INDEX(Data!J:J,'Index Of Points'!$B31)),"",INDEX(Data!J:J,'Index Of Points'!$B31)) -> Game against Boomer at level 3.5 Single point data: | F31: =IF(ISERROR(INDEX(Data!K:K,'Index Of Points'!$B31)),"",INDEX(Data!K:K,'Index Of Points'!$B31)) -> Player's point | G31: =IF(ISERROR(INDEX(Data!M:M,'Index Of Points'!$B31)),"",INDEX(Data!M:M,'Index Of Points'!$B31)) -> Player serving | H31: =IF(ISERROR(INDEX(Data!Z:Z,'Index Of Points'!$B31)),"",INDEX(Data!Z:Z,'Index Of Points'!$B31)) -> 28 | I31: =IF(ISERROR(INDEX(Data!AF:AF,'Index Of Points'!$B31)),"",INDEX(Data!AF:AF,'Index Of Points'!$B31)) -> 26
A32: 27 | B32: =IF(ISERROR(MATCH(A32,Data!AF:AF,0)),"",MATCH(A32,Data!AF:AF,0)) -> 223 | C32: 7 | E32: =IF(ISERROR(INDEX(Data!J:J,'Index Of Points'!$B32)),"",INDEX(Data!J:J,'Index Of Points'!$B32)) -> Game against Boomer at level 3.5 Single point data: | F32: =IF(ISERROR(INDEX(Data!K:K,'Index Of Points'!$B32)),"",INDEX(Data!K:K,'Index Of Points'!$B32)) -> Player's point | G32: =IF(ISERROR(INDEX(Data!M:M,'Index Of Points'!$B32)),"",INDEX(Data!M:M,'Index Of Points'!$B32)) -> Boomer serving | H32: =IF(ISERROR(INDEX(Data!Z:Z,'Index Of Points'!$B32)),"",INDEX(Data!Z:Z,'Index Of Points'!$B32)) -> 29 | I32: =IF(ISERROR(INDEX(Data!AF:AF,'Index Of Points'!$B32)),"",INDEX(Data!AF:AF,'Index Of Points'!$B32)) -> 27
A33: 28 | B33: =IF(ISERROR(MATCH(A33,Data!AF:AF,0)),"",MATCH(A33,Data!AF:AF,0)) -> 230 | C33: 7 | E33: =IF(ISERROR(INDEX(Data!J:J,'Index Of Points'!$B33)),"",INDEX(Data!J:J,'Index Of Points'!$B33)) -> Game against Boomer at level 2.0 Single point data: | F33: =IF(ISERROR(INDEX(Data!K:K,'Index Of Points'!$B33)),"",INDEX(Data!K:K,'Index Of Points'!$B33)) -> Player's point | G33: =IF(ISERROR(INDEX(Data!M:M,'Index Of Points'!$B33)),"",INDEX(Data!M:M,'Index Of Points'!$B33)) -> Boomer serving | H33: =IF(ISERROR(INDEX(Data!Z:Z,'Index Of Points'!$B33)),"",INDEX(Data!Z:Z,'Index Of Points'!$B33)) -> 28 | I33: =IF(ISERROR(INDEX(Data!AF:AF,'Index Of Points'!$B33)),"",INDEX(Data!AF:AF,'Index Of Points'!$B33)) -> 28
A34: 29 | B34: =IF(ISERROR(MATCH(A34,Data!AF:AF,0)),"",MATCH(A34,Data!AF:AF,0)) -> 237 | C34: 5 | E34: =IF(ISERROR(INDEX(Data!J:J,'Index Of Points'!$B34)),"",INDEX(Data!J:J,'Index Of Points'!$B34)) -> User Drill #188 3 line rated mini tennis | F34: =IF(ISERROR(INDEX(Data!K:K,'Index Of Points'!$B34)),"",INDEX(Data!K:K,'Index Of Points'!$B34)) -> 0 | G34: =IF(ISERROR(INDEX(Data!M:M,'Index Of Points'!$B34)),"",INDEX(Data!M:M,'Index Of Points'!$B34)) ->  | H34: =IF(ISERROR(INDEX(Data!Z:Z,'Index Of Points'!$B34)),"",INDEX(Data!Z:Z,'Index Of Points'!$B34)) -> 0 | I34: =IF(ISERROR(INDEX(Data!AF:AF,'Index Of Points'!$B34)),"",INDEX(Data!AF:AF,'Index Of Points'!$B34)) -> 29
A35: 30 | B35: =IF(ISERROR(MATCH(A35,Data!AF:AF,0)),"",MATCH(A35,Data!AF:AF,0)) -> 242 | C35: 4 | E35: =IF(ISERROR(INDEX(Data!J:J,'Index Of Points'!$B35)),"",INDEX(Data!J:J,'Index Of Points'!$B35)) -> Game against Boomer at level 2.5 Single point data: | F35: =IF(ISERROR(INDEX(Data!K:K,'Index Of Points'!$B35)),"",INDEX(Data!K:K,'Index Of Points'!$B35)) -> Player's point | G35: =IF(ISERROR(INDEX(Data!M:M,'Index Of Points'!$B35)),"",INDEX(Data!M:M,'Index Of Points'!$B35)) -> Player serving | H35: =IF(ISERROR(INDEX(Data!Z:Z,'Index Of Points'!$B35)),"",INDEX(Data!Z:Z,'Index Of Points'!$B35)) -> 30 | I35: =IF(ISERROR(INDEX(Data!AF:AF,'Index Of Points'!$B35)),"",INDEX(Data!AF:AF,'Index Of Points'!$B35)) -> 30
A36: 31 | B36: =IF(ISERROR(MATCH(A36,Data!AF:AF,0)),"",MATCH(A36,Data!AF:AF,0)) -> 246 | C36: 4 | E36: =IF(ISERROR(INDEX(Data!J:J,'Index Of Points'!$B36)),"",INDEX(Data!J:J,'Index Of Points'!$B36)) -> User Drill #188 3 line rated mini tennis | F36: =IF(ISERROR(INDEX(Data!K:K,'Index Of Points'!$B36)),"",INDEX(Data!K:K,'Index Of Points'!$B36)) -> 0 | G36: =IF(ISERROR(INDEX(Data!M:M,'Index Of Points'!$B36)),"",INDEX(Data!M:M,'Index Of Points'!$B36)) ->  | H36: =IF(ISERROR(INDEX(Data!Z:Z,'Index Of Points'!$B36)),"",INDEX(Data!Z:Z,'Index Of Points'!$B36)) -> 0 | I36: =IF(ISERROR(INDEX(Data!AF:AF,'Index Of Points'!$B36)),"",INDEX(Data!AF:AF,'Index Of Points'!$B36)) -> 31
